Workbook

Sheet Contents
A1: 80 | M1: ESC USE ONLY
D2: ESSENTIAL SERVICES COMMISSION
D3: Water Price Review - 2020
D4: Financial Model Template
B7: Table of Contents | F7: Water Business: | H7: =+N24 -> South Gippsland Water | I7: =+O24 -> SGW
B8: Section & Sheet Titles | F8: Regulatory Period: | H8: 2020-21 to 2022-23 (Fourth - B) | N8: [Decision] | O8: [Month] | P8: [Year] | Q8: [Version]
F9: Model Name: | H9: =I7&"_Price Review Template_"&O9&P9&Q9 -> SGW_Price Review Template_Dec2018 - v1 | N9: Draft | O9: Dec | P9: 2018 | Q9: - v1 | R9: << Select
B10: 1 | C10: Model Quality Check | F10: Decision type: | H10: =+N9&" Decision" -> Draft Decision | N10: Draft | O10: Jan | P10: 2016 | Q10: - v1
B11: =B10+1 -> 2 | C11: =+KeyAssumptionsPriceControl_FO!B1 -> Key Assumptions Price Control | N11: Final | O11: Feb | P11: 2017 | Q11: - v1.2
B12: =B11+1 -> 3 | C12: =+Expenditure_Detail!B1 -> Expenditure - Detail | F12: Model Key: | O12: Mar | P12: 2018 | Q12: - v3
B13: 4 | C13: =Opex_FO!B1 -> Operating Expenditure - Forecast | O13: Apr | P13: 2019 | Q13: - v3.1
B14: 5 | C14: =Opex_Breakdown!B1 -> Operating Expenditure - Breakdown | G14: BLUE | H14: =+I7&" - DATA INPUT CELL" -> SGW - DATA INPUT CELL | O14: May | P14: 2020 | Q14: - v4
B15: 6 | C15: =+'Capex_FO input'!B1 -> Capital Expenditure - Forecast Input | O15: Jun | P15: 2021 | Q15: - v4.1
B16: 7 | C16: =Capex_FO_AC!B1 -> Capital Expenditure - Asset Category Breakdown | G16: YELLOW | H16: NOTES / INSTRUCTIONS | O16: Jul | Q16: - v5
B17: 8 | C17: =ExpSummary_FO!B1 -> Expenditure Summary | O17: Aug | Q17: - v5.1
B18: 9 | C18: =RollForward_FO!B1 -> Rolled forward regulatory asset base (RAB) | G18: GREY | H18: MODEL PARAMETERS / ASSUMPTIONS | O18: Sep | Q18: - v6
B19: 10 | C19: =PrevPerAdj_FO!B1 -> Previous period adjustments | O19: Oct | Q19: - v6.1
B20: 11 | C20: =RevenuePriceCap_FO!C1 -> Revenue forecast (price caps) | G20: WHITE | H20: FORMULA / HARDCODED VALUES | O20: Nov | Q20: - v7
B21: 12 | C21: Revenue forecast (tariff basket) | O21: Dec | Q21: - v7.1
B22: 13 | C22: =NotPres_FO!B1 -> Non Prescribed Services | G22: ORANGE | H22: FORMULA DIFFERENT TO ADJACENT CELL
B23: 14 | C23: ='Finance&Tax_FO'!B1 -> Cash, debt and tax assumptions | N23: [Business]
B24: 15 | C24: ='Rev&RAV_FO'!B1 -> Revenue requirement detail | G24: GREEN | H24: DATA FROM 2018 DECISION OR PERFORMANCE REPORT | N24: South Gippsland Water | O24: =+VLOOKUP(N24,N25:O42,2,FALSE) -> SGW
B25: 16 | C25: =Indicators_FO!B1 -> Financial indicators | N25: Barwon Water | O25: BW
B26: 17 | C26: =Outcomes!B1 -> Outcomes | G26: RED | H26: ERROR CHECK | N26: Central Highlands Water | O26: CHW
B27: 18 | C27: =GSL!B1 -> Guaranteed Service Levels (GSL) | N27: City West Water | O27: CWW
B28: 19 | C28: Dashboard - Pricing | N28: Coliban Water | O28: CW
B29: 20 | C29: Dashboard - Opex | N29: East Gippsland Water | O29: EGW
B30: 21 | C30: Dashboard - Capex | N30: Gippsland Water | O30: CGW
B31: 22 | C31: Dashboard - Data | N31: Goulburn Valley Water | O31: GVW
B32: 23 | C32: Household Bill | N32: GWM Water | O32: GWMW | P32: diff model
N33: Lower Murray Water - Urban | O33: LMW-U | P33: diff model
N34: Lower Murray Water - Rural | O34: LMW-R
N35: North East Water | O35: NEW
N36: South East Water | O36: SEW
N37: South Gippsland Water | O37: SGW
N38: Southern Rural Water | O38: SRW | P38: diff model
N39: Wannon Water | O39: WNW
N40: Western Water | O40: WW
N41: Westernport Water | O41: WPW
N42: Yarra Valley Water | O42: YVW

Sheet Model Quality Check
A1: 80 | B1: Model Quality Check
B2: =Model_Name -> South Gippsland Water
B3: Go to Table of Contents
K4: FIRST REG PERIOD | O4: SECOND REG PERIOD | R4: THIRD REG PERIOD | W4: FOURTH REG PERIOD (A) | Y4: FOURTH REG PERIOD (B) | AB4: FIFTH REG PERIOD
F6: Straight Line | J6: 2006 | K6: 2007 | L6: 2008 | M6: 2009 | N6: 2010 | O6: 2011 | P6: 2012 | Q6: 2013 | R6: 2014 | S6: 2015 | T6: 2016 | U6: 2017 | V6: 2018 | W6: 2019 | X6: 2020 | Y6: 2021 | Z6: 2022 | AA6: 2023 | AB6: 2024 | AC6: 2025 | AD6: 2026 | AE6: 2027 | AF6: 2028
F7: Declining Balance | J7: =+CONCATENATE(J6-1,"-",RIGHT(J6,2)) -> 2005-06 | K7: 2006-07 | L7: 2007-08 | M7: 2008-09 | N7: 2009-10 | O7: 2010-11 | P7: 2011-12 | Q7: 2012-13 | R7: 2013-14 | S7: 2014-15 | T7: 2015-16 | U7: 2016-17 | V7: 2017-18 | W7: =+CONCATENATE(W6-1,"-",RIGHT(W6,2)) -> 2018-19 | X7: 2019-20 | Y7: 2020-21 | Z7: 2021-22 | AA7: 2022-23 | AB7: 2023-24 | AC7: 2024-25 | AD7: 2025-26 | AE7: 2026-27 | AF7: 2027-28
D9: Model ready for submission: | I9: =IF(AND(X13=Y16=Z16=AA16=AB16=AC16=AD16=AE16=AF16=Y19=Z19=AA19=AB19=AC19=AD19=AE19=AF19=W21=X21=Y21=Z21=AA21=AB21=AC21=AD21=AE21=AF21=Y24=Z24=AA24=AB24=AC24=AD24=AE24=AF24=Y27=Z27=AA27=AB27=AC27=AD27=AE27=AF27=R37=S37=T37=U37=V37=W37=X37=Y37=Z37=AA37=AB37=AC37=AD37=AE37=AF37=R44=S44=T44=U44=V44=W44=X44=Y44=Z44=AA44=AB44=AC44=AD44=AE44=AF44=R47=S47=T47=U47=V47=W47=X47=Y47=Z47=AA47=AB47=AC47=AD47=AE47=AF47=Y50=Z50=AA50=AB50=AC50=AD50=AE50=AF50,Y30=TRUE,Y33="TRUE",Y35="TRUE",Y40="TRUE",Y42="TRUE"),"YES","NO") -> NO | R9: (If No, please ensure that the error check is corrected at the source)
E12: 1. | F12: KeyAssumptionsPriceControl_FO
G13: March quarter annual CPI | X13: =ISNUMBER(KeyAssumptionsPriceControl_FO!Y13) -> TRUE | Y13: Inflation data must be updated based on ABS March CPI - All Groups (Series ID: A2325846C)
E15: 2. | F15: Opex_FO
G16: Reconciliation to 'Opex_Breakdown' tab row 37 | Y16: =Opex_FO!Z100 -> TRUE | Z16: =Opex_FO!AA100 -> TRUE | AA16: =Opex_FO!AB100 -> TRUE | AB16: =Opex_FO!AC100 -> TRUE | AC16: =Opex_FO!AD100 -> TRUE | AD16: =Opex_FO!AE100 -> TRUE | AE16: =Opex_FO!AF100 -> TRUE | AF16: =Opex_FO!AG100 -> TRUE
E18: 3. | F18: Opex_Breakdown
G19: Reconciliation to 'Opex_FO' tab row 92 | Y19: =Opex_Breakdown!Z42 -> TRUE | Z19: =Opex_Breakdown!AA42 -> TRUE | AA19: =Opex_Breakdown!AB42 -> TRUE | AB19: =Opex_Breakdown!AC42 -> TRUE | AC19: =Opex_Breakdown!AD42 -> TRUE | AD19: =Opex_Breakdown!AE42 -> TRUE | AE19: =Opex_Breakdown!AF42 -> TRUE | AF19: =Opex_Breakdown!AG42 -> TRUE
G21: Reconciliation of Opex by service and function | W21: =Opex_Breakdown!X27 -> TRUE | X21: =Opex_Breakdown!Y27 -> TRUE | Y21: =Opex_Breakdown!Z27 -> TRUE | Z21: =Opex_Breakdown!AA27 -> TRUE | AA21: =Opex_Breakdown!AB27 -> TRUE | AB21: =Opex_Breakdown!AC27 -> TRUE | AC21: =Opex_Breakdown!AD27 -> TRUE | AD21: =Opex_Breakdown!AE27 -> TRUE | AE21: =Opex_Breakdown!AF27 -> TRUE | AF21: =Opex_Breakdown!AG27 -> TRUE
E23: 4. | F23: Capex_FO input
G24: Reconciliation of total prescribed capex between cost driver and capital type | Y24: ='Capex_FO input'!D26 -> TRUE | Z24: ='Capex_FO input'!E26 -> TRUE | AA24: ='Capex_FO input'!F26 -> TRUE | AB24: ='Capex_FO input'!G26 -> TRUE | AC24: ='Capex_FO input'!H26 -> TRUE | AD24: ='Capex_FO input'!I26 -> TRUE | AE24: ='Capex_FO input'!J26 -> TRUE | AF24: ='Capex_FO input'!K26 -> TRUE
E26: 5. | F26: Capex_FO_AC
G27: Reconciliation to 'Capex_FO input' tab row 29 | Y27: =Capex_FO_AC!Z30 -> TRUE | Z27: =Capex_FO_AC!AA30 -> TRUE | AA27: =Capex_FO_AC!AB30 -> TRUE | AB27: =Capex_FO_AC!AC30 -> TRUE | AC27: =Capex_FO_AC!AD30 -> TRUE | AD27: =Capex_FO_AC!AE30 -> TRUE | AE27: =Capex_FO_AC!AF30 -> TRUE | AF27: =Capex_FO_AC!AG30 -> TRUE
E29: 6. | F29: RollForward_FO
G30: Reconciliation of existing assets book value to RAB | Y30: =ROUND(RollForward_FO!G84,2)=ROUND(RollForward_FO!G82,2) -> TRUE
E32: 7. | F32: RevenuePriceCap_FO
G33: Price control - Fourth period | Y33: =IF(KeyAssumptionsPriceControl_FO!I48=1,IF(RevenuePriceCap_FO!Y34="PRICE CONTROL OK","TRUE","FALSE"),"TRUE") -> FALSE | Z33: =IF(KeyAssumptionsPriceControl_FO!I48=1,RevenuePriceCap_FO!Y34,"") -> INSUFFICIENT REVENUE
G35: Price control - Fifth period | Y35: =IF(KeyAssumptionsPriceControl_FO!I48=1,IF(RevenuePriceCap_FO!AD34="PRICE CONTROL OK","TRUE","FALSE"),"TRUE") -> FALSE | Z35: =IF(KeyAssumptionsPriceControl_FO!I48=1,RevenuePriceCap_FO!AD34,"") -> INSUFFICIENT REVENUE
G37: Tariff revenue reconciliation | R37: =RevenuePriceCap_FO!S458 -> TRUE | S37: =RevenuePriceCap_FO!T458 -> TRUE | T37: =RevenuePriceCap_FO!U458 -> TRUE | U37: =RevenuePriceCap_FO!V458 -> TRUE | V37: =RevenuePriceCap_FO!W458 -> TRUE | W37: =RevenuePriceCap_FO!X458 -> TRUE | X37: =RevenuePriceCap_FO!Y458 -> TRUE | Y37: =RevenuePriceCap_FO!Z458 -> TRUE | Z37: =RevenuePriceCap_FO!AA458 -> TRUE | AA37: =RevenuePriceCap_FO!AB458 -> TRUE | AB37: =RevenuePriceCap_FO!AC458 -> TRUE | AC37: =RevenuePriceCap_FO!AD458 -> TRUE | AD37: =RevenuePriceCap_FO!AE458 -> TRUE | AE37: =RevenuePriceCap_FO!AF458 -> TRUE | AF37: =RevenuePriceCap_FO!AG458 -> TRUE
E39: 8. | F39: RevenueTariffBasket_FO
G40: Price control - Fourth period | Y40: =IF(KeyAssumptionsPriceControl_FO!I48=2,IF(RevenueTariffBasket_FO!Y34="PRICE CONTROL OK","TRUE","FALSE"),"TRUE") -> TRUE | Z40: =IF(KeyAssumptionsPriceControl_FO!I48=2,RevenueTariffBasket_FO!Y34,"") -> 
G42: Price control - Fifth period | Y42: =IF(KeyAssumptionsPriceControl_FO!I48=2,IF(RevenueTariffBasket_FO!AD34="PRICE CONTROL OK","TRUE","FALSE"),"TRUE") -> TRUE | Z42: =IF(KeyAssumptionsPriceControl_FO!I48=2,RevenueTariffBasket_FO!AD34,"") -> 
G44: Tariff revenue reconciliation | R44: =RevenueTariffBasket_FO!S458 -> TRUE | S44: =RevenueTariffBasket_FO!T458 -> TRUE | T44: =RevenueTariffBasket_FO!U458 -> TRUE | U44: =RevenueTariffBasket_FO!V458 -> TRUE | V44: =RevenueTariffBasket_FO!W458 -> TRUE | W44: =RevenueTariffBasket_FO!X458 -> TRUE | X44: =RevenueTariffBasket_FO!Y458 -> TRUE | Y44: =RevenueTariffBasket_FO!Z458 -> TRUE | Z44: =RevenueTariffBasket_FO!AA458 -> TRUE | AA44: =RevenueTariffBasket_FO!AB458 -> TRUE | AB44: =RevenueTariffBasket_FO!AC458 -> TRUE | AC44: =RevenueTariffBasket_FO!AD458 -> TRUE | AD44: =RevenueTariffBasket_FO!AE458 -> TRUE | AE44: =RevenueTariffBasket_FO!AF458 -> TRUE | AF44: =RevenueTariffBasket_FO!AG458 -> TRUE
E46: 9. | F46: Rev&RAV_FO
G47: Rolled forward RAV reconciliation | R47: ='Rev&RAV_FO'!S80 -> TRUE | S47: ='Rev&RAV_FO'!T80 -> TRUE | T47: ='Rev&RAV_FO'!U80 -> TRUE | U47: ='Rev&RAV_FO'!V80 -> TRUE | V47: ='Rev&RAV_FO'!W80 -> TRUE | W47: ='Rev&RAV_FO'!X80 -> TRUE | X47: ='Rev&RAV_FO'!Y80 -> TRUE | Y47: ='Rev&RAV_FO'!Z80 -> TRUE | Z47: ='Rev&RAV_FO'!AA80 -> TRUE | AA47: ='Rev&RAV_FO'!AB80 -> TRUE | AB47: ='Rev&RAV_FO'!AC80 -> TRUE | AC47: ='Rev&RAV_FO'!AD80 -> TRUE | AD47: ='Rev&RAV_FO'!AE80 -> TRUE | AE47: ='Rev&RAV_FO'!AF80 -> TRUE | AF47: ='Rev&RAV_FO'!AG80 -> TRUE
E49: 10. | F49: GSL
G50: Reconciliation to 'Opex_Breakdown' tab row 23 | Y50: =GSL!Z40=GSL!Z39 -> TRUE | Z50: =GSL!AA40=GSL!AA39 -> TRUE | AA50: =GSL!AB40=GSL!AB39 -> TRUE | AB50: =GSL!AC40=GSL!AC39 -> TRUE | AC50: =GSL!AD40=GSL!AD39 -> TRUE | AD50: =GSL!AE40=GSL!AE39 -> TRUE | AE50: =GSL!AF40=GSL!AF39 -> TRUE | AF50: =GSL!AG40=GSL!AG39 -> TRUE

Sheet KeyAssumptionsPriceControl_FO
A1: 80 | B1: Key Assumptions Price Control
B2: =+Contents!H7 -> South Gippsland Water
B3: Go to Table of Contents
L4: FIRST REG PERIOD | P4: SECOND REG PERIOD | U4: THIRD REG PERIOD | X4: FOURTH REG PERIOD (A) | Z4: FOURTH REG PERIOD (B) | AC4: FIFTH REG PERIOD
F6: Straight Line | K6: 2006 | L6: 2007 | M6: 2008 | N6: 2009 | O6: 2010 | P6: 2011 | Q6: 2012 | R6: 2013 | S6: 2014 | T6: 2015 | U6: 2016 | V6: 2017 | W6: 2018 | X6: 2019 | Y6: 2020 | Z6: 2021 | AA6: 2022 | AB6: 2023 | AC6: 2024 | AD6: 2025 | AE6: 2026 | AF6: 2027 | AG6: 2028
F7: Declining Balance | I7: 2003-04 | J7: 2004-05 | K7: =+CONCATENATE(K6-1,"-",RIGHT(K6,2)) -> 2005-06 | L7: =+CONCATENATE(L6-1,"-",RIGHT(L6,2)) -> 2006-07 | M7: 2007-08 | N7: 2008-09 | O7: 2009-10 | P7: 2010-11 | Q7: 2011-12 | R7: 2012-13 | S7: 2013-14 | T7: 2014-15 | U7: 2015-16 | V7: 2016-17 | W7: 2017-18 | X7: 2018-19 | Y7: 2019-20 | Z7: 2020-21 | AA7: 2021-22 | AB7: 2022-23 | AC7: 2023-24 | AD7: 2024-25 | AE7: 2025-26 | AF7: 2026-27 | AG7: 2027-28
E11: Inflation assumptions
Y12: Estimate
F13: March quarter annual CPI | I13: 141.3 | J13: 144.1 | K13: 147.5 | L13: 151.9 | M13: 155.6 | N13: 162.2 | O13: 166.2 | P13: 171 | Q13: 176.7 | R13: 99.9 | S13: 102.4 | T13: 105.4 | U13: 106.8 | V13: 108.2 | W13: 110.5 | X13: 112.6 | Y13: 114.1
F14: Inflation | J14: =+J13/I13-1 -> 0.01981599434 | K14: 0.02359472588 | L14: 0.02983050847 | M14: 0.02435813035 | N14: 0.04241645244 | O14: 0.02466091245 | P14: 0.02888086643 | Q14: 0.03333333333 | R14: 0.01584606678 | S14: =+IF(S13=0,$Z$44,S13/R13-1) -> 0.02502502503 | T14: 0.029296875 | U14: 0.01328273245 | V14: 0.01310861423 | W14: 0.02125693161 | X14: 0.01900452489 | Y14: 0.01332149201 | Z14: 0.023 | AA14: 0.023 | AB14: 0.023 | AC14: 0.023 | AD14: 0.023 | AE14: 0.023 | AF14: 0.023 | AG14: 0.023
F15: Inflation factor | I15: 0.7871866295 | J15: 0.8027855153 | K15: 0.8217270195 | L15: 0.8462395543 | M15: 0.8668523677 | N15: 0.9036211699 | O15: 0.9259052925 | P15: 0.9526462396 | Q15: 0.9844011142 | R15: =+R13/$Y$13 -> 0.8755477651 | S15: 0.8974583699 | T15: 0.9237510955 | U15: 0.9360210342 | V15: 0.9482909728 | W15: 0.9684487292 | X15: 0.9868536372 | Y15: =+Y13/$Y$13 -> 1 | Z15: =+Y15*(1+Z14) -> 1.023 | AA15: 1.046529 | AB15: 1.070599167 | AC15: 1.095222948 | AD15: 1.120413076 | AE15: 1.146182576 | AF15: 1.172544776 | AG15: 1.199513305
I16: CPI index re-referenced in 2012-13, shaded values have been hardcoded to lock in RAB value.
E21: Cost of debt - 10 year trailing average (Nominal)
X22: Estimate | Y22: Estimate
E23: Cost of debt | L23: 0.06981666667 | M23: 0.07414 | N23: 0.0691525788 | O23: 0.07361870984 | P23: 0.07046784142 | Q23: 0.06308887941 | R23: 0.0526945046 | S23: 0.070525 | T23: 0.05360833333 | U23: 0.05270138413 | V23: 0.04908333333 | W23: 0.045283 | X23: 0.046133 | Y23: =X23 -> 0.046133
E24: Re-financing weightings - average 10 yrs | L24: =1/10 -> 0.1 | M24: =1/10 -> 0.1 | N24: =1/10 -> 0.1 | O24: =1/10 -> 0.1 | P24: =1/10 -> 0.1 | Q24: 0.1 | R24: 0.1 | S24: 0.1 | T24: 0.1 | U24: 0.1 | V24: 0.1 | W24: 0.1 | X24: 0.1 | Y24: 0.1 | Z24: 0.1 | AA24: 0.1 | AB24: 0.1 | AC24: 0.1 | AD24: 0.1 | AE24: 0.1 | AF24: 0.1 | AG24: 0.1
E26: Cost of debt - 10 year trailing average | V26: =IF(U23<>"",SUMPRODUCT(L23:U23,L24:U24),"") -> 0.06498138982 | W26: =IF(V23<>"",SUMPRODUCT(M23:V23,M24:V24),"") -> 0.06290805649 | X26: =IF(W23<>"",SUMPRODUCT(N23:W23,N24:W24),"") -> 0.06002235649 | Y26: =IF(X23<>"",SUMPRODUCT(O23:X23,O24:X24),"") -> 0.05772039861 | Z26: =IF(Y23<>"",SUMPRODUCT(P23:Y23,P24:Y24),"") -> 0.05497182762 | AA26: =IF(Z23<>"",SUMPRODUCT(Q23:Z23,Q24:Z24),"") -> 
E30: WACC assumptions (retained for historical purposes only) | W30: Regulatory Rate of Return (RRR) - Nominal
K32: 1st period | M32: 2nd period | O32: 3rd period | W32: Cost of Debt | Z32: =+Z26 -> 0.05497182762 | AA32: =+$Z$32 -> 0.05497182762 | AB32: 0.05497182762 | AC32: 0.05497182762 | AD32: 0.05497182762 | AE32: 0.05497182762 | AF32: 0.05497182762 | AG32: 0.05497182762 | AI32: << Linked to Benchmark tax liability calculation (Rev&RAV_FO)
E33: Parameters
F34: Risk Free Rate (Real) | K34: =+HLOOKUP(Contents!$I$7&1,Determination_Lookup!$C$22:$BE$29,2,FALSE) -> 0.0267 | M34: =+HLOOKUP(Contents!$I$7&2,Determination_Lookup!$C$22:$BE$29,2,FALSE) -> 0.0323 | O34: =+HLOOKUP(Contents!$I$7&3,Determination_Lookup!$C$22:$BE$29,2,FALSE) -> 0.005959
F35: Debt Premium | K35: =+HLOOKUP(Contents!$I$7&1,Determination_Lookup!$C$22:$BE$29,3,FALSE) -> 0.0116 | M35: =+HLOOKUP(Contents!$I$7&2,Determination_Lookup!$C$22:$BE$29,3,FALSE) -> 0.0175 | O35: =+HLOOKUP(Contents!$I$7&3,Determination_Lookup!$C$22:$BE$29,3,FALSE) -> 0.0399
F36: Equity Premium | K36: =+HLOOKUP(Contents!$I$7&1,Determination_Lookup!$C$22:$BE$29,4,FALSE) -> 0.06 | M36: =+HLOOKUP(Contents!$I$7&2,Determination_Lookup!$C$22:$BE$29,4,FALSE) -> 0.06 | O36: =+HLOOKUP(Contents!$I$7&3,Determination_Lookup!$C$22:$BE$29,4,FALSE) -> 0.06 | W36: Regulatory Rate of Return (RRR) - Real
F37: Equity Beta | K37: =+HLOOKUP(Contents!$I$7&1,Determination_Lookup!$C$22:$BE$29,5,FALSE) -> 0.75 | M37: =+HLOOKUP(Contents!$I$7&2,Determination_Lookup!$C$22:$BE$29,5,FALSE) -> 0.65 | O37: =+HLOOKUP(Contents!$I$7&3,Determination_Lookup!$C$22:$BE$29,5,FALSE) -> 0.65
F38: Gearing (Debt/Assets) | K38: =+HLOOKUP(Contents!$I$7&1,Determination_Lookup!$C$22:$BE$29,6,FALSE) -> 0.6 | M38: =+HLOOKUP(Contents!$I$7&2,Determination_Lookup!$C$22:$BE$29,6,FALSE) -> 0.6 | O38: =+HLOOKUP(Contents!$I$7&3,Determination_Lookup!$C$22:$BE$29,6,FALSE) -> 0.6 | W38: Cost of Debt | Z38: =(1+Z32)/(1+Z44)-1 -> 0.03125300843 | AA38: =+$Z$38 -> 0.03125300843 | AB38: 0.03125300843 | AC38: 0.03125300843 | AD38: 0.03125300843 | AE38: 0.03125300843 | AF38: 0.03125300843 | AG38: 0.03125300843
F39: Forecast Inflation | K39: =+HLOOKUP(Contents!$I$7&1,Determination_Lookup!$C$22:$BE$29,7,FALSE) -> 0.0255 | M39: =+HLOOKUP(Contents!$I$7&2,Determination_Lookup!$C$22:$BE$29,7,FALSE) -> 0.029 | O39: =+HLOOKUP(Contents!$I$7&3,Determination_Lookup!$C$22:$BE$29,7,FALSE) -> 0.0275
F40: Franking credit value | K40: =+HLOOKUP(Contents!$I$7&1,Determination_Lookup!$C$22:$BE$29,8,FALSE) -> 0.5 | M40: =+HLOOKUP(Contents!$I$7&2,Determination_Lookup!$C$22:$BE$29,8,FALSE) -> 0.5 | O40: =+HLOOKUP(Contents!$I$7&3,Determination_Lookup!$C$22:$BE$29,8,FALSE) -> 0.5 | W40: Return on Equity | Z40: 0.045 | AA40: =+$Z$40 -> 0.045 | AB40: 0.045 | AC40: 0.045 | AD40: 0.045 | AE40: 0.045 | AF40: 0.045 | AG40: 0.045
E42: 'Vanilla' After Tax WACC (Real) | K42: =ROUND(((K34+K36*K37)*(1-K38))+((K34+K35)*K38),3) -> 0.052 | M42: =ROUND(((M34+M36*M37)*(1-M38))+((M34+M35)*M38),3) -> 0.058 | O42: =ROUND(((O34+O36*O37)*(1-O38))+((O34+O35)*O38),3) -> 0.045 | W42: RRR (real) | Z42: =ROUND((Z40*(1-Z43)+Z38*Z43),4) -> 0.0368 | AA42: =ROUND((AA40*(1-AA43)+AA38*AA43),4) -> 0.0368 | AB42: 0.0368 | AC42: 0.0368 | AD42: 0.0368 | AE42: 0.0368 | AF42: 0.0368 | AG42: 0.0368
W43: Gearing | Z43: 0.6 | AA43: =+Z43 -> 0.6 | AB43: =+AA43 -> 0.6 | AC43: 0.6 | AD43: 0.6 | AE43: 0.6 | AF43: 0.6 | AG43: 0.6
W44: Forecast Inflation | Z44: 0.023 | AA44: =+Z44 -> 0.023 | AB44: 0.023 | AC44: 0.023 | AD44: 0.023 | AE44: 0.023 | AF44: 0.023 | AG44: 0.023 | AI44: <<< forecast inflation is set based on the forecast inflation calculated by the Department of Treasury and Finance (https://www.dtf.vic.gov.au/state-financial-data-sets/macroeconomic-indicators)
L45: Regulatory Rate of Return (RRR) [retained for historical purposes only]
E46: Form of price control selected
O47: 4th period
E48: Price caps | I48: 1 | L48: Cost of Debt | O48: 0.03618998679 | AB48: PREMO Assessment Matrix (linked to Regulatory Rate of Return calculation above)
L49: Return on Equity | O49: 0.045 | U49: PREMO Graded Scoring System (for reference only)
E50: Revenue cap / Hybrid Tariff Basket | L50: Gearing | O50: 0.6
L51: Forecast Inflation | O51: 0.023 | AD51: Water business self-assessment
L52: RRR (real) | O52: =ROUND((O49*(1-O50)+O48*O50),4) -> 0.0397 | V52: Water business | X52: ESC assessment | Z52: Difference
V53: self-assessment | X53: of submission | AD53: Leading | AE53: Advanced | AF53: Standard | AG53: Basic
AB54: ESC assessment of submission | AC54: Leading | AD54: 5.3
U55: Risk | V55: [Select] | Z55: =IFERROR(IF(X55=0,"",X55-V55),"") ->  | AC55: Advanced | AD55: 4.7 | AE55: 4.9
U56: Engagement | V56: [Select] | Z56: =IFERROR(IF(X56=0,"",X56-V56),"") ->  | AC56: Standard | AD56: 4.1 | AE56: 4.3 | AF56: 4.5
U57: Management | V57: [Select] | Z57: =IFERROR(IF(X57=0,"",X57-V57),"") ->  | AC57: Basic | AF57: 3.9 | AG57: 4.1
U58: Outcomes | V58: [Select] | Z58: =IFERROR(IF(X58=0,"",X58-V58),"") -> 
U60: Total Score | V60: =SUM(V55:V58) -> 0 | X60: =SUM(X55:X58) -> 0 | Z60: =IFERROR(IF(X60=0,"",X60-V60),"") ->  | AB60: Water business self-assessment (Maximum allowable ROE) | AF60: [Select] | AG60: =+VLOOKUP(AF60,$AF$72:$AG$76,2,FALSE) -> 0
AB62: ROE Override (Must be less than Maximum allowable ROE) | AG62: =+IF(AF62<=AG60,AF62,"CHECK") -> 0
U64: Rating | V64: =IF(V60<4,"",IF(AND(V60>=4,V60<=7.25),"Basic",IF(AND(V60>=7.5,V60<=11.25),"Standard",IF(AND(V60>=11.5,V60<=15.25),"Advanced",IF(AND(V60>=15.5,V60<=16),"Leading"))))) ->  | X64: =IF(X60<4,"",IF(AND(X60>=4,X60<=7.25),"Basic",IF(AND(X60>=7.5,X60<=11.25),"Standard",IF(AND(X60>=11.5,X60<=15.25),"Advanced",IF(AND(X60>=15.5,X60<=16),"Leading"))))) ->  | AB64: ESC assessment of submission | AF64: [Select] | AG64: =IFERROR(IF(AF64=AF60,AG60,VLOOKUP(AF60&AF64,AF79:AG83,2,FALSE)),0) -> 0
AF66: Difference | AG66: =IFERROR(IF(AG64=0,"",AG64-AG60),"") -> 
U70: ESC USE ONLY
W71: [Select] | Y71: Rating | Z71: Aggregate score for overall PREMO rating | AF71: Business self assessment
W72: 1 | Y72: Leading | Z72: 15.5 to 16.0 | AF72: [Select]
W73: 1.25 | Y73: Advanced | Z73: 11.5 to 15.25 | AF73: Leading | AG73: =+AD54 -> 5.3
W74: 1.5 | Y74: Standard | Z74: 7.5 to 11.25 | AF74: Advanced | AG74: =+AE55 -> 4.9
W75: 1.75 | Y75: Basic | Z75: 4.0 to 7.25 | AF75: Standard | AG75: =+AF56 -> 4.5
W76: 2 | AF76: Basic | AG76: =+AG57 -> 4.1
W77: 2.25
W78: 2.5 | AF78: downgrading
W79: 2.75 | AF79: =AF53&AC57 -> StandardBasic | AG79: =+AF57 -> 3.9
W80: 3 | AF80: =+AE53&AC56 -> AdvancedStandard | AG80: =+AE56 -> 4.3
W81: 3.25 | AF81: =+AD53&AC55 -> LeadingAdvanced | AG81: =+AD55 -> 4.7
W82: 3.5 | AF82: =+AD53&AC56 -> LeadingStandard | AG82: =+AD56 -> 4.1
W83: 3.75 | AF83: =+AF60&"Basic" -> [Select]Basic | AG83: CHECK
W84: 4

Sheet Opex_FO
B1: Operating Expenditure - Forecast
B2: =Model_Name -> South Gippsland Water
B3: Go to Table of Contents
L4: FIRST REG PERIOD | P4: SECOND REG PERIOD | S4: THIRD REG PERIOD | X4: FOURTH REG PERIOD (A) | Z4: FOURTH REG PERIOD (B) | AC4: FIFTH REG PERIOD
K5: 2006 | L5: 2007 | M5: 2008 | N5: 2009 | O5: 2010 | P5: 2011 | Q5: 2012 | R5: 2013 | S5: 2014 | T5: 2015 | U5: 2016 | V5: 2017 | W5: 2018 | X5: 2019 | Y5: 2020 | Z5: 2021 | AA5: 2022 | AB5: 2023 | AC5: 2024 | AD5: 2025 | AE5: 2026 | AF5: 2027 | AG5: 2028
B6: =Expenditure_Detail!$B$6 -> $m, 01/01/20 | K6: =+CONCATENATE(K5-1,"-",RIGHT(K5,2)) -> 2005-06 | L6: =+CONCATENATE(L5-1,"-",RIGHT(L5,2)) -> 2006-07 | M6: 2007-08 | N6: 2008-09 | O6: 2009-10 | P6: 2010-11 | Q6: 2011-12 | R6: 2012-13 | S6: 2013-14 | T6: 2014-15 | U6: 2015-16 | V6: 2016-17 | W6: 2017-18 | X6: 2018-19 | Y6: 2019-20 | Z6: 2020-21 | AA6: 2021-22 | AB6: 2022-23 | AC6: 2023-24 | AD6: 2024-25 | AE6: 2025-26 | AF6: 2026-27 | AG6: 2027-28
C9: Parameters | F9: 3rd period | G9: 4th period (A) | H9: 4th period (B)
D11: Cost efficiency improvement rate (% per annum) | F11: 0.01 | G11: 0.0152 | H11: =IFERROR(AVERAGE(Z11:AB11),"-") -> 0.01 | Z11: 0.01 | AA11: 0.01 | AB11: 0.01 | AC11: 0.01 | AD11: 0.01 | AE11: 0.01 | AF11: 0.01 | AG11: 0.01
D13: Customer growth forecast (% per annum) | F13: =AVERAGE(S13:W13) -> 0.01153457068 | G13: =IFERROR(AVERAGE(X13:Y13),"-") -> 0.008193129192 | H13: =IFERROR(AVERAGE(Z13:AB13),"-") -> 0.01638625838 | S13: =IF(S15="","",S15/R15-1) -> 0.008473254665 | T13: =IF(T15="","",T15/S15-1) -> 0.01221649485 | U13: =IF(U15="","",U15/T15-1) -> 0.009777460916 | V13: =IF(V15="","",V15/U15-1) -> 0.01104442988 | W13: =IF(W15="","",W15/V15-1) -> 0.01616121309 | X13: 0 | Y13: 0.01638625838 | Z13: 0.01638625838 | AA13: 0.01638625838 | AB13: 0.01638625838 | AC13: 0.01638625838 | AD13: 0.01638625838 | AE13: 0.01638625838 | AF13: 0.01638625838 | AG13: 0.01638625838
D15: Water customers (No.) - Residential & Non-Residential - [BED 1] | R15: =+Determination_Lookup!BI3 -> 19237 | S15: =+Determination_Lookup!BJ3 -> 19400 | T15: =+Determination_Lookup!BK3 -> 19637 | U15: =+Determination_Lookup!BL3 -> 19829 | V15: =+Determination_Lookup!BM3 -> 20048 | W15: =+Determination_Lookup!BN3 -> 20372 | X15: 20692 | Y15: =+X$15*(1+Y$13) -> 21031.06446 | Z15: 21375.68491 | AA15: 21725.95241 | AB15: 22081.95948 | AC15: 22443.80017 | AD15: 22811.57008 | AE15: 23185.36636 | AF15: 23565.28777 | AG15: 23951.43466 | AI15: << Used as normalising metric for dashboard graphs
D17: Sewer customers (No.) - Residential & Non-Residential - [BED 2] | S17: =+Determination_Lookup!BP3 -> 16613 | T17: =+Determination_Lookup!BQ3 -> 16967 | U17: =+Determination_Lookup!BR3 -> 17181 | V17: =+Determination_Lookup!BS3 -> 17725 | W17: =+Determination_Lookup!BT3 -> 17954 | X17: 18257 | Y17: =+X$17*(1+Y$13) -> 18556.16392 | Z17: 18860.23002 | AA17: 19169.27862 | AB17: 19483.39137 | AC17: 19802.65126 | AD17: 20127.14262 | AE17: 20456.95118 | AF17: 20792.16406 | AG17: 21132.86984 | AI17: << Used as normalising metric for dashboard graphs
D19: Total metered volume of water delivered to customers (ML) - [BED 10] | S19: =+Determination_Lookup!BC3 -> 4663 | T19: =+Determination_Lookup!BD3 -> 4585 | U19: =+Determination_Lookup!BE3 -> 4771 | V19: =+Determination_Lookup!BF3 -> 4613 | W19: =+Determination_Lookup!BG3 -> 4530 | X19: 4642 | Y19: 4809.880146 | Z19: 4884.519313 | AA19: 4965.46242 | AB19: 5017.760056 | AC19: 5071.465332 | AD19: 5126.634034 | AE19: 5183.324772 | AF19: 5241.599153 | AG19: 5301.521953 | AI19: << Used as normalising metric for dashboard graphs
D20: Residential, Non-Residential & Recycled (Residential & Non-Residential)
C24: Baseline Forecast
D26: Baseline year - total prescribed operating expenditure in 2018-19: | X26: =+Opex_Breakdown!X37 -> 24.10185169
D28: Less non-controllable expenditure items incurred in 2018-19:
E29: External bulk water charges (excl. temporary purchases) | X29: =+Opex_Breakdown!X29 -> 0.82180373
E30: External temporary water purchases | X30: =+Opex_Breakdown!X30 -> 0 | Z30: Comparison with approved 2018-19 total controllable opex
E31: Licence fees | X31: =+Opex_Breakdown!X31 -> 0.08106571936 | Z31: per 2018 determination model
E32: Environment Contribution | X32: =+Opex_Breakdown!X32 -> 1.246385435
E33: Other non-controllable | X33: =+Opex_Breakdown!X33 -> 0
X34: =SUM(X29:X33) -> 2.149254885 | AA34: 2018-19 | AB34: Difference | AC34: %
D36: Baseline year - total controllable operating expenditure in 2018-19: | X36: =+X26-X34 -> 21.9525968 | AA36: =+Determination_Lookup!AY3 -> 18.44556135 | AB36: =+X52-AA36 -> 0.2836597901 | AC36: =+AB36/AA36 -> 0.01537821402
D38: Adjustments for non-recurring expenditure items incurred in 2018-19 and any efficiency savings to be realised from 2018-19: | Z38: ($, 2019-20)
D40: 1 | E40: Decommissioning costs | X40: 2.990311723
D41: 2 | E41: Biosolids underspend | X41: -0.1621314387
D42: 3 | E42: DELWP funded initiatives | X42: 0.1418650089
D43: 4 | E43: LSL discount rate / wage inflation movement | X43: 0.253330373
D44: 5
D45: 6
D46: 7
D47: 8
D48: 9
D49: 10
X50: =SUM(X40:X49) -> 3.223375666
D52: Adjusted baseline controllable operating expenditure (2018-19) | X52: =+X36-X50 -> 18.72922114
D54: Adjusted baseline controllable operating expenditure (Forecast) | Y54: =+X52*(1+$Y$13-$G$11) -> 18.75143883 | Z54: =+$Y$54*(1+Z$13-Z$11) -> 18.87119037 | AA54: =+Z54*(1+AA$13-AA$11) -> 18.99170666 | AB54: =+AA54*(1+AB$13-AB$11) -> 19.11299261 | AC54: 19.23505312 | AD54: 19.35789314 | AE54: 19.48151765 | AF54: 19.60593165 | AG54: 19.7311402
C58: Operating expenditure - reconciliation
D61: Adjusted baseline controllable operating expenditure (Forecast) | Z61: =+Z54 -> 18.87119037 | AA61: 18.99170666 | AB61: 19.11299261 | AC61: 19.23505312 | AD61: 19.35789314 | AE61: 19.48151765 | AF61: 19.60593165 | AG61: 19.7311402
H62: Controllable
D63: Forecast variations to baseline operating expenditure (above or below baseline) | H63: only
D65: 1 | E65: Electricity offset (behind the meter solar projects) | H65: Water | Z65: -0.2013458176 | AA65: -0.1831346532 | AB65: -0.180900369 | AC65: -0.180900369 | AD65: -0.180900369 | AE65: -0.180900369 | AF65: -0.180900369 | AG65: -0.180900369
D66: 2 | E66: Urban water strategy consultancy | H66: Water | Z66: 0 | AA66: 0.233059 | AB66: 0 | AC66: 0 | AD66: 0 | AE66: 0 | AF66: 0.233059 | AG66: 0
D67: 3
D68: 4 | E68: Electricity - contract rate reduction | H68: Sewerage | Z68: -0.09354544213 | AA68: -0.1402265836 | AB68: -0.1446952433 | AC68: -0.1446952433 | AD68: -0.1446952433 | AE68: -0.1446952433 | AF68: -0.1446952433 | AG68: -0.1446952433
D69: 5 | H69: [Service]
D70: 6 | H70: [Service]
D71: 7 | H71: [Service]
D72: 8 | H72: [Service]
D73: 9 | H73: [Service]
D74: 10 | H74: [Service]
D75: 11 | H75: [Service]
D76: 12 | H76: [Service]
D77: 13 | H77: [Service]
D78: 14 | H78: [Service]
D79: 15 | H79: [Service]
D81: Total changes required to baseline operating expenditure | Z81: =SUM(Z65:Z80) -> -0.2948912597 | AA81: -0.0903022368 | AB81: -0.3255956123 | AC81: -0.3255956123 | AD81: -0.3255956123 | AE81: -0.3255956123 | AF81: -0.09253661226 | AG81: -0.3255956123
D84: Total controllable operating expenditure | Z84: =+Z81+Z61 -> 18.57629911 | AA84: 18.90140443 | AB84: 18.787397 | AC84: 18.90945751 | AD84: 19.03229753 | AE84: 19.15592203 | AF84: 19.51339504 | AG84: 19.40554458
D86: Non-controllable operating expenditure
D87: External bulk water charges (excl. temporary purchases) | Z87: =+Opex_Breakdown!Z29 -> 0.7940302933 | AA87: =+Opex_Breakdown!AA29 -> 0.55563696 | AB87: =+Opex_Breakdown!AB29 -> 0.55563696 | AC87: =+Opex_Breakdown!AC29 -> 1.34508457 | AD87: =+Opex_Breakdown!AD29 -> 1.34508457 | AE87: =+Opex_Breakdown!AE29 -> 1.34508457 | AF87: =+Opex_Breakdown!AF29 -> 1.34508457 | AG87: =+Opex_Breakdown!AG29 -> 1.34508457
D88: External temporary water purchases | Z88: =+Opex_Breakdown!Z30 -> 0 | AA88: =+Opex_Breakdown!AA30 -> 0 | AB88: =+Opex_Breakdown!AB30 -> 0 | AC88: =+Opex_Breakdown!AC30 -> 0 | AD88: =+Opex_Breakdown!AD30 -> 0 | AE88: =+Opex_Breakdown!AE30 -> 0 | AF88: =+Opex_Breakdown!AF30 -> 0 | AG88: =+Opex_Breakdown!AG30 -> 0
D89: Licence fees | Z89: =+Opex_Breakdown!Z31 -> 0.081064 | AA89: =+Opex_Breakdown!AA31 -> 0.081064 | AB89: =+Opex_Breakdown!AB31 -> 0.081064 | AC89: =+Opex_Breakdown!AC31 -> 0.081064 | AD89: =+Opex_Breakdown!AD31 -> 0.081064 | AE89: =+Opex_Breakdown!AE31 -> 0.081064 | AF89: =+Opex_Breakdown!AF31 -> 0.081064 | AG89: =+Opex_Breakdown!AG31 -> 0.081064
D90: Environment Contribution | Z90: =+Opex_Breakdown!Z32 -> 1.202346041 | AA90: =+Opex_Breakdown!AA32 -> 1.175313823 | AB90: =+Opex_Breakdown!AB32 -> 1.148889368 | AC90: =+Opex_Breakdown!AC32 -> 1.12305901 | AD90: =+Opex_Breakdown!AD32 -> 1.097809394 | AE90: =+Opex_Breakdown!AE32 -> 1.073127463 | AF90: =+Opex_Breakdown!AF32 -> 1.049000452 | AG90: =+Opex_Breakdown!AG32 -> 1.025415887
D91: Other non-controllable | Z91: =+Opex_Breakdown!Z33 -> 0 | AA91: =+Opex_Breakdown!AA33 -> 0 | AB91: =+Opex_Breakdown!AB33 -> 0 | AC91: =+Opex_Breakdown!AC33 -> 0 | AD91: =+Opex_Breakdown!AD33 -> 0 | AE91: =+Opex_Breakdown!AE33 -> 0 | AF91: =+Opex_Breakdown!AF33 -> 0 | AG91: =+Opex_Breakdown!AG33 -> 0
D92: Total non-controllable operating expenditure | Z92: =SUM(Z87:Z91) -> 2.077440334 | AA92: 1.812014783 | AB92: 1.785590328 | AC92: 2.54920758 | AD92: 2.523957964 | AE92: 2.499276033 | AF92: 2.475149022 | AG92: 2.451564457
D95: Total prescribed operating expenditure | Z95: =+Z92+Z84 -> 20.65373944 | AA95: 20.71341921 | AB95: 20.57298732 | AC95: 21.45866509 | AD95: 21.55625549 | AE95: 21.65519807 | AF95: 21.98854406 | AG95: =+AG92+AG84 -> 21.85710904
Y98: To reconcile to 'Opex_Breakdown' tab row 37 >> | Z98: =+Opex_Breakdown!Z37 -> 20.6537392 | AA98: =+Opex_Breakdown!AA37 -> 20.71341967 | AB98: =+Opex_Breakdown!AB37 -> 20.57298708 | AC98: =+Opex_Breakdown!AC37 -> 21.45866473 | AD98: =+Opex_Breakdown!AD37 -> 21.55625578 | AE98: =+Opex_Breakdown!AE37 -> 21.65519785 | AF98: =+Opex_Breakdown!AF37 -> 21.98854413 | AG98: =+Opex_Breakdown!AG37 -> 21.8571088
Y99: Difference | Z99: =+Z98-Z95 -> -2.36767324e-07 | AA99: 4.597207592e-07 | AB99: -2.491296698e-07 | AC99: -3.557891901e-07 | AD99: 2.948023194e-07 | AE99: -2.191633151e-07 | AF99: 6.492071947e-08 | AG99: -2.379419719e-07
Y100: Test | Z100: =ROUND(Z98,2)=ROUND(Z95,2) -> TRUE | AA100: TRUE | AB100: TRUE | AC100: TRUE | AD100: TRUE | AE100: TRUE | AF100: TRUE | AG100: TRUE
Z139: =+Z$160 -> 2020-21 | AA139: 2021-22 | AB139: 2022-23 | AC139: 2023-24 | AD139: 2024-25 | AE139: 2025-26 | AF139: 2026-27 | AG139: 2027-28
Y140: Total controllable opex | Z140: =+Z84 -> 18.57629911 | AA140: 18.90140443 | AB140: 18.787397 | AC140: 18.90945751 | AD140: 19.03229753 | AE140: 19.15592203 | AF140: 19.51339504 | AG140: 19.40554458
Y141: Change - $ | AA141: =+AA140-Z140 -> 0.3251053206 | AB141: -0.1140074296 | AC141: 0.1220605093 | AD141: 0.1228400192 | AE141: 0.1236245073 | AF141: 0.3574730054 | AG141: -0.1078504546
Y142: Change - % | Z142: =IFERROR(Z141/#REF!,"") ->  | AA142: =IFERROR(AA141/Z140,"") -> 0.01750108128 | AB142: -0.006031690926 | AC142: 0.006496935648 | AD142: 0.006496221226 | AE142: 0.006495511494 | AF142: 0.01866122679 | AG142: -0.005526995914
Z144: =+Z$160 -> 2020-21 | AA144: 2021-22 | AB144: 2022-23 | AC144: 2023-24 | AD144: 2024-25 | AE144: 2025-26 | AF144: 2026-27 | AG144: 2027-28
Y145: Total non-controllable opex | Z145: =+Z92 -> 2.077440334 | AA145: 1.812014783 | AB145: 1.785590328 | AC145: 2.54920758 | AD145: 2.523957964 | AE145: 2.499276033 | AF145: 2.475149022 | AG145: 2.451564457
Y146: Change - $ | AA146: =+AA145-Z145 -> -0.2654255513 | AB146: -0.02642445546 | AC146: 0.7636172528 | AD146: -0.02524961607 | AE146: -0.02468193164 | AF146: -0.0241270104 | AG146: -0.0235845654
Y147: Change - % | Z147: =IFERROR(Z146/#REF!,"") ->  | AA147: =IFERROR(AA146/Z145,"") -> -0.1277656676 | AB147: -0.01458291384 | AC147: 0.4276553479 | AD147: -0.009904888195 | AE147: -0.009779058127 | AF147: -0.009653599717 | AG147: -0.009528543609
Z149: =+Z$160 -> 2020-21 | AA149: 2021-22 | AB149: 2022-23 | AC149: 2023-24 | AD149: 2024-25 | AE149: 2025-26 | AF149: 2026-27 | AG149: 2027-28
Y150: Total prescribed opex | Z150: =+Z140+Z145 -> 20.65373944 | AA150: 20.71341921 | AB150: 20.57298732 | AC150: 21.45866509 | AD150: 21.55625549 | AE150: 21.65519807 | AF150: 21.98854406 | AG150: 21.85710904
Y151: Change - $ | AA151: =+AA150-Z150 -> 0.05967976931 | AB151: -0.140431885 | AC151: 0.885677762 | AD151: 0.09759040316 | AE151: 0.09894257569 | AF151: 0.333345995 | AG151: -0.13143502
Y152: Change - % | Z152: =IFERROR(Z151/#REF!,"") ->  | AA152: =IFERROR(AA151/Z150,"") -> 0.002889538211 | AB152: -0.006779753917 | AC152: 0.04305051804 | AD152: 0.004547831972 | AE152: 0.004589970449 | AF152: 0.01539334778 | AG152: -0.005977431688
Y155: Controllable vs. Non-controllable opex - % | Z155: =+Z$160 -> 2020-21 | AA155: 2021-22 | AB155: 2022-23 | AC155: 2023-24 | AD155: 2024-25 | AE155: 2025-26 | AF155: 2026-27 | AG155: 2027-28
Y156: Controllable opex - % | Z156: =+Z84/Z95 -> 0.899415777 | AA156: 0.9125197649 | AB156: 0.9132070467 | AC156: 0.8812038135 | AD156: 0.8829129686 | AE156: 0.8845877085 | AF156: 0.8874346107 | AG156: 0.8878367467
Y157: Non-controllable opex - % | Z157: =+Z92/Z95 -> 0.100584223 | AA157: 0.08748023514 | AB157: 0.08679295328 | AC157: 0.1187961865 | AD157: 0.1170870314 | AE157: 0.1154122915 | AF157: 0.1125653893 | AG157: 0.1121632533
Z158: =SUM(Z156:Z157) -> 1 | AA158: 1 | AB158: 1 | AC158: 1 | AD158: 1 | AE158: 1 | AF158: 1 | AG158: 1
X160: =+X6 -> 2018-19 | Y160: 2019-20 | Z160: 2020-21 | AA160: 2021-22 | AB160: 2022-23 | AC160: 2023-24 | AD160: 2024-25 | AE160: 2025-26 | AF160: 2026-27 | AG160: 2027-28
W161: Third Reg period Opex | X161: =+X169-SUM(X162:X168) -> 24.10185169 | Y161: =+Y169-SUM(Y162:Y168) -> 20.85653292
W162: Adjusted baseline opex | Z162: =+Z61 -> 18.87119037 | AA162: 18.99170666 | AB162: 19.11299261 | AC162: 19.23505312 | AD162: 19.35789314 | AE162: 19.48151765 | AF162: 19.60593165 | AG162: 19.7311402
W163: Forecast variations to baseline operating expenditure | Z163: =+Z81 -> -0.2948912597 | AA163: -0.0903022368 | AB163: -0.3255956123 | AC163: -0.3255956123 | AD163: -0.3255956123 | AE163: -0.3255956123 | AF163: -0.09253661226 | AG163: -0.3255956123
W164: Licence fees | X164: =+X89 -> 0 | Y164: 0 | Z164: 0.081064 | AA164: 0.081064 | AB164: 0.081064 | AC164: 0.081064 | AD164: 0.081064 | AE164: 0.081064 | AF164: 0.081064 | AG164: 0.081064
W165: Environment Contribution | X165: =+X90 -> 0 | Y165: 0 | Z165: 1.202346041 | AA165: 1.175313823 | AB165: 1.148889368 | AC165: 1.12305901 | AD165: 1.097809394 | AE165: 1.073127463 | AF165: 1.049000452 | AG165: 1.025415887
W166: External bulk water charges | X166: =+X87 -> 0 | Y166: 0 | Z166: 0.7940302933 | AA166: 0.55563696 | AB166: 0.55563696 | AC166: 1.34508457 | AD166: 1.34508457 | AE166: 1.34508457 | AF166: 1.34508457 | AG166: 1.34508457
W167: External temporary water purchases | X167: =+X88 -> 0 | Y167: 0 | Z167: 0 | AA167: 0 | AB167: 0 | AC167: 0 | AD167: 0 | AE167: 0 | AF167: 0 | AG167: 0
W168: Other non-controllable | X168: =+X91 -> 0 | Y168: 0 | Z168: 0 | AA168: 0 | AB168: 0 | AC168: 0 | AD168: 0 | AE168: 0 | AF168: 0 | AG168: 0
W169: Total prescribed opex | X169: =+Opex_Breakdown!X37 -> 24.10185169 | Y169: =+Opex_Breakdown!Y37 -> 20.85653292 | Z169: =SUM(Z162:Z168) -> 20.65373944 | AA169: 20.71341921 | AB169: 20.57298732 | AC169: 21.45866509 | AD169: 21.55625549 | AE169: 21.65519807 | AF169: 21.98854406 | AG169: 21.85710904
X171: =+X$160 -> 2018-19 | Y171: 2019-20 | Z171: 2020-21 | AA171: 2021-22 | AB171: 2022-23 | AC171: 2023-24 | AD171: 2024-25 | AE171: 2025-26 | AF171: 2026-27 | AG171: 2027-28
W172: Adjusted baseline opex | X172: =+X162/X$169 -> 0 | Y172: 0 | Z172: 0.9136936398 | AA172: 0.9168793656 | AB172: 0.929033412 | AC172: 0.8963769666 | AD172: 0.8980174292 | AE172: 0.8996231568 | AF172: 0.8916430118 | AG172: 0.9027333011
W173: Forecast variations to baseline operating expenditure | X173: =+X163/X$169 -> 0 | Y173: 0 | Z173: -0.01427786288 | AA173: -0.004359600696 | AB173: -0.01582636528 | AC173: -0.01517315317 | AD173: -0.01510446062 | AE173: -0.01503544836 | AF173: -0.004208401066 | AG173: -0.01489655433
W174: Licence fees | X174: =+X164/X$169 -> 0 | Y174: 0 | Z174: 0.003924906685 | AA174: 0.003913598193 | AB174: 0.003940312543 | AC174: 0.003777681402 | AD174: 0.00376057892 | AE174: 0.00374339684 | AF174: 0.003686647 | AG174: 0.003708816196
W175: Environment Contribution | X175: =+X165/X$169 -> 0 | Y175: 0 | Z175: 0.05821444802 | AA175: 0.05674166159 | AB175: 0.05584455721 | AC175: 0.05233592145 | AD175: 0.05092764812 | AE175: 0.04955519037 | AF175: 0.04770668078 | AG175: 0.04691452493
W176: External bulk water charges (excl. temporary purchases) | X176: =+X166/X$169 -> 0 | Y176: 0 | Z176: 0.03844486833 | AA176: 0.02682497536 | AB176: 0.02700808352 | AC176: 0.06268258368 | AD176: 0.0623988044 | AE176: 0.06211370434 | AF176: 0.06117206152 | AG176: 0.06153991214
W177: External temporary water purchases | X177: =+X167/X$169 -> 0 | Y177: 0 | Z177: 0 | AA177: 0 | AB177: 0 | AC177: 0 | AD177: 0 | AE177: 0 | AF177: 0 | AG177: 0
W178: Other non-controllable | X178: =+X168/X$169 -> 0 | Y178: 0 | Z178: 0 | AA178: 0 | AB178: 0 | AC178: 0 | AD178: 0 | AE178: 0 | AF178: 0 | AG178: 0
W179: Total prescribed opex | X179: =+X169/X$169 -> 1 | Y179: 1 | Z179: 1 | AA179: 1 | AB179: 1 | AC179: 1 | AD179: 1 | AE179: 1 | AF179: 1 | AG179: 1
Z181: =+Z$160 -> 2020-21 | AA181: 2021-22 | AB181: 2022-23 | AC181: 2023-24 | AD181: 2024-25 | AE181: 2025-26 | AF181: 2026-27 | AG181: 2027-28
Y182: Water | Z182: =+SUMIF($H$65:$H$80,$Y182,Z$65:Z$80) -> -0.2013458176 | AA182: 0.04992434677 | AB182: -0.180900369 | AC182: -0.180900369 | AD182: -0.180900369 | AE182: -0.180900369 | AF182: 0.05215863103 | AG182: -0.180900369
Y183: Sewerage | Z183: -0.09354544213 | AA183: -0.1402265836 | AB183: -0.1446952433 | AC183: -0.1446952433 | AD183: -0.1446952433 | AE183: -0.1446952433 | AF183: -0.1446952433 | AG183: -0.1446952433
Y184: Recycled Water | Z184: 0 | AA184: 0 | AB184: 0 | AC184: 0 | AD184: 0 | AE184: 0 | AF184: 0 | AG184: 0
Y185: Rural water | Z185: 0 | AA185: 0 | AB185: 0 | AC185: 0 | AD185: 0 | AE185: 0 | AF185: 0 | AG185: 0
Y186: Bulk Water | Z186: 0 | AA186: 0 | AB186: 0 | AC186: 0 | AD186: 0 | AE186: 0 | AF186: 0 | AG186: 0
Y187: Forecast variations to baseline operating expenditure | Z187: =SUM(Z182:Z186) -> -0.2948912597 | AA187: -0.0903022368 | AB187: -0.3255956123 | AC187: -0.3255956123 | AD187: -0.3255956123 | AE187: -0.3255956123 | AF187: -0.09253661226 | AG187: -0.3255956123
X190: =+X6 -> 2018-19 | Y190: 2019-20 | Z190: 2020-21 | AA190: 2021-22 | AB190: 2022-23 | AC190: 2023-24 | AD190: 2024-25 | AE190: 2025-26 | AF190: 2026-27 | AG190: 2027-28
W191: External bulk water charges (excl. temporary purchases) | X191: =+Opex_Breakdown!X29 -> 0.82180373 | Y191: =+Opex_Breakdown!Y29 -> 0.7940302933 | Z191: =+Z87 -> 0.7940302933 | AA191: 0.55563696 | AB191: 0.55563696 | AC191: 1.34508457 | AD191: 1.34508457 | AE191: 1.34508457 | AF191: 1.34508457 | AG191: 1.34508457
W192: External temporary water purchases | X192: =+Opex_Breakdown!X30 -> 0 | Y192: =+Opex_Breakdown!Y30 -> 0 | Z192: =+Z88 -> 0 | AA192: 0 | AB192: 0 | AC192: 0 | AD192: 0 | AE192: 0 | AF192: 0 | AG192: 0
W193: Licence fees | X193: =+Opex_Breakdown!X31 -> 0.08106571936 | Y193: =+Opex_Breakdown!Y31 -> 0.081064 | Z193: =+Z89 -> 0.081064 | AA193: 0.081064 | AB193: 0.081064 | AC193: 0.081064 | AD193: 0.081064 | AE193: 0.081064 | AF193: 0.081064 | AG193: 0.081064
W194: Environment Contribution | X194: =+Opex_Breakdown!X32 -> 1.246385435 | Y194: =+Opex_Breakdown!Y32 -> 1.23 | Z194: =+Z90 -> 1.202346041 | AA194: 1.175313823 | AB194: 1.148889368 | AC194: 1.12305901 | AD194: 1.097809394 | AE194: 1.073127463 | AF194: 1.049000452 | AG194: 1.025415887
W195: Other non-controllable | X195: =+Opex_Breakdown!X33 -> 0 | Y195: =+Opex_Breakdown!Y33 -> 0 | Z195: =+Z91 -> 0 | AA195: 0 | AB195: 0 | AC195: 0 | AD195: 0 | AE195: 0 | AF195: 0 | AG195: 0
W196: Total Non-controllable operating expenditure | X196: =+Opex_Breakdown!X34 -> 2.149254885 | Y196: =+Opex_Breakdown!Y34 -> 2.105094293 | Z196: =SUM(Z191:Z195) -> 2.077440334 | AA196: 1.812014783 | AB196: 1.785590328 | AC196: 2.54920758 | AD196: 2.523957964 | AE196: 2.499276033 | AF196: 2.475149022 | AG196: 2.451564457
X198: ERROR CHECK | Z198: =+Z169=Z95 -> TRUE | AA198: TRUE | AB198: TRUE | AC198: TRUE | AD198: TRUE | AE198: TRUE | AF198: TRUE | AG198: TRUE
Z199: =+Z187=Z163 -> TRUE | AA199: TRUE | AB199: TRUE | AC199: TRUE | AD199: TRUE | AE199: TRUE | AF199: TRUE | AG199: TRUE
Z200: =+Z150=Z169 -> TRUE | AA200: TRUE | AB200: TRUE | AC200: TRUE | AD200: TRUE | AE200: TRUE | AF200: TRUE | AG200: TRUE
Z201: =+Z196=Z145 -> TRUE | AA201: TRUE | AB201: TRUE | AC201: TRUE | AD201: TRUE | AE201: TRUE | AF201: TRUE | AG201: TRUE

Sheet Opex_Breakdown
A1: 80 | B1: Operating Expenditure - Breakdown
B2: =+Contents!H7 -> South Gippsland Water
B3: Go to Table of Contents
L4: FIRST REG PERIOD | P4: SECOND REG PERIOD | U4: THIRD REG PERIOD | X4: FOURTH REG PERIOD (A) | Z4: FOURTH REG PERIOD (B) | AC4: FIFTH REG PERIOD
K6: 2006 | L6: 2007 | M6: 2008 | N6: 2009 | O6: 2010 | P6: 2011 | Q6: 2012 | R6: 2013 | S6: 2014 | T6: 2015 | U6: 2016 | V6: 2017 | W6: 2018 | X6: 2019 | Y6: 2020 | Z6: 2021 | AA6: 2022 | AB6: 2023 | AC6: 2024 | AD6: 2025 | AE6: 2026 | AF6: 2027 | AG6: 2028
B7: =Expenditure_Detail!$B$6 -> $m, 01/01/20 | K7: =+CONCATENATE(K6-1,"-",RIGHT(K6,2)) -> 2005-06 | L7: =+CONCATENATE(L6-1,"-",RIGHT(L6,2)) -> 2006-07 | M7: 2007-08 | N7: 2008-09 | O7: 2009-10 | P7: 2010-11 | Q7: 2011-12 | R7: 2012-13 | S7: 2013-14 | T7: 2014-15 | U7: 2015-16 | V7: 2016-17 | W7: 2017-18 | X7: =+CONCATENATE(X6-1,"-",RIGHT(X6,2)) -> 2018-19 | Y7: 2019-20 | Z7: 2020-21 | AA7: 2021-22 | AB7: 2022-23 | AC7: 2023-24 | AD7: 2024-25 | AE7: 2025-26 | AF7: 2026-27 | AG7: 2027-28
D10: Operating Expenditure Summary
E12: =C48 -> Water | K12: =+K57-K50-K54 -> 0 | L12: =+L57-L50-L54 -> 0 | M12: 0 | N12: 0 | O12: 0 | P12: 0 | Q12: =+Q57-Q50-Q54 -> 0 | R12: 0 | S12: 10.67904687 | T12: 10.30905408 | U12: 10.41750094 | V12: 10.37867098 | W12: 9.769560703 | X12: 13.43092213 | Y12: 10.45018231 | Z12: 10.35725234 | AA12: 10.63915192 | AB12: 10.46926186 | AC12: =+AC57-AC50-AC54 -> 10.53402768 | AD12: =+AD57-AD50-AD54 -> 10.59920752 | AE12: =+AE57-AE50-AE54 -> 10.66480299 | AF12: =+AF57-AF50-AF54 -> 10.96387679 | AG12: =+AG57-AG50-AG54 -> 10.79725387
E13: =C59 -> Sewerage | K13: =K68-K61-K65 -> 0 | L13: =L68-L61-L65 -> 0 | M13: 0 | N13: 0 | O13: 0 | P13: 0 | Q13: 0 | R13: 0 | S13: 6.215330078 | T13: 6.655472486 | U13: 8.16327809 | V13: 7.901583179 | W13: 8.541755081 | X13: 8.521674673 | Y13: 8.301256314 | Z13: 8.219046533 | AA13: 8.262252971 | AB13: 8.318134888 | AC13: =AC68-AC61-AC65 -> 8.37542947 | AD13: =AD68-AD61-AD65 -> 8.433090305 | AE13: =AE68-AE61-AE65 -> 8.491118828 | AF13: =AF68-AF61-AF65 -> 8.549518313 | AG13: =AG68-AG61-AG65 -> 8.608290476
E14: =C70 -> Recycled Water | K14: =K79-K72-K76 -> 0 | L14: =L79-L72-L76 -> 0 | M14: 0 | N14: 0 | O14: 0 | P14: 0 | Q14: 0 | R14: 0 | S14: 0 | T14: 0 | U14: 0 | V14: 0 | W14: 0 | X14: 0 | Y14: 0 | Z14: 0 | AA14: 0 | AB14: 0 | AC14: =AC79-AC72-AC76 -> 0 | AD14: =AD79-AD72-AD76 -> 0 | AE14: =AE79-AE72-AE76 -> 0 | AF14: =AF79-AF72-AF76 -> 0 | AG14: =AG79-AG72-AG76 -> 0
E15: =C81 -> Rural Water | K15: =K90-K83-K87 -> 0 | L15: =L90-L83-L87 -> 0 | M15: 0 | N15: 0 | O15: 0 | P15: 0 | Q15: 0 | R15: 0 | S15: 0 | T15: 0 | U15: 0 | V15: 0 | W15: 0 | X15: 0 | Y15: 0 | Z15: 0 | AA15: 0 | AB15: 0 | AC15: =AC90-AC83-AC87 -> 0 | AD15: =AD90-AD83-AD87 -> 0 | AE15: =AE90-AE83-AE87 -> 0 | AF15: =AF90-AF83-AF87 -> 0 | AG15: =AG90-AG83-AG87 -> 0
E16: Bulk Water | K16: =K100-K97 -> 0 | L16: =L100-L97 -> 0 | M16: 0 | N16: 0 | O16: 0 | P16: 0 | Q16: 0 | R16: 0 | S16: 0 | T16: 0 | U16: 0 | V16: 0 | W16: 0 | X16: 0 | Y16: 0 | Z16: 0 | AA16: 0 | AB16: 0 | AC16: =AC100-AC97 -> 0 | AD16: =AD100-AD97 -> 0 | AE16: =AE100-AE97 -> 0 | AF16: =AF100-AF97 -> 0 | AG16: =AG100-AG97 -> 0
E17: Total controllable operating expenditure | K17: =SUM(K12:K16) -> 0 | L17: 0 | M17: 0 | N17: 0 | O17: 0 | P17: 0 | Q17: 0 | R17: 0 | S17: 16.89437695 | T17: 16.96452657 | U17: 18.58077903 | V17: 18.28025416 | W17: 18.31131578 | X17: 21.9525968 | Y17: 18.75143862 | Z17: 18.57629887 | AA17: 18.90140489 | AB17: 18.78739675 | AC17: 18.90945715 | AD17: 19.03229782 | AE17: 19.15592181 | AF17: 19.5133951 | AG17: 19.40554435
E20: Operations & Maintenance | K20: =K49+K60+K71+K82+K93 -> 0 | L20: 0 | M20: 0 | N20: 0 | O20: 0 | P20: 0 | Q20: 0 | R20: 0 | S20: 3.144435547 | T20: 3.647086338 | U20: 3.933672285 | V20: 3.323874307 | W20: 3.914995555 | X20: 7.080077265 | Y20: 4.289038686 | Z20: 4.381367219 | AA20: 4.501884213 | AB20: 4.62316945 | AC20: 4.745229853 | AD20: 4.868070523 | AE20: 4.991694516 | AF20: 5.116108806 | AG20: 5.241317048
E21: Treatment | K21: =K51+K62+K73+K84+K94 -> 0 | L21: 0 | M21: 0 | N21: 0 | O21: 0 | P21: 0 | Q21: 0 | R21: 0 | S21: 4.108268555 | T21: 3.807302657 | U21: 3.627055243 | V21: 3.679250462 | W21: 3.927735094 | X21: 3.541558615 | Y21: 3.842192888 | Z21: 3.574724599 | AA21: 3.546254622 | AB21: 3.544020246 | AC21: 3.544020246 | AD21: 3.544020246 | AE21: 3.544020246 | AF21: 3.544020246 | AG21: 3.544020246
E22: Customer Service and billing | K22: =K52+K63+K74+K85+K95 -> 0 | L22: 0 | M22: 0 | N22: 0 | O22: 0 | P22: 0 | Q22: 0 | R22: 0 | S22: 0.7744091797 | T22: 0.9147485769 | U22: 0.7948539326 | V22: 0.9322033272 | W22: 0.8737486709 | X22: 1.028707117 | Y22: 1.010527016 | Z22: 1.010527016 | AA22: 1.010527016 | AB22: 1.010527016 | AC22: 1.010527016 | AD22: 1.010527016 | AE22: 1.010527016 | AF22: 1.010527016 | AG22: 1.010527016
E23: GSL Payments | K23: =K53+K64+K75+K86+K96 -> 0 | L23: 0 | M23: 0 | N23: 0 | O23: 0 | P23: 0 | Q23: 0 | R23: 0 | S23: 0 | T23: 0 | U23: 0 | V23: 0 | W23: 0 | X23: 0 | Y23: 0 | Z23: 0 | AA23: 0 | AB23: 0 | AC23: 0 | AD23: 0 | AE23: 0 | AF23: 0 | AG23: 0
E24: Corporate | K24: =K55+K66+K77+K88+K98 -> 0 | L24: 0 | M24: 0 | N24: 0 | O24: 0 | P24: 0 | Q24: 0 | R24: 0 | S24: 5.596916992 | T24: 5.291468691 | U24: 5.536200375 | V24: 5.712381701 | W24: 5.907077698 | X24: 6.675576187 | Y24: 6.062540534 | Z24: 6.062540534 | AA24: 6.295599534 | AB24: 6.062540534 | AC24: 6.062540534 | AD24: 6.062540534 | AE24: 6.062540534 | AF24: 6.295599534 | AG24: 6.062540534
E25: Other operating expenditure | K25: =K56+K67+K78+K89+K99 -> 0 | L25: 0 | M25: 0 | N25: 0 | O25: 0 | P25: 0 | Q25: 0 | R25: 0 | S25: 3.27034668 | T25: 3.303920304 | U25: 4.688997191 | V25: 4.632544362 | W25: 3.687758766 | X25: 3.62667762 | Y25: 3.547139502 | Z25: 3.547139502 | AA25: 3.547139502 | AB25: 3.547139502 | AC25: 3.547139502 | AD25: 3.547139502 | AE25: 3.547139502 | AF25: 3.547139502 | AG25: 3.547139502
E26: Total controllable operating expenditure | K26: =SUM(K20:K25) -> 0 | L26: =SUM(L20:L25) -> 0 | M26: 0 | N26: 0 | O26: 0 | P26: 0 | Q26: 0 | R26: 0 | S26: 16.89437695 | T26: 16.96452657 | U26: 18.58077903 | V26: 18.28025416 | W26: 18.31131578 | X26: 21.9525968 | Y26: 18.75143862 | Z26: 18.57629887 | AA26: 18.90140489 | AB26: 18.78739675 | AC26: 18.90945715 | AD26: 19.03229782 | AE26: 19.15592181 | AF26: 19.5133951 | AG26: 19.40554435
S27: =ROUND(S26,2)=ROUND(S17,2) -> TRUE | T27: =ROUND(T26,2)=ROUND(T17,2) -> TRUE | U27: TRUE | V27: TRUE | W27: TRUE | X27: TRUE | Y27: TRUE | Z27: TRUE | AA27: TRUE | AB27: TRUE | AC27: TRUE | AD27: TRUE | AE27: TRUE | AF27: TRUE | AG27: TRUE
E29: External bulk water charges (excl. temporary purchases) | K29: =K50+K61+K72+K83 -> 0 | L29: 0 | M29: 0 | N29: 0 | O29: 0 | P29: 0 | Q29: 0 | R29: 0 | S29: 0 | T29: 0 | U29: 0 | V29: 0 | W29: 0 | X29: =X50+X61+X72+X83 -> 0.82180373 | Y29: =Y50+Y61+Y72+Y83 -> 0.7940302933 | Z29: 0.7940302933 | AA29: 0.55563696 | AB29: 0.55563696 | AC29: 1.34508457 | AD29: 1.34508457 | AE29: 1.34508457 | AF29: 1.34508457 | AG29: 1.34508457
E30: External temporary water purchases | K30: =+K102 -> 0 | L30: 0 | M30: 0 | N30: 0 | O30: 0 | P30: 0 | Q30: 0 | R30: 0 | S30: 0 | T30: 0 | U30: 0 | V30: 0 | W30: 0 | X30: 0 | Y30: 0 | Z30: 0 | AA30: 0 | AB30: 0 | AC30: 0 | AD30: 0 | AE30: 0 | AF30: 0 | AG30: 0
E31: Licence fees | K31: =+K109 -> 0 | L31: 0 | M31: 0 | N31: 0 | O31: 0 | P31: 0 | Q31: 0 | R31: 0 | S31: 0.06128417969 | T31: 0.01623814042 | U31: 0.1100402622 | V31: 0.0748715342 | W31: 0.0712479638 | X31: 0.08106571936 | Y31: 0.081064 | Z31: 0.081064 | AA31: 0.081064 | AB31: 0.081064 | AC31: 0.081064 | AD31: 0.081064 | AE31: 0.081064 | AF31: 0.081064 | AG31: 0.081064
E32: Environment Contribution | K32: =K111 -> 0 | L32: 0 | M32: 0 | N32: 0 | O32: 0 | P32: 0 | Q32: 0 | R32: 0 | S32: 1.226797852 | T32: 1.191879507 | U32: 1.176255618 | V32: 1.161036044 | W32: 1.136869683 | X32: 1.246385435 | Y32: 1.23 | Z32: 1.202346041 | AA32: 1.175313823 | AB32: 1.148889368 | AC32: 1.12305901 | AD32: 1.097809394 | AE32: 1.073127463 | AF32: 1.049000452 | AG32: 1.025415887
E33: Other non-controllable | K33: =+K124 -> 0 | L33: 0 | M33: 0 | N33: 0 | O33: 0 | P33: 0 | Q33: 0 | R33: 0 | S33: 0 | T33: 0 | U33: 0 | V33: 0 | W33: 0 | X33: 0 | Y33: 0 | Z33: 0 | AA33: 0 | AB33: 0 | AC33: 0 | AD33: 0 | AE33: 0 | AF33: 0 | AG33: =+AG124 -> 0
E34: Total non-controllable operating expenditure | K34: =SUM(K29:K33) -> 0 | L34: =SUM(L29:L33) -> 0 | M34: 0 | N34: 0 | O34: 0 | P34: 0 | Q34: 0 | R34: 0 | S34: 1.288082031 | T34: 1.208117647 | U34: 1.28629588 | V34: 1.235907579 | W34: 1.208117647 | X34: 2.149254885 | Y34: 2.105094293 | Z34: 2.077440334 | AA34: 1.812014783 | AB34: 1.785590328 | AC34: 2.54920758 | AD34: 2.523957964 | AE34: 2.499276033 | AF34: 2.475149022 | AG34: 2.451564457
E37: Total prescribed operating expenditure | K37: =+K34+K17 -> 0 | L37: 0 | M37: 0 | N37: 0 | O37: 0 | P37: 0 | Q37: 0 | R37: 0 | S37: 18.18245898 | T37: 18.17264421 | U37: 19.86707491 | V37: 19.51616174 | W37: 19.51943343 | X37: 24.10185169 | Y37: 20.85653292 | Z37: 20.6537392 | AA37: 20.71341967 | AB37: 20.57298708 | AC37: 21.45866473 | AD37: 21.55625578 | AE37: 21.65519785 | AF37: 21.98854413 | AG37: 21.8571088
Y40: To reconcile to 'Opex_FO' tab row 123>> | Z40: =+Opex_FO!Z95 -> 20.65373944 | AA40: =+Opex_FO!AA95 -> 20.71341921 | AB40: =+Opex_FO!AB95 -> 20.57298732 | AC40: =+Opex_FO!AC95 -> 21.45866509 | AD40: =+Opex_FO!AD95 -> 21.55625549 | AE40: =+Opex_FO!AE95 -> 21.65519807 | AF40: =+Opex_FO!AF95 -> 21.98854406 | AG40: =+Opex_FO!AG95 -> 21.85710904
Y41: Difference | Z41: =+Z40-Z37 -> 2.36767324e-07 | AA41: -4.597207592e-07 | AB41: 2.491296698e-07 | AC41: 3.557891901e-07 | AD41: -2.948023194e-07 | AE41: 2.191633151e-07 | AF41: -6.492071947e-08 | AG41: 2.379419719e-07
Y42: Test | Z42: =ROUND(Z40,2)=ROUND(Z37,2) -> TRUE | AA42: TRUE | AB42: TRUE | AC42: TRUE | AD42: TRUE | AE42: TRUE | AF42: TRUE | AG42: TRUE
B46: Total operating expenditure
C48: Water
D49: Operations & Maintenance | S49: 2.16500293 | T49: 2.398914611 | U49: 2.028800562 | V49: 1.819061922 | W49: 2.106117509 | X49: 5.11423357 | Y49: 2.275784014 | Z49: 2.324773966 | AA49: 2.388720847 | AB49: 2.453075362 | AC49: 2.517841183 | AD49: 2.583021018 | AE49: 2.648616488 | AF49: 2.714631293 | AG49: 2.781067373
D50: External bulk charges (excl. temporary purchases) | R50: =+R131 -> 0 | S50: =+S131 -> 0 | T50: =+T131 -> 0 | U50: 0 | V50: 0 | W50: 0 | X50: 0.82180373 | Y50: 0.7940302933 | Z50: 0.7940302933 | AA50: 0.55563696 | AB50: 0.55563696 | AC50: 1.34508457 | AD50: 1.34508457 | AE50: 1.34508457 | AF50: 1.34508457 | AG50: 1.34508457 | AH50: see reconciliation below
D51: Treatment | S51: 2.817958008 | T51: 2.447629032 | U51: 2.478576779 | V51: 2.52454159 | W51: 2.073852695 | X51: 2.299226465 | Y51: 2.439301804 | Z51: 2.297381877 | AA51: 2.282275574 | AB51: 2.281090004 | AC51: 2.281090004 | AD51: 2.281090004 | AE51: 2.281090004 | AF51: 2.281090004 | AG51: 2.281090004
D52: Customer Service and billing | S52: 0.4657597656 | T52: 0.4914743833 | U52: 0.4252041199 | V52: 0.4924648799 | W52: 0.4613412036 | X52: 0.5424041779 | Y52: 0.5324023386 | Z52: 0.5324023386 | AA52: 0.5324023386 | AB52: 0.5324023386 | AC52: 0.5324023386 | AD52: 0.5324023386 | AE52: 0.5324023386 | AF52: 0.5324023386 | AG52: 0.5324023386
D53: GSL Payments | S53: 0 | T53: 0 | U53: 0 | V53: 0 | W53: 0 | X53: 0 | Y53: 0 | Z53: 0 | AA53: 0 | AB53: 0 | AC53: 0 | AD53: 0 | AE53: 0 | AF53: 0 | AG53: 0
D54: Licence Fees | S54: 0.01002832031 | T54: 0.007577798861 | U54: 0.01282022472 | V54: 0.01898151571 | W54: 0.01755384615 | X54: 0.02127975133 | Y54: 0.01720517522 | Z54: 0.01720517522 | AA54: 0.01720517522 | AB54: 0.01720517522 | AC54: 0.01720517522 | AD54: 0.01720517522 | AE54: 0.01720517522 | AF54: 0.01720517522 | AG54: 0.01720517522
D55: Corporate | S55: 3.090951172 | T55: 2.794042694 | U55: 2.952925094 | V55: 3.021224584 | W55: 3.118949906 | X55: 3.519816626 | Y55: 3.264037242 | Z55: 3.264037242 | AA55: 3.497096242 | AB55: 3.264037242 | AC55: 3.264037242 | AD55: 3.264037242 | AE55: 3.264037242 | AF55: 3.497096242 | AG55: 3.264037242
D56: Other operating expenditure | S56: 2.139375 | T56: 2.176993359 | U56: 2.531994382 | V56: 2.521378004 | W56: 2.00929939 | X56: 1.95524129 | Y56: 1.938656913 | Z56: 1.938656913 | AA56: 1.938656913 | AB56: 1.938656913 | AC56: 1.938656913 | AD56: 1.938656913 | AE56: 1.938656913 | AF56: 1.938656913 | AG56: 1.938656913
C57: =+CONCATENATE("Total ",C48) -> Total Water | K57: =+SUM(K49:K56) -> 0 | L57: =+SUM(L49:L56) -> 0 | M57: 0 | N57: 0 | O57: 0 | P57: 0 | Q57: 0 | R57: 0 | S57: 10.6890752 | T57: 10.31663188 | U57: 10.43032116 | V57: 10.3976525 | W57: 9.787114549 | X57: 14.27400561 | Y57: 11.26141778 | Z57: 11.16848781 | AA57: 11.21199405 | AB57: 11.04210399 | AC57: =+SUM(AC49:AC56) -> 11.89631743 | AD57: =+SUM(AD49:AD56) -> 11.96149726 | AE57: =+SUM(AE49:AE56) -> 12.02709273 | AF57: =+SUM(AF49:AF56) -> 12.32616654 | AG57: =+SUM(AG49:AG56) -> 12.15954362
C59: Sewerage
D60: =+D49 -> Operations & Maintenance | S60: 0.9794326172 | T60: 1.248171727 | U60: 1.904871723 | V60: 1.504812384 | W60: 1.808878046 | X60: 1.965843694 | Y60: 2.013254672 | Z60: 2.056593253 | AA60: 2.113163366 | AB60: 2.170094088 | AC60: 2.22738867 | AD60: 2.285049505 | AE60: 2.343078028 | AF60: 2.401477513 | AG60: 2.460249676
D61: =+D50 -> External bulk charges (excl. temporary purchases) | R61: =+R132 -> 0 | S61: =+S132 -> 0 | T61: =+T132 -> 0 | U61: 0 | V61: 0 | W61: 0 | X61: 0 | Y61: 0 | Z61: 0 | AA61: 0 | AB61: 0 | AC61: 0 | AD61: 0 | AE61: 0 | AF61: 0 | AG61: 0 | AH61: see reconciliation below
D62: Treatment | S62: 1.290310547 | T62: 1.359673624 | U62: 1.148478464 | V62: 1.154708872 | W62: 1.853882399 | X62: 1.242332149 | Y62: 1.402891084 | Z62: 1.277342722 | AA62: 1.263979048 | AB62: 1.262930243 | AC62: 1.262930243 | AD62: 1.262930243 | AE62: 1.262930243 | AF62: 1.262930243 | AG62: 1.262930243
D63: Customer Service and billing | S63: 0.3086494141 | T63: 0.4232741935 | U63: 0.3696498127 | V63: 0.4397384473 | W63: 0.4124074673 | X63: 0.4863029391 | Y63: 0.4781246769 | Z63: 0.4781246769 | AA63: 0.4781246769 | AB63: 0.4781246769 | AC63: 0.4781246769 | AD63: 0.4781246769 | AE63: 0.4781246769 | AF63: 0.4781246769 | AG63: 0.4781246769
D64: GSL Payments | S64: 0 | T64: 0 | U64: 0 | V64: 0 | W64: 0 | X64: 0 | Y64: 0 | Z64: 0 | AA64: 0 | AB64: 0 | AC64: 0 | AD64: 0 | AE64: 0 | AF64: 0 | AG64: 0
D65: Licence Fees | S65: 0.05125585937 | T65: 0.008660341556 | U65: 0.09722003745 | V65: 0.05589001848 | W65: 0.05369411765 | X65: 0.05978596803 | Y65: 0.06385882478 | Z65: 0.06385882478 | AA65: 0.06385882478 | AB65: 0.06385882478 | AC65: 0.06385882478 | AD65: 0.06385882478 | AE65: 0.06385882478 | AF65: 0.06385882478 | AG65: 0.06385882478
D66: Corporate | S66: 2.50596582 | T66: 2.497425996 | U66: 2.583275281 | V66: 2.691157116 | W66: 2.788127792 | X66: 3.155759561 | Y66: 2.798503292 | Z66: 2.798503292 | AA66: 2.798503292 | AB66: 2.798503292 | AC66: 2.798503292 | AD66: 2.798503292 | AE66: 2.798503292 | AF66: 2.798503292 | AG66: 2.798503292
D67: Other operating expenditure | S67: 1.13097168 | T67: 1.126926945 | U67: 2.157002809 | V67: 2.111166359 | W67: 1.678459376 | X67: 1.67143633 | Y67: 1.608482589 | Z67: 1.608482589 | AA67: 1.608482589 | AB67: 1.608482589 | AC67: 1.608482589 | AD67: 1.608482589 | AE67: 1.608482589 | AF67: 1.608482589 | AG67: 1.608482589
C68: =+CONCATENATE("Total ",C59) -> Total Sewerage | K68: =+SUM(K60:K67) -> 0 | L68: 0 | M68: 0 | N68: 0 | O68: 0 | P68: 0 | Q68: 0 | R68: 0 | S68: 6.266585937 | T68: 6.664132827 | U68: 8.260498127 | V68: 7.957473198 | W68: 8.595449198 | X68: 8.581460641 | Y68: 8.365115138 | Z68: 8.282905357 | AA68: 8.326111796 | AB68: 8.381993713 | AC68: =+SUM(AC60:AC67) -> 8.439288294 | AD68: =+SUM(AD60:AD67) -> 8.496949129 | AE68: =+SUM(AE60:AE67) -> 8.554977653 | AF68: =+SUM(AF60:AF67) -> 8.613377138 | AG68: =+SUM(AG60:AG67) -> 8.6721493
C70: Recycled Water
D71: =+D60 -> Operations & Maintenance | S71: 0 | T71: 0 | U71: 0 | V71: 0 | W71: 0 | X71: 0 | Y71: 0 | Z71: 0 | AA71: 0 | AB71: 0 | AC71: 0 | AD71: 0 | AE71: 0 | AF71: 0 | AG71: 0
D72: =+D61 -> External bulk charges (excl. temporary purchases) | R72: =+R133 -> 0 | S72: =+S133 -> 0 | T72: =+T133 -> 0 | U72: 0 | V72: 0 | W72: 0 | X72: 0 | Y72: 0 | Z72: 0 | AA72: 0 | AB72: 0 | AC72: 0 | AD72: 0 | AE72: 0 | AF72: 0 | AG72: 0 | AH72: see reconciliation below
D73: Treatment | S73: 0 | T73: 0 | U73: 0 | V73: 0 | W73: 0 | X73: 0 | Y73: 0 | Z73: 0 | AA73: 0 | AB73: 0 | AC73: 0 | AD73: 0 | AE73: 0 | AF73: 0 | AG73: 0
D74: Customer Service and billing | S74: 0 | T74: 0 | U74: 0 | V74: 0 | W74: 0 | X74: 0 | Y74: 0 | Z74: 0 | AA74: 0 | AB74: 0 | AC74: 0 | AD74: 0 | AE74: 0 | AF74: 0 | AG74: 0
D75: GSL Payments | S75: 0 | T75: 0 | U75: 0 | V75: 0 | W75: 0 | X75: 0 | Y75: 0 | Z75: 0 | AA75: 0 | AB75: 0 | AC75: 0 | AD75: 0 | AE75: 0 | AF75: 0 | AG75: 0
D76: Licence Fees | S76: 0 | T76: 0 | U76: 0 | V76: 0 | W76: 0 | X76: 0 | Y76: 0 | Z76: 0 | AA76: 0 | AB76: 0 | AC76: 0 | AD76: 0 | AE76: 0 | AF76: 0 | AG76: 0
D77: Corporate | S77: 0 | T77: 0 | U77: 0 | V77: 0 | W77: 0 | X77: 0 | Y77: 0 | Z77: 0 | AA77: 0 | AB77: 0 | AC77: 0 | AD77: 0 | AE77: 0 | AF77: 0 | AG77: 0
D78: Other operating expenditure | S78: 0 | T78: 0 | U78: 0 | V78: 0 | W78: 0 | X78: 0 | Y78: 0 | Z78: 0 | AA78: 0 | AB78: 0 | AC78: 0 | AD78: 0 | AE78: 0 | AF78: 0 | AG78: 0
C79: =+CONCATENATE("Total ",C70) -> Total Recycled Water | K79: =+SUM(K71:K78) -> 0 | L79: =+SUM(L71:L78) -> 0 | M79: =+SUM(M71:M78) -> 0 | N79: =+SUM(N71:N78) -> 0 | O79: 0 | P79: 0 | Q79: 0 | R79: 0 | S79: 0 | T79: 0 | U79: 0 | V79: 0 | W79: 0 | X79: =+SUM(X71:X78) -> 0 | Y79: 0 | Z79: 0 | AA79: 0 | AB79: 0 | AC79: 0 | AD79: 0 | AE79: 0 | AF79: 0 | AG79: 0
C81: Rural Water
D82: =+D60 -> Operations & Maintenance | S82: 0 | T82: 0 | U82: 0 | V82: 0 | W82: 0 | X82: 0 | Y82: 0 | Z82: 0 | AA82: 0 | AB82: 0 | AC82: 0 | AD82: 0 | AE82: 0 | AF82: 0 | AG82: 0
D83: =+D61 -> External bulk charges (excl. temporary purchases) | R83: =+R134 -> 0 | S83: =+S134 -> 0 | T83: =+T134 -> 0 | U83: 0 | V83: 0 | W83: 0 | X83: 0 | Y83: 0 | Z83: 0 | AA83: 0 | AB83: 0 | AC83: 0 | AD83: 0 | AE83: 0 | AF83: 0 | AG83: 0 | AH83: see reconciliation below
D84: Treatment | S84: 0 | T84: 0 | U84: 0 | V84: 0 | W84: 0 | X84: 0 | Y84: 0 | Z84: 0 | AA84: 0 | AB84: 0 | AC84: 0 | AD84: 0 | AE84: 0 | AF84: 0 | AG84: 0
D85: Customer Service and billing | S85: 0 | T85: 0 | U85: 0 | V85: 0 | W85: 0 | X85: 0 | Y85: 0 | Z85: 0 | AA85: 0 | AB85: 0 | AC85: 0 | AD85: 0 | AE85: 0 | AF85: 0 | AG85: 0
D86: GSL Payments | S86: 0 | T86: 0 | U86: 0 | V86: 0 | W86: 0 | X86: 0 | Y86: 0 | Z86: 0 | AA86: 0 | AB86: 0 | AC86: 0 | AD86: 0 | AE86: 0 | AF86: 0 | AG86: 0
D87: Licence Fees | S87: 0 | T87: 0 | U87: 0 | V87: 0 | W87: 0 | X87: 0 | Y87: 0 | Z87: 0 | AA87: 0 | AB87: 0 | AC87: 0 | AD87: 0 | AE87: 0 | AF87: 0 | AG87: 0
D88: Corporate | S88: 0 | T88: 0 | U88: 0 | V88: 0 | W88: 0 | X88: 0 | Y88: 0 | Z88: 0 | AA88: 0 | AB88: 0 | AC88: 0 | AD88: 0 | AE88: 0 | AF88: 0 | AG88: 0
D89: Other operating expenditure | S89: 0 | T89: 0 | U89: 0 | V89: 0 | W89: 0 | X89: 0 | Y89: 0 | Z89: 0 | AA89: 0 | AB89: 0 | AC89: 0 | AD89: 0 | AE89: 0 | AF89: 0 | AG89: 0
C90: =+CONCATENATE("Total ",C81) -> Total Rural Water | K90: =+SUM(K82:K89) -> 0 | L90: 0 | M90: 0 | N90: 0 | O90: 0 | P90: 0 | Q90: 0 | R90: 0 | S90: 0 | T90: 0 | U90: 0 | V90: 0 | W90: 0 | X90: =+SUM(X82:X89) -> 0 | Y90: 0 | Z90: 0 | AA90: 0 | AB90: 0 | AC90: 0 | AD90: 0 | AE90: 0 | AF90: 0 | AG90: 0
C92: Bulk Water
D93: Operations & Maintenance | S93: 0 | T93: 0 | U93: 0 | V93: 0 | W93: 0 | X93: 0 | Y93: 0 | Z93: 0 | AA93: 0 | AB93: 0 | AC93: 0 | AD93: 0 | AE93: 0 | AF93: 0 | AG93: 0
D94: Treatment | S94: 0 | T94: 0 | U94: 0 | V94: 0 | W94: 0 | X94: 0 | Y94: 0 | Z94: 0 | AA94: 0 | AB94: 0 | AC94: 0 | AD94: 0 | AE94: 0 | AF94: 0 | AG94: 0
D95: Customer Service and billing | S95: 0 | T95: 0 | U95: 0 | V95: 0 | W95: 0 | X95: 0 | Y95: 0 | Z95: 0 | AA95: 0 | AB95: 0 | AC95: 0 | AD95: 0 | AE95: 0 | AF95: 0 | AG95: 0
D96: GSL Payments | S96: 0 | T96: 0 | U96: 0 | V96: 0 | W96: 0 | X96: 0 | Y96: 0 | Z96: 0 | AA96: 0 | AB96: 0 | AC96: 0 | AD96: 0 | AE96: 0 | AF96: 0 | AG96: 0
D97: Licence Fees | S97: 0 | T97: 0 | U97: 0 | V97: 0 | W97: 0 | X97: 0 | Y97: 0 | Z97: 0 | AA97: 0 | AB97: 0 | AC97: 0 | AD97: 0 | AE97: 0 | AF97: 0 | AG97: 0
D98: Corporate | S98: 0 | T98: 0 | U98: 0 | V98: 0 | W98: 0 | X98: 0 | Y98: 0 | Z98: 0 | AA98: 0 | AB98: 0 | AC98: 0 | AD98: 0 | AE98: 0 | AF98: 0 | AG98: 0
D99: Other operating expenditure | S99: 0 | T99: 0 | U99: 0 | V99: 0 | W99: 0 | X99: 0 | Y99: 0 | Z99: 0 | AA99: 0 | AB99: 0 | AC99: 0 | AD99: 0 | AE99: 0 | AF99: 0 | AG99: 0
C100: Total Bulk water | K100: =+SUM(K93:K99) -> 0 | L100: 0 | M100: 0 | N100: 0 | O100: 0 | P100: 0 | Q100: 0 | R100: 0 | S100: 0 | T100: 0 | U100: 0 | V100: 0 | W100: 0 | X100: 0 | Y100: 0 | Z100: 0 | AA100: 0 | AB100: 0 | AC100: =+SUM(AC93:AC99) -> 0 | AD100: =+SUM(AD93:AD99) -> 0 | AE100: =+SUM(AE93:AE99) -> 0 | AF100: =+SUM(AF93:AF99) -> 0 | AG100: =+SUM(AG93:AG99) -> 0
C102: External temporary water purchases | S102: 0 | T102: 0 | U102: 0 | V102: 0 | W102: 0 | X102: 0 | Y102: 0 | Z102: 0 | AA102: 0 | AB102: 0 | AC102: 0 | AD102: 0 | AE102: 0 | AF102: 0 | AG102: 0
C105: Licence fees
D106: Essential Services Commission | S106: 0.01894238281 | T106: 0.01407305503 | U106: 0.01282022472 | V106: 0.02847227357 | W106: 0.02271674208 | X106: 0.02229307282 | Y106: 0.0233059 | Z106: 0.0233059 | AA106: 0.0233059 | AB106: 0.0233059 | AC106: 0.0233059 | AD106: 0.0233059 | AE106: 0.0233059 | AF106: 0.0233059 | AG106: 0.0233059
D107: Department of Human Services | S107: 0 | U107: 0.009615168539 | V107: 0 | W107: 0.04853122172 | X107: 0.04863943162 | Y107: 0.0091197 | Z107: 0.0091197 | AA107: 0.0091197 | AB107: 0.0091197 | AC107: 0.0091197 | AD107: 0.0091197 | AE107: 0.0091197 | AF107: 0.0091197 | AG107: 0.0091197
D108: Environment Protection Authority | S108: 0.04234179687 | T108: 0.002165085389 | U108: 0.08760486891 | V108: 0.04639926063 | W108: 0 | X108: 0.01013321492 | Y108: 0.0486384 | Z108: 0.0486384 | AA108: 0.0486384 | AB108: 0.0486384 | AC108: 0.0486384 | AD108: 0.0486384 | AE108: 0.0486384 | AF108: 0.0486384 | AG108: 0.0486384
C109: =+CONCATENATE("Total ",C105) -> Total Licence fees | K109: =+SUM(K106:K108) -> 0 | L109: =+SUM(L106:L108) -> 0 | M109: 0 | N109: 0 | O109: 0 | P109: 0 | Q109: 0 | R109: 0 | S109: 0.06128417969 | T109: 0.01623814042 | U109: 0.1100402622 | V109: 0.0748715342 | W109: 0.0712479638 | X109: =+SUM(X106:X108) -> 0.08106571936 | Y109: 0.081064 | Z109: 0.081064 | AA109: 0.081064 | AB109: 0.081064 | AC109: 0.081064 | AD109: 0.081064 | AE109: 0.081064 | AF109: 0.081064 | AG109: 0.081064
C111: Environment Contribution | S111: 1.226797852 | T111: 1.191879507 | U111: 1.176255618 | V111: 1.161036044 | W111: 1.136869683 | X111: 1.246385435 | Y111: 1.23 | Z111: 1.202346041 | AA111: 1.175313823 | AB111: 1.148889368 | AC111: 1.12305901 | AD111: 1.097809394 | AE111: 1.073127463 | AF111: 1.049000452 | AG111: 1.025415887
C113: Other non-controllable
D114: [Non-controllable 1]
D115: [Non-controllable 2]
D116: [Non-controllable 3]
D117: [Non-controllable 4]
D118: [Non-controllable 5]
D119: [Non-controllable 6]
D120: [Non-controllable 7]
D121: [Non-controllable 8]
D122: [Non-controllable 9]
D123: [Non-controllable 10]
K124: =SUM(K114:K123) -> 0 | L124: 0 | M124: 0 | N124: 0 | O124: 0 | P124: 0 | Q124: 0 | R124: 0 | S124: 0 | T124: 0 | U124: 0 | V124: 0 | W124: 0 | X124: 0 | Y124: 0 | Z124: 0 | AA124: 0 | AB124: 0 | AC124: 0 | AD124: 0 | AE124: 0 | AF124: 0 | AG124: 0
C127: External bulk charges (excl. temporary purchases)
C128: Reconciliation
C130: Service | R130: =+R7 -> 2012-13 | S130: 2013-14 | T130: 2014-15 | U130: 2015-16 | V130: 2016-17 | W130: 2017-18 | X130: 2018-19 | Y130: 2019-20 | Z130: 2020-21 | AA130: 2021-22 | AB130: 2022-23 | AC130: 2023-24 | AD130: 2024-25 | AE130: 2025-26 | AF130: 2026-27 | AG130: 2027-28
D131: Water | R131: =+SUMIF($I$138:$I$179,$D$131,R$138:R$179) -> 0 | S131: 0 | T131: 0 | U131: 0 | V131: 0 | W131: 0 | X131: 0.82180373 | Y131: 0.7940302933 | Z131: 0.7940302933 | AA131: 0.55563696 | AB131: 0.55563696 | AC131: 1.34508457 | AD131: 1.34508457 | AE131: 1.34508457 | AF131: 1.34508457 | AG131: 1.34508457
D132: Sewerage | R132: =+SUMIF($I$138:$I$179,$D$132,R$138:R$179) -> 0 | S132: 0 | T132: 0 | U132: 0 | V132: 0 | W132: 0 | X132: 0 | Y132: 0 | Z132: 0 | AA132: 0 | AB132: 0 | AC132: 0 | AD132: 0 | AE132: 0 | AF132: 0 | AG132: 0
D133: Recycled Water | R133: =+SUMIF($I$138:$I$179,$D$133,R$138:R$179) -> 0 | S133: 0 | T133: 0 | U133: 0 | V133: 0 | W133: 0 | X133: 0 | Y133: 0 | Z133: 0 | AA133: 0 | AB133: 0 | AC133: 0 | AD133: 0 | AE133: 0 | AF133: 0 | AG133: 0
D134: Rural Water | R134: =+SUMIF($I$138:$I$179,$D$134,R$138:R$179) -> 0 | S134: 0 | T134: 0 | U134: 0 | V134: 0 | W134: 0 | X134: 0 | Y134: 0 | Z134: 0 | AA134: 0 | AB134: 0 | AC134: 0 | AD134: 0 | AE134: 0 | AF134: 0 | AG134: 0
C135: Total External Bulk Charges | R135: =SUM(R131:R134) -> 0 | S135: =SUM(S131:S134) -> 0 | T135: =SUM(T131:T134) -> 0 | U135: 0 | V135: 0 | W135: 0 | X135: 0.82180373 | Y135: 0.7940302933 | Z135: 0.7940302933 | AA135: 0.55563696 | AB135: 0.55563696 | AC135: 1.34508457 | AD135: 1.34508457 | AE135: 1.34508457 | AF135: 1.34508457 | AG135: 1.34508457
C137: Description | H137: Source | I137: Service | J137: Price
B138: 1 | C138: Melbourne Water Bulk Entitlement | H138: Melbourne Water | I138: Water | J138: Fixed | X138: 0.82180373 | Y138: 0.7940302933 | Z138: 0.7940302933 | AA138: 0.55563696 | AB138: 0.55563696 | AC138: 1.34508457 | AD138: 1.34508457 | AE138: 1.34508457 | AF138: 1.34508457 | AG138: 1.34508457 | AJ138: ESC USE ONLY
B139: 2 | H139: [Source] | I139: [Service] | J139: [Price]
B140: 3 | H140: [Source] | I140: [Service] | J140: [Price] | AJ140: [Service]
B141: 4 | H141: [Source] | I141: [Service] | J141: [Price] | AJ141: Water
B142: 5 | H142: [Source] | I142: [Service] | J142: [Price] | AJ142: Sewerage
B143: 6 | H143: [Source] | I143: [Service] | J143: [Price] | AJ143: Recycled Water
B144: 7 | H144: [Source] | I144: [Service] | J144: [Price] | AJ144: Rural Water
B145: 8 | H145: [Source] | I145: [Service] | J145: [Price]
B146: 9 | H146: [Source] | I146: [Service] | J146: [Price] | AJ146: [Source]
B147: 10 | H147: [Source] | I147: [Service] | J147: [Price] | AJ147: Melbourne Water
B148: 11 | H148: [Source] | I148: [Service] | J148: [Price] | AJ148: Goulburn-Murray Water
B149: 12 | H149: [Source] | I149: [Service] | J149: [Price] | AJ149: Other Sources
B150: 13 | H150: [Source] | I150: [Service] | J150: [Price]
B151: 14 | H151: [Source] | I151: [Service] | J151: [Price]
B152: 15 | H152: [Source] | I152: [Service] | J152: [Price]
B153: 16 | H153: [Source] | I153: [Service] | J153: [Price]
B154: 17 | H154: [Source] | I154: [Service] | J154: [Price]
B155: 18 | H155: [Source] | I155: [Service] | J155: [Price]
B156: 19 | H156: [Source] | I156: [Service] | J156: [Price]
B157: 20 | H157: [Source] | I157: [Service] | J157: [Price]
B158: 21 | H158: [Source] | I158: [Service] | J158: [Price]
B159: 22 | H159: [Source] | I159: [Service] | J159: [Price]
B160: 23 | H160: [Source] | I160: [Service] | J160: [Price]
B161: 24 | H161: [Source] | I161: [Service] | J161: [Price]
B162: 25 | H162: [Source] | I162: [Service] | J162: [Price]
B163: 26 | H163: [Source] | I163: [Service] | J163: [Price]
B164: 27 | H164: [Source] | I164: [Service] | J164: [Price]
B165: 28 | H165: [Source] | I165: [Service] | J165: [Price]
B166: 29 | H166: [Source] | I166: [Service] | J166: [Price]
B167: 30 | H167: [Source] | I167: [Service] | J167: [Price]
B168: 31 | H168: [Source] | I168: [Service] | J168: [Price]
B169: 32 | H169: [Source] | I169: [Service] | J169: [Price]
B170: 33 | H170: [Source] | I170: [Service] | J170: [Price]
B171: 34 | H171: [Source] | I171: [Service] | J171: [Price]
B172: 35 | H172: [Source] | I172: [Service] | J172: [Price]
B173: 36 | H173: [Source] | I173: [Service] | J173: [Price]
B174: 37 | H174: [Source] | I174: [Service] | J174: [Price]
B175: 38 | H175: [Source] | I175: [Service] | J175: [Price]
B176: 39 | H176: [Source] | I176: [Service] | J176: [Price]
B177: 40 | H177: [Source] | I177: [Service] | J177: [Price]

Sheet Expenditure_Detail
B1: Expenditure - Detail
B2: =Model_Name -> South Gippsland Water
B3: Go to Table of Contents
L4: FIRST REG PERIOD | P4: SECOND REG PERIOD | U4: THIRD REG PERIOD | X4: FOURTH REG PERIOD (A) | Z4: FOURTH REG PERIOD (B) | AC4: FIFTH REG PERIOD
K5: 2006 | L5: 2007 | M5: 2008 | N5: 2009 | O5: 2010 | P5: 2011 | Q5: 2012 | R5: 2013 | S5: 2014 | T5: 2015 | U5: 2016 | V5: 2017 | W5: 2018 | X5: 2019 | Y5: 2020 | Z5: 2021 | AA5: 2022 | AB5: 2023 | AC5: 2024 | AD5: 2025 | AE5: 2026 | AF5: 2027 | AG5: 2028
B6: $m, 01/01/20 | K6: =+CONCATENATE(K5-1,"-",RIGHT(K5,2)) -> 2005-06 | L6: =+CONCATENATE(L5-1,"-",RIGHT(L5,2)) -> 2006-07 | M6: 2007-08 | N6: 2008-09 | O6: 2009-10 | P6: 2010-11 | Q6: 2011-12 | R6: 2012-13 | S6: 2013-14 | T6: 2014-15 | U6: 2015-16 | V6: 2016-17 | W6: 2017-18 | X6: 2018-19 | Y6: 2019-20 | Z6: 2020-21 | AA6: 2021-22 | AB6: 2022-23 | AC6: 2023-24 | AD6: 2024-25 | AE6: 2025-26 | AF6: 2026-27 | AG6: 2027-28
B8: This worksheet outlines the key cost drivers of operating expenditure - capitalised costs are excluded. This tab does not link to the Rev&RAV_FO worksheet
C11: Expenditure Summary
D13: Total Labour costs | R13: =R33 -> 0 | S13: =S34 -> 8.544288245 | T13: =T34 -> 8.783938703 | U13: 9.383977154 | V13: 9.492251068 | W13: 9.636028959 | X13: 10.07140231 | Y13: 9.821402309 | Z13: 9.8211887 | AA13: 9.8211887 | AB13: 9.8211887 | AC13: 9.8211887 | AD13: 9.8211887 | AE13: 9.8211887 | AF13: 9.8211887 | AG13: 9.8211887
D14: Total Energy costs | R14: =R92 -> 0 | S14: =S92 -> 0.9467302646 | T14: 0.9136075769 | U14: 0.9343892584 | V14: 0.8172533771 | W14: 0.8361805593 | X14: 1.104295874 | Y14: 1.081127229 | Z14: 0.8136589403 | AA14: 0.7851889632 | AB14: 0.7829545877 | AC14: 0.7829545877 | AD14: 0.7829545877 | AE14: 0.7829545877 | AF14: 0.7829545877 | AG14: 0.7829545877
D15: Total IT costs | R15: =R103 -> 0 | S15: =S103 -> 1.234949258 | T15: 1.283426544 | U15: 1.559765115 | V15: 1.750395477 | W15: 1.811063724 | X15: 2.036373274 | Y15: 2.036330084 | Z15: 2.038098233 | AA15: 2.039869839 | AB15: 2.041644909 | AC15: 2.043423449 | AD15: 2.045205466 | AE15: 2.046990967 | AF15: 2.048779959 | AG15: 2.050572449
D16: Total Chemical costs | R16: =R114 -> 0 | S16: =S114 -> 1.28806866 | T16: 1.119451988 | U16: 1.099473155 | V16: 1.013549667 | W16: 1.16681448 | X16: 0.8562566607 | Y16: 0.8562385 | Z16: 0.8562385 | AA16: 0.8562385 | AB16: 0.8562385 | AC16: 0.8562385 | AD16: 0.8562385 | AE16: 0.8562385 | AF16: 0.8562385 | AG16: 0.8562385
C21: Labour assumptions
D23: Current FTEs (at 30 June) | S23: 82.67403003 | T23: 82.05137483 | U23: 85.19322612 | V23: 88.50772605 | W23: 89.72479757 | X23: 94.37771592
D24: Actual and forecast labour costs for current FTEs ($m) | S24: 8.544288245 | T24: 8.783938703 | U24: 9.383977154 | V24: 9.492251068 | W24: 9.636028959 | X24: 10.07140231 | Y24: 10.07140231 | Z24: 9.8211887 | AA24: 9.8211887 | AB24: 9.8211887 | AC24: 9.8211887 | AD24: 9.8211887 | AE24: 9.8211887 | AF24: 9.8211887 | AG24: 9.8211887
D25: Cost per FTE ($000) | R25: =+R24/R23*10^3 ->  | S25: 103.3491199 | T25: 107.0541319 | U25: 110.1493344 | V25: 107.2477115 | W25: 107.3953825 | X25: 106.7137746 | Y25: =+Y24/$X$23*10^3 -> 106.7137746 | Z25: =+Z24/$X$23*10^3 -> 104.0625809 | AA25: 104.0625809 | AB25: 104.0625809 | AC25: 104.0625809 | AD25: 104.0625809 | AE25: 104.0625809 | AF25: 104.0625809 | AG25: 104.0625809
D26: Annual growth in labour costs for current FTEs | S26: =+S25/R25-1 ->  | T26: 0.03584947752 | U26: 0.02891249936 | V26: -0.02634262774 | W26: 0.001376915631 | X26: -0.006346715138 | Y26: 0 | Z26: -0.02484396923 | AA26: 0 | AB26: 0 | AC26: 0 | AD26: 0 | AE26: 0 | AF26: 0 | AG26: 0
D28: Change in FTEs in future periods (net no. annual change)
D29: Increase or decrease in labour costs ($m) | Y29: -0.25
D33: Total FTEs | R33: =+R23 -> 0 | S33: 82.67403003 | T33: 82.05137483 | U33: 85.19322612 | V33: 88.50772605 | W33: =+W23 -> 89.72479757 | X33: =+X23 -> 94.37771592 | Y33: =+$X$23+SUM($Y28:Y28) -> 94.37771592 | Z33: =+$X$23+SUM($Y28:Z28) -> 94.37771592 | AA33: =+$X$23+SUM($Y28:AA28) -> 94.37771592 | AB33: =+$X$23+SUM($Y28:AB28) -> 94.37771592 | AC33: =+$X$23+SUM($Y28:AC28) -> 94.37771592 | AD33: =+$X$23+SUM($Y28:AD28) -> 94.37771592 | AE33: =+$X$23+SUM($Y28:AE28) -> 94.37771592 | AF33: =+$X$23+SUM($Y28:AF28) -> 94.37771592 | AG33: =+$X$23+SUM($Y28:AG28) -> 94.37771592
D34: Total labour costs ($m) | R34: 0 | S34: 8.544288245 | T34: 8.783938703 | U34: 9.383977154 | V34: =+V24 -> 9.492251068 | W34: =+W24 -> 9.636028959 | X34: =+X24 -> 10.07140231 | Y34: =+Y29+Y24 -> 9.821402309 | Z34: =+Z29+Z24 -> 9.8211887 | AA34: 9.8211887 | AB34: 9.8211887 | AC34: 9.8211887 | AD34: 9.8211887 | AE34: 9.8211887 | AF34: 9.8211887 | AG34: 9.8211887
D35: Cost per FTE | R35: =+R34/R33 ->  | S35: =+S34/S33 -> 0.1033491199 | T35: =+T34/T33 -> 0.1070541319 | U35: =+U34/U33 -> 0.1101493344 | V35: =+V34/V33 -> 0.1072477115 | W35: =+W34/W33 -> 0.1073953825 | X35: 0.1067137746 | Y35: 0.1040648443 | Z35: 0.1040625809 | AA35: 0.1040625809 | AB35: 0.1040625809 | AC35: 0.1040625809 | AD35: 0.1040625809 | AE35: 0.1040625809 | AF35: 0.1040625809 | AG35: 0.1040625809
D36: Annual growth in total labour costs | S36: =+S34/R34-1 ->  | T36: 0.02804803057 | U36: 0.06831086496 | V36: 0.01153816906 | W36: =+W34/V34-1 -> 0.01514686978 | X36: 0.04518182247 | Y36: -0.02482275976 | Z36: -2.174934413e-05 | AA36: 0 | AB36: 0 | AC36: 0 | AD36: 0 | AE36: 0 | AF36: 0 | AG36: 0
D37: Annual growth in total labour costs per FTE | T37: 0.03584947752 | U37: 0.02891249936 | V37: -0.02634262774 | W37: =+W35/V35-1 -> 0.001376915631 | X37: -0.006346715138 | Y37: -0.02482275976 | Z37: -2.174934413e-05 | AA37: 0 | AB37: 0 | AC37: 0 | AD37: 0 | AE37: 0 | AF37: 0 | AG37: 0
C42: Energy assumptions
D44: Electricity - traditional sources
D46: BASE LOAD
D48: Large sites
D49: Total kWh | S49: 2364911 | T49: 2411481 | U49: 2342905 | V49: 2902767 | W49: 3068501 | X49: 3370332.919 | Y49: 3552351.372 | Z49: 2323165.339 | AA49: 2323165.339 | AB49: 2323165.339 | AC49: 2323165.339 | AD49: 2323165.339 | AE49: 2323165.339 | AF49: 2323165.339 | AG49: 2323165.339
D50: Total electricity costs ($m) | S50: 0.4564490273 | T50: 0.4677688634 | U50: 0.4434740084 | V50: 0.455223146 | W50: 0.4860773584 | X50: 0.7196471425 | Y50: 0.6832818901 | Z50: 0.4203706144 | AA50: 0.3919006373 | AB50: 0.3896662618 | AC50: 0.3896662618 | AD50: 0.3896662618 | AE50: 0.3896662618 | AF50: 0.3896662618 | AG50: 0.3896662618
D51: Average c/kWh | R51: =+R50/R49*100*10^6 ->  | S51: 19.30089662 | T51: 19.39757615 | U51: 18.92838201 | V51: 15.6823867 | W51: 15.84087339 | X51: 21.35240523 | Y51: 19.23463696 | Z51: 18.09473511 | AA51: 16.86925294 | AB51: 16.77307487 | AC51: =+AC50/AC49*100*10^6 -> 16.77307487 | AD51: =+AD50/AD49*100*10^6 -> 16.77307487 | AE51: =+AE50/AE49*100*10^6 -> 16.77307487 | AF51: =+AF50/AF49*100*10^6 -> 16.77307487 | AG51: =+AG50/AG49*100*10^6 -> 16.77307487
D52: % increase p.a. | S52: =+S51/R51-1 ->  | T52: 0.005009069321 | U52: -0.02418828741 | V52: -0.1714882604 | W52: 0.01010603103 | X52: 0.3479310581 | Y52: -0.09918171949 | Z52: -0.05926297725 | AA52: -0.06772589739 | AB52: -0.005701382564 | AC52: =+AC51/AB51-1 -> 0 | AD52: =+AD51/AC51-1 -> 0 | AE52: =+AE51/AD51-1 -> 0 | AF52: =+AF51/AE51-1 -> 0 | AG52: =+AG51/AF51-1 -> 0
D54: Medium sites
D55: Total kWh
D56: Total electricity costs ($m)
D57: Average c/kWh | R57: =+R56/R55*100*10^6 ->  | AC57: =+AC56/AC55*100*10^6 ->  | AD57: =+AD56/AD55*100*10^6 ->  | AE57: =+AE56/AE55*100*10^6 ->  | AF57: =+AF56/AF55*100*10^6 ->  | AG57: =+AG56/AG55*100*10^6 -> 
D58: % increase p.a. | S58: =+S57/R57-1 ->  | AC58: =+AC57/AB57-1 ->  | AD58: =+AD57/AC57-1 ->  | AE58: =+AE57/AD57-1 ->  | AF58: =+AF57/AE57-1 ->  | AG58: =+AG57/AF57-1 -> 
D60: Small sites
D61: Total kWh | S61: 1916158 | T61: 1808581 | U61: 2335779 | V61: 1625699 | W61: 1626111 | X61: 1490775.05 | Y61: 1589359.217 | Z61: 1589359.217 | AA61: 1589359.217 | AB61: 1589359.217 | AC61: 1589359.217 | AD61: 1589359.217 | AE61: 1589359.217 | AF61: 1589359.217 | AG61: 1589359.217
D62: Total electricity costs ($m) | S62: 0.4902812373 | T62: 0.4458387135 | U62: 0.49091525 | V62: 0.3620302311 | W62: 0.3501032009 | X62: 0.3846487318 | Y62: 0.3978453392 | Z62: 0.3932883259 | AA62: 0.3932883259 | AB62: 0.3932883259 | AC62: 0.3932883259 | AD62: 0.3932883259 | AE62: 0.3932883259 | AF62: 0.3932883259 | AG62: 0.3932883259
D63: Average c/kWh | R63: =+R62/R61*100*10^6 ->  | S63: 25.58668112 | T63: 24.65129919 | U63: 21.01719598 | V63: 22.26920427 | W63: 21.5300924 | X63: 25.80192979 | Y63: 25.03180747 | Z63: 24.74508731 | AA63: 24.74508731 | AB63: 24.74508731 | AC63: =+AC62/AC61*100*10^6 -> 24.74508731 | AD63: =+AD62/AD61*100*10^6 -> 24.74508731 | AE63: =+AE62/AE61*100*10^6 -> 24.74508731 | AF63: =+AF62/AF61*100*10^6 -> 24.74508731 | AG63: =+AG62/AG61*100*10^6 -> 24.74508731
D64: % increase p.a. | S64: =+S63/R63-1 ->  | T64: -0.03655737633 | U64: -0.1474203525 | V64: 0.05957066256 | W64: -0.03318986399 | X64: 0.1984124039 | Y64: -0.02984746983 | Z64: -0.01145423314 | AA64: 0 | AB64: 0 | AC64: =+AC63/AB63-1 -> 0 | AD64: =+AD63/AC63-1 -> 0 | AE64: =+AE63/AD63-1 -> 0 | AF64: =+AF63/AE63-1 -> 0 | AG64: =+AG63/AF63-1 -> 0
D67: NEW PROJECTS
D69: Large sites
D70: Total kWh
D71: Total electricity costs ($m)
D72: Average c/kWh | R72: =+R71/R70*100*10^6 ->  | AC72: =+AC71/AC70*100*10^6 ->  | AD72: =+AD71/AD70*100*10^6 ->  | AE72: =+AE71/AE70*100*10^6 ->  | AF72: =+AF71/AF70*100*10^6 ->  | AG72: =+AG71/AG70*100*10^6 -> 
D73: % increase p.a. | S73: =+S72/R72-1 ->  | AC73: =+AC72/AB72-1 ->  | AD73: =+AD72/AC72-1 ->  | AE73: =+AE72/AD72-1 ->  | AF73: =+AF72/AE72-1 ->  | AG73: =+AG72/AF72-1 -> 
D75: Medium sites
D76: Total kWh
D77: Total electricity costs ($m)
D78: Average c/kWh | R78: =+R77/R76*100*10^6 ->  | AC78: =+AC77/AC76*100*10^6 ->  | AD78: =+AD77/AD76*100*10^6 ->  | AE78: =+AE77/AE76*100*10^6 ->  | AF78: =+AF77/AF76*100*10^6 ->  | AG78: =+AG77/AG76*100*10^6 -> 
D79: % increase p.a. | S79: =+S78/R78-1 ->  | AC79: =+AC78/AB78-1 ->  | AD79: =+AD78/AC78-1 ->  | AE79: =+AE78/AD78-1 ->  | AF79: =+AF78/AE78-1 ->  | AG79: =+AG78/AF78-1 -> 
D81: Small sites
D82: Total kWh
D83: Total electricity costs ($m)
D84: Average c/kWh | R84: =+R83/R82*100*10^6 -> 
D85: % increase p.a. | S85: =+S84/R84-1 ->  | AC85: =+AC84/AB84-1 ->  | AD85: =+AD84/AC84-1 ->  | AE85: =+AE84/AD84-1 ->  | AF85: =+AF84/AE84-1 ->  | AG85: =+AG84/AF84-1 -> 
D88: Greenhouse Gas Offsets
D89: % increase p.a. | S89: =S88/R88-1 ->  | T89: =T88/S88-1 -> 
D92: TOTAL ENERGY COSTS | N92: =+SUM(N50,N56,N62,N71,N77,N83,N88) -> 0 | O92: =+SUM(O50,O56,O62,O71,O77,O83,O88) -> 0 | P92: 0 | Q92: 0 | R92: 0 | S92: 0.9467302646 | T92: 0.9136075769 | U92: 0.9343892584 | V92: 0.8172533771 | W92: 0.8361805593 | X92: 1.104295874 | Y92: 1.081127229 | Z92: 0.8136589403 | AA92: 0.7851889632 | AB92: 0.7829545877 | AC92: 0.7829545877 | AD92: 0.7829545877 | AE92: 0.7829545877 | AF92: 0.7829545877 | AG92: 0.7829545877
D93: % increase p.a. | S93: =S92/R92-1 ->  | T93: =T92/S92-1 -> -0.0349864043 | U93: 0.02274683584 | V93: -0.1253609032 | W93: 0.02315950319 | X93: 0.3206428468 | Y93: -0.02098046865 | Z93: -0.2473976066 | AA93: -0.0349900624 | AB93: -0.002845653167 | AC93: 0 | AD93: 0 | AE93: 0 | AF93: 0 | AG93: 0
C98: IT cost assumptions
D100: Water related IT costs
D101: Sewerage and trade waste related IT costs
D102: Other IT costs | S102: 1.234949258 | T102: 1.283426544 | U102: 1.559765115 | V102: 1.750395477 | W102: 1.811063724 | X102: 2.036373274 | Y102: 2.036330084 | Z102: 2.038098233 | AA102: 2.039869839 | AB102: 2.041644909 | AC102: 2.043423449 | AD102: 2.045205466 | AE102: 2.046990967 | AF102: 2.048779959 | AG102: 2.050572449
D103: Total IT costs | R103: =SUM(R100:R102) -> 0 | S103: 1.234949258 | T103: 1.283426544 | U103: 1.559765115 | V103: 1.750395477 | W103: 1.811063724 | X103: 2.036373274 | Y103: 2.036330084 | Z103: 2.038098233 | AA103: 2.039869839 | AB103: 2.041644909 | AC103: =SUM(AC100:AC102) -> 2.043423449 | AD103: =SUM(AD100:AD102) -> 2.045205466 | AE103: =SUM(AE100:AE102) -> 2.046990967 | AF103: =SUM(AF100:AF102) -> 2.048779959 | AG103: =SUM(AG100:AG102) -> 2.050572449
D104: % increase p.a. | S104: =S103/R103-1 ->  | T104: =T103/S103-1 -> 0.03925447588 | U104: 0.2153131181 | V104: 0.1222173521 | W104: 0.03465973682 | X104: 0.1244073013 | Y104: -2.120946538e-05 | Z104: 0.0008683019538 | AA104: 0.0008692447469 | AB104: 0.000870187744 | AC104: 0.0008711309434 | AD104: 0.0008720743432 | AE104: 0.0008730179418 | AF104: 0.0008739617375 | AG104: 0.0008749057285
C109: Chemical cost assumptions
D111: Water related chemical costs
D112: Sewerage and trade waste related chemical costs
D113: Other chemical costs | S113: 1.28806866 | T113: 1.119451988 | U113: 1.099473155 | V113: 1.013549667 | W113: 1.16681448 | X113: 0.8562566607 | Y113: 0.8562385 | Z113: 0.8562385 | AA113: 0.8562385 | AB113: 0.8562385 | AC113: 0.8562385 | AD113: 0.8562385 | AE113: 0.8562385 | AF113: 0.8562385 | AG113: 0.8562385
D114: Total chemical costs | R114: =SUM(R111:R113) -> 0 | S114: 1.28806866 | T114: 1.119451988 | U114: 1.099473155 | V114: 1.013549667 | W114: 1.16681448 | X114: 0.8562566607 | Y114: 0.8562385 | Z114: 0.8562385 | AA114: 0.8562385 | AB114: 0.8562385 | AC114: =SUM(AC111:AC113) -> 0.8562385 | AD114: =SUM(AD111:AD113) -> 0.8562385 | AE114: =SUM(AE111:AE113) -> 0.8562385 | AF114: =SUM(AF111:AF113) -> 0.8562385 | AG114: =SUM(AG111:AG113) -> 0.8562385
D115: % increase p.a. | S115: =S114/R114-1 ->  | T115: =T114/S114-1 -> -0.1309065873 | U115: -0.01784697553 | V115: -0.07814969172 | W115: 0.1512158874 | X115: -0.2661586947 | Y115: -2.120946538e-05 | Z115: 0 | AA115: 0 | AB115: 0 | AC115: 0 | AD115: 0 | AE115: 0 | AF115: 0 | AG115: 0

Sheet ExpSummary_FO
A1: 80 | B1: Expenditure Summary
B2: =+Contents!H7 -> South Gippsland Water
B3: Go to Table of Contents
L4: FIRST REG PERIOD | P4: SECOND REG PERIOD | U4: THIRD REG PERIOD | X4: FOURTH REG PERIOD (A) | Z4: FOURTH REG PERIOD (B) | AC4: FIFTH REG PERIOD
F6: Straight Line | J6: 2005 | K6: 2006 | L6: 2007 | M6: 2008 | N6: 2009 | O6: 2010 | P6: 2011 | Q6: 2012 | R6: 2013 | S6: 2014 | T6: 2015 | U6: 2016 | V6: 2017 | W6: 2018 | X6: 2019 | Y6: 2020 | Z6: 2021 | AA6: 2022 | AB6: 2023 | AC6: 2024 | AD6: 2025 | AE6: 2026 | AF6: 2027 | AG6: 2028
B7: =Expenditure_Detail!$B$6 -> $m, 01/01/20 | F7: Declining Balance | J7: =+CONCATENATE(J6-1,"-",RIGHT(J6,2)) -> 2004-05 | K7: =+CONCATENATE(K6-1,"-",RIGHT(K6,2)) -> 2005-06 | L7: 2006-07 | M7: 2007-08 | N7: 2008-09 | O7: 2009-10 | P7: 2010-11 | Q7: 2011-12 | R7: 2012-13 | S7: 2013-14 | T7: 2014-15 | U7: 2015-16 | V7: 2016-17 | W7: 2017-18 | X7: =+CONCATENATE(X6-1,"-",RIGHT(X6,2)) -> 2018-19 | Y7: 2019-20 | Z7: 2020-21 | AA7: 2021-22 | AB7: 2022-23 | AC7: 2023-24 | AD7: 2024-25 | AE7: 2025-26 | AF7: 2026-27 | AG7: 2027-28
F12: Operating Expenditure
G13: Total Controllable Operating Expenditure | K13: =Opex_Breakdown!K17 -> 0 | L13: =Opex_Breakdown!L17 -> 0 | M13: =Opex_Breakdown!M17 -> 0 | N13: =Opex_Breakdown!N17 -> 0 | O13: =Opex_Breakdown!O17 -> 0 | P13: =Opex_Breakdown!P17 -> 0 | Q13: =Opex_Breakdown!Q17 -> 0 | R13: =Opex_Breakdown!R17 -> 0 | S13: =Opex_Breakdown!S17 -> 16.89437695 | T13: =Opex_Breakdown!T17 -> 16.96452657 | U13: =Opex_Breakdown!U17 -> 18.58077903 | V13: =Opex_Breakdown!V17 -> 18.28025416 | W13: =Opex_Breakdown!W17 -> 18.31131578 | X13: =Opex_Breakdown!X17 -> 21.9525968 | Y13: =Opex_Breakdown!Y17 -> 18.75143862 | Z13: =Opex_Breakdown!Z17 -> 18.57629887 | AA13: =Opex_Breakdown!AA17 -> 18.90140489 | AB13: =Opex_Breakdown!AB17 -> 18.78739675 | AC13: =Opex_Breakdown!AC17 -> 18.90945715 | AD13: =Opex_Breakdown!AD17 -> 19.03229782 | AE13: =Opex_Breakdown!AE17 -> 19.15592181 | AF13: =Opex_Breakdown!AF17 -> 19.5133951 | AG13: =Opex_Breakdown!AG17 -> 19.40554435
G14: Total Non-controllable Operating Expenditure | K14: =Opex_Breakdown!K34 -> 0 | L14: =Opex_Breakdown!L34 -> 0 | M14: =Opex_Breakdown!M34 -> 0 | N14: =Opex_Breakdown!N34 -> 0 | O14: =Opex_Breakdown!O34 -> 0 | P14: =Opex_Breakdown!P34 -> 0 | Q14: =Opex_Breakdown!Q34 -> 0 | R14: =Opex_Breakdown!R34 -> 0 | S14: =Opex_Breakdown!S34 -> 1.288082031 | T14: =Opex_Breakdown!T34 -> 1.208117647 | U14: =Opex_Breakdown!U34 -> 1.28629588 | V14: =Opex_Breakdown!V34 -> 1.235907579 | W14: =Opex_Breakdown!W34 -> 1.208117647 | X14: =Opex_Breakdown!X34 -> 2.149254885 | Y14: =Opex_Breakdown!Y34 -> 2.105094293 | Z14: =Opex_Breakdown!Z34 -> 2.077440334 | AA14: =Opex_Breakdown!AA34 -> 1.812014783 | AB14: =Opex_Breakdown!AB34 -> 1.785590328 | AC14: =Opex_Breakdown!AC34 -> 2.54920758 | AD14: =Opex_Breakdown!AD34 -> 2.523957964 | AE14: =Opex_Breakdown!AE34 -> 2.499276033 | AF14: =Opex_Breakdown!AF34 -> 2.475149022 | AG14: =Opex_Breakdown!AG34 -> 2.451564457
G15: Total Prescribed Operating Expenditure | K15: =Opex_Breakdown!K37 -> 0 | L15: =Opex_Breakdown!L37 -> 0 | M15: =Opex_Breakdown!M37 -> 0 | N15: =Opex_Breakdown!N37 -> 0 | O15: =Opex_Breakdown!O37 -> 0 | P15: =Opex_Breakdown!P37 -> 0 | Q15: =Opex_Breakdown!Q37 -> 0 | R15: =Opex_Breakdown!R37 -> 0 | S15: =Opex_Breakdown!S37 -> 18.18245898 | T15: =Opex_Breakdown!T37 -> 18.17264421 | U15: =Opex_Breakdown!U37 -> 19.86707491 | V15: =Opex_Breakdown!V37 -> 19.51616174 | W15: =Opex_Breakdown!W37 -> 19.51943343 | X15: =Opex_Breakdown!X37 -> 24.10185169 | Y15: =Opex_Breakdown!Y37 -> 20.85653292 | Z15: =+Opex_FO!Z95 -> 20.65373944 | AA15: =+Opex_FO!AA95 -> 20.71341921 | AB15: =+Opex_FO!AB95 -> 20.57298732 | AC15: =+Opex_FO!AC95 -> 21.45866509 | AD15: =+Opex_FO!AD95 -> 21.55625549 | AE15: =+Opex_FO!AE95 -> 21.65519807 | AF15: =+Opex_FO!AF95 -> 21.98854406 | AG15: =+Opex_FO!AG95 -> 21.85710904
F18: Capital Expenditure
G19: Total Gross Capital Expenditure | J19: =Capex_FO_AC!J17 -> 0 | K19: =Capex_FO_AC!K17 -> 0 | L19: =Capex_FO_AC!L17 -> 0 | M19: =Capex_FO_AC!M17 -> 0 | N19: =Capex_FO_AC!N17 -> 0 | O19: =Capex_FO_AC!O17 -> 0 | P19: =Capex_FO_AC!P17 -> 0 | Q19: =Capex_FO_AC!Q17 -> 0 | R19: =Capex_FO_AC!R17 -> 0 | S19: =Capex_FO_AC!S17 -> 13.89368066 | T19: =Capex_FO_AC!T17 -> 21.09659203 | U19: =Capex_FO_AC!U17 -> 11.12581835 | V19: =Capex_FO_AC!V17 -> 8.443610906 | W19: =Capex_FO_AC!W17 -> 33.62939648 | X19: =Capex_FO_AC!X17 -> 15.11673967 | Y19: =Capex_FO_AC!Y17 -> 17.19229268 | Z19: =Capex_FO_AC!Z17 -> 13.455 | AA19: =Capex_FO_AC!AA17 -> 13.017 | AB19: =Capex_FO_AC!AB17 -> 14.521 | AC19: =Capex_FO_AC!AC17 -> 20.18269 | AD19: =Capex_FO_AC!AD17 -> 28.00969 | AE19: =Capex_FO_AC!AE17 -> 19.379 | AF19: =Capex_FO_AC!AF17 -> 17.284 | AG19: =Capex_FO_AC!AG17 -> 23.961
G20: Total Government Contributions | J20: =Capex_FO_AC!J20 -> 0 | K20: =Capex_FO_AC!K20 -> 0 | L20: =Capex_FO_AC!L20 -> 0 | M20: =Capex_FO_AC!M20 -> 0 | N20: =Capex_FO_AC!N20 -> 0 | O20: =Capex_FO_AC!O20 -> 0 | P20: =Capex_FO_AC!P20 -> 0 | Q20: =Capex_FO_AC!Q20 -> 0 | R20: =Capex_FO_AC!R20 -> 0 | S20: =Capex_FO_AC!S20 -> 0 | T20: =Capex_FO_AC!T20 -> 0 | U20: =Capex_FO_AC!U20 -> 0 | V20: =Capex_FO_AC!V20 -> 5.799907579 | W20: =Capex_FO_AC!W20 -> 17.96687783 | X20: =Capex_FO_AC!X20 -> 7.194582593 | Y20: =Capex_FO_AC!Y20 -> 0 | Z20: =Capex_FO_AC!Z20 -> 0 | AA20: =Capex_FO_AC!AA20 -> 0 | AB20: =Capex_FO_AC!AB20 -> 0 | AC20: =Capex_FO_AC!AC20 -> 0 | AD20: =Capex_FO_AC!AD20 -> 0 | AE20: =Capex_FO_AC!AE20 -> 0 | AF20: =Capex_FO_AC!AF20 -> 0 | AG20: =Capex_FO_AC!AG20 -> 0
G21: Total Customer Contributions | J21: =Capex_FO_AC!J21 -> 0 | K21: =Capex_FO_AC!K21 -> 0 | L21: =Capex_FO_AC!L21 -> 0 | M21: =Capex_FO_AC!M21 -> 0 | N21: =Capex_FO_AC!N21 -> 0 | O21: =Capex_FO_AC!O21 -> 0 | P21: =Capex_FO_AC!P21 -> 0 | Q21: =Capex_FO_AC!Q21 -> 0 | R21: =Capex_FO_AC!R21 -> 0 | S21: =Capex_FO_AC!S21 -> 0.4280332246 | T21: =Capex_FO_AC!T21 -> 0.7375255123 | U21: =Capex_FO_AC!U21 -> 0.3398502687 | V21: =Capex_FO_AC!V21 -> 0.7014213214 | W21: =Capex_FO_AC!W21 -> 0.6164497738 | X21: =Capex_FO_AC!X21 -> 1.539235346 | Y21: =Capex_FO_AC!Y21 -> 2.06111983 | Z21: =Capex_FO_AC!Z21 -> 2.45987786 | AA21: =Capex_FO_AC!AA21 -> 2.72283327 | AB21: =Capex_FO_AC!AB21 -> 2.62324092 | AC21: =Capex_FO_AC!AC21 -> 2.30517097 | AD21: =Capex_FO_AC!AD21 -> 2.449805692 | AE21: =Capex_FO_AC!AE21 -> 2.036805692 | AF21: =Capex_FO_AC!AF21 -> 2.033805692 | AG21: =Capex_FO_AC!AG21 -> 2.030805692
G22: Total Net Capital Expenditure | J22: =J19-SUM(J20:J21) -> 0 | K22: =K19-SUM(K20:K21) -> 0 | L22: 0 | M22: 0 | N22: 0 | O22: 0 | P22: 0 | Q22: 0 | R22: 0 | S22: 13.46564744 | T22: 20.35906652 | U22: 10.78596808 | V22: 1.942282006 | W22: =W19-SUM(W20:W21) -> 15.04606887 | X22: 6.382921735 | Y22: 15.13117285 | Z22: 10.99512214 | AA22: 10.29416673 | AB22: 11.89775908 | AC22: 17.87751903 | AD22: 25.55988431 | AE22: 17.34219431 | AF22: 15.25019431 | AG22: 21.93019431
G24: Gifted Assets | J24: =Capex_FO_AC!J23 -> 0 | K24: =Capex_FO_AC!K23 -> 0 | L24: =Capex_FO_AC!L23 -> 0 | M24: =Capex_FO_AC!M23 -> 0 | N24: =Capex_FO_AC!N23 -> 0 | O24: =Capex_FO_AC!O23 -> 0 | P24: =Capex_FO_AC!P23 -> 0 | Q24: =Capex_FO_AC!Q23 -> 0 | R24: =Capex_FO_AC!R23 -> 0 | S24: =Capex_FO_AC!S23 -> 1.660244141 | T24: =Capex_FO_AC!T23 -> 1.689849146 | U24: =Capex_FO_AC!U23 -> 0.2628146067 | V24: =Capex_FO_AC!V23 -> 0.7413336414 | W24: =Capex_FO_AC!W23 -> 0.2292325792 | X24: =Capex_FO_AC!X23 -> 1.872618117 | Y24: =Capex_FO_AC!Y23 -> 1.947137621 | Z24: =Capex_FO_AC!Z23 -> 2.251869249 | AA24: =Capex_FO_AC!AA23 -> 2.089995423 | AB24: =Capex_FO_AC!AB23 -> 1.964176705 | AC24: =Capex_FO_AC!AC23 -> 1.896089261 | AD24: =Capex_FO_AC!AD23 -> 0.8925279629 | AE24: =Capex_FO_AC!AE23 -> 0.8724613518 | AF24: =Capex_FO_AC!AF23 -> 0.8528458962 | AG24: =Capex_FO_AC!AG23 -> 0.8336714528
G25: Proceeds from Disposals | J25: =Capex_FO_AC!J24 -> 0 | K25: =Capex_FO_AC!K24 -> 0 | L25: =Capex_FO_AC!L24 -> 0 | M25: =Capex_FO_AC!M24 -> 0 | N25: =Capex_FO_AC!N24 -> 0 | O25: =Capex_FO_AC!O24 -> 0 | P25: =Capex_FO_AC!P24 -> 0 | Q25: =Capex_FO_AC!Q24 -> 0 | R25: =Capex_FO_AC!R24 -> 0 | S25: =Capex_FO_AC!S24 -> 0.4362453047 | T25: =Capex_FO_AC!T24 -> 0.583583611 | U25: =Capex_FO_AC!U24 -> 1.343986891 | V25: =Capex_FO_AC!V24 -> 0.3565297569 | W25: =Capex_FO_AC!W24 -> 0.1094533937 | X25: =Capex_FO_AC!X24 -> 0.0131731794 | Y25: =Capex_FO_AC!Y24 -> 0.36 | Z25: =Capex_FO_AC!Z24 -> 0.3519061584 | AA25: =Capex_FO_AC!AA24 -> 0.3439942897 | AB25: =Capex_FO_AC!AB24 -> 0.3362603027 | AC25: =Capex_FO_AC!AC24 -> 0.3287001982 | AD25: =Capex_FO_AC!AD24 -> 0.3213100666 | AE25: =Capex_FO_AC!AE24 -> 0.3140860866 | AF25: =Capex_FO_AC!AF24 -> 0.3070245226 | AG25: =Capex_FO_AC!AG24 -> 0.300121723
F27: Depreciation
G28: Regulatory Depreciation - Existing Assets | Z28: =+RollForward_FO!Z15 -> 4.673414752 | AA28: =+RollForward_FO!AA15 -> 4.673414752 | AB28: =+RollForward_FO!AB15 -> 4.673414752 | AC28: =+RollForward_FO!AC15 -> 4.673414752 | AD28: =+RollForward_FO!AD15 -> 4.673414752 | AE28: =+RollForward_FO!AE15 -> 4.673414752 | AF28: =+RollForward_FO!AF15 -> 4.673414752 | AG28: =+RollForward_FO!AG15 -> 4.673414752
G29: Regulatory Depreciation - New Assets | Z29: =+'Capex_FO input'!D32 -> 0.1786594643 | AA29: =+'Capex_FO input'!E32 -> 0.5497041071 | AB29: =+'Capex_FO input'!F32 -> 0.9883594643 | AC29: =+'Capex_FO input'!G32 -> 1.603399107 | AD29: =+'Capex_FO input'!H32 -> 2.152839464 | AE29: =+'Capex_FO input'!I32 -> 2.792384579 | AF29: =+'Capex_FO input'!J32 -> 3.430704228 | AG29: =+'Capex_FO input'!K32 -> 3.918295865
G30: Regulatory Depreciation - Total | Z30: =SUM(Z28:Z29) -> 4.852074216 | AA30: 5.223118859 | AB30: 5.661774216 | AC30: 6.276813859 | AD30: 6.826254216 | AE30: 7.46579933 | AF30: 8.104118979 | AG30: 8.591710617

Sheet RevenuePriceCap_FO
A1: 80 | C1: Revenue forecast (price caps)
C2: =+Contents!H7 -> South Gippsland Water
C3: Go to Table of Contents
L4: FIRST REG PERIOD | P4: SECOND REG PERIOD | U4: THIRD REG PERIOD | X4: FOURTH REG PERIOD (A) | Z4: FOURTH REG PERIOD (B) | AC4: FIFTH REG PERIOD
G6: Straight Line | K6: 2006 | L6: 2007 | M6: 2008 | N6: 2009 | O6: 2010 | P6: 2011 | Q6: 2012 | R6: 2013 | S6: 2014 | T6: 2015 | U6: 2016 | V6: 2017 | W6: 2018 | X6: 2019 | Y6: 2020 | Z6: 2021 | AA6: 2022 | AB6: 2023 | AC6: 2024 | AD6: 2025 | AE6: 2026 | AF6: 2027 | AG6: 2028
C7: =Expenditure_Detail!$B$6 -> $m, 01/01/20 | G7: Declining Balance | K7: =+CONCATENATE(K6-1,"-",RIGHT(K6,2)) -> 2005-06 | L7: 2006-07 | M7: 2007-08 | N7: 2008-09 | O7: 2009-10 | P7: 2010-11 | Q7: 2011-12 | R7: 2012-13 | S7: =+CONCATENATE(S6-1,"-",RIGHT(S6,2)) -> 2013-14 | T7: 2014-15 | U7: 2015-16 | V7: 2016-17 | W7: 2017-18 | X7: 2018-19 | Y7: =+CONCATENATE(Y6-1,"-",RIGHT(Y6,2)) -> 2019-20 | Z7: 2020-21 | AA7: 2021-22 | AB7: 2022-23 | AC7: 2023-24 | AD7: 2024-25 | AE7: 2025-26 | AF7: 2026-27 | AG7: 2027-28
E10: Revenue Summary
F12: Non-scheduled tariff revenue | K12: =+K57 -> 0 | L12: 0 | M12: 0 | N12: 0 | O12: 0 | P12: 0 | Q12: 0 | R12: 0 | S12: 2.756654629 | T12: 3.964468294 | U12: 4.298376696 | V12: 2.756794143 | W12: 3.058484059 | X12: 3.124124879 | Y12: 2.881637321 | Z12: 2.88117245 | AA12: 2.879528532 | AB12: 2.87791565 | AC12: 2.876319062 | AD12: 2.874731028 | AE12: 2.873147485 | AF12: 2.8715663 | AG12: 2.869986353
F13: Tariff revenue | K13: =+SUMIF($E$69:$E$65543,$E$71,K$69:K$65543) -> 0 | L13: =+SUMIF($E$69:$E$65543,$E$71,L$69:L$65543) -> 0 | M13: 0 | N13: 0 | O13: 0 | P13: 0 | Q13: 0 | R13: =+SUMIF($E$69:$E$65543,$E$71,R$69:R$65543)+R65 -> 0 | S13: =+SUMIF($E$69:$E$65543,$E$71,S$69:S$65543)+S65 -> 25.84398457 | T13: 24.77676386 | U13: 25.30906465 | V13: 25.14579638 | W13: 25.30560572 | X13: 25.80028972 | Y13: 26.23825037 | Z13: =+SUMIF($E$69:$E$65543,$E$71,Z$69:Z$65543) -> 27.96798965 | AA13: =+SUMIF($E$69:$E$65543,$E$71,AA$69:AA$65543) -> 28.98321151 | AB13: 29.97833569 | AC13: 31.01335376 | AD13: 32.09013537 | AE13: 33.53325997 | AF13: 35.04834545 | AG13: 36.63541986
F14: Total prescribed revenue | K14: =+K12+K13 -> 0 | L14: 0 | M14: 0 | N14: 0 | O14: 0 | P14: 0 | Q14: 0 | R14: 0 | S14: =+S12+S13 -> 28.6006392 | T14: 28.74123216 | U14: 29.60744134 | V14: 27.90259052 | W14: 28.36408977 | X14: 28.9244146 | Y14: =+Y12+Y13 -> 29.11988769 | Z14: 30.8491621 | AA14: 31.86274004 | AB14: 32.85625134 | AC14: 33.88967283 | AD14: 34.9648664 | AE14: 36.40640746 | AF14: 37.91991175 | AG14: 39.50540621
F15: Revenue not collected | K15: =+K59 -> 0 | L15: =+L59 -> 0 | M15: 0 | N15: 0 | O15: 0 | P15: 0 | Q15: 0 | R15: 0 | S15: =+S59 -> -0.0524790136 | T15: 0.1061713382 | U15: 0.04785612541 | V15: 0.04965797561 | W15: 0.05941249987 | X15: 0.07602815369 | Y15: =+Y59 -> 0.07476304118 | Z15: 0.07429759113 | AA15: 0.07382143572 | AB15: 0.07333432874 | AC15: 0.0728360183 | AD15: 0.07232624672 | AE15: 0.0718047504 | AF15: 0.07127125966 | AG15: 0.07072549863
F17: Net prescribed revenue | K17: =+K14-K15 -> 0 | L17: =+L14-L15 -> 0 | M17: 0 | N17: 0 | O17: 0 | P17: 0 | Q17: 0 | R17: 0 | S17: =+S14-S15 -> 28.65311821 | T17: 28.63506082 | U17: 29.55958522 | V17: 27.85293255 | W17: 28.30467727 | X17: 28.84838645 | Y17: 29.04512465 | Z17: 30.7748645 | AA17: 31.7889186 | AB17: 32.78291702 | AC17: 33.81683681 | AD17: 34.89254015 | AE17: 36.33460271 | AF17: 37.84864049 | AG17: 39.43468071
F18: Revenue requirement | R18: =+Determination_Lookup!P3 -> 28.02740008 | S18: =+Determination_Lookup!Q3 -> 28.38981377 | T18: =+Determination_Lookup!R3 -> 28.72412556 | U18: =+Determination_Lookup!S3 -> 29.21575454 | V18: =+Determination_Lookup!T3 -> 28.96999936 | W18: =+Determination_Lookup!U3 -> 29.28084544 | X18: =+Determination_Lookup!V3 -> 30.27253777 | Y18: =+Determination_Lookup!W3 -> 31.12142822 | Z18: =+'Rev&RAV_FO'!Z23 -> 31.78771086 | AA18: =+'Rev&RAV_FO'!AA23 -> 32.41197007 | AB18: =+'Rev&RAV_FO'!AB23 -> 32.90572626 | AC18: =+'Rev&RAV_FO'!AC23 -> 34.72240349 | AD18: =+'Rev&RAV_FO'!AD23 -> 35.91562583 | AE18: =+'Rev&RAV_FO'!AE23 -> 37.16884669 | AF18: =+'Rev&RAV_FO'!AF23 -> 38.44229735 | AG18: =+'Rev&RAV_FO'!AG23 -> 39.16419836
F20: Non-prescribed revenue | K20: =+NotPres_FO!K12 -> 0 | L20: =+NotPres_FO!L12 -> 0 | M20: =+NotPres_FO!M12 -> 0 | N20: =+NotPres_FO!N12 -> 0 | O20: =+NotPres_FO!O12 -> 0 | P20: =+NotPres_FO!P12 -> 0 | Q20: =+NotPres_FO!Q12 -> 0 | R20: =+NotPres_FO!R12 -> 0 | S20: =+NotPres_FO!S12 -> 0.1980507241 | T20: =+NotPres_FO!T12 -> 0.2333247571 | U20: =+NotPres_FO!U12 -> 0.5343565815 | V20: =+NotPres_FO!V12 -> 0.4600212514 | W20: =+NotPres_FO!W12 -> 0.6615765819 | X20: =+NotPres_FO!X12 -> 0.1925310835 | Y20: =+NotPres_FO!Y12 -> 0.1717184 | Z20: =+NotPres_FO!Z12 -> 0.1717184 | AA20: =+NotPres_FO!AA12 -> 0.1717184 | AB20: =+NotPres_FO!AB12 -> 0.1717184 | AC20: =+NotPres_FO!AC12 -> 0.1717184 | AD20: =+NotPres_FO!AD12 -> 0.1717184 | AE20: =+NotPres_FO!AE12 -> 0.1717184 | AF20: =+NotPres_FO!AF12 -> 0.1717184 | AG20: =+NotPres_FO!AG12 -> 0.1717184
F22: TOTAL REVENUE | K22: =+K17+K20 -> 0 | L22: 0 | M22: 0 | N22: 0 | O22: 0 | P22: 0 | Q22: 0 | R22: 0 | S22: =+S17+S20 -> 28.85116893 | T22: 28.86838557 | U22: 30.0939418 | V22: 28.3129538 | W22: 28.96625386 | X22: 29.04091753 | Y22: 29.21684305 | Z22: 30.9465829 | AA22: 31.960637 | AB22: 32.95463542 | AC22: 33.98855521 | AD22: 35.06425855 | AE22: 36.50632111 | AF22: 38.02035889 | AG22: 39.60639911
X28: Price control - Fourth period (B) [3 Years: 2020-21 to 2022-23] | AC28: Price control - Fifth period
X30: NPV Net Prescribed Revenue | AA30: =+NPV(RRR,Z17:AB17)*(1+RRR)^0.5 -> 90.28624942 | AC30: NPV Net Prescribed Revenue | AF30: =+NPV(RRR,AC17:AG17)*(1+RRR)^0.5 -> 166.326062
X31: NPV Revenue Requirement | AA31: =+NPV(RRR,Z18:AB18)*(1+RRR)^0.5 -> 91.98333453 | AC31: NPV Revenue Requirement | AF31: =+NPV(RRR,AC18:AG18)*(1+RRR)^0.5 -> 169.2399277
X32: Variance | AA32: =+AA30-AA31 -> -1.69708511 | AC32: Variance | AF32: =+AF30-AF31 -> -2.913865745
Y34: =IF(AA30+AA31=0,"",IF(AA30<(AA31*0.99),"INSUFFICIENT REVENUE",IF(AA30>(AA31*1.001),"BREACH","PRICE CONTROL OK"))) -> INSUFFICIENT REVENUE | AD34: =IF(AF30+AF31=0,"",IF(AF30<(AF31*0.99),"INSUFFICIENT REVENUE",IF(AF30>(AF31*1.001),"BREACH","PRICE CONTROL OK"))) -> INSUFFICIENT REVENUE
C40: Revenue forecast
E42: Non-scheduled tariff revenue | I42: =Expenditure_Detail!$B$6 -> $m, 01/01/20
F44: Contract revenue
F45: Trade Waste Contract Revenue | S45: 2.377826172 | T45: 2.370768501 | U45: 2.472166667 | V45: 2.415925139 | W45: 2.466831674 | X45: 2.635649201 | Y45: 2.557113891 | Z45: 2.557113891 | AA45: 2.557113891 | AB45: 2.557113891 | AC45: 2.557113891 | AD45: 2.557113891 | AE45: 2.557113891 | AF45: 2.557113891 | AG45: 2.557113891
F46: Sewerage Contract Revenue | S46: 0.0679505279 | T46: 0.06839713675 | U46: 0.113641677 | V46: 0.07196419871 | W46: 0.0722650543 | X46: 0.08112043872 | Y46: 0.08053698 | Z46: 0.08053698 | AA46: 0.08053698 | AB46: 0.08053698 | AC46: 0.08053698 | AD46: 0.08053698 | AE46: 0.08053698 | AF46: 0.08053698 | AG46: 0.08053698
F47: Water Contract Revenue
F48: Recycled Water Contract Revenue
F49: =+CONCATENATE("Total ",F44) -> Total Contract revenue | K49: =+SUM(K45:K48) -> 0 | L49: =+SUM(L45:L48) -> 0 | M49: 0 | N49: 0 | O49: 0 | P49: 0 | Q49: 0 | R49: 0 | S49: =+SUM(S45:S48) -> 2.4457767 | T49: 2.439165638 | U49: 2.585808344 | V49: 2.487889337 | W49: 2.539096729 | X49: 2.716769639 | Y49: 2.637650871 | Z49: 2.637650871 | AA49: 2.637650871 | AB49: 2.637650871 | AC49: 2.637650871 | AD49: 2.637650871 | AE49: 2.637650871 | AF49: 2.637650871 | AG49: 2.637650871
F51: Other non-scheduled tariff revenue
F52: Miscellaneous Services | S52: 0.3097636719 | T52: 0.1439781784 | U52: 0.1335440075 | V52: 0.1465794824 | W52: 0.2984153846 | X52: 0.2320506217 | Y52: 0.2238361 | Z52: 0.2252171201 | AA52: 0.2252171201 | AB52: 0.2252171201 | AC52: 0.2252171201 | AD52: 0.2252171201 | AE52: 0.2252171201 | AF52: 0.2252171201 | AG52: 0.2252171201
F53: Government contribution to operations | S53: 0 | T53: 0 | U53: 0 | V53: 0 | W53: 0.2065158371 | X53: 0.1651714032 | Y53: 0 | Z53: 0 | AA53: 0 | AB53: 0 | AC53: 0 | AD53: 0 | AE53: 0 | AF53: 0 | AG53: 0
F54: Other Revenue | S54: 0.001114257812 | T54: 1.381324478 | U54: 1.579024345 | V54: 0.1223253235 | W54: 0.0144561086 | X54: 0.01013321492 | Y54: 0.02015035 | Z54: 0.01830445875 | AA54: 0.01666054084 | AB54: 0.01504765894 | AC54: 0.01345107095 | AD54: 0.01186303725 | AE54: 0.01027949455 | AF54: 0.008698309641 | AG54: 0.007118362562 | AN54: 1 - Simple Moving Averages | BG54: 2 - Revenue-Weighted Moving Averages
F55: =+CONCATENATE("Total ",F51) -> Total Other non-scheduled tariff revenue | K55: =+SUM(K50:K54) -> 0 | L55: 0 | M55: 0 | N55: 0 | O55: 0 | P55: 0 | Q55: 0 | R55: 0 | S55: =+SUM(S52:S54) -> 0.3108779297 | T55: =+SUM(T52:T54) -> 1.525302657 | U55: 1.712568352 | V55: 0.2689048059 | W55: 0.5193873303 | X55: 0.4073552398 | Y55: 0.24398645 | Z55: 0.2435215789 | AA55: 0.241877661 | AB55: 0.2402647791 | AC55: 0.2386681911 | AD55: 0.2370801574 | AE55: 0.2354966147 | AF55: 0.2339154298 | AG55: 0.2323354827 | AN55: THIRD REG PERIOD | AS55: FOURTH REG PERIOD (A) | AU55: FOURTH REG PERIOD (B) | AX55: FIFTH REG PERIOD | BG55: THIRD REG PERIOD | BL55: FOURTH REG PERIOD (A) | BN55: FOURTH REG PERIOD (B) | BQ55: FIFTH REG PERIOD
AK56: =AK68 -> PQR | AN56: =AN68 -> 2013-14 | AO56: 2014-15 | AP56: 2015-16 | AQ56: 2016-17 | AR56: 2017-18 | AS56: 2018-19 | AT56: 2019-20 | AU56: 2020-21 | AV56: 2021-22 | AW56: 2022-23 | AX56: 2023-24 | AY56: 2024-25 | AZ56: 2025-26 | BA56: 2026-27 | BB56: 2027-28 | BD56: =BD68 -> PQR | BG56: =BG68 -> 2013-14 | BH56: 2014-15 | BI56: 2015-16 | BJ56: 2016-17 | BK56: 2017-18 | BL56: 2018-19 | BM56: 2019-20 | BN56: 2020-21 | BO56: 2021-22 | BP56: 2022-23 | BQ56: 2023-24 | BR56: 2024-25 | BS56: 2025-26 | BT56: 2026-27 | BU56: 2027-28
E57: =+CONCATENATE("Total ",E42) -> Total Non-scheduled tariff revenue | R57: =+R49+R55 -> 0 | S57: 2.756654629 | T57: 3.964468294 | U57: 4.298376696 | V57: 2.756794143 | W57: 3.058484059 | X57: 3.124124879 | Y57: 2.881637321 | Z57: 2.88117245 | AA57: 2.879528532 | AB57: 2.87791565 | AC57: 2.876319062 | AD57: 2.874731028 | AE57: 2.873147485 | AF57: 2.8715663 | AG57: 2.869986353 | AK57: Price | AN57: =IFERROR(AVERAGEIF($AK$69:$AK$65549,$AK$69,AN$69:AN$65549),"-") -> - | AO57: -0.0236278913 | AP57: -0.001479739118 | AQ57: -0.04944939579 | AR57: 0.008776025761 | AS57: 0.01677474918 | AT57: -0.006023281462 | AU57: 0.04342105263 | AV57: 0.01736842105 | AW57: 0.01736842105 | AX57: 0.01736842105 | AY57: 0.01736842105 | AZ57: 0.02605263158 | BA57: 0.02605263158 | BB57: 0.02605263158 | BD57: Price | BG57: =SUMIF($BD$69:$BD$65549,$BD$69,BG$69:BG$65549) -> 0 | BH57: -0.04226243231 | BI57: -0.007415325823 | BJ57: -0.1250275058 | BK57: 0.0002850345915 | BL57: 0.0001866618232 | BM57: -0.007970064207 | BN57: 0.04941935381 | BO57: 0.01978210604 | BP57: 0.01978973841 | BQ57: 0.019796718 | BR57: 0.01980350219 | BS57: 0.02971514349 | BT57: 0.02972740247 | BU57: 0.02973918643
AK58: Quantity | AN58: =IFERROR(AVERAGEIF($AK$69:$AK$65549,$AK$70,AN$69:AN$65549),"-") -> - | AO58: 0.006024317294 | AP58: 0.02372155253 | AQ58: 0.02742252107 | AR58: 0.03303631004 | AS58: 0.0009826145348 | AT58: 0.004124618078 | AU58: 0.01005584417 | AV58: 0.01031949614 | AW58: 0.00795373105 | AX58: 0.007969218426 | AY58: 0.007985014645 | AZ58: 0.008001128674 | BA58: 0.008017569689 | BB58: 0.007820061352 | BD58: Quantity | BG58: =SUMIF($BD$69:$BD$65549,$BD$70,BG$69:BG$65549) -> 0 | BH58: 0.001427651391 | BI58: 0.02888480269 | BJ58: 0.007371824881 | BK58: 0.005988942364 | BL58: 0.01951382239 | BM58: 0.02507931929 | BN58: 0.01571903227 | BO58: 0.01619344711 | BP58: 0.01425957396 | BQ58: 0.01444001639 | BR58: 0.01462395315 | BS58: 0.01481148465 | BT58: 0.01500405041 | BU58: 0.01509053198
E59: Revenue not collected | I59: =Expenditure_Detail!$B$6 -> $m, 01/01/20 | S59: -0.0524790136 | T59: 0.1061713382 | U59: 0.04785612541 | V59: 0.04965797561 | W59: 0.05941249987 | X59: 0.07602815369 | Y59: 0.07476304118 | Z59: 0.07429759113 | AA59: 0.07382143572 | AB59: 0.07333432874 | AC59: 0.0728360183 | AD59: 0.07232624672 | AE59: 0.0718047504 | AF59: 0.07127125966 | AG59: 0.07072549863 | AK59: Revenue | AN59: =IFERROR(AVERAGEIF($AK$69:$AK$65549,$AK$71,AN$69:AN$65549),"-") -> - | AO59: -0.01877866748 | AP59: 0.022088975 | AQ59: 0.0004809719012 | AR59: 0.03384460711 | AS59: 0.02090270854 | AT59: -0.002476006241 | AU59: 0.05341577924 | AV59: 0.02766874321 | AW59: 0.02525566281 | AX59: 0.02527145994 | AY59: 0.02528757208 | AZ59: 0.03395544825 | BA59: 0.03397238249 | BB59: 0.03376894891 | BD59: Revenue | BG59: =SUMIF($BD$69:$BD$65549,$BD$71,BG$69:BG$65549) -> 0 | BH59: -0.04129474319 | BI59: 0.02148387049 | BJ59: -0.006450979883 | BK59: 0.006355310148 | BL59: 0.01954839627 | BM59: 0.01697502815 | BN59: 0.0659243377 | BO59: 0.0362994221 | BP59: 0.03433450385 | BQ59: 0.03452553471 | BR59: 0.03471993441 | BS59: 0.04497097268 | BT59: 0.04518157439 | BU59: 0.04528243437
AK60: Price - Avg. YoY Growth for each Reg Period | AR60: =IFERROR(AVERAGE(AN57:AR57),"-") -> -0.01644525011 | AT60: =IFERROR(AVERAGE(AS57:AT57),"-") -> 0.005375733861 | AW60: =IFERROR(AVERAGE(AU57:AW57),"-") -> 0.02605263158 | BB60: =IFERROR(AVERAGE(AX57:BB57),"-") -> 0.02257894737 | BD60: Price - Wgt. Avg. YoY Growth for each Reg Period | BK60: =IFERROR(AVERAGE(BG57:BK57),"-") -> -0.03488404586 | BM60: =IFERROR(AVERAGE(BL57:BM57),"-") -> -0.003891701192 | BP60: =IFERROR(AVERAGE(BN57:BP57),"-") -> 0.02966373276 | BU60: =IFERROR(AVERAGE(BQ57:BU57),"-") -> 0.02575639052
E61: Non-prescribed revenue offset of revenue requirement | I61: =Expenditure_Detail!$B$6 -> $m, 01/01/20 | W61: Enter negative figures only>>> | X61: -0.1925310835 | Y61: -0.1717184 | Z61: -0.1717184 | AA61: -0.1717184 | AB61: -0.1717184 | AC61: -0.1717184 | AD61: -0.1717184 | AE61: -0.1717184 | AF61: -0.1717184 | AG61: -0.1717184 | AK61: Quantity - Avg. YoY Growth for each Reg Period | AR61: =IFERROR(AVERAGE(AN58:AR58),"-") -> 0.02255117523 | AT61: =IFERROR(AVERAGE(AS58:AT58),"-") -> 0.002553616307 | AW61: =IFERROR(AVERAGE(AU58:AW58),"-") -> 0.009443023787 | BB61: =IFERROR(AVERAGE(AX58:BB58),"-") -> 0.007958598557 | BD61: Quantity - Wgt. Avg. YoY Growth for each Reg Period | BK61: =IFERROR(AVERAGE(BG58:BK58),"-") -> 0.008734644264 | BM61: =IFERROR(AVERAGE(BL58:BM58),"-") -> 0.02229657084 | BP61: =IFERROR(AVERAGE(BN58:BP58),"-") -> 0.01539068445 | BU61: =IFERROR(AVERAGE(BQ58:BU58),"-") -> 0.01479400732
X62: =+IF(X61>0,"CHECK","") ->  | Y62: =+IF(Y61>0,"CHECK","") ->  | AK62: Revenue - Avg. YoY Growth for each Reg Period | AR62: =IFERROR(AVERAGE(AN59:AR59),"-") -> 0.009408971631 | AT62: =IFERROR(AVERAGE(AS59:AT59),"-") -> 0.00921335115 | AW62: =IFERROR(AVERAGE(AU59:AW59),"-") -> 0.03544672842 | BB62: =IFERROR(AVERAGE(AX59:BB59),"-") -> 0.03045116233 | BD62: Revenue - Wgt. Avg. YoY Growth for each Reg Period | BK62: =IFERROR(AVERAGE(BG59:BK59),"-") -> -0.003981308486 | BM62: =IFERROR(AVERAGE(BL59:BM59),"-") -> 0.01826171221 | BP62: =IFERROR(AVERAGE(BN59:BP59),"-") -> 0.04551942121 | BU62: =IFERROR(AVERAGE(BQ59:BU59),"-") -> 0.04093609011
E63: Tariff revenue | I63: =Expenditure_Detail!$B$6 -> $m, 01/01/20 | BF63: Check | BG63: =IFERROR((S13/R13-1)-BG59,"-") -> - | BH63: -6.938893904e-17 | BI63: -6.349087922e-16 | BJ63: 2.463307336e-16 | BK63: 4.518954655e-16 | BL63: -4.718447855e-16 | BM63: 3.157196726e-16 | BN63: -2.220446049e-16 | BO63: -2.081668171e-17 | BP63: -6.938893904e-17 | BQ63: 1.595945598e-16 | BR63: 4.163336342e-17 | BS63: 9.714451465e-17 | BT63: -2.983724379e-16 | BU63: 2.636779683e-16
F65: Tariff revenue efficiency rebate | J65: Enter negative figures only>>> | BZ65: 2 | CA65: =BZ65+1 -> 3 | CB65: 4 | CC65: 5 | CD65: 2 | CE65: 3 | CF65: 4
R66: =+IF(R65>0,"CHECK","") ->  | AN66: =AN55 -> THIRD REG PERIOD | AS66: =AS55 -> FOURTH REG PERIOD (A) | AU66: =AU55 -> FOURTH REG PERIOD (B) | AX66: =AX55 -> FIFTH REG PERIOD | BG66: =BG55 -> THIRD REG PERIOD | BL66: =BL55 -> FOURTH REG PERIOD (A) | BN66: =BN55 -> FOURTH REG PERIOD (B) | BQ66: =BQ55 -> FIFTH REG PERIOD | BZ66: 3 - Compound Annual Growth Rate (CAGR)
AN67: Actuals | AT67: Forecast | BG67: Actuals | BM67: Forecast | BZ67: FOURTH REG PERIOD (A+B) - Base Period: 2017-18 | CD67: FOURTH REG PERIOD (B) - Base Period: 2018-19
E68: PQR | F68: Service | G68: Category | H68: Tariff Description | I68: Type | J68: Unit | K68: =+K7 -> 2005-06 | L68: 2006-07 | M68: 2007-08 | N68: 2008-09 | O68: 2009-10 | P68: 2010-11 | Q68: 2011-12 | R68: 2012-13 | S68: 2013-14 | T68: 2014-15 | U68: 2015-16 | V68: 2016-17 | W68: 2017-18 | X68: 2018-19 | Y68: 2019-20 | Z68: 2020-21 | AA68: 2021-22 | AB68: 2022-23 | AC68: 2023-24 | AD68: 2024-25 | AE68: 2025-26 | AF68: 2026-27 | AG68: 2027-28 | AK68: PQR | AL68: Service | AM68: Type | AN68: =S68 -> 2013-14 | AO68: 2014-15 | AP68: 2015-16 | AQ68: 2016-17 | AR68: 2017-18 | AS68: 2018-19 | AT68: 2019-20 | AU68: 2020-21 | AV68: 2021-22 | AW68: 2022-23 | AX68: 2023-24 | AY68: 2024-25 | AZ68: 2025-26 | BA68: 2026-27 | BB68: 2027-28 | BD68: =AK68 -> PQR | BE68: Service | BF68: Type | BG68: 2013-14 | BH68: 2014-15 | BI68: 2015-16 | BJ68: 2016-17 | BK68: 2017-18 | BL68: 2018-19 | BM68: 2019-20 | BN68: 2020-21 | BO68: 2021-22 | BP68: 2022-23 | BQ68: 2023-24 | BR68: 2024-25 | BS68: 2025-26 | BT68: 2026-27 | BU68: 2027-28 | BW68: =AK68 -> PQR | BX68: Service | BY68: Type | BZ68: =Y68 -> 2019-20 | CA68: =Z68 -> 2020-21 | CB68: =AA68 -> 2021-22 | CC68: =AB68 -> 2022-23 | CD68: =Z68 -> 2020-21 | CE68: =AA68 -> 2021-22 | CF68: =AB68 -> 2022-23
D69: =D66+1 -> 1 | E69: Price | F69: Water | G69: Major Customer | H69: Murray Goulburn Volume | I69: Variable | J69: $ | S69: 2.239658203 | T69: 2.240863378 | U69: 2.243539326 | V69: 2.246146026 | W69: 2.240696833 | X69: 2.240686883 | Y69: 2.2406 | Z69: 2.35263 | AA69: 2.3996826 | AB69: 2.447676252 | AC69: 2.496629777 | AD69: 2.546562373 | AE69: 2.622959244 | AF69: 2.701648021 | AG69: 2.782697462 | AK69: =E69 -> Price | AL69: =F69 -> Water | AM69: =I69 -> Variable | AN69: =IF(S69="","-",IFERROR(S69/R69-1,"-")) -> - | AO69: =IF(T69="","-",IFERROR(T69/S69-1,"-")) -> 0.0005381064318 | AP69: =IF(U69="","-",IFERROR(U69/T69-1,"-")) -> 0.001194159475 | AQ69: =IF(V69="","-",IFERROR(V69/U69-1,"-")) -> 0.001161869554 | AR69: =IF(W69="","-",IFERROR(W69/V69-1,"-")) -> -0.002426019162 | AS69: =IF(X69="","-",IFERROR(X69/W69-1,"-")) -> -4.440497336e-06 | AT69: =IF(Y69="","-",IFERROR(Y69/X69-1,"-")) -> -3.877506114e-05 | AU69: =IF(Z69="","-",IFERROR(Z69/Y69-1,"-")) -> 0.05 | AV69: =IF(AA69="","-",IFERROR(AA69/Z69-1,"-")) -> 0.02 | AW69: =IF(AB69="","-",IFERROR(AB69/AA69-1,"-")) -> 0.02 | AX69: =IF(AC69="","-",IFERROR(AC69/AB69-1,"-")) -> 0.02 | AY69: =IF(AD69="","-",IFERROR(AD69/AC69-1,"-")) -> 0.02 | AZ69: =IF(AE69="","-",IFERROR(AE69/AD69-1,"-")) -> 0.03 | BA69: =IF(AF69="","-",IFERROR(AF69/AE69-1,"-")) -> 0.03 | BB69: =IF(AG69="","-",IFERROR(AG69/AF69-1,"-")) -> 0.03 | BD69: =AK69 -> Price | BE69: =AL69 -> Water | BF69: =AM69 -> Variable | BG69: =IF(S69="","-",IFERROR((S69/R69-1)*(R71/R$13),"-")) -> - | BH69: 3.87862724e-05 | BI69: 8.492514835e-05 | BJ69: 9.164521713e-05 | BK69: -0.0001941914398 | BL69: -2.85929139e-07 | BM69: -2.732563793e-06 | BN69: 0.004269720672 | BO69: 0.001682373334 | BP69: 0.001655912147 | BQ69: 0.001632963402 | BR69: 0.001610035339 | BS69: 0.002380696444 | BT69: 0.00234658895 | BU69: 0.002312504045 | BW69: Price | BX69: Water | BY69: Variable | BZ69: =IF(Y69="","-",IFERROR((Y69/$W69)^(1/BZ$65)-1,"-")) -> -2.16079266e-05 | CA69: =IF(Z69="","-",IFERROR((Z69/$W69)^(1/CA$65)-1,"-")) -> 0.01638171528 | CB69: =IF(AA69="","-",IFERROR((AA69/$W69)^(1/CB$65)-1,"-")) -> 0.01728508137 | CC69: =IF(AB69="","-",IFERROR((AB69/$W69)^(1/CC$65)-1,"-")) -> 0.01782748638 | CD69: =IF(Z69="","-",IFERROR((Z69/$X69)^(1/CD$65)-1,"-")) -> 0.0246752101 | CE69: =IF(AA69="","-",IFERROR((AA69/$X69)^(1/CE$65)-1,"-")) -> 0.02311443057 | CF69: =IF(AB69="","-",IFERROR((AB69/$X69)^(1/CF$65)-1,"-")) -> 0.02233493254
E70: Qty | F70: =+F69 -> Water | G70: =+G69 -> Major Customer | H70: =+H69 -> Murray Goulburn Volume | I70: =+I69 -> Variable | J70: kL | S70: 831740 | T70: 786327 | U70: 889805 | V70: 896114 | W70: 727211 | X70: 811449 | Y70: 1000000 | Z70: 1000000 | AA70: 1000000 | AB70: 1000000 | AC70: 1000000 | AD70: 1000000 | AE70: 1000000 | AF70: 1000000 | AG70: 1000000 | AK70: Qty | AL70: Water | AM70: Variable | AN70: - | AO70: -0.05459999519 | AP70: 0.1315966513 | AQ70: 0.007090317541 | AR70: -0.1884838313 | AS70: 0.1158370817 | AT70: 0.2323633401 | AU70: 0 | AV70: 0 | AW70: 0 | AX70: 0 | AY70: 0 | AZ70: 0 | BA70: 0 | BB70: 0 | BD70: Qty | BE70: Water | BF70: Variable | BG70: =IF(S70="","-",IFERROR((S70/R70-1)*(R71/R$13),"-")) -> - | BH70: -0.003935523089 | BI70: 0.00935877106 | BJ70: 0.0005592656151 | BK70: -0.01508724546 | BL70: 0.007458893571 | BM70: 0.01637515535 | BN70: 0 | BO70: 0 | BP70: 0 | BQ70: 0 | BR70: 0 | BS70: 0 | BT70: 0 | BU70: 0 | BW70: Qty | BX70: Water | BY70: Variable | BZ70: =IF(Y70="","-",IFERROR((Y70/$W70)^(1/BZ$65)-1,"-")) -> 0.1726537055 | CA70: 0.1120215071 | CB70: 0.08289136367 | CC70: 0.06578084888 | CD70: =IF(Z70="","-",IFERROR((Z70/$X70)^(1/CD$65)-1,"-")) -> 0.1101186154 | CE70: =IF(AA70="","-",IFERROR((AA70/$X70)^(1/CE$65)-1,"-")) -> 0.07212705834 | CF70: =IF(AB70="","-",IFERROR((AB70/$X70)^(1/CF$65)-1,"-")) -> 0.05362166614
E71: Rev | F71: =+F69 -> Water | G71: =+G69 -> Major Customer | H71: =+H69 -> Murray Goulburn Volume | I71: =+I69 -> Variable | J71: $m | K71: =K69*K70/10^6 -> 0 | L71: 0 | M71: 0 | N71: 0 | O71: 0 | P71: 0 | Q71: 0 | R71: 0 | S71: 1.862813314 | T71: 1.762051377 | U71: 1.99631251 | V71: 2.0128029 | W71: 1.629459384 | X71: 1.81820313 | Y71: 2.2406 | Z71: 2.35263 | AA71: 2.3996826 | AB71: 2.447676252 | AC71: 2.496629777 | AD71: 2.546562373 | AE71: 2.622959244 | AF71: 2.701648021 | AG71: 2.782697462 | AK71: Rev | AL71: Water | AM71: Variable | AN71: - | AO71: -0.05409126937 | AP71: 0.1329479581 | AQ71: 0.008260425119 | AR71: -0.1904525851 | AS71: 0.1158321268 | AT71: 0.2323155552 | AU71: 0.05 | AV71: 0.02 | AW71: 0.02 | AX71: 0.02 | AY71: 0.02 | AZ71: 0.03 | BA71: 0.03 | BB71: 0.03 | BD71: Rev | BE71: Water | BF71: Variable | BG71: =IF(S71="","-",IFERROR((S71/R71-1)*(R71/R$13),"-")) -> - | BH71: -0.003898854547 | BI71: 0.009454872073 | BJ71: 0.0006515606259 | BK71: -0.01524483495 | BL71: 0.007458574521 | BM71: 0.01637178784 | BN71: 0.004269720672 | BO71: 0.001682373334 | BP71: 0.001655912147 | BQ71: 0.001632963402 | BR71: 0.001610035339 | BS71: 0.002380696444 | BT71: 0.00234658895 | BU71: 0.002312504045 | BW71: Rev | BX71: Water | BY71: Variable | BZ71: 0.1726283669 | CA71: 0.1302383268 | CB71: 0.101609229 | CC71: 0.08478104245 | CD71: 0.1375110254 | CE71: 0.09690866479 | CF71: 0.07715423498
D72: =D69+1 -> 2 | E72: Price | F72: Water | G72: Major Customer | H72: Burra Foods Volume | I72: Variable | J72: $ | S72: 1.849667969 | T72: 1.851148008 | U72: 1.848249064 | V72: 1.845425139 | W72: 1.848316742 | X72: 1.844245115 | Y72: 1.8482 | Z72: 1.94061 | AA72: 1.9794222 | AB72: 2.019010644 | AC72: 2.059390857 | AD72: 2.100578674 | AE72: 2.163596034 | AF72: 2.228503915 | AG72: 2.295359033 | AK72: Price | AL72: Water | AM72: Variable | AN72: - | AO72: 0.0008001646053 | AP72: -0.001566024925 | AQ72: -0.001527892043 | AR72: 0.001566903685 | AS72: -0.002202883594 | AT72: 0.002144446264 | AU72: 0.05 | AV72: 0.02 | AW72: 0.02 | AX72: 0.02 | AY72: 0.02 | AZ72: 0.03 | BA72: 0.03 | BB72: 0.03 | BD72: Price | BE72: Water | BF72: Variable | BG72: =IF(S72="","-",IFERROR((S72/R72-1)*(R74/R$13),"-")) -> - | BH72: 1.730811506e-05 | BI72: -3.184972519e-05 | BJ72: -2.423845133e-05 | BK72: 3.552184098e-05 | BL72: -5.519999204e-05 | BM72: 4.999040562e-05 | BN72: 0.001179855728 | BO72: 0.0004995851392 | BP72: 0.0005327047058 | BQ72: 0.0005253221254 | BR72: 0.0005179461985 | BS72: 0.0007658668373 | BT72: 0.0007548945024 | BU72: 0.0007439294344 | BW72: Price | BX72: Water | BY72: Variable | BZ72: -3.158114685e-05 | CA72: 0.01637495739 | CB72: 0.01728000845 | CC72: 0.01782342587 | CD72: 0.02579318996 | CE72: 0.02385847995 | CF72: 0.02289249375
E73: Qty | F73: =+F72 -> Water | G73: =+G72 -> Major Customer | H73: =+H72 -> Burra Foods Volume | I73: =+I72 -> Variable | J73: kL | S73: 302229 | T73: 272214 | U73: 217234 | V73: 308903 | W73: 343074 | X73: 326120 | Y73: 335000 | Z73: 360000 | AA73: 390000 | AB73: 390000 | AC73: 390000 | AD73: 390000 | AE73: 390000 | AF73: 390000 | AG73: 390000 | AK73: Qty | AL73: Water | AM73: Variable | AN73: - | AO73: -0.09931211102 | AP73: -0.2019734474 | AQ73: 0.4219827467 | AR73: 0.110620486 | AS73: -0.04941790984 | AT73: 0.02722924077 | AU73: 0.07462686567 | AV73: 0.08333333333 | AW73: 0 | AX73: 0 | AY73: 0 | AZ73: 0 | BA73: 0 | BB73: 0 | BD73: Qty | BE73: Water | BF73: Variable | BG73: =IF(S73="","-",IFERROR((S73/R73-1)*(R74/R$13),"-")) -> - | BH73: -0.002148189802 | BI73: -0.0041077244 | BJ73: 0.00669432655 | BK73: 0.00250777591 | BL73: -0.001238317012 | BM73: 0.000634756307 | BN73: 0.001760978699 | BO73: 0.002081604747 | BP73: 0 | BQ73: 0 | BR73: 0 | BS73: 0 | BT73: 0 | BU73: 0 | BW73: Qty | BX73: Water | BY73: Variable | BZ73: -0.01183720027 | CA73: 0.0161821569 | CB73: 0.03256928007 | CC73: 0.02597164956 | CD73: 0.05066081079 | CE73: 0.06144067118 | CF73: 0.04573536012
E74: Rev | F74: =+F72 -> Water | G74: =+G72 -> Major Customer | H74: =+H72 -> Burra Foods Volume | I74: =+I72 -> Variable | J74: $m | K74: =K72*K73/10^6 -> 0 | L74: 0 | M74: 0 | N74: 0 | O74: 0 | P74: 0 | Q74: 0 | R74: 0 | S74: 0.5590233005 | T74: 0.5039084037 | U74: 0.4015025371 | V74: 0.5700573616 | W74: 0.634109418 | X74: 0.6014452171 | Y74: 0.619147 | Z74: 0.6986196 | AA74: 0.771974658 | AB74: 0.7874141512 | AC74: 0.8031624342 | AD74: 0.8192256829 | AE74: 0.8438024534 | AF74: 0.869116527 | AG74: 0.8951900228 | AK74: Rev | AL74: Water | AM74: Variable | AN74: - | AO74: -0.09859141245 | AP74: -0.2032231768 | AQ74: 0.4198101106 | AR74: 0.1123607214 | AS74: -0.05151193153 | AT74: 0.02943207868 | AU74: 0.128358209 | AV74: 0.105 | AW74: 0.02 | AX74: 0.02 | AY74: 0.02 | AZ74: 0.03 | BA74: 0.03 | BB74: 0.03 | BD74: Rev | BE74: Water | BF74: Variable | BG74: =IF(S74="","-",IFERROR((S74/R74-1)*(R74/R$13),"-")) -> - | BH74: -0.002132600592 | BI74: -0.004133141326 | BJ74: 0.00665985989 | BK74: 0.002547227195 | BL74: -0.001290789135 | BM74: 0.0006861079134 | BN74: 0.003028883362 | BO74: 0.002622821981 | BP74: 0.0005327047058 | BQ74: 0.0005253221254 | BR74: 0.0005179461985 | BS74: 0.0007658668373 | BT74: 0.0007548945024 | BU74: 0.0007439294344 | BW74: Rev | BX74: Water | BY74: Variable | BZ74: -0.01186840759 | CA74: 0.03282209642 | CB74: 0.05041208595 | CC74: 0.0442579792 | CD74: 0.07776070467 | CE74: 0.08676503216 | CF74: 0.06967485031
D75: =D72+1 -> 3 | E75: Price | F75: Water | G75: Major Customer | H75: Other Majors Volume | I75: Variable | J75: $ | S75: 1.849667969 | T75: 1.851148008 | U75: 1.848249064 | V75: 1.845425139 | W75: 1.848316742 | X75: 1.848308535 | Y75: 1.8482 | Z75: 1.94061 | AA75: 1.9794222 | AB75: 2.019010644 | AC75: 2.059390857 | AD75: 2.100578674 | AE75: 2.163596034 | AF75: 2.228503915 | AG75: 2.295359033 | AK75: Price | AL75: Water | AM75: Variable | AN75: - | AO75: 0.0008001646053 | AP75: -0.001566024925 | AQ75: -0.001527892043 | AR75: 0.001566903685 | AS75: -4.440497336e-06 | AT75: -5.872105974e-05 | AU75: 0.05 | AV75: 0.02 | AW75: 0.02 | AX75: 0.02 | AY75: 0.02 | AZ75: 0.03 | BA75: 0.03 | BB75: 0.03 | BD75: Price | BE75: Water | BF75: Variable | BG75: =IF(S75="","-",IFERROR((S75/R75-1)*(R77/R$13),"-")) -> - | BH75: 2.28165155e-05 | BI75: -4.577045155e-05 | BJ75: -2.895059712e-05 | BK75: 2.222410619e-05 | BL75: -6.12769014e-08 | BM75: -7.397898526e-07 | BN75: 0.0005670351411 | BO75: 0.0002234255761 | BP75: 0.0002199114298 | BQ75: 0.0002168637492 | BR75: 0.0002138188153 | BS75: 0.0003161655405 | BT75: 0.0003116359356 | BU75: 0.0003071093306 | BW75: Price | BX75: Water | BY75: Variable | BZ75: -3.158114685e-05 | CA75: 0.01637495739 | CB75: 0.01728000845 | CC75: 0.01782342587 | CD75: 0.02466499056 | CE75: 0.02310762791 | CF75: 0.02232983443
E76: Qty | F76: =+F75 -> Water | G76: =+G75 -> Major Customer | H76: =+H75 -> Other Majors Volume | I76: =+I75 -> Variable | J76: kL | S76: 398415 | T76: 391192 | U76: 259466 | V76: 193264 | W76: 188932 | X76: 175859 | Y76: 161000 | Z76: 161000 | AA76: 161000 | AB76: 161000 | AC76: 161000 | AD76: 161000 | AE76: 161000 | AF76: 161000 | AG76: 161000 | AK76: Qty | AL76: Water | AM76: Variable | AN76: - | AO76: -0.0181293375 | AP76: -0.33672979 | AQ76: -0.2551471098 | AR76: -0.02241493501 | AS76: -0.06919420744 | AT76: -0.08449382744 | AU76: 0 | AV76: 0 | AW76: 0 | AX76: 0 | AY76: 0 | AZ76: 0 | BA76: 0 | BB76: 0 | BD76: Qty | BE76: Water | BF76: Variable | BG76: =IF(S76="","-",IFERROR((S76/R76-1)*(R77/R$13),"-")) -> - | BH76: -0.0005169540209 | BI76: -0.009841653406 | BJ76: -0.004834543916 | BK76: -0.0003179211976 | BL76: -0.0009548494923 | BM76: -0.00106448481 | BN76: 0 | BO76: 0 | BP76: 0 | BQ76: 0 | BR76: 0 | BS76: 0 | BT76: 0 | BU76: 0 | BW76: Qty | BX76: Water | BY76: Variable | BZ76: -0.07687571338 | CA76: -0.05193062497 | CB76: -0.03920642872 | CC76: -0.03149008567 | CD76: -0.04317913246 | CE76: -0.02899732668 | CF76: -0.02182779249
E77: Rev | F77: =+F75 -> Water | G77: =+G75 -> Major Customer | H77: =+H75 -> Other Majors Volume | I77: =+I75 -> Variable | J77: $m | K77: =K75*K76/10^6 -> 0 | L77: 0 | M77: 0 | N77: 0 | O77: 0 | P77: 0 | Q77: 0 | R77: 0 | S77: 0.7369354638 | T77: 0.7241542914 | U77: 0.4795577916 | V77: 0.356654244 | W77: 0.3492061787 | X77: 0.3250416906 | Y77: 0.2975602 | Z77: 0.31243821 | AA77: 0.3186869742 | AB77: 0.3250607137 | AC77: 0.331561928 | AD77: 0.3381931665 | AE77: 0.3483389615 | AF77: 0.3587891304 | AG77: 0.3695528043 | AK77: Rev | AL77: Water | AM77: Variable | AN77: - | AO77: -0.01734367935 | AP77: -0.3377684877 | AQ77: -0.2562851646 | AR77: -0.02088315337 | AS77: -0.06919834068 | AT77: -0.08454758693 | AU77: 0.05 | AV77: 0.02 | AW77: 0.02 | AX77: 0.02 | AY77: 0.02 | AZ77: 0.03 | BA77: 0.03 | BB77: 0.03 | BD77: Rev | BE77: Water | BF77: Variable | BG77: =IF(S77="","-",IFERROR((S77/R77-1)*(R77/R$13),"-")) -> - | BH77: -0.0004945511537 | BI77: -0.009872011583 | BJ77: -0.004856107852 | BK77: -0.0002961952433 | BL77: -0.0009549065292 | BM77: -0.001065162093 | BN77: 0.0005670351411 | BO77: 0.0002234255761 | BP77: 0.0002199114298 | BQ77: 0.0002168637492 | BR77: 0.0002138188153 | BS77: 0.0003161655405 | BT77: 0.0003116359356 | BU77: 0.0003071093306 | BW77: Rev | BX77: Water | BY77: Variable | BZ77: -0.07690486671 | CA77: -0.03640602935 | CB77: -0.02260390769 | CC77: -0.014227921 | CD77: -0.01957915479 | CE77: -0.006559758207 | CF77: 1.46309493e-05
D78: =D75+1 -> 4 | E78: Price | F78: Water | G78: Volume | H78: Customers excl Majors | I78: Variable | J78: $ | S78: 1.849667969 | T78: 1.851148008 | U78: 1.848249064 | V78: 1.845425139 | W78: 1.848316742 | X78: 1.844245115 | Y78: 1.8482 | Z78: 1.94061 | AA78: 1.9794222 | AB78: 2.019010644 | AC78: 2.059390857 | AD78: 2.100578674 | AE78: 2.163596034 | AF78: 2.228503915 | AG78: 2.295359033 | AK78: Price | AL78: Water | AM78: Variable | AN78: - | AO78: 0.0008001646053 | AP78: -0.001566024925 | AQ78: -0.001527892043 | AR78: 0.001566903685 | AS78: -0.002202883594 | AT78: 0.002144446264 | AU78: 0.05 | AV78: 0.02 | AW78: 0.02 | AX78: 0.02 | AY78: 0.02 | AZ78: 0.03 | BA78: 0.03 | BB78: 0.03 | BD78: Price | BE78: Water | BF78: Variable | BG78: =IF(S78="","-",IFERROR((S78/R78-1)*(R80/R$13),"-")) -> - | BH78: 0.0001781177183 | BI78: -0.0003648167963 | BJ78: -0.0003762258175 | BK78: 0.000367746148 | BL78: -0.0005206349063 | BM78: 0.0005040980262 | BN78: 0.0116713447 | BO78: 0.004667678511 | BP78: 0.004663846665 | BQ78: 0.004669655797 | BR78: 0.004675414451 | BS78: 0.007021691099 | BT78: 0.007030825644 | BU78: 0.007039859846 | BW78: Price | BX78: Water | BY78: Variable | BZ78: -3.158114685e-05 | CA78: 0.01637495739 | CB78: 0.01728000845 | CC78: 0.01782342587 | CD78: 0.02579318996 | CE78: 0.02385847995 | CF78: 0.02289249375
E79: Qty | F79: =+F78 -> Water | G79: =+G78 -> Volume | H79: =+H78 -> Customers excl Majors | I79: =+I78 -> Variable | J79: kL | S79: 3110237 | T79: 3118025 | U79: 3371875.46 | V79: 3197973 | W79: 3235803 | X79: 3288560 | Y79: 3313880.146 | Z79: 3363519.313 | AA79: 3414462.42 | AB79: 3466760.056 | AC79: 3520465.332 | AD79: 3575634.034 | AE79: 3632324.772 | AF79: 3690599.153 | AG79: 3750521.953 | AK79: Qty | AL79: Water | AM79: Variable | AN79: - | AO79: 0.002503989246 | AP79: 0.08141386294 | AQ79: -0.05157440186 | AR79: 0.01182936817 | AS79: 0.0163041446 | AT79: 0.007699462917 | AU79: 0.01497916791 | AV79: 0.01514577521 | AW79: 0.01531650644 | AX79: 0.01549148933 | AY79: 0.01567085488 | AZ79: 0.01585473725 | BA79: 0.01604327377 | BB79: 0.01623660484 | BD79: Qty | BE79: Water | BF79: Variable | BG79: =IF(S79="","-",IFERROR((S79/R79-1)*(R80/R$13),"-")) -> - | BH79: 0.0005573913768 | BI79: 0.01896594631 | BJ79: -0.01269960243 | BK79: 0.002776306303 | BL79: 0.003853361483 | BM79: 0.001809923674 | BN79: 0.00349654064 | BO79: 0.003534780474 | BP79: 0.003571691873 | BQ79: 0.003616996149 | BR79: 0.003663387068 | BS79: 0.003710902248 | BT79: 0.003759915356 | BU79: 0.003810114081 | BW79: Qty | BX79: Water | BY79: Variable | BZ79: 0.01199265841 | CA79: 0.0129871839 | CB79: 0.01352640103 | CC79: 0.01388416944 | CD79: 0.0113327654 | CE79: 0.01260217466 | CF79: 0.01328007655
E80: Rev | F80: =+F78 -> Water | G80: =+G78 -> Volume | H80: =+H78 -> Customers excl Majors | I80: =+I78 -> Variable | J80: $m | K80: =K78*K79/10^6 -> 0 | L80: 0 | M80: 0 | N80: 0 | O80: 0 | P80: 0 | Q80: 0 | R80: 0 | S80: 5.752905754 | T80: 5.771925766 | U80: 6.232065662 | V80: 5.901619767 | W80: 5.980788859 | X80: 6.064910717 | Y80: 6.124713285 | Z80: 6.527279214 | AA80: 6.758662716 | AB80: 6.999425453 | AC80: 7.250014118 | AD80: 7.510900597 | AE80: 7.858883471 | AF80: 8.224514661 | AG80: 8.608794441 | AK80: Rev | AL80: Water | AM80: Variable | AN80: - | AO80: 0.003306157455 | AP80: 0.07972034188 | AQ80: -0.05302349379 | AR80: 0.01341480733 | AS80: 0.01406534487 | AT80: 0.009860420266 | AU80: 0.06572812631 | AV80: 0.03544869071 | AW80: 0.03562283657 | AX80: 0.03580131912 | AY80: 0.03598427198 | AZ80: 0.04633037937 | BA80: 0.04652457199 | BB80: 0.04672370298 | BD80: Rev | BE80: Water | BF80: Variable | BG80: =IF(S80="","-",IFERROR((S80/R80-1)*(R80/R$13),"-")) -> - | BH80: 0.0007359550999 | BI80: 0.01857142837 | BJ80: -0.01305642462 | BK80: 0.003148402656 | BL80: 0.00332423807 | BM80: 0.002317902984 | BN80: 0.01534271237 | BO80: 0.008273154595 | BP80: 0.008306972375 | BQ80: 0.008358991869 | BR80: 0.00841206926 | BS80: 0.01084392041 | BT80: 0.01090353846 | BU80: 0.01096427735 | BW80: Rev | BX80: Water | BY80: Variable | BZ80: 0.01196069852 | CA80: 0.02957480587 | CB80: 0.0310401458 | CC80: 0.03195505878 | CD80: 0.03741826354 | CE80: 0.03676132335 | CF80: 0.03647658437
D81: =D78+1 -> 5 | E81: Price | F81: Water | G81: Access Fee | H81: Southern (Res) | I81: Fixed | J81: $ | S81: 381.5107324 | T81: 338.4028463 | U81: 324.1914326 | V81: 0 | W81: 0 | X81: 0 | Y81: 0 | Z81: 0 | AA81: 0 | AB81: 0 | AC81: 0 | AD81: 0 | AE81: 0 | AF81: 0 | AG81: 0 | AK81: Price | AL81: Water | AM81: Fixed | AN81: - | AO81: -0.1129925909 | AP81: -0.04199555019 | AQ81: -1 | AR81: - | AS81: - | AT81: - | AU81: - | AV81: - | AW81: - | AX81: - | AY81: - | AZ81: - | BA81: - | BB81: - | BD81: Price | BE81: Water | BF81: Fixed | BG81: =IF(S81="","-",IFERROR((S81/R81-1)*(R83/R$13),"-")) -> - | BH81: -0.01415802337 | BI81: -0.004924169574 | BJ81: -0.1111911392 | BK81: - | BL81: - | BM81: - | BN81: - | BO81: - | BP81: - | BQ81: - | BR81: - | BS81: - | BT81: - | BU81: - | BW81: Price | BX81: Water | BY81: Fixed | BZ81: - | CA81: - | CB81: - | CC81: - | CD81: - | CE81: - | CF81: -
E82: Qty | F82: =+F81 -> Water | G82: =+G81 -> Access Fee | H82: =+H81 -> Southern (Res) | I82: =+I81 -> Fixed | J82: cust | S82: 8488 | T82: 8585 | U82: 8680.5 | V82: 0 | W82: 0 | X82: 0 | Y82: 0 | Z82: 0 | AA82: 0 | AB82: 0 | AC82: 0 | AD82: 0 | AE82: 0 | AF82: 0 | AG82: 0 | AK82: Qty | AL82: Water | AM82: Fixed | AN82: - | AO82: 0.01142789821 | AP82: 0.01112405358 | AQ82: -1 | AR82: - | AS82: - | AT82: - | AU82: - | AV82: - | AW82: - | AX82: - | AY82: - | AZ82: - | BA82: - | BB82: - | BD82: Qty | BE82: Water | BF82: Fixed | BG82: =IF(S82="","-",IFERROR((S82/R82-1)*(R83/R$13),"-")) -> - | BH82: 0.001431920877 | BI82: 0.001304345959 | BJ82: -0.1111911392 | BK82: - | BL82: - | BM82: - | BN82: - | BO82: - | BP82: - | BQ82: - | BR82: - | BS82: - | BT82: - | BU82: - | BW82: Qty | BX82: Water | BY82: Fixed | BZ82: - | CA82: - | CB82: - | CC82: - | CD82: - | CE82: - | CF82: -
E83: Rev | F83: =+F81 -> Water | G83: =+G81 -> Access Fee | H83: =+H81 -> Southern (Res) | I83: =+I81 -> Fixed | J83: $m | K83: =K81*K82/10^6 -> 0 | L83: 0 | M83: 0 | N83: 0 | O83: 0 | P83: 0 | Q83: 0 | R83: 0 | S83: 3.238263097 | T83: 2.905188435 | U83: 2.814143731 | V83: 0 | W83: 0 | X83: 0 | Y83: 0 | Z83: 0 | AA83: 0 | AB83: 0 | AC83: 0 | AD83: 0 | AE83: 0 | AF83: 0 | AG83: 0 | AK83: Rev | AL83: Water | AM83: Fixed | AN83: - | AO83: -0.1028559605 | AP83: -0.03133865736 | AQ83: -1 | AR83: - | AS83: - | AT83: - | AU83: - | AV83: - | AW83: - | AX83: - | AY83: - | AZ83: - | BA83: - | BB83: - | BD83: Rev | BE83: Water | BF83: Fixed | BG83: =IF(S83="","-",IFERROR((S83/R83-1)*(R83/R$13),"-")) -> - | BH83: -0.01288789894 | BI83: -0.003674600341 | BJ83: -0.1111911392 | BK83: - | BL83: - | BM83: - | BN83: - | BO83: - | BP83: - | BQ83: - | BR83: - | BS83: - | BT83: - | BU83: - | BW83: Rev | BX83: Water | BY83: Fixed | BZ83: - | CA83: - | CB83: - | CC83: - | CD83: - | CE83: - | CF83: -
D84: =D81+1 -> 6 | E84: Price | F84: Water | G84: Access Fee | H84: East / West (Res) | I84: Fixed | J84: $ | S84: 340.2943359 | T84: 310.960389 | U84: 309.9289326 | V84: 310.0314233 | W84: 310.0835294 | X84: 310.0763766 | Y84: 305.78 | Z84: 321.069 | AA84: 327.49038 | AB84: 334.0401876 | AC84: 340.7209914 | AD84: 347.5354112 | AE84: 357.9614735 | AF84: 368.7003177 | AG84: 379.7613273 | AK84: Price | AL84: Water | AM84: Fixed | AN84: - | AO84: -0.08620169026 | AP84: -0.003317002572 | AQ84: 0.0003306909913 | AR84: 0.0001680672269 | AS84: -2.306751863e-05 | AT84: -0.01385586545 | AU84: 0.05 | AV84: 0.02 | AW84: 0.02 | AX84: 0.02 | AY84: 0.02 | AZ84: 0.03 | BA84: 0.03 | BB84: 0.03 | BD84: =AK84 -> Price | BE84: Water | BF84: Fixed | BG84: =IF(S84="","-",IFERROR((S84/R84-1)*(R86/R$13),"-")) -> - | BH84: -0.009634216466 | BI84: -0.0003573934566 | BJ84: 3.51522502e-05 | BK84: 3.636226936e-05 | BL84: -5.047159375e-06 | BM84: -0.003023083105 | BN84: 0.01076846415 | BO84: 0.004320066786 | BP84: 0.004330092243 | BQ84: 0.004349181607 | BR84: 0.004368362962 | BS84: 0.006581457622 | BT84: 0.006611104055 | BU84: 0.006640857728 | BW84: Price | BX84: Water | BY84: Fixed | BZ84: -0.006963552206 | CA84: 0.0116723775 | CB84: 0.01374788732 | CC84: 0.01499523652 | CD84: 0.01757129542 | CE84: 0.01838022039 | CF84: 0.01878492398
E85: Qty | F85: =+F84 -> Water | G85: =+G84 -> Access Fee | H85: =+H84 -> East / West (Res) | I85: =+I84 -> Fixed | J85: cust | S85: 8488 | T85: 8585 | U85: 8680.5 | V85: 17548 | W85: 17856 | X85: 18154 | Y85: 18480.323 | Z85: 18815.82824 | AA85: 19160.86502 | AB85: 19515.79945 | AC85: 19881.01546 | AD85: 20256.91572 | AE85: 20643.92282 | AF85: 21042.48036 | AG85: 21453.05414 | AK85: Qty | AL85: Water | AM85: Fixed | AN85: - | AO85: 0.01142789821 | AP85: 0.01112405358 | AQ85: 1.021542538 | AR85: 0.01755185776 | AS85: 0.0166890681 | AT85: 0.01797526716 | AU85: 0.01815472819 | AV85: 0.01833758115 | AW85: 0.01852392553 | AX85: 0.01871386318 | AY85: 0.01890749827 | AZ85: 0.0191049372 | BA85: 0.01930628856 | BB85: 0.01951166301 | BD85: Qty | BE85: Water | BF85: Fixed | BG85: =IF(S85="","-",IFERROR((S85/R85-1)*(R86/R$13),"-")) -> - | BH85: 0.001277223738 | BI85: 0.001198571263 | BJ85: 0.1085893473 | BK85: 0.003797441009 | BL85: 0.003651558188 | BM85: 0.003921857255 | BN85: 0.003909970793 | BO85: 0.003960978763 | BP85: 0.004010515312 | BQ85: 0.004069499478 | BR85: 0.004129740757 | BS85: 0.004191277819 | BT85: 0.00425452942 | BU85: 0.004319139271 | BW85: Qty | BX85: Water | BY85: Fixed | BZ85: 0.01733196436 | CA85: 0.01760614507 | CB85: 0.01778895482 | CC85: 0.01793590652 | CD85: 0.01806499372 | CE85: 0.01815584809 | CF85: 0.01824785498
E86: Rev | F86: =+F84 -> Water | G86: =+G84 -> Access Fee | H86: =+H84 -> East / West (Res) | I86: =+I84 -> Fixed | J86: $m | K86: =K84*K85/10^6 -> 0 | L86: 0 | M86: 0 | N86: 0 | O86: 0 | P86: 0 | Q86: 0 | R86: 0 | S86: 2.888418323 | T86: 2.66959494 | U86: 2.690338099 | V86: 5.440431416 | W86: 5.536851501 | X86: 5.62912654 | Y86: 5.650913167 | Z86: 6.041179158 | AA86: 6.274998966 | AB86: 6.519061311 | AC86: 6.773879295 | AD86: 7.039995534 | AE86: 7.389729033 | AF86: 7.758369193 | AG86: 8.147040314 | AK86: Rev | AL86: Water | AM86: Fixed | AN86: - | AO86: -0.07575889619 | AP86: 0.007770152496 | AQ86: 1.022211044 | AR86: 0.01772287488 | AS86: 0.01666561561 | AT86: 0.003870338821 | AU86: 0.0690624646 | AV86: 0.03870433277 | AW86: 0.03889440404 | AX86: 0.03908814045 | AY86: 0.03928564824 | AZ86: 0.04967808532 | BA86: 0.04988547722 | BB86: 0.0500970129 | BD86: Rev | BE86: Water | BF86: Fixed | BG86: =IF(S86="","-",IFERROR((S86/R86-1)*(R86/R$13),"-")) -> - | BH86: -0.008467091572 | BI86: 0.0008372021422 | BJ86: 0.108660409 | BK86: 0.003834441503 | BL86: 0.003646426797 | BM86: 0.0008444334234 | BN86: 0.01487393348 | BO86: 0.008360265125 | BP86: 0.008420817861 | BQ86: 0.008500071074 | BR86: 0.008580698534 | BS86: 0.01089847378 | BT86: 0.01099326936 | BU86: 0.01108957118 | BW86: Rev | BX86: Water | BY86: Fixed | BZ86: 0.01024772012 | CA86: 0.02948402814 | CB86: 0.0317814027 | CC86: 0.0332000962 | CD86: 0.03595371449 | CE86: 0.03686977696 | CF86: 0.03737556353
D87: =D84+1 -> 7 | E87: Price | F87: Water | G87: Access Fee | H87: Concessional | I87: Fixed | J87: $ | S87: 278.9544434 | T87: 249.5802182 | U87: 248.5521067 | V87: 248.6578558 | W87: 248.7483258 | X87: 248.6690941 | Y87: 245.29 | Z87: 257.5545 | AA87: 262.70559 | AB87: 267.9597018 | AC87: 273.3188958 | AD87: 278.7852738 | AE87: 287.148832 | AF87: 295.7632969 | AG87: 304.6361958 | AK87: Price | AL87: Water | AM87: Fixed | AN87: - | AO87: -0.1053011552 | AP87: -0.004119362833 | AQ87: 0.0004254604089 | AR87: 0.0003638331434 | AS87: -0.0003185213531 | AT87: -0.01358871777 | AU87: 0.05 | AV87: 0.02 | AW87: 0.02 | AX87: 0.02 | AY87: 0.02 | AZ87: 0.03 | BA87: 0.03 | BB87: 0.03 | BD87: Price | BE87: Water | BF87: Fixed | BG87: =IF(S87="","-",IFERROR((S87/R87-1)*(R89/R$13),"-")) -> - | BH87: -0.0007558377722 | BI87: -2.688875106e-05 | BJ87: 2.753505328e-06 | BK87: 2.352972204e-06 | BL87: -2.041406894e-06 | BM87: -8.486931834e-05 | BN87: 0.0003051652209 | BO87: 0.0001211443051 | BP87: 0.0001201331802 | BQ87: 0.0001193568059 | BR87: 0.0001185635516 | BS87: 0.000176630163 | BT87: 0.0001754053851 | BU87: 0.0001741540013 | BW87: Price | BX87: Water | BY87: Fixed | BZ87: -0.00697578621 | CA87: 0.01166406842 | CB87: 0.01374164272 | CC87: 0.01499023469 | CD87: 0.01770911676 | CE87: 0.01847217224 | CF87: 0.0188539145
E88: Qty | F88: =+F87 -> Water | G88: =+G87 -> Access Fee | H88: =+H87 -> Concessional | I88: =+I87 -> Fixed | J88: cust | S88: 665 | T88: 648 | U88: 659 | V88: 654 | W88: 652 | X88: 648 | Y88: 652.86 | Z88: 657.75645 | AA88: 662.6896234 | AB88: 667.6597956 | AC88: 672.667244 | AD88: 677.7122483 | AE88: 682.7950902 | AF88: 687.9160534 | AG88: 693.0754238 | AK88: Qty | AL88: Water | AM88: Fixed | AN88: - | AO88: -0.02556390977 | AP88: 0.01697530864 | AQ88: -0.007587253414 | AR88: -0.003058103976 | AS88: -0.006134969325 | AT88: 0.0075 | AU88: 0.0075 | AV88: 0.0075 | AW88: 0.0075 | AX88: 0.0075 | AY88: 0.0075 | AZ88: 0.0075 | BA88: 0.0075 | BB88: 0.0075 | BD88: Qty | BE88: Water | BF88: Fixed | BG88: =IF(S88="","-",IFERROR((S88/R88-1)*(R89/R$13),"-")) -> - | BH88: -0.000183494365 | BI88: 0.0001108047207 | BJ88: -4.910337664e-05 | BK88: -1.977729017e-05 | BL88: -3.931908662e-05 | BM88: 4.684179172e-05 | BN88: 4.577478314e-05 | BO88: 4.542911443e-05 | BP88: 4.504994256e-05 | BQ88: 4.475880221e-05 | BR88: 4.446133183e-05 | BS88: 4.415754074e-05 | BT88: 4.385134627e-05 | BU88: 4.353850032e-05 | BW88: Qty | BX88: Water | BY88: Fixed | BZ88: 0.0006592918696 | CA88: 0.002934351507 | CB88: 0.004073820273 | CC88: 0.004758122843 | CD88: 0.0075 | CE88: 0.0075 | CF88: 0.0075
E89: Rev | F89: =+F87 -> Water | G89: =+G87 -> Access Fee | H89: =+H87 -> Concessional | I89: =+I87 -> Fixed | J89: $m | K89: =K87*K88/10^6 -> 0 | L89: 0 | M89: 0 | N89: 0 | O89: 0 | P89: 0 | Q89: 0 | R89: 0 | S89: 0.1855047048 | T89: 0.1617279814 | U89: 0.1637958383 | V89: 0.1626222377 | W89: 0.1621839084 | X89: 0.161137573 | Y89: 0.1601400294 | Z89: 0.1694081336 | AA89: 0.1740922685 | AB89: 0.1789059197 | AC89: 0.1838526684 | AD89: 0.1889361947 | AE89: 0.1960638126 | AF89: 0.20346032 | AG89: 0.2111358605 | AK89: Rev | AL89: Water | AM89: Fixed | AN89: - | AO89: -0.1281731558 | AP89: 0.01278601835 | AQ89: -0.007165021081 | AR89: -0.002695383472 | AS89: -0.00645153656 | AT89: -0.006190633154 | AU89: 0.057875 | AV89: 0.02765 | AW89: 0.02765 | AX89: 0.02765 | AY89: 0.02765 | AZ89: 0.037725 | BA89: 0.037725 | BB89: 0.037725 | BD89: Rev | BE89: Water | BF89: Fixed | BG89: =IF(S89="","-",IFERROR((S89/R89-1)*(R89/R$13),"-")) -> - | BH89: -0.0009200099686 | BI89: 8.345952482e-05 | BJ89: -4.637076285e-05 | BK89: -1.74315136e-05 | BL89: -4.134796955e-05 | BM89: -3.866404651e-05 | BN89: 0.0003532287432 | BO89: 0.0001674820019 | BP89: 0.0001660841216 | BQ89: 0.0001650107841 | BR89: 0.00016391411 | BS89: 0.0002221124299 | BT89: 0.0002205722717 | BU89: 0.0002189986566 | BW89: Rev | BX89: Water | BY89: Fixed | BZ89: -0.00632109342 | CA89: 0.0146326464 | CB89: 0.01787144398 | CC89: 0.01981968291 | CD89: 0.02534193514 | CE89: 0.02611071354 | CF89: 0.02649531886
D90: =D87+1 -> 8 | E90: Price | F90: Water | G90: Access Fee | H90: Agreement | I90: Fixed | J90: $ | S90: 309.3736816 | T90: 280.1079222 | U90: 279.0001404 | V90: 279.028281 | W90: 279.1061538 | X90: 279.0687389 | Y90: 275.23 | Z90: 288.9915 | AA90: 294.77133 | AB90: 300.6667566 | AC90: 306.6800917 | AD90: 312.8136936 | AE90: 322.1981044 | AF90: 331.8640475 | AG90: 341.8199689 | AK90: Price | AL90: Water | AM90: Fixed | AN90: - | AO90: -0.09459679726 | AP90: -0.00395483906 | AQ90: 0.0001008619985 | AR90: 0.0002790859934 | AS90: -0.0001340527498 | AT90: -0.01375553175 | AU90: 0.05 | AV90: 0.02 | AW90: 0.02 | AX90: 0.02 | AY90: 0.02 | AZ90: 0.03 | BA90: 0.03 | BB90: 0.03 | BD90: Price | BE90: Water | BF90: Fixed | BG90: =IF(S90="","-",IFERROR((S90/R90-1)*(R92/R$13),"-")) -> - | BH90: -0.0005797894204 | BI90: -2.289178119e-05 | BJ90: 5.637205346e-07 | BK90: 1.576299189e-06 | BL90: -7.496117083e-07 | BM90: -7.558362256e-05 | BN90: 0.0002684353269 | BO90: 0.000106563294 | BP90: 0.0001056738687 | BQ90: 0.0001049909394 | BR90: 0.0001042931617 | BS90: 0.0001553708361 | BT90: 0.0001542934734 | BU90: 0.000153192707 | BW90: Price | BX90: Water | BY90: Fixed | BZ90: -0.006968147809 | CA90: 0.01166925626 | CB90: 0.0137455416 | CC90: 0.01499335763 | CD90: 0.01762305971 | CE90: 0.01841475705 | CF90: 0.01881083667
E91: Qty | F91: =+F90 -> Water | G91: =+G90 -> Access Fee | H91: =+H90 -> Agreement | I91: =+I90 -> Fixed | J91: cust | S91: 512 | T91: 512 | U91: 507 | V91: 509 | W91: 507 | X91: 508 | Y91: 511.81 | Z91: 515.648575 | AA91: 519.5159393 | AB91: 523.4123089 | AC91: 527.3379012 | AD91: 531.2929354 | AE91: 535.2776324 | AF91: 539.2922147 | AG91: 543.3369063 | AK91: Qty | AL91: Water | AM91: Fixed | AN91: - | AO91: 0 | AP91: -0.009765625 | AQ91: 0.003944773176 | AR91: -0.003929273084 | AS91: 0.001972386588 | AT91: 0.0075 | AU91: 0.0075 | AV91: 0.0075 | AW91: 0.0075 | AX91: 0.0075 | AY91: 0.0075 | AZ91: 0.0075 | BA91: 0.0075 | BB91: 0.0075 | BD91: Qty | BE91: Water | BF91: Fixed | BG91: =IF(S91="","-",IFERROR((S91/R91-1)*(R92/R$13),"-")) -> - | BH91: 0 | BI91: -5.652633325e-05 | BJ91: 2.204744777e-05 | BK91: -2.219283706e-05 | BL91: 1.102942e-05 | BM91: 4.121085099e-05 | BN91: 4.026529904e-05 | BO91: 3.996123525e-05 | BP91: 3.962770077e-05 | BQ91: 3.937160226e-05 | BR91: 3.910993563e-05 | BS91: 3.884270904e-05 | BT91: 3.857336834e-05 | BU91: 3.829817674e-05 | BW91: Qty | BX91: Water | BY91: Fixed | BZ91: 0.004732391977 | CA91: 0.005654082214 | CB91: 0.006115244352 | CC91: 0.006392043136 | CD91: 0.0075 | CE91: 0.0075 | CF91: 0.0075
E92: Rev | F92: =+F90 -> Water | G92: =+G90 -> Access Fee | H92: =+H90 -> Agreement | I92: =+I90 -> Fixed | J92: $m | K92: =K90*K91/10^6 -> 0 | L92: 0 | M92: 0 | N92: 0 | O92: 0 | P92: 0 | Q92: 0 | R92: 0 | S92: 0.158399325 | T92: 0.1434152562 | U92: 0.1414530712 | V92: 0.142025395 | W92: 0.14150682 | X92: 0.1417669194 | Y92: 0.1408654663 | Z92: 0.1490180552 | AA92: 0.1531384044 | AB92: 0.1573726813 | AC92: 0.1617240359 | AD92: 0.1661957055 | AE92: 0.1724654385 | AF92: 0.1789716972 | AG92: 0.1857234044 | AK92: Rev | AL92: Water | AM92: Fixed | AN92: - | AO92: -0.09459679726 | AP92: -0.01368184258 | AQ92: 0.004046033052 | AR92: -0.003651283696 | AS92: 0.001838069434 | AT92: -0.00635869824 | AU92: 0.057875 | AV92: 0.02765 | AW92: 0.02765 | AX92: 0.02765 | AY92: 0.02765 | AZ92: 0.037725 | BA92: 0.037725 | BB92: 0.037725 | BD92: Rev | BE92: Water | BF92: Fixed | BG92: =IF(S92="","-",IFERROR((S92/R92-1)*(R92/R$13),"-")) -> - | BH92: -0.0005797894204 | BI92: -7.919456189e-05 | BJ92: 2.261339205e-05 | BK92: -2.062273158e-05 | BL92: 1.027832977e-05 | BM92: -3.493964875e-05 | BN92: 0.0003107138909 | BO92: 0.000147323754 | BP92: 0.0001460941235 | BQ92: 0.0001451499737 | BR92: 0.000144185296 | BS92: 0.0001953788265 | BT92: 0.0001940240428 | BU92: 0.000192639829 | BW92: Rev | BX92: Water | BY92: Fixed | BZ92: -0.002268731839 | CA92: 0.01738931741 | CB92: 0.01994484329 | CC92: 0.02148123895 | CD92: 0.02525523266 | CE92: 0.02605286773 | CF92: 0.02645191794
D93: =D90+1 -> 9 | E93: Price | F93: Sewerage | G93: Access Fee | H93: All Regions (Developed) | I93: Fixed | J93: $ | S93: 505.2044922 | T93: 482.922296 | U93: 481.2391854 | V93: 481.3396026 | W93: 481.2335294 | X93: 481.2263766 | Y93: 474.56 | Z93: 498.288 | AA93: 508.25376 | AB93: 518.4188352 | AC93: 528.7872119 | AD93: 539.3629561 | AE93: 555.5438448 | AF93: 572.2101602 | AG93: 589.376465 | AK93: Price | AL93: Sewerage | AM93: Fixed | AN93: - | AO93: -0.04410530096 | AP93: -0.003485261782 | AQ93: 0.0002086637946 | AR93: -0.0002203707641 | AS93: -1.486358941e-05 | AT93: -0.01385289103 | AU93: 0.05 | AV93: 0.02 | AW93: 0.02 | AX93: 0.02 | AY93: 0.02 | AZ93: 0.03 | BA93: 0.03 | BB93: 0.03 | BD93: Price | BE93: Sewerage | BF93: Fixed | BG93: =IF(S93="","-",IFERROR((S93/R93-1)*(R95/R$13),"-")) -> - | BH93: -0.0136164268 | BI93: -0.001088730316 | BJ93: 6.461694468e-05 | BK93: -7.059791017e-05 | BL93: -4.792200944e-06 | BM93: -0.0044749488 | BN93: 0.01593043 | BO93: 0.006385527364 | BP93: 0.006394801702 | BQ93: 0.00641729202 | BR93: 0.006439729781 | BS93: 0.009693166105 | BT93: 0.009727512078 | BU93: 0.009761697906 | BW93: Price | BX93: Sewerage | BY93: Fixed | BZ93: -0.006957981107 | CA93: 0.01167616126 | CB93: 0.01375073097 | CC93: 0.01499751423 | CD93: 0.01757283003 | CE93: 0.01838124427 | CF93: 0.0187856922
E94: Qty | F94: =+F93 -> Sewerage | G94: =+G93 -> Access Fee | H94: =+H93 -> All Regions (Developed) | I94: =+I93 -> Fixed | J94: cust | S94: 15793 | T94: 16027 | U94: 16286 | V94: 16736 | W94: 16954 | X94: 17319 | Y94: 17615.754 | Z94: 17920.39576 | AA94: 18233.20405 | AB94: 18554.46999 | AC94: 18884.49771 | AD94: 19223.60499 | AE94: 19572.12405 | AF94: 19930.40228 | AG94: 20298.80308 | AK94: Qty | AL94: Sewerage | AM94: Fixed | AN94: - | AO94: 0.01481669094 | AP94: 0.01616022961 | AQ94: 0.02763109419 | AR94: 0.01302581262 | AS94: 0.02152884275 | AT94: 0.01713459207 | AU94: 0.01729371085 | AV94: 0.0174554343 | AW94: 0.01761982951 | AX94: 0.01778696547 | AY94: 0.01795691305 | AZ94: 0.01812974508 | BA94: 0.01830553629 | BB94: 0.01848436336 | BD94: Qty | BE94: Sewerage | BF94: Fixed | BG94: =IF(S94="","-",IFERROR((S94/R94-1)*(R95/R$13),"-")) -> - | BH94: 0.004574288878 | BI94: 0.005048152187 | BJ94: 0.008556524567 | BK94: 0.004172945322 | BL94: 0.006941159212 | BM94: 0.005535048392 | BN94: 0.005509925003 | BO94: 0.005573107668 | BP94: 0.005633765787 | BQ94: 0.005707207577 | BR94: 0.005781883388 | BS94: 0.005857821017 | BT94: 0.005935577513 | BU94: 0.006014625702 | BW94: Qty | BX94: Sewerage | BY94: Fixed | BZ94: 0.0193293495 | CA94: 0.01865035109 | CB94: 0.01835149039 | CC94: 0.01820511614 | CD94: 0.01721414834 | CE94: 0.01729457064 | CF94: 0.01737587561
E95: Rev | F95: =+F93 -> Sewerage | G95: =+G93 -> Access Fee | H95: =+H93 -> All Regions (Developed) | I95: =+I93 -> Fixed | J95: $m | K95: =K93*K94/10^6 -> 0 | L95: 0 | M95: 0 | N95: 0 | O95: 0 | P95: 0 | Q95: 0 | R95: 0 | S95: 7.978694545 | T95: 7.739795638 | U95: 7.837461373 | V95: 8.055699589 | W95: 8.158833258 | X95: 8.334359616 | Y95: 8.359732218 | Z95: 8.92951816 | AA95: 9.267094514 | AB95: 9.618986722 | AC95: 9.985880892 | AD95: 10.36850042 | AE95: 10.87317305 | AF95: 11.40437868 | AG95: 11.9636368 | AK95: Rev | AL95: Sewerage | AM95: Fixed | AN95: - | AO95: -0.02994210463 | AP95: 0.0126186452 | AQ95: 0.02784552359 | AR95: 0.01280257135 | AS95: 0.02151365917 | AT95: 0.003044337402 | AU95: 0.06815839639 | AV95: 0.03780454298 | AW95: 0.0379722261 | AX95: 0.03814270477 | AY95: 0.03831605131 | AZ95: 0.04867363743 | BA95: 0.04885470238 | BB95: 0.04903889426 | BD95: Rev | BE95: Sewerage | BF95: Fixed | BG95: =IF(S95="","-",IFERROR((S95/R95-1)*(R95/R$13),"-")) -> - | BH95: -0.009243888312 | BI95: 0.003941827739 | BJ95: 0.008622926949 | BK95: 0.004101427816 | BL95: 0.006936263841 | BM95: 0.0009834231696 | BN95: 0.02171585126 | BO95: 0.01207009719 | BP95: 0.0121412428 | BQ95: 0.01223864375 | BR95: 0.01233725084 | BS95: 0.01572672175 | BT95: 0.01584115692 | BU95: 0.01595676238 | BW95: Rev | BX95: Sewerage | BY95: Fixed | BZ95: 0.01223687515 | CA95: 0.03054427685 | CB95: 0.03235456777 | CC95: 0.03347566186 | CD95: 0.03508947968 | CE95: 0.03599371064 | CF95: 0.03648798566
D96: =D93+1 -> 10 | E96: Price | F96: Sewerage | G96: Access Fee | H96: All Regions (Undeveloped) | I96: Fixed | J96: $ | S96: 296.9385645 | T96: 274.0998102 | U96: 272.2695225 | V96: 272.3847505 | W96: 272.2911312 | X96: 272.2288188 | Y96: 268.51 | Z96: 281.9355 | AA96: 287.57421 | AB96: 293.3256942 | AC96: 299.1922081 | AD96: 305.1760522 | AE96: 314.3313338 | AF96: 323.7612738 | AG96: 333.474112 | AK96: Price | AL96: Sewerage | AM96: Fixed | AN96: - | AO96: -0.07691407227 | AP96: -0.006677449988 | AQ96: 0.0004232129588 | AR96: -0.0003437022088 | AS96: -0.0002288447432 | AT96: -0.01366063609 | AU96: 0.05 | AV96: 0.02 | AW96: 0.02 | AX96: 0.02 | AY96: 0.02 | AZ96: 0.03 | BA96: 0.03 | BB96: 0.03 | BD96: Price | BE96: Sewerage | BF96: Fixed | BG96: =IF(S96="","-",IFERROR((S96/R96-1)*(R98/R$13),"-")) -> - | BH96: -0.0008077168321 | BI96: -6.544982943e-05 | BJ96: 4.343404396e-06 | BK96: -3.663488368e-06 | BL96: -2.666773658e-06 | BM96: -0.0001458683098 | BN96: 0.000526562601 | BO96: 0.0002109848157 | BP96: 0.0002111780317 | BQ96: 0.0002117750655 | BR96: 0.0002123366596 | BS96: 0.0003192927306 | BT96: 0.0003200528255 | BU96: 0.0003207531635 | BW96: Price | BX96: Sewerage | BY96: Fixed | BZ96: -0.006967450015 | CA96: 0.01166973019 | CB96: 0.01374589777 | CC96: 0.01499364292 | CD96: 0.01767201598 | CE96: 0.01844741969 | CF96: 0.01883534307
E97: Qty | F97: =+F96 -> Sewerage | G97: =+G96 -> Access Fee | H97: =+H96 -> All Regions (Undeveloped) | I97: =+I96 -> Fixed | J97: cust | S97: 914 | T97: 886 | U97: 954 | V97: 984 | W97: 1083 | X97: 1012 | Y97: 1029.0925 | Z97: 1046.484239 | AA97: 1064.180539 | AB97: 1082.18682 | AC97: 1100.508597 | AD97: 1119.151484 | AE97: 1138.121195 | AF97: 1157.423549 | AG97: 1177.064467 | AK97: Qty | AL97: Sewerage | AM97: Fixed | AN97: - | AO97: -0.0306345733 | AP97: 0.07674943567 | AQ97: 0.03144654088 | AR97: 0.1006097561 | AS97: -0.06555863343 | AT97: 0.01688982213 | AU97: 0.01690007337 | AV97: 0.01691024092 | AW97: 0.01692032529 | AX97: 0.01693032695 | AY97: 0.01694024637 | AZ97: 0.01695008406 | BA97: 0.01695984048 | BB97: 0.01696951612 | BD97: Qty | BE97: Sewerage | BF97: Fixed | BG97: =IF(S97="","-",IFERROR((S97/R97-1)*(R98/R$13),"-")) -> - | BH97: -0.0003217104461 | BI97: 0.0007522688274 | BJ97: 0.000322733605 | BK97: 0.001072389591 | BL97: -0.0007639678945 | BM97: 0.0001803495672 | BN97: 0.0001779789318 | BO97: 0.0001783902033 | BP97: 0.0001786600495 | BQ97: 0.0001792710549 | BR97: 0.0001798517664 | BS97: 0.0001804012874 | BT97: 0.0001809348288 | BU97: 0.0001814341993 | BW97: Qty | BX97: Sewerage | BY97: Fixed | BZ97: -0.02520570629 | CA97: -0.01136781455 | CB97: -0.00437288887 | CC97: -0.0001502168234 | CD97: 0.01689494774 | CE97: 0.01690004544 | CF97: 0.01690511537
E98: Rev | F98: =+F96 -> Sewerage | G98: =+G96 -> Access Fee | H98: =+H96 -> All Regions (Undeveloped) | I98: =+I96 -> Fixed | J98: $m | K98: =K96*K97/10^6 -> 0 | L98: 0 | M98: 0 | N98: 0 | O98: 0 | P98: 0 | Q98: 0 | R98: 0 | S98: 0.2714018479 | T98: 0.2428524319 | U98: 0.2597451244 | V98: 0.2680265945 | W98: 0.2948912951 | X98: 0.2754955647 | Y98: 0.2763216272 | Z98: 0.2950410571 | AA98: 0.3060308779 | AB98: 0.3174332003 | AC98: 0.3292635971 | AD98: 0.3415382317 | AE98: 0.3577471534 | AF98: 0.3747289227 | AG98: 0.3925205279 | AK98: Rev | AL98: Sewerage | AM98: Fixed | AN98: - | AO98: -0.1051924158 | AP98: 0.06955949516 | AQ98: 0.03188306242 | AR98: 0.1002314741 | AS98: -0.06577247542 | AT98: 0.002998460329 | AU98: 0.06774507703 | AV98: 0.03724844574 | AW98: 0.0372587318 | AX98: 0.03726893349 | AY98: 0.0372790513 | AZ98: 0.04745858658 | BA98: 0.04746863569 | BB98: 0.04747860161 | BD98: Rev | BE98: Sewerage | BF98: Fixed | BG98: =IF(S98="","-",IFERROR((S98/R98-1)*(R98/R$13),"-")) -> - | BH98: -0.001104683218 | BI98: 0.0006817957605 | BJ98: 0.0003272135945 | BK98: 0.00106835752 | BL98: -0.0007664598381 | BM98: 3.201756764e-05 | BN98: 0.0007134404793 | BO98: 0.0003929428231 | BP98: 0.0003934112822 | BQ98: 0.0003946315415 | BR98: 0.0003957854614 | BS98: 0.0005051060567 | BT98: 0.0005064156992 | BU98: 0.0005076303888 | BW98: Rev | BX98: Sewerage | BY98: Fixed | BZ98: -0.03199753681 | CA98: 0.0001692563081 | CB98: 0.009312899617 | CC98: 0.0148411738 | CD98: 0.0348655315 | CE98: 0.03565922736 | CF98: 0.03605887209
D99: =D96+1 -> 11 | E99: Price | F99: Sewerage | G99: Cistern Usage / WW Volumetric | H99: Volume Charge | I99: Variable | J99: $ | S99: 1.849667969 | T99: 1.851148008 | U99: 1.848249064 | V99: 1.845425139 | W99: 1.848316742 | X99: 1.844245115 | Y99: 1.8482 | Z99: 1.94061 | AA99: 1.9794222 | AB99: 2.019010644 | AC99: 2.059390857 | AD99: 2.100578674 | AE99: 2.163596034 | AF99: 2.228503915 | AG99: 2.295359033 | AK99: Price | AL99: Sewerage | AM99: Variable | AN99: - | AO99: 0.0008001646053 | AP99: -0.001566024925 | AQ99: -0.001527892043 | AR99: 0.001566903685 | AS99: -0.002202883594 | AT99: 0.002144446264 | AU99: 0.05 | AV99: 0.02 | AW99: 0.02 | AX99: 0.02 | AY99: 0.02 | AZ99: 0.03 | BA99: 0.03 | BB99: 0.03 | BD99: Price | BE99: Sewerage | BF99: Variable | BG99: =IF(S99="","-",IFERROR((S99/R99-1)*(R101/R$13),"-")) -> - | BH99: 1.121156041e-05 | BI99: -2.447360415e-05 | BJ99: -2.438698371e-05 | BK99: 2.552745911e-05 | BL99: -3.493338761e-05 | BM99: 3.338206475e-05 | BN99: 0.0007697242802 | BO99: 0.00030556468 | BP99: 0.0003030142995 | BQ99: 0.0003010560352 | BR99: 0.0002990551941 | BS99: 0.000445517758 | BT99: 0.0004424284765 | BU99: 0.0004392720864 | BW99: Price | BX99: Sewerage | BY99: Variable | BZ99: -3.158114685e-05 | CA99: 0.01637495739 | CB99: 0.01728000845 | CC99: 0.01782342587 | CD99: 0.02579318996 | CE99: 0.02385847995 | CF99: 0.02289249375
E100: Qty | F100: =+F99 -> Sewerage | G100: =+G99 -> Cistern Usage / WW Volumetric | H100: =+H99 -> Volume Charge | I100: =+I99 -> Variable | J100: kL | S100: 195772.8313 | T100: 209171.5906 | U100: 218565.2023 | V100: 221990.4286 | W100: 217114.8324 | X100: 217772.967 | Y100: 218550.1394 | Z100: 220189.2654 | AA100: 221840.6849 | AB100: 223504.49 | AC100: 225180.7737 | AD100: 226869.6295 | AE100: 228571.1517 | AF100: 230285.4354 | AG100: 230285.4354 | AK100: Qty | AL100: Sewerage | AM100: Variable | AN100: - | AO100: 0.06844034092 | AP100: 0.04490864003 | AQ100: 0.01567141623 | AR100: -0.02196309183 | AS100: 0.003031274388 | AT100: 0.003568727308 | AU100: 0.0075 | AV100: 0.0075 | AW100: 0.0075 | AX100: 0.0075 | AY100: 0.0075 | AZ100: 0.0075 | BA100: 0.0075 | BB100: -1.110223025e-16 | BD100: Qty | BE100: Sewerage | BF100: Variable | BG100: =IF(S100="","-",IFERROR((S100/R100-1)*(R101/R$13),"-")) -> - | BH100: 0.0009589564592 | BI100: 0.0007018255339 | BJ100: 0.0002501345393 | BK100: -0.0003578151831 | BL100: 4.807003121e-05 | BM100: 5.55534956e-05 | BN100: 0.000115458642 | BO100: 0.000114586755 | BP100: 0.0001136303623 | BQ100: 0.0001128960132 | BR100: 0.0001121456978 | BS100: 0.0001113794395 | BT100: 0.0001106071191 | BU100: -1.625633281e-18 | BW100: Qty | BX100: Sewerage | BY100: Variable | BZ100: 0.00329996486 | CA100: 0.004698027518 | CB100: 0.005397789234 | CC100: 0.005817880183 | CD100: 0.005532442422 | CE100: 0.006187867637 | CF100: 0.006515740433
E101: Rev | F101: =+F99 -> Sewerage | G101: =+G99 -> Cistern Usage / WW Volumetric | H101: =+H99 -> Volume Charge | I101: =+I99 -> Variable | J101: $m | K101: =K99*K100/10^6 -> 0 | L101: 0 | M101: 0 | N101: 0 | O101: 0 | P101: 0 | Q101: 0 | R101: 0 | S101: 0.3621147353 | T101: 0.3872075733 | U101: 0.4039629305 | V101: 0.4096667174 | W101: 0.4012969797 | X101: 0.4016267307 | Y101: 0.4039243676 | Z101: 0.4273014904 | AA101: 0.4391163766 | AB101: 0.4512579444 | AC101: 0.4637352265 | AD101: 0.4765575055 | AE101: 0.4945356374 | AF101: 0.5131919944 | AG101: 0.5285877542 | AK101: Rev | AL101: Sewerage | AM101: Variable | AN101: - | AO101: 0.06929526906 | AP101: 0.04327228706 | AQ101: 0.01411957996 | AR101: -0.0204306022 | AS101: 0.000821713249 | AT101: 0.005720826516 | AU101: 0.057875 | AV101: 0.02765 | AW101: 0.02765 | AX101: 0.02765 | AY101: 0.02765 | AZ101: 0.037725 | BA101: 0.037725 | BB101: 0.03 | BD101: Rev | BE101: Sewerage | BF101: Variable | BG101: =IF(S101="","-",IFERROR((S101/R101-1)*(R101/R$13),"-")) -> - | BH101: 0.0009709353426 | BI101: 0.0006762528534 | BJ101: 0.000225365377 | BK101: -0.0003328483859 | BL101: 1.303075092e-05 | BM101: 8.905469184e-05 | BN101: 0.0008909558543 | BO101: 0.0004224431701 | BP101: 0.000418917269 | BQ101: 0.0004162099687 | BR101: 0.0004134438059 | BS101: 0.0005602385807 | BT101: 0.0005563538092 | BU101: 0.0004392720864 | BW101: Rev | BX101: Sewerage | BY101: Variable | BZ101: 0.003268279497 | CA101: 0.02114991491 | CB101: 0.02277107152 | CC101: 0.02374500061 | CD101: 0.03146833172 | CE101: 0.03019398071 | CF101: 0.02955739573
D102: =D99+1 -> 12 | E102: Price | F102: Sewerage | G102: Cistern Access Fee | H102: 1-2 Cisterns | I102: Fixed | J102: $ | S102: 163.7958984 | T102: 163.8428368 | U102: 163.7783708 | V102: 163.8737523 | W102: 163.8737521 | X102: 163.8540853 | Y102: 161.59 | Z102: 169.6695 | AA102: 173.06289 | AB102: 176.5241478 | AC102: 180.0546308 | AD102: 183.6557234 | AE102: 189.1653951 | AF102: 194.8403569 | AG102: 200.6855676 | AK102: Price | AL102: Sewerage | AM102: Fixed | AN102: - | AO102: 0.0002865662394 | AP102: -0.0003934625821 | AQ102: 0.0005823816879 | AR102: -1.574660735e-09 | AS102: -0.000120011867 | AT102: -0.01381769184 | AU102: 0.05 | AV102: 0.02 | AW102: 0.02 | AX102: 0.02 | AY102: 0.02 | AZ102: 0.03 | BA102: 0.03 | BB102: 0.03 | BD102: Price | BE102: Sewerage | BF102: Fixed | BG102: =IF(S102="","-",IFERROR((S102/R102-1)*(R104/R$13),"-")) -> - | BH102: 5.757418994e-07 | BI102: -8.039791649e-07 | BJ102: 1.187131191e-06 | BK102: -3.345404232e-12 | BL102: -2.56466587e-07 | BM102: -2.84323793e-05 | BN102: 0.0001005170371 | BO102: 3.990319269e-05 | BP102: 3.957014265e-05 | BQ102: 3.931441613e-05 | BR102: 3.905312955e-05 | BS102: 5.817943665e-05 | BT102: 5.777601242e-05 | BU102: 5.736382459e-05 | BW102: Price | BX102: Sewerage | BY102: Fixed | BZ102: -0.006992470031 | CA102: 0.01165273706 | CB102: 0.01373312674 | CC102: 0.01498341351 | CD102: 0.01759099031 | CE102: 0.01839336071 | CF102: 0.01879478312
E103: Qty | F103: =+F102 -> Sewerage | G103: =+G102 -> Cistern Access Fee | H103: =+H102 -> 1-2 Cisterns | I103: =+I102 -> Fixed | J103: cust | S103: 317 | T103: 309 | U103: 315 | V103: 326 | W103: 330 | X103: 324 | Y103: 326.43 | Z103: 328.878225 | AA103: 331.3448117 | AB103: 333.8298978 | AC103: 336.333622 | AD103: 338.8561242 | AE103: 341.3975451 | AF103: 343.9580267 | AG103: 346.5377119 | AK103: Qty | AL103: Sewerage | AM103: Fixed | AN103: - | AO103: -0.02523659306 | AP103: 0.01941747573 | AQ103: 0.03492063492 | AR103: 0.01226993865 | AS103: -0.01818181818 | AT103: 0.0075 | AU103: 0.0075 | AV103: 0.0075 | AW103: 0.0075 | AX103: 0.0075 | AY103: 0.0075 | AZ103: 0.0075 | BA103: 0.0075 | BB103: 0.0075 | BD103: Qty | BE103: Sewerage | BF103: Fixed | BG103: =IF(S103="","-",IFERROR((S103/R103-1)*(R104/R$13),"-")) -> - | BH103: -5.070298599e-05 | BI103: 3.967657061e-05 | BJ103: 7.118248358e-05 | BK103: 2.606777687e-05 | BL103: -3.885473137e-05 | BM103: 1.543259519e-05 | BN103: 1.507755556e-05 | BO103: 1.496369726e-05 | BP103: 1.48388035e-05 | BQ103: 1.474290605e-05 | BR103: 1.464492358e-05 | BS103: 1.454485916e-05 | BT103: 1.444400311e-05 | BU103: 1.434095615e-05 | BW103: Qty | BX103: Sewerage | BY103: Fixed | BZ103: -0.005423799711 | CA103: -0.00113439242 | CB103: 0.001017243504 | CC103: 0.002310449121 | CD103: 0.0075 | CE103: 0.0075 | CF103: 0.0075
E104: Rev | F104: =+F102 -> Sewerage | G104: =+G102 -> Cistern Access Fee | H104: =+H102 -> 1-2 Cisterns | I104: =+I102 -> Fixed | J104: $m | K104: =K102*K103/10^6 -> 0 | L104: 0 | M104: 0 | N104: 0 | O104: 0 | P104: 0 | Q104: 0 | R104: 0 | S104: 0.0519232998 | T104: 0.05062743657 | U104: 0.0515901868 | V104: 0.05342284325 | W104: 0.05407833818 | X104: 0.05308872362 | Y104: 0.0527478237 | Z104: 0.055800604 | AA104: 0.0573434907 | AB104: 0.05892903821 | AC104: 0.06055842612 | AD104: 0.0622328666 | AE104: 0.0645806015 | AF104: 0.06701690469 | AG104: 0.06954511742 | AK104: Rev | AL104: Sewerage | AM104: Fixed | AN104: - | AO104: -0.02495725878 | AP104: 0.0190163731 | AQ104: 0.03552335375 | AR104: 0.01226993706 | AS104: -0.01829964801 | AT104: -0.006421324533 | AU104: 0.057875 | AV104: 0.02765 | AW104: 0.02765 | AX104: 0.02765 | AY104: 0.02765 | AZ104: 0.037725 | BA104: 0.037725 | BB104: 0.037725 | BD104: Rev | BE104: Sewerage | BF104: Fixed | BG104: =IF(S104="","-",IFERROR((S104/R104-1)*(R104/R$13),"-")) -> - | BH104: -5.014177386e-05 | BI104: 3.88569802e-05 | BJ104: 7.241107014e-05 | BK104: 2.606777348e-05 | BL104: -3.910653493e-05 | BM104: -1.321302695e-05 | BN104: 0.0001163484704 | BO104: 5.516616389e-05 | BP104: 5.470572222e-05 | BQ104: 5.43521803e-05 | BR104: 5.399095161e-05 | BS104: 7.316064159e-05 | BT104: 7.265333562e-05 | BU104: 7.213500942e-05 | BW104: Rev | BX104: Sewerage | BY104: Fixed | BZ104: -0.01237834398 | CA104: 0.01050512586 | CB104: 0.01476434018 | CC104: 0.01732848104 | CD104: 0.02522292274 | CE104: 0.02603131091 | CF104: 0.026435744
D105: =D102+1 -> 13 | E105: Price | F105: Sewerage | G105: Cistern Access Fee | H105: 3-5 Cisterns | I105: Fixed | J105: $ | S105: 431.0506348 | T105: 431.1226281 | U105: 431.0800562 | V105: 431.038586 | W105: 431.050181 | X105: 430.9149645 | Y105: 425.07 | Z105: 446.3235 | AA105: 455.24997 | AB105: 464.3549694 | AC105: 473.6420688 | AD105: 483.1149102 | AE105: 497.6083575 | AF105: 512.5366082 | AG105: 527.9127064 | AK105: Price | AL105: Sewerage | AM105: Fixed | AN105: - | AO105: 0.0001670182388 | AP105: -9.874662322e-05 | AQ105: -9.620075724e-05 | AR105: 2.690024493e-05 | AS105: -0.0003136909005 | AT105: -0.01356407866 | AU105: 0.05 | AV105: 0.02 | AW105: 0.02 | AX105: 0.02 | AY105: 0.02 | AZ105: 0.03 | BA105: 0.03 | BB105: 0.03 | BD105: Price | BE105: Sewerage | BF105: Fixed | BG105: =IF(S105="","-",IFERROR((S105/R105-1)*(R107/R$13),"-")) -> - | BH105: 3.537825735e-07 | BI105: -2.182137991e-07 | BJ105: -2.113732556e-07 | BK105: 6.732243952e-08 | BL105: -7.747846679e-07 | BM105: -3.284923767e-05 | BN105: 0.0001183337546 | BO105: 4.697606247e-05 | BP105: 4.658397908e-05 | BQ105: 4.628292484e-05 | BR105: 4.597532503e-05 | BS105: 6.84917839e-05 | BT105: 6.801685244e-05 | BU105: 6.753160401e-05 | BW105: Price | BX105: Sewerage | BY105: Fixed | BZ105: -0.006960984975 | CA105: 0.0116741211 | CB105: 0.01374919771 | CC105: 0.01499628612 | CD105: 0.01772182712 | CE105: 0.01848065215 | CF105: 0.01886027681
E106: Qty | F106: =+F105 -> Sewerage | G106: =+G105 -> Cistern Access Fee | H106: =+H105 -> 3-5 Cisterns | I106: =+I105 -> Fixed | J106: cust | S106: 127 | T106: 127 | U106: 129 | V106: 146 | W106: 145 | X106: 145 | Y106: 146.0875 | Z106: 147.1831563 | AA106: 148.2870299 | AB106: 149.3991826 | AC106: 150.5196765 | AD106: 151.6485741 | AE106: 152.7859384 | AF106: 153.9318329 | AG106: 155.0863217 | AK106: Qty | AL106: Sewerage | AM106: Fixed | AN106: - | AO106: 0 | AP106: 0.0157480315 | AQ106: 0.1317829457 | AR106: -0.006849315068 | AS106: 0 | AT106: 0.0075 | AU106: 0.0075 | AV106: 0.0075 | AW106: 0.0075 | AX106: 0.0075 | AY106: 0.0075 | AZ106: 0.0075 | BA106: 0.0075 | BB106: 0.0075 | BD106: Qty | BE106: Sewerage | BF106: Fixed | BG106: =IF(S106="","-",IFERROR((S106/R106-1)*(R107/R$13),"-")) -> - | BH106: 0 | BI106: 3.480055995e-05 | BJ106: 0.0002895547922 | BK106: -1.714157625e-05 | BL106: 0 | BM106: 1.816336285e-05 | BN106: 1.77500632e-05 | BO106: 1.761602343e-05 | BP106: 1.746899215e-05 | BQ106: 1.735609681e-05 | BR106: 1.724074689e-05 | BS106: 1.712294598e-05 | BT106: 1.700421311e-05 | BU106: 1.6882901e-05 | BW106: Qty | BX106: Sewerage | BY106: Fixed | BZ106: 0.003742994994 | CA106: 0.004993770743 | CB106: 0.005619742973 | CC106: 0.005995513445 | CD106: 0.0075 | CE106: 0.0075 | CF106: 0.0075
E107: Rev | F107: =+F105 -> Sewerage | G107: =+G105 -> Cistern Access Fee | H107: =+H105 -> 3-5 Cisterns | I107: =+I105 -> Fixed | J107: $m | K107: =K105*K106/10^6 -> 0 | L107: 0 | M107: 0 | N107: 0 | O107: 0 | P107: 0 | Q107: 0 | R107: 0 | S107: 0.05474343062 | T107: 0.05475257377 | U107: 0.05560932725 | V107: 0.06293163355 | W107: 0.06250227624 | X107: 0.06248266985 | Y107: 0.06209741363 | Z107: 0.06569130144 | AA107: 0.06750766592 | AB107: 0.06937425289 | AC107: 0.07129245098 | AD107: 0.07326368725 | AE107: 0.07602755985 | AF107: 0.07889569954 | AG107: 0.08187203981 | AK107: Rev | AL107: Sewerage | AM107: Fixed | AN107: - | AO107: 0.0001670182388 | AP107: 0.01564772981 | AQ107: 0.1316740674 | AR107: -0.006822599072 | AS107: -0.0003136909005 | AT107: -0.006165809255 | AU107: 0.057875 | AV107: 0.02765 | AW107: 0.02765 | AX107: 0.02765 | AY107: 0.02765 | AZ107: 0.037725 | BA107: 0.037725 | BB107: 0.037725 | BD107: Rev | BE107: Sewerage | BF107: Fixed | BG107: =IF(S107="","-",IFERROR((S107/R107-1)*(R107/R$13),"-")) -> - | BH107: 3.537825735e-07 | BI107: 3.457890971e-05 | BJ107: 0.0002893155636 | BK107: -1.707471492e-05 | BL107: -7.747846679e-07 | BM107: -1.49322441e-05 | BN107: 0.000136971321 | BO107: 6.494440636e-05 | BP107: 6.440235107e-05 | BQ107: 6.398614359e-05 | BR107: 6.356088685e-05 | BS107: 8.612841826e-05 | BT107: 8.553119194e-05 | BU107: 8.492099204e-05 | BW107: Rev | BX107: Sewerage | BY107: Fixed | BZ107: -0.003244044912 | CA107: 0.01672618973 | CB107: 0.01944620764 | CC107: 0.02108171 | CD107: 0.02535474083 | CE107: 0.02611925704 | CF107: 0.02650172889
D108: =D105+1 -> 14 | E108: Price | F108: Sewerage | G108: Cistern Access Fee | H108: Cisterns 6-10 | I108: Fixed | J108: $ | S108: 834.6905273 | T108: 834.6404175 | U108: 834.5966292 | V108: 834.5539741 | W108: 834.6853846 | X108: 834.6222469 | Y108: 823.12 | Z108: 864.276 | AA108: 881.56152 | AB108: 899.1927504 | AC108: 917.1766054 | AD108: 935.5201375 | AE108: 963.5857416 | AF108: 992.4933139 | AG108: 1022.268113 | AK108: Price | AL108: Sewerage | AM108: Fixed | AN108: - | AO108: -6.003409024e-05 | AP108: -5.246360338e-05 | AQ108: -5.11086314e-05 | AR108: 0.0001574619467 | AS108: -7.564254137e-05 | AT108: -0.01378138066 | AU108: 0.05 | AV108: 0.02 | AW108: 0.02 | AX108: 0.02 | AY108: 0.02 | AZ108: 0.03 | BA108: 0.03 | BB108: 0.03 | BD108: Price | BE108: Sewerage | BF108: Fixed | BG108: =IF(S108="","-",IFERROR((S108/R108-1)*(R110/R$13),"-")) -> - | BH108: -1.589929246e-07 | BI108: -1.449194904e-07 | BJ108: -1.382001884e-07 | BK108: 4.285273091e-07 | BL108: -2.095807883e-07 | BM108: -3.789457391e-05 | BN108: 0.0001343266758 | BO108: 5.332492264e-05 | BP108: 5.28798488e-05 | BQ108: 5.253810679e-05 | BR108: 5.218893457e-05 | BS108: 7.774851459e-05 | BT108: 7.720939568e-05 | BU108: 7.665856546e-05 | BW108: Price | BX108: Sewerage | BY108: Fixed | BZ108: -0.006952156612 | CA108: 0.01168011712 | CB108: 0.01375370394 | CC108: 0.01499989554 | CD108: 0.01760972396 | CE108: 0.01840585962 | CF108: 0.01880416099
E109: Qty | F109: =+F108 -> Sewerage | G109: =+G108 -> Cistern Access Fee | H109: =+H108 -> Cisterns 6-10 | I109: =+I108 -> Fixed | J109: cust | S109: 82 | T109: 82 | U109: 82 | V109: 82 | W109: 84 | X109: 85 | Y109: 85.6375 | Z109: 86.27978125 | AA109: 86.92687961 | AB109: 87.57883121 | AC109: 88.23567244 | AD109: 88.89743998 | AE109: 89.56417078 | AF109: 90.23590206 | AG109: 90.91267133 | AK109: Qty | AL109: Sewerage | AM109: Fixed | AN109: - | AO109: 0 | AP109: 0 | AQ109: 0 | AR109: 0.0243902439 | AS109: 0.0119047619 | AT109: 0.0075 | AU109: 0.0075 | AV109: 0.0075 | AW109: 0.0075 | AX109: 0.0075 | AY109: 0.0075 | AZ109: 0.0075 | BA109: 0.0075 | BB109: 0.0075 | BD109: Qty | BE109: Sewerage | BF109: Fixed | BG109: =IF(S109="","-",IFERROR((S109/R109-1)*(R110/R$13),"-")) -> - | BH109: 0 | BI109: 0 | BJ109: 0 | BK109: 6.637721562e-05 | BL109: 3.298420887e-05 | BM109: 2.062270184e-05 | BN109: 2.014900137e-05 | BO109: 1.999684599e-05 | BP109: 1.98299433e-05 | BQ109: 1.970179005e-05 | BR109: 1.957085046e-05 | BS109: 1.943712865e-05 | BT109: 1.930234892e-05 | BU109: 1.916464136e-05 | BW109: Qty | BX109: Sewerage | BY109: Fixed | BZ109: 0.009699979013 | CA109: 0.008966119428 | CB109: 0.008599389676 | CC109: 0.00837941581 | CD109: 0.0075 | CE109: 0.0075 | CF109: 0.0075
E110: Rev | F110: =+F108 -> Sewerage | G110: =+G108 -> Cistern Access Fee | H110: =+H108 -> Cisterns 6-10 | I110: =+I108 -> Fixed | J110: $m | K110: =K108*K109/10^6 -> 0 | L110: 0 | M110: 0 | N110: 0 | O110: 0 | P110: 0 | Q110: 0 | R110: 0 | S110: 0.06844462324 | T110: 0.06844051423 | U110: 0.0684369236 | V110: 0.06843342588 | W110: 0.07011357231 | X110: 0.07094289099 | Y110: 0.070489939 | Z110: 0.07456954422 | AA110: 0.07663139212 | AB110: 0.07875025011 | AC110: 0.08092769452 | AD110: 0.08316534528 | AE110: 0.08630275793 | AF110: 0.08955852947 | AG110: 0.092937125 | AK110: Rev | AL110: Sewerage | AM110: Fixed | AN110: - | AO110: -6.003409024e-05 | AP110: -5.246360337e-05 | AQ110: -5.11086314e-05 | AR110: 0.02455154638 | AS110: 0.01182821886 | AT110: -0.006384741015 | AU110: 0.057875 | AV110: 0.02765 | AW110: 0.02765 | AX110: 0.02765 | AY110: 0.02765 | AZ110: 0.037725 | BA110: 0.037725 | BB110: 0.037725 | BD110: Rev | BE110: Sewerage | BF110: Fixed | BG110: =IF(S110="","-",IFERROR((S110/R110-1)*(R110/R$13),"-")) -> - | BH110: -1.589929246e-07 | BI110: -1.449194904e-07 | BJ110: -1.382001884e-07 | BK110: 6.681619481e-05 | BL110: 3.277213308e-05 | BM110: -1.755608137e-05 | BN110: 0.0001554831272 | BO110: 7.372170555e-05 | BP110: 7.310639097e-05 | BQ110: 7.263393264e-05 | BR110: 7.215120205e-05 | BS110: 9.77687571e-05 | BT110: 9.709081507e-05 | BU110: 9.639814606e-05 | BW110: Rev | BX110: Sewerage | BY110: Fixed | BZ110: 0.002680386628 | CA110: 0.02075096187 | CB110: 0.02247136708 | CC110: 0.02350500171 | CD110: 0.02524179689 | CE110: 0.02604390356 | CF110: 0.02644519219
D111: =D108+1 -> 15 | E111: Price | F111: Sewerage | G111: Cistern Access Fee | H111: Cisterns 11- 15 | I111: Fixed | J111: $ | S111: 1336.44082 | T111: 1336.398956 | U111: 1336.508427 | V111: 1336.456885 | W111: 1336.518869 | X111: 1336.368384 | Y111: 1317.99 | Z111: 1383.8895 | AA111: 1411.56729 | AB111: 1439.798636 | AC111: 1468.594609 | AD111: 1497.966501 | AE111: 1542.905496 | AF111: 1589.192661 | AG111: 1636.86844 | AK111: Price | AL111: Sewerage | AM111: Fixed | AN111: - | AO111: -3.132496039e-05 | AP111: 8.191461766e-05 | AQ111: -3.856434261e-05 | AR111: 4.63788855e-05 | AS111: -0.0001125948334 | AT111: -0.01375248314 | AU111: 0.05 | AV111: 0.02 | AW111: 0.02 | AX111: 0.02 | AY111: 0.02 | AZ111: 0.03 | BA111: 0.03 | BB111: 0.03 | BD111: Price | BE111: Sewerage | BF111: Fixed | BG111: =IF(S111="","-",IFERROR((S111/R111-1)*(R113/R$13),"-")) -> - | BH111: -6.803463829e-08 | BI111: 1.855676402e-07 | BJ111: -8.553243366e-08 | BK111: 1.035283177e-07 | BL111: -2.557085653e-07 | BM111: -3.205496037e-05 | BN111: 0.000113868819 | BO111: 4.5203575e-05 | BP111: 4.482628559e-05 | BQ111: 4.453659064e-05 | BR111: 4.42405971e-05 | BS111: 6.590747134e-05 | BT111: 6.545045985e-05 | BU111: 6.498352068e-05 | BW111: Price | BX111: Sewerage | BY111: Fixed | BZ111: -0.006955957427 | CA111: 0.0116775357 | CB111: 0.01375176391 | CC111: 0.0149983416 | CD111: 0.01762463252 | CE111: 0.0184158064 | CF111: 0.01881162399
E112: Qty | F112: =+F111 -> Sewerage | G112: =+G111 -> Cistern Access Fee | H112: =+H111 -> Cisterns 11- 15 | I112: =+I111 -> Fixed | J112: cust | S112: 42 | T112: 42 | U112: 42 | V112: 42 | W112: 43 | X112: 45 | Y112: 45.3375 | Z112: 45.67753125 | AA112: 46.02011273 | AB112: 46.36526358 | AC112: 46.71300306 | AD112: 47.06335058 | AE112: 47.41632571 | AF112: 47.77194815 | AG112: 48.13023776 | AK112: Qty | AL112: Sewerage | AM112: Fixed | AN112: - | AO112: 0 | AP112: 0 | AQ112: 0 | AR112: 0.02380952381 | AS112: 0.04651162791 | AT112: 0.0075 | AU112: 0.0075 | AV112: 0.0075 | AW112: 0.0075 | AX112: 0.0075 | AY112: 0.0075 | AZ112: 0.0075 | BA112: 0.0075 | BB112: 0.0075 | BD112: Qty | BE112: Sewerage | BF112: Fixed | BG112: =IF(S112="","-",IFERROR((S112/R112-1)*(R113/R$13),"-")) -> - | BH112: 0 | BI112: 0 | BJ112: 0 | BK112: 5.31483221e-05 | BL112: 0.000105630261 | BM112: 1.748136685e-05 | BN112: 1.708032285e-05 | BO112: 1.695134063e-05 | BP112: 1.68098571e-05 | BQ112: 1.670122149e-05 | BR112: 1.659022391e-05 | BS112: 1.647686783e-05 | BT112: 1.636261496e-05 | BU112: 1.624588017e-05 | BW112: Qty | BX112: Sewerage | BY112: Fixed | BZ112: 0.0268205613 | CA112: 0.02033955394 | CB112: 0.01711440631 | CC112: 0.01518421302 | CD112: 0.0075 | CE112: 0.0075 | CF112: 0.0075
E113: Rev | F113: =+F111 -> Sewerage | G113: =+G111 -> Cistern Access Fee | H113: =+H111 -> Cisterns 11- 15 | I113: =+I111 -> Fixed | J113: $m | K113: =K111*K112/10^6 -> 0 | L113: 0 | M113: 0 | N113: 0 | O113: 0 | P113: 0 | Q113: 0 | R113: 0 | S113: 0.05613051445 | T113: 0.05612875617 | U113: 0.05613335393 | V113: 0.05613118919 | W113: 0.05747031136 | X113: 0.06013657726 | Y113: 0.05975437163 | Z113: 0.06321265588 | AA113: 0.06496048582 | AB113: 0.06675664325 | AC113: 0.06860246444 | AD113: 0.07049932258 | AE113: 0.07315890952 | AF113: 0.07591882938 | AG113: 0.07878286722 | AK113: Rev | AL113: Sewerage | AM113: Fixed | AN113: - | AO113: -3.132496039e-05 | AP113: 8.191461766e-05 | AQ113: -3.856434261e-05 | AR113: 0.02385700695 | AS113: 0.0463937961 | AT113: -0.006355626759 | AU113: 0.057875 | AV113: 0.02765 | AW113: 0.02765 | AX113: 0.02765 | AY113: 0.02765 | AZ113: 0.037725 | BA113: 0.037725 | BB113: 0.037725 | BD113: Rev | BE113: Sewerage | BF113: Fixed | BG113: =IF(S113="","-",IFERROR((S113/R113-1)*(R113/R$13),"-")) -> - | BH113: -6.803463829e-08 | BI113: 1.855676402e-07 | BJ113: -8.553243366e-08 | BK113: 5.325431537e-05 | BL113: 0.0001053626591 | BM113: -1.481400572e-05 | BN113: 0.000131803158 | BO113: 6.249394244e-05 | BP113: 6.197233983e-05 | BQ113: 6.157183656e-05 | BR113: 6.11626255e-05 | BS113: 8.287864521e-05 | BT113: 8.230395327e-05 | BU113: 8.171677725e-05 | BW113: Rev | BX113: Sewerage | BY113: Fixed | BZ113: 0.01967804119 | CA113: 0.0322546055 | CB113: 0.03110152349 | CC113: 0.03041029263 | CD113: 0.02525681726 | CE113: 0.02605392495 | CF113: 0.02645271117
D114: =D111+1 -> 16 | E114: Price | F114: Sewerage | G114: Cistern Access Fee | H114: Cisterns 16- 20 | I114: Fixed | J114: $ | S114: 2228.627051 | T114: 2228.522391 | U114: 2228.475562 | V114: 2228.588124 | W114: 2228.512398 | X114: 2228.445959 | Y114: 2197.63 | Z114: 2307.5115 | AA114: 2353.66173 | AB114: 2400.734965 | AC114: 2448.749664 | AD114: 2497.724657 | AE114: 2572.656397 | AF114: 2649.836089 | AG114: 2729.331171 | AK114: Price | AL114: Sewerage | AM114: Fixed | AN114: - | AO114: -4.696159879e-05 | AP114: -2.101351742e-05 | AQ114: 5.051078365e-05 | AR114: -3.397920588e-05 | AS114: -2.981318061e-05 | AT114: -0.01382845252 | AU114: 0.05 | AV114: 0.02 | AW114: 0.02 | AX114: 0.02 | AY114: 0.02 | AZ114: 0.03 | BA114: 0.03 | BB114: 0.03 | BD114: Price | BE114: Sewerage | BF114: Fixed | BG114: =IF(S114="","-",IFERROR((S114/R114-1)*(R116/R$13),"-")) -> - | BH114: -8.504329787e-08 | BI114: -3.969085637e-08 | BJ114: 9.339748503e-08 | BK114: -6.32407391e-08 | BL114: -5.776028261e-08 | BM114: -2.627687939e-05 | BN114: 9.282339384e-05 | BO114: 3.684897484e-05 | BP114: 3.654141669e-05 | BQ114: 3.630526364e-05 | BR114: 3.606397612e-05 | BS114: 5.372634251e-05 | BT114: 5.335379665e-05 | BU114: 5.297315795e-05 | BW114: Price | BX114: Sewerage | BY114: Fixed | BZ114: -0.006953099513 | CA114: 0.01167947672 | CB114: 0.01375322266 | CC114: 0.01499951004 | CD114: 0.0175854386 | CE114: 0.01838965664 | CF114: 0.01879200398
E115: Qty | F115: =+F114 -> Sewerage | G115: =+G114 -> Cistern Access Fee | H115: =+H114 -> Cisterns 16- 20 | I115: =+I114 -> Fixed | J115: cust | S115: 21 | T115: 21 | U115: 21 | V115: 21 | W115: 22 | X115: 22 | Y115: 22.165 | Z115: 22.3312375 | AA115: 22.49872178 | AB115: 22.66746219 | AC115: 22.83746816 | AD115: 23.00874917 | AE115: 23.18131479 | AF115: 23.35517465 | AG115: 23.53033846 | AK115: Qty | AL115: Sewerage | AM115: Fixed | AN115: - | AO115: 0 | AP115: 0 | AQ115: 0 | AR115: 0.04761904762 | AS115: 0 | AT115: 0.0075 | AU115: 0.0075 | AV115: 0.0075 | AW115: 0.0075 | AX115: 0.0075 | AY115: 0.0075 | AZ115: 0.0075 | BA115: 0.0075 | BB115: 0.0075 | BD115: Qty | BE115: Sewerage | BF115: Fixed | BG115: =IF(S115="","-",IFERROR((S115/R115-1)*(R116/R$13),"-")) -> - | BH115: 0 | BI115: 0 | BJ115: 0 | BK115: 8.862666706e-05 | BL115: 0 | BM115: 1.425152923e-05 | BN115: 1.392350908e-05 | BO115: 1.381836557e-05 | BP115: 1.370303126e-05 | BQ115: 1.361447387e-05 | BR115: 1.352399105e-05 | BS115: 1.343158563e-05 | BT115: 1.333844916e-05 | BU115: 1.324328949e-05 | BW115: Qty | BX115: Sewerage | BY115: Fixed | BZ115: 0.003742994994 | CA115: 0.004993770743 | CB115: 0.005619742973 | CC115: 0.005995513445 | CD115: 0.0075 | CE115: 0.0075 | CF115: 0.0075
E116: Rev | F116: =+F114 -> Sewerage | G116: =+G114 -> Cistern Access Fee | H116: =+H114 -> Cisterns 16- 20 | I116: =+I114 -> Fixed | J116: $m | K116: =K114*K115/10^6 -> 0 | L116: 0 | M116: 0 | N116: 0 | O116: 0 | P116: 0 | Q116: 0 | R116: 0 | S116: 0.04680116807 | T116: 0.04679897021 | U116: 0.0467979868 | V116: 0.0468003506 | W116: 0.04902727276 | X116: 0.0490258111 | Y116: 0.04871046895 | Z116: 0.05152958734 | AA116: 0.05295438043 | AB116: 0.05441856905 | AC116: 0.05592324248 | AD116: 0.05746952014 | AE116: 0.05963755779 | AF116: 0.06188738465 | AG116: 0.06422208624 | AK116: Rev | AL116: Sewerage | AM116: Fixed | AN116: - | AO116: -4.696159879e-05 | AP116: -2.101351742e-05 | AQ116: 5.051078365e-05 | AR116: 0.04758345036 | AS116: -2.981318061e-05 | AT116: -0.006432165918 | AU116: 0.057875 | AV116: 0.02765 | AW116: 0.02765 | AX116: 0.02765 | AY116: 0.02765 | AZ116: 0.037725 | BA116: 0.037725 | BB116: 0.037725 | BD116: Rev | BE116: Sewerage | BF116: Fixed | BG116: =IF(S116="","-",IFERROR((S116/R116-1)*(R116/R$13),"-")) -> - | BH116: -8.504329787e-08 | BI116: -3.969085637e-08 | BJ116: 9.339748503e-08 | BK116: 8.856041486e-05 | BL116: -5.776028261e-08 | BM116: -1.222242675e-05 | BN116: 0.0001074430784 | BO116: 5.094370772e-05 | BP116: 5.051850857e-05 | BQ116: 5.019202699e-05 | BR116: 4.985844699e-05 | BS116: 6.75608757e-05 | BT116: 6.709239928e-05 | BU116: 6.661374612e-05 | BW116: Rev | BX116: Sewerage | BY116: Fixed | BZ116: -0.003236129936 | CA116: 0.01673157209 | CB116: 0.01945025521 | CC116: 0.02108495325 | CD116: 0.02521732939 | CE116: 0.02602757907 | CF116: 0.02643294401
D117: =D114+1 -> 17 | E117: Price | F117: Sewerage | G117: Cistern Access Fee | H117: Cisterns 21-26 | I117: Fixed | J117: $ | S117: 3189.674414 | T117: 3189.657922 | U117: 3189.67191 | V117: 3189.527357 | W117: 3189.585475 | X117: 3189.530728 | Y117: 3145.4 | Z117: 3302.67 | AA117: 3368.7234 | AB117: 3436.097868 | AC117: 3504.819825 | AD117: 3574.916222 | AE117: 3682.163709 | AF117: 3792.62862 | AG117: 3906.407478 | AK117: Price | AL117: Sewerage | AM117: Fixed | AN117: - | AO117: -5.170390209e-06 | AP117: 4.385395413e-06 | AQ117: -4.531919573e-05 | AR117: 1.822162341e-05 | AS117: -1.716425911e-05 | AT117: -0.01383611948 | AU117: 0.05 | AV117: 0.02 | AW117: 0.02 | AX117: 0.02 | AY117: 0.02 | AZ117: 0.03 | BA117: 0.03 | BB117: 0.03 | BD117: Price | BE117: Sewerage | BF117: Fixed | BG117: =IF(S117="","-",IFERROR((S117/R117-1)*(R119/R$13),"-")) -> - | BH117: -7.657578336e-09 | BI117: 6.774691626e-09 | BJ117: -6.85383048e-08 | BK117: 2.773506894e-08 | BL117: -2.59611434e-08 | BM117: -2.223616375e-05 | BN117: 7.850538035e-05 | BO117: 3.116501849e-05 | BP117: 3.09049012e-05 | BQ117: 3.070517478e-05 | BR117: 3.050110587e-05 | BS117: 4.543905129e-05 | BT117: 4.512397065e-05 | BU117: 4.480204549e-05 | BW117: Price | BX117: Sewerage | BY117: Fixed | BZ117: -0.006950679096 | CA117: 0.01168112061 | CB117: 0.0137544581 | CC117: 0.01500049961 | CD117: 0.017581483 | CE117: 0.01838701749 | CF117: 0.01879002383
E118: Qty | F118: =+F117 -> Sewerage | G118: =+G117 -> Cistern Access Fee | H118: =+H117 -> Cisterns 21-26 | I118: =+I117 -> Fixed | J118: cust | S118: 12 | T118: 12 | U118: 12 | V118: 12 | W118: 12 | X118: 13 | Y118: 13.0975 | Z118: 13.19573125 | AA118: 13.29469923 | AB118: 13.39440948 | AC118: 13.49486755 | AD118: 13.59607906 | AE118: 13.69804965 | AF118: 13.80078502 | AG118: 13.90429091 | AK118: Qty | AL118: Sewerage | AM118: Fixed | AN118: - | AO118: 0 | AP118: 0 | AQ118: 0 | AR118: 0 | AS118: 0.08333333333 | AT118: 0.0075 | AU118: 0.0075 | AV118: 0.0075 | AW118: 0.0075 | AX118: 0.0075 | AY118: 0.0075 | AZ118: 0.0075 | BA118: 0.0075 | BB118: 0.0075 | BD118: Qty | BE118: Sewerage | BF118: Fixed | BG118: =IF(S118="","-",IFERROR((S118/R118-1)*(R119/R$13),"-")) -> - | BH118: 0 | BI118: 0 | BJ118: 0 | BK118: 0 | BL118: 0.0001260426449 | BM118: 1.205332379e-05 | BN118: 1.177580705e-05 | BO118: 1.168688193e-05 | BP118: 1.158933795e-05 | BQ118: 1.151444054e-05 | BR118: 1.14379147e-05 | BS118: 1.135976282e-05 | BT118: 1.128099266e-05 | BU118: 1.120051137e-05 | BW118: Qty | BX118: Sewerage | BY118: Fixed | BZ118: 0.04472883244 | CA118: 0.03216882705 | CB118: 0.02594556322 | CC118: 0.02222962997 | CD118: 0.0075 | CE118: 0.0075 | CF118: 0.0075
E119: Rev | F119: =+F117 -> Sewerage | G119: =+G117 -> Cistern Access Fee | H119: =+H117 -> Cisterns 21-26 | I119: =+I117 -> Fixed | J119: $m | K119: =K117*K118/10^6 -> 0 | L119: 0 | M119: 0 | N119: 0 | O119: 0 | P119: 0 | Q119: 0 | R119: 0 | S119: 0.03827609297 | T119: 0.03827589507 | U119: 0.03827606292 | V119: 0.03827432828 | W119: 0.0382750257 | X119: 0.04146389947 | Y119: 0.0411968765 | Z119: 0.04358114573 | AA119: 0.04478616441 | AB119: 0.04602450185 | AC119: 0.04729707933 | AD119: 0.04860484357 | AE119: 0.0504384613 | AF119: 0.05234125225 | AG119: 0.05431582599 | AK119: Rev | AL119: Sewerage | AM119: Fixed | AN119: - | AO119: -5.170390209e-06 | AP119: 4.385395413e-06 | AQ119: -4.531919573e-05 | AR119: 1.822162341e-05 | AS119: 0.08331473872 | AT119: -0.006439890376 | AU119: 0.057875 | AV119: 0.02765 | AW119: 0.02765 | AX119: 0.02765 | AY119: 0.02765 | AZ119: 0.037725 | BA119: 0.037725 | BB119: 0.037725 | BD119: Rev | BE119: Sewerage | BF119: Fixed | BG119: =IF(S119="","-",IFERROR((S119/R119-1)*(R119/R$13),"-")) -> - | BH119: -7.657578336e-09 | BI119: 6.774691626e-09 | BJ119: -6.85383048e-08 | BK119: 2.773506894e-08 | BL119: 0.0001260145203 | BM119: -1.034961119e-05 | BN119: 9.086997776e-05 | BO119: 4.308563807e-05 | BP119: 4.272602591e-05 | BQ119: 4.244990413e-05 | BR119: 4.216777887e-05 | BS119: 5.7139607e-05 | BT119: 5.674339309e-05 | BU119: 5.633857221e-05 | BW119: Rev | BX119: Sewerage | BY119: Fixed | BZ119: 0.03746725758 | CA119: 0.04422571561 | CB119: 0.04005688848 | CC119: 0.03756358514 | CD119: 0.02521334412 | CE119: 0.02602492012 | CF119: 0.02643094901
D120: =D117+1 -> 18 | E120: Price | F120: Sewerage | G120: Cistern Access Fee | H120: Cisterns 27- 35 | I120: Fixed | J120: $ | S120: 3909.540674 | T120: 3909.494687 | U120: 3909.527528 | V120: 3909.559519 | W120: 3909.499683 | X120: 3909.394316 | Y120: 3855.34 | Z120: 4048.107 | AA120: 4129.06914 | AB120: 4211.650523 | AC120: 4295.883533 | AD120: 4381.801204 | AE120: 4513.25524 | AF120: 4648.652897 | AG120: 4788.112484 | AK120: Price | AL120: Sewerage | AM120: Fixed | AN120: - | AO120: -1.176274272e-05 | AP120: 8.400365136e-06 | AQ120: 8.182911716e-06 | AR120: -1.530508751e-05 | AS120: -2.695155469e-05 | AT120: -0.01382677515 | AU120: 0.05 | AV120: 0.02 | AW120: 0.02 | AX120: 0.02 | AY120: 0.02 | AZ120: 0.03 | BA120: 0.03 | BB120: 0.03 | BD120: Price | BE120: Sewerage | BF120: Fixed | BG120: =IF(S120="","-",IFERROR((S120/R120-1)*(R122/R$13),"-")) -> - | BH120: -3.024988878e-08 | BI120: 2.253321345e-08 | BJ120: 2.148844392e-08 | BK120: -4.045266829e-08 | BL120: -6.662055558e-08 | BM120: -3.142657509e-05 | BN120: 0.0001110284126 | BO120: 4.407599219e-05 | BP120: 4.370811409e-05 | BQ120: 4.342564546e-05 | BR120: 4.313703534e-05 | BS120: 6.426343916e-05 | BT120: 6.381782762e-05 | BU120: 6.336253604e-05 | BW120: Price | BX120: Sewerage | BY120: Fixed | BZ120: -0.006950834071 | CA120: 0.01168101535 | CB120: 0.013754379 | CC120: 0.01500043625 | CD120: 0.017586304 | CE120: 0.01839023404 | CF120: 0.01879243719
E121: Qty | F121: =+F120 -> Sewerage | G121: =+G120 -> Cistern Access Fee | H121: =+H120 -> Cisterns 27- 35 | I121: =+I120 -> Fixed | J121: cust | S121: 17 | T121: 17 | U121: 17 | V121: 17 | W121: 16 | X121: 15 | Y121: 15.1125 | Z121: 15.22584375 | AA121: 15.34003758 | AB121: 15.45508786 | AC121: 15.57100102 | AD121: 15.68778353 | AE121: 15.8054419 | AF121: 15.92398272 | AG121: 16.04341259 | AK121: Qty | AL121: Sewerage | AM121: Fixed | AN121: - | AO121: 0 | AP121: 0 | AQ121: 0 | AR121: -0.05882352941 | AS121: -0.0625 | AT121: 0.0075 | AU121: 0.0075 | AV121: 0.0075 | AW121: 0.0075 | AX121: 0.0075 | AY121: 0.0075 | AZ121: 0.0075 | BA121: 0.0075 | BB121: 0.0075 | BD121: Qty | BE121: Sewerage | BF121: Fixed | BG121: =IF(S121="","-",IFERROR((S121/R121-1)*(R122/R$13),"-")) -> - | BH121: 0 | BI121: 0 | BJ121: 0 | BK121: -0.0001554756692 | BL121: -0.0001544914485 | BM121: 1.704658611e-05 | BN121: 1.665426189e-05 | BO121: 1.652849707e-05 | BP121: 1.639054279e-05 | BQ121: 1.628461705e-05 | BR121: 1.617638825e-05 | BS121: 1.606585979e-05 | BT121: 1.595445691e-05 | BU121: 1.584063401e-05 | BW121: Qty | BX121: Sewerage | BY121: Fixed | BZ121: -0.02813002413 | CA121: -0.01639560184 | CB121: -0.0104753663 | CC121: -0.006906134642 | CD121: 0.0075 | CE121: 0.0075 | CF121: 0.0075
E122: Rev | F122: =+F120 -> Sewerage | G122: =+G120 -> Cistern Access Fee | H122: =+H120 -> Cisterns 27- 35 | I122: =+I120 -> Fixed | J122: $m | K122: =K120*K121/10^6 -> 0 | L122: 0 | M122: 0 | N122: 0 | O122: 0 | P122: 0 | Q122: 0 | R122: 0 | S122: 0.06646219146 | T122: 0.06646140968 | U122: 0.06646196798 | V122: 0.06646251183 | W122: 0.06255199493 | X122: 0.05864091474 | Y122: 0.05826382575 | Z122: 0.06163584467 | AA122: 0.06334007577 | AB122: 0.06509142887 | AC122: 0.06689120687 | AD122: 0.06874074874 | AE122: 0.07133399349 | AF122: 0.07402506839 | AG122: 0.0768176641 | AK122: Rev | AL122: Sewerage | AM122: Fixed | AN122: - | AO122: -1.176274272e-05 | AP122: 8.400365136e-06 | AQ122: 8.182911716e-06 | AR122: -0.0588379342 | AS122: -0.06252526708 | AT122: -0.006430475959 | AU122: 0.057875 | AV122: 0.02765 | AW122: 0.02765 | AX122: 0.02765 | AY122: 0.02765 | AZ122: 0.037725 | BA122: 0.037725 | BB122: 0.037725 | BD122: Rev | BE122: Sewerage | BF122: Fixed | BG122: =IF(S122="","-",IFERROR((S122/R122-1)*(R122/R$13),"-")) -> - | BH122: -3.024988878e-08 | BI122: 2.253321345e-08 | BJ122: 2.148844392e-08 | BK122: -0.0001555137423 | BL122: -0.0001545539053 | BM122: -1.461568829e-05 | BN122: 0.0001285153876 | BO122: 6.093505921e-05 | BP122: 6.042646774e-05 | BQ122: 6.003595485e-05 | BR122: 5.963695136e-05 | BS122: 8.081127475e-05 | BT122: 8.025091824e-05 | BU122: 7.967838906e-05 | BW122: Rev | BX122: Sewerage | BY122: Fixed | BZ122: -0.03488533107 | CA122: -0.004906103758 | CB122: 0.003134930537 | CC122: 0.007990706574 | CD122: 0.02521820128 | CE122: 0.02602816079 | CF122: 0.02643338047
D123: =D120+1 -> 19 | E123: Price | F123: Sewerage | G123: Cistern Access Fee | H123: Cisterns > 35 | I123: Fixed | J123: $ | S123: 4467.282422 | T123: 4467.27481 | U123: 4467.207303 | V123: 4467.299723 | W123: 4467.24733 | X123: 4467.227798 | Y123: 4405.36 | Z123: 4625.628 | AA123: 4718.14056 | AB123: 4812.503371 | AC123: 4908.753439 | AD123: 5006.928507 | AE123: 5157.136363 | AF123: 5311.850453 | AG123: 5471.205967 | AK123: Price | AL123: Sewerage | AM123: Fixed | AN123: - | AO123: -1.703861006e-06 | AP123: -1.511142223e-05 | AQ123: 2.06883985e-05 | AR123: -1.172798383e-05 | AS123: -4.372447276e-06 | AT123: -0.01384925961 | AU123: 0.05 | AV123: 0.02 | AW123: 0.02 | AX123: 0.02 | AY123: 0.02 | AZ123: 0.03 | BA123: 0.03 | BB123: 0.03 | BD123: Price | BE123: Sewerage | BF123: Fixed | BG123: =IF(S123="","-",IFERROR((S123/R123-1)*(R125/R$13),"-")) -> - | BH123: -4.712355899e-09 | BI123: -4.63182721e-08 | BJ123: 6.207772689e-08 | BK123: -3.542027893e-08 | BL123: -1.312190121e-08 | BM123: -4.076514524e-05 | BN123: 0.000143783984 | BO123: 5.707927914e-05 | BP123: 5.660286974e-05 | BQ123: 5.623706729e-05 | BR123: 5.58633115e-05 | BS123: 8.322242109e-05 | BT123: 8.264534536e-05 | BU123: 8.205573377e-05 | BW123: Price | BX123: Sewerage | BY123: Fixed | BZ123: -0.00695094356 | CA123: 0.01168094099 | CB123: 0.01375432311 | CC123: 0.01500039148 | CD123: 0.0175747036 | CE123: 0.01838249431 | CF123: 0.0187866301
E124: Qty | F124: =+F123 -> Sewerage | G124: =+G123 -> Cistern Access Fee | H124: =+H123 -> Cisterns > 35 | I124: =+I123 -> Fixed | J124: cust | S124: 16 | T124: 17 | U124: 17 | V124: 17 | W124: 17 | X124: 17 | Y124: 17.1275 | Z124: 17.25595625 | AA124: 17.38537592 | AB124: 17.51576624 | AC124: 17.64713449 | AD124: 17.779488 | AE124: 17.91283416 | AF124: 18.04718041 | AG124: 18.18253427 | AK124: Qty | AL124: Sewerage | AM124: Fixed | AN124: - | AO124: 0.0625 | AP124: 0 | AQ124: 0 | AR124: 0 | AS124: 0 | AT124: 0.0075 | AU124: 0.0075 | AV124: 0.0075 | AW124: 0.0075 | AX124: 0.0075 | AY124: 0.0075 | AZ124: 0.0075 | BA124: 0.0075 | BB124: 0.0075 | BD124: Qty | BE124: Sewerage | BF124: Fixed | BG124: =IF(S124="","-",IFERROR((S124/R124-1)*(R125/R$13),"-")) -> - | BH124: 0.000172855792 | BI124: 0 | BJ124: 0 | BK124: 0 | BL124: 0 | BM124: 2.207616853e-05 | BN124: 2.156759759e-05 | BO124: 2.140472968e-05 | BP124: 2.122607615e-05 | BQ124: 2.108890023e-05 | BR124: 2.094874181e-05 | BS124: 2.080560527e-05 | BT124: 2.066133634e-05 | BU124: 2.051393344e-05 | BW124: Qty | BX124: Sewerage | BY124: Fixed | BZ124: 0.003742994994 | CA124: 0.004993770743 | CB124: 0.005619742973 | CC124: 0.005995513445 | CD124: 0.0075 | CE124: 0.0075 | CF124: 0.0075
E125: Rev | F125: =+F123 -> Sewerage | G125: =+G123 -> Cistern Access Fee | H125: =+H123 -> Cisterns > 35 | I125: =+I123 -> Fixed | J125: $m | K125: =K123*K124/10^6 -> 0 | L125: 0 | M125: 0 | N125: 0 | O125: 0 | P125: 0 | Q125: 0 | R125: 0 | S125: 0.07147651875 | T125: 0.07594367177 | U125: 0.07594252416 | V125: 0.07594409529 | W125: 0.07594320462 | X125: 0.07594287256 | Y125: 0.0754528034 | Z125: 0.0798196344 | AA125: 0.08202664729 | AB125: 0.08429468409 | AC125: 0.0866254321 | AD125: 0.0890206253 | AE125: 0.09237892839 | AF125: 0.09586392346 | AG125: 0.09948038997 | AK125: Rev | AL125: Sewerage | AM125: Fixed | AN125: - | AO125: 0.06249818965 | AP125: -1.511142223e-05 | AQ125: 2.06883985e-05 | AR125: -1.172798383e-05 | AS125: -4.372447276e-06 | AT125: -0.006453129059 | AU125: 0.057875 | AV125: 0.02765 | AW125: 0.02765 | AX125: 0.02765 | AY125: 0.02765 | AZ125: 0.037725 | BA125: 0.037725 | BB125: 0.037725 | BD125: Rev | BE125: Sewerage | BF125: Fixed | BG125: =IF(S125="","-",IFERROR((S125/R125-1)*(R125/R$13),"-")) -> - | BH125: 0.0001728507852 | BI125: -4.631827209e-08 | BJ125: 6.207772689e-08 | BK125: -3.542027893e-08 | BL125: -1.312190121e-08 | BM125: -1.899471529e-05 | BN125: 0.0001664299614 | BO125: 7.891210341e-05 | BP125: 7.825346742e-05 | BQ125: 7.774774553e-05 | BR125: 7.723102815e-05 | BS125: 0.0001046521945 | BT125: 0.0001039265218 | BU125: 0.0001031850852 | BW125: Rev | BX125: Sewerage | BY125: Fixed | BZ125: -0.003233965913 | CA125: 0.01673304368 | CB125: 0.01945136185 | CC125: 0.02108583998 | CD125: 0.02520651388 | CE125: 0.02602036302 | CF125: 0.02642752983
D126: =D123+1 -> 20 | E126: Price | F126: Trade Waste | G126: Major Customer | H126: Murray Goulburn TW Volume | I126: Fixed | J126: $ | AK126: Price | AL126: Trade Waste | AM126: Fixed | AN126: - | AO126: - | AP126: - | AQ126: - | AR126: - | AS126: - | AT126: - | AU126: - | AV126: - | AW126: - | AX126: - | AY126: - | AZ126: - | BA126: - | BB126: - | BD126: Price | BE126: Trade Waste | BF126: Fixed | BG126: =IF(S126="","-",IFERROR((S126/R126-1)*(R128/R$13),"-")) -> - | BH126: - | BI126: - | BJ126: - | BK126: - | BL126: - | BM126: - | BN126: - | BO126: - | BP126: - | BQ126: - | BR126: - | BS126: - | BT126: - | BU126: - | BW126: Price | BX126: Trade Waste | BY126: Fixed | BZ126: - | CA126: - | CB126: - | CC126: - | CD126: - | CE126: - | CF126: -
E127: Qty | F127: =+F126 -> Trade Waste | G127: =+G126 -> Major Customer | H127: =+H126 -> Murray Goulburn TW Volume | I127: =+I126 -> Fixed | J127: cust | AK127: Qty | AL127: Trade Waste | AM127: Fixed | AN127: - | AO127: - | AP127: - | AQ127: - | AR127: - | AS127: - | AT127: - | AU127: - | AV127: - | AW127: - | AX127: - | AY127: - | AZ127: - | BA127: - | BB127: - | BD127: Qty | BE127: Trade Waste | BF127: Fixed | BG127: =IF(S127="","-",IFERROR((S127/R127-1)*(R128/R$13),"-")) -> - | BH127: - | BI127: - | BJ127: - | BK127: - | BL127: - | BM127: - | BN127: - | BO127: - | BP127: - | BQ127: - | BR127: - | BS127: - | BT127: - | BU127: - | BW127: Qty | BX127: Trade Waste | BY127: Fixed | BZ127: - | CA127: - | CB127: - | CC127: - | CD127: - | CE127: - | CF127: -
E128: Rev | F128: =+F126 -> Trade Waste | G128: =+G126 -> Major Customer | H128: =+H126 -> Murray Goulburn TW Volume | I128: =+I126 -> Fixed | J128: $m | K128: =K126*K127/10^6 -> 0 | L128: 0 | M128: 0 | N128: 0 | O128: 0 | P128: 0 | Q128: 0 | R128: 0 | S128: 0 | T128: 0 | U128: 0 | V128: 0 | W128: 0 | X128: 0 | Y128: 0 | Z128: 0 | AA128: 0 | AB128: 0 | AC128: 0 | AD128: 0 | AE128: 0 | AF128: 0 | AG128: 0 | AK128: Rev | AL128: Trade Waste | AM128: Fixed | AN128: - | AO128: - | AP128: - | AQ128: - | AR128: - | AS128: - | AT128: - | AU128: - | AV128: - | AW128: - | AX128: - | AY128: - | AZ128: - | BA128: - | BB128: - | BD128: Rev | BE128: Trade Waste | BF128: Fixed | BG128: =IF(S128="","-",IFERROR((S128/R128-1)*(R128/R$13),"-")) -> - | BH128: - | BI128: - | BJ128: - | BK128: - | BL128: - | BM128: - | BN128: - | BO128: - | BP128: - | BQ128: - | BR128: - | BS128: - | BT128: - | BU128: - | BW128: Rev | BX128: Trade Waste | BY128: Fixed | BZ128: - | CA128: - | CB128: - | CC128: - | CD128: - | CE128: - | CF128: -
D129: =D126+1 -> 21 | E129: Price | F129: Trade Waste | G129: Major Customer | H129: Burra Foods TW Volume | I129: Fixed | J129: $ | AK129: Price | AL129: Trade Waste | AM129: Fixed | AN129: - | AO129: - | AP129: - | AQ129: - | AR129: - | AS129: - | AT129: - | AU129: - | AV129: - | AW129: - | AX129: - | AY129: - | AZ129: - | BA129: - | BB129: - | BD129: Price | BE129: Trade Waste | BF129: Fixed | BG129: =IF(S129="","-",IFERROR((S129/R129-1)*(R131/R$13),"-")) -> - | BH129: - | BI129: - | BJ129: - | BK129: - | BL129: - | BM129: - | BN129: - | BO129: - | BP129: - | BQ129: - | BR129: - | BS129: - | BT129: - | BU129: - | BW129: Price | BX129: Trade Waste | BY129: Fixed | BZ129: - | CA129: - | CB129: - | CC129: - | CD129: - | CE129: - | CF129: -
E130: Qty | F130: =+F129 -> Trade Waste | G130: =+G129 -> Major Customer | H130: =+H129 -> Burra Foods TW Volume | I130: =+I129 -> Fixed | J130: cust | AK130: Qty | AL130: Trade Waste | AM130: Fixed | AN130: - | AO130: - | AP130: - | AQ130: - | AR130: - | AS130: - | AT130: - | AU130: - | AV130: - | AW130: - | AX130: - | AY130: - | AZ130: - | BA130: - | BB130: - | BD130: Qty | BE130: Trade Waste | BF130: Fixed | BG130: =IF(S130="","-",IFERROR((S130/R130-1)*(R131/R$13),"-")) -> - | BH130: - | BI130: - | BJ130: - | BK130: - | BL130: - | BM130: - | BN130: - | BO130: - | BP130: - | BQ130: - | BR130: - | BS130: - | BT130: - | BU130: - | BW130: Qty | BX130: Trade Waste | BY130: Fixed | BZ130: - | CA130: - | CB130: - | CC130: - | CD130: - | CE130: - | CF130: -
E131: Rev | F131: =+F129 -> Trade Waste | G131: =+G129 -> Major Customer | H131: =+H129 -> Burra Foods TW Volume | I131: =+I129 -> Fixed | J131: $m | K131: =K129*K130/10^6 -> 0 | L131: 0 | M131: 0 | N131: 0 | O131: 0 | P131: 0 | Q131: 0 | R131: 0 | S131: 0 | T131: 0 | U131: 0 | V131: 0 | W131: 0 | X131: 0 | Y131: 0 | Z131: 0 | AA131: 0 | AB131: 0 | AC131: 0 | AD131: 0 | AE131: 0 | AF131: 0 | AG131: 0 | AK131: Rev | AL131: Trade Waste | AM131: Fixed | AN131: - | AO131: - | AP131: - | AQ131: - | AR131: - | AS131: - | AT131: - | AU131: - | AV131: - | AW131: - | AX131: - | AY131: - | AZ131: - | BA131: - | BB131: - | BD131: Rev | BE131: Trade Waste | BF131: Fixed | BG131: =IF(S131="","-",IFERROR((S131/R131-1)*(R131/R$13),"-")) -> - | BH131: - | BI131: - | BJ131: - | BK131: - | BL131: - | BM131: - | BN131: - | BO131: - | BP131: - | BQ131: - | BR131: - | BS131: - | BT131: - | BU131: - | BW131: Rev | BX131: Trade Waste | BY131: Fixed | BZ131: - | CA131: - | CB131: - | CC131: - | CD131: - | CE131: - | CF131: -
D132: =D129+1 -> 22 | E132: Price | F132: Trade Waste | G132: Major Customer | H132: Other Majors TW Volume | I132: Fixed | J132: $ | AK132: Price | AL132: Trade Waste | AM132: Fixed | AN132: - | AO132: - | AP132: - | AQ132: - | AR132: - | AS132: - | AT132: - | AU132: - | AV132: - | AW132: - | AX132: - | AY132: - | AZ132: - | BA132: - | BB132: - | BD132: Price | BE132: Trade Waste | BF132: Fixed | BG132: =IF(S132="","-",IFERROR((S132/R132-1)*(R134/R$13),"-")) -> - | BH132: - | BI132: - | BJ132: - | BK132: - | BL132: - | BM132: - | BN132: - | BO132: - | BP132: - | BQ132: - | BR132: - | BS132: - | BT132: - | BU132: - | BW132: =AK132 -> Price | BX132: Trade Waste | BY132: Fixed | BZ132: - | CA132: - | CB132: - | CC132: - | CD132: - | CE132: - | CF132: -
E133: Qty | F133: =+F132 -> Trade Waste | G133: =+G132 -> Major Customer | H133: =+H132 -> Other Majors TW Volume | I133: =+I132 -> Fixed | J133: cust | AK133: =E133 -> Qty | AL133: =F133 -> Trade Waste | AM133: =I133 -> Fixed | AN133: =IF(S133="","-",IFERROR(S133/R133-1,"-")) -> - | AO133: =IF(T133="","-",IFERROR(T133/S133-1,"-")) -> - | AP133: =IF(U133="","-",IFERROR(U133/T133-1,"-")) -> - | AQ133: =IF(V133="","-",IFERROR(V133/U133-1,"-")) -> - | AR133: =IF(W133="","-",IFERROR(W133/V133-1,"-")) -> - | AS133: =IF(X133="","-",IFERROR(X133/W133-1,"-")) -> - | AT133: =IF(Y133="","-",IFERROR(Y133/X133-1,"-")) -> - | AU133: =IF(Z133="","-",IFERROR(Z133/Y133-1,"-")) -> - | AV133: =IF(AA133="","-",IFERROR(AA133/Z133-1,"-")) -> - | AW133: =IF(AB133="","-",IFERROR(AB133/AA133-1,"-")) -> - | AX133: =IF(AC133="","-",IFERROR(AC133/AB133-1,"-")) -> - | AY133: =IF(AD133="","-",IFERROR(AD133/AC133-1,"-")) -> - | AZ133: =IF(AE133="","-",IFERROR(AE133/AD133-1,"-")) -> - | BA133: =IF(AF133="","-",IFERROR(AF133/AE133-1,"-")) -> - | BB133: =IF(AG133="","-",IFERROR(AG133/AF133-1,"-")) -> - | BD133: Qty | BE133: Trade Waste | BF133: Fixed | BG133: =IF(S133="","-",IFERROR((S133/R133-1)*(R134/R$13),"-")) -> - | BH133: - | BI133: - | BJ133: - | BK133: - | BL133: - | BM133: - | BN133: - | BO133: - | BP133: - | BQ133: - | BR133: - | BS133: - | BT133: - | BU133: - | BW133: Qty | BX133: Trade Waste | BY133: Fixed | BZ133: - | CA133: =IF(Z133="","-",IFERROR((Z133/$W133)^(1/CA$65)-1,"-")) -> - | CB133: =IF(AA133="","-",IFERROR((AA133/$W133)^(1/CB$65)-1,"-")) -> - | CC133: =IF(AB133="","-",IFERROR((AB133/$W133)^(1/CC$65)-1,"-")) -> - | CD133: - | CE133: - | CF133: -
E134: Rev | F134: =+F132 -> Trade Waste | G134: =+G132 -> Major Customer | H134: =+H132 -> Other Majors TW Volume | I134: =+I132 -> Fixed | J134: $m | K134: =K132*K133/10^6 -> 0 | L134: 0 | M134: 0 | N134: 0 | O134: 0 | P134: 0 | Q134: 0 | R134: 0 | S134: 0 | T134: 0 | U134: 0 | V134: 0 | W134: 0 | X134: 0 | Y134: 0 | Z134: 0 | AA134: 0 | AB134: 0 | AC134: 0 | AD134: 0 | AE134: 0 | AF134: 0 | AG134: 0 | AK134: Rev | AL134: Trade Waste | AM134: Fixed | AN134: - | AO134: - | AP134: - | AQ134: - | AR134: - | AS134: - | AT134: - | AU134: - | AV134: - | AW134: - | AX134: - | AY134: - | AZ134: - | BA134: - | BB134: - | BD134: Rev | BE134: Trade Waste | BF134: Fixed | BG134: =IF(S134="","-",IFERROR((S134/R134-1)*(R134/R$13),"-")) -> - | BH134: - | BI134: - | BJ134: - | BK134: - | BL134: - | BM134: - | BN134: - | BO134: - | BP134: - | BQ134: - | BR134: - | BS134: - | BT134: - | BU134: - | BW134: Rev | BX134: Trade Waste | BY134: Fixed | BZ134: =IF(Y134="","-",IFERROR((Y134/$W134)^(1/BZ$65)-1,"-")) -> - | CA134: - | CB134: - | CC134: - | CD134: =IF(Z134="","-",IFERROR((Z134/$X134)^(1/CD$65)-1,"-")) -> - | CE134: =IF(AA134="","-",IFERROR((AA134/$X134)^(1/CE$65)-1,"-")) -> - | CF134: =IF(AB134="","-",IFERROR((AB134/$X134)^(1/CF$65)-1,"-")) -> -
D135: =D132+1 -> 23 | E135: Price | F135: Trade Waste | G135: Access Fee | H135: Minor TW Cat 1 | I135: Fixed | J135: $ | S135: 665.2119141 | T135: 665.1142315 | U135: 665.2094101 | V135: 665.1439464 | W135: 665.0842534 | X135: 664.9922291 | Y135: 655.87 | Z135: 688.6635 | AA135: 702.43677 | AB135: 716.4855054 | AC135: 730.8152155 | AD135: 745.4315198 | AE135: 767.7944654 | AF135: 790.8282994 | AG135: 814.5531484 | AK135: Price | AL135: Trade Waste | AM135: Fixed | AN135: - | AO135: -0.0001468442783 | AP135: 0.0001431011529 | AQ135: -9.841068963e-05 | AR135: -8.974448647e-05 | AS135: -0.0001383648215 | AT135: -0.01371779809 | AU135: 0.05 | AV135: 0.02 | AW135: 0.02 | AX135: 0.02 | AY135: 0.02 | AZ135: 0.03 | BA135: 0.03 | BB135: 0.03 | BD135: Price | BE135: Trade Waste | BF135: Fixed | BG135: =IF(S135="","-",IFERROR((S135/R135-1)*(R137/R$13),"-")) -> - | BH135: -4.838018723e-07 | BI135: 5.723755315e-07 | BJ135: -4.888620993e-07 | BK135: -5.934689937e-07 | BL135: -1.029134296e-06 | BM135: -9.935339536e-05 | BN135: 0.0003617399244 | BO135: 0.0001468103183 | BP135: 0.0001488362505 | BQ135: 0.0001511767849 | BR135: 0.0001535257709 | BS135: 0.000233822945 | BT135: 0.0002373872278 | BU135: 0.0002409572807 | BW135: Price | BX135: Trade Waste | BY135: Fixed | BZ135: -0.00695129266 | CA135: 0.01168070389 | CB135: 0.01375414492 | CC135: 0.01500024876 | CD135: 0.01764252663 | CE135: 0.01842774505 | CF135: 0.01882058144
E136: Qty | F136: =+F135 -> Trade Waste | G136: =+G135 -> Access Fee | H136: =+H135 -> Minor TW Cat 1 | I136: =+I135 -> Fixed | J136: cust | S136: 128 | T136: 149 | U136: 189 | V136: 250 | W136: 283 | X136: 281 | Y136: 289.43 | Z136: 298.1129 | AA136: 307.056287 | AB136: 316.2679756 | AC136: 325.7560149 | AD136: 335.5286953 | AE136: 345.5945562 | AF136: 355.9623929 | AG136: 366.6412647 | AK136: Qty | AL136: Trade Waste | AM136: Fixed | AN136: - | AO136: 0.1640625 | AP136: 0.2684563758 | AQ136: 0.3227513228 | AR136: 0.132 | AS136: -0.007067137809 | AT136: 0.03 | AU136: 0.03 | AV136: 0.03 | AW136: 0.03 | AX136: 0.03 | AY136: 0.03 | AZ136: 0.03 | BA136: 0.03 | BB136: 0.03 | BD136: Qty | BE136: Trade Waste | BF136: Fixed | BG136: =IF(S136="","-",IFERROR((S136/R136-1)*(R137/R$13),"-")) -> - | BH136: 0.0005405300471 | BI136: 0.00107377095 | BJ136: 0.001603290148 | BK136: 0.0008728993864 | BL136: -5.256418367e-05 | BM136: 0.0002172799047 | BN136: 0.0002170439546 | BO136: 0.0002202154774 | BP136: 0.0002232543758 | BQ136: 0.0002267651773 | BR136: 0.0002302886563 | BS136: 0.000233822945 | BT136: 0.0002373872278 | BU136: 0.0002409572807 | BW136: Qty | BX136: Trade Waste | BY136: Fixed | BZ136: 0.01129661725 | CA136: 0.01749303394 | CB136: 0.02060546528 | CC136: 0.02247749216 | CD136: 0.03 | CE136: 0.03 | CF136: 0.03
E137: Rev | F137: =+F135 -> Trade Waste | G137: =+G135 -> Access Fee | H137: =+H135 -> Minor TW Cat 1 | I137: =+I135 -> Fixed | J137: $m | K137: =K135*K136/10^6 -> 0 | L137: 0 | M137: 0 | N137: 0 | O137: 0 | P137: 0 | Q137: 0 | R137: 0 | S137: 0.085147125 | T137: 0.09910202049 | U137: 0.1257245785 | V137: 0.1662859866 | W137: 0.1882188437 | X137: 0.1868628164 | Y137: 0.1898284541 | Z137: 0.2052994731 | AA137: 0.2156876264 | AB137: 0.2266014203 | AC137: 0.2380674522 | AD137: 0.2501136653 | AE137: 0.2653455875 | AF137: 0.2815051338 | AG137: 0.2986487964 | AK137: Rev | AL137: Trade Waste | AM137: Fixed | AN137: - | AO137: 0.1638915641 | AP137: 0.2686378934 | AQ137: 0.3226211499 | AR137: 0.1318984092 | AS137: -0.007204524787 | AT137: 0.01587066797 | AU137: 0.0815 | AV137: 0.0506 | AW137: 0.0506 | AX137: 0.0506 | AY137: 0.0506 | AZ137: 0.0609 | BA137: 0.0609 | BB137: 0.0609 | BD137: Rev | BE137: Trade Waste | BF137: Fixed | BG137: =IF(S137="","-",IFERROR((S137/R137-1)*(R137/R$13),"-")) -> - | BH137: 0.0005399668715 | BI137: 0.001074496983 | BJ137: 0.001602643505 | BK137: 0.0008722275795 | BL137: -5.358604493e-05 | BM137: 0.0001149459074 | BN137: 0.0005896360768 | BO137: 0.0003714301053 | BP137: 0.0003765557138 | BQ137: 0.0003824772658 | BR137: 0.0003884202003 | BS137: 0.0004746605784 | BT137: 0.0004818960725 | BU137: 0.0004891432798 | BW137: Rev | BX137: Trade Waste | BY137: Fixed | BZ137: 0.004266798496 | CA137: 0.02937806878 | CB137: 0.03464302076 | CC137: 0.03781490889 | CD137: 0.04817180243 | CE137: 0.0489805774 | CF137: 0.04938519888
D138: =D135+1 -> 24 | E138: Price | F138: Trade Waste | G138: Access Fee | H138: Minor TW Cat 2 | I138: Fixed | J138: $ | S138: 883.4950195 | T138: 883.5172201 | U138: 883.473736 | V138: 883.4313771 | W138: 883.4747511 | X138: 883.4136767 | Y138: 871.23 | Z138: 914.7915 | AA138: 933.08733 | AB138: 951.7490766 | AC138: 970.7840581 | AD138: 990.1997393 | AE138: 1019.905731 | AF138: 1050.502903 | AG138: 1082.017991 | AK138: Price | AL138: Trade Waste | AM138: Fixed | AN138: - | AO138: 2.512813554e-05 | AP138: -4.921710387e-05 | AQ138: -4.794582323e-05 | AR138: 4.909725064e-05 | AS138: -6.912976217e-05 | AT138: -0.01379158717 | AU138: 0.05 | AV138: 0.02 | AW138: 0.02 | AX138: 0.02 | AY138: 0.02 | AZ138: 0.03 | BA138: 0.03 | BB138: 0.03 | BD138: Price | BE138: Trade Waste | BF138: Fixed | BG138: =IF(S138="","-",IFERROR((S138/R138-1)*(R140/R$13),"-")) -> - | BH138: 1.116730174e-08 | BI138: -2.6325568e-08 | BJ138: -2.845229149e-08 | BK138: 2.759844299e-08 | BL138: -4.102904321e-08 | BM138: -7.555683668e-06 | BN138: 2.73605713e-05 | BO138: 1.110414945e-05 | BP138: 1.125738291e-05 | BQ138: 1.143441164e-05 | BR138: 1.161207961e-05 | BS138: 1.768543898e-05 | BT138: 1.795502717e-05 | BU138: 1.82250518e-05 | BW138: Price | BX138: Trade Waste | BY138: Fixed | BZ138: -0.006954061247 | CA138: 0.01167882354 | CB138: 0.01375273177 | CC138: 0.01499911684 | CD138: 0.01760445826 | CE138: 0.0184023464 | CF138: 0.01880152504
E139: Qty | F139: =+F138 -> Trade Waste | G139: =+G138 -> Access Fee | H139: =+H138 -> Minor TW Cat 2 | I139: =+I138 -> Fixed | J139: cust | S139: 13 | T139: 15 | U139: 17 | V139: 16 | W139: 17 | X139: 16 | Y139: 16.48 | Z139: 16.9744 | AA139: 17.483632 | AB139: 18.00814096 | AC139: 18.54838519 | AD139: 19.10483674 | AE139: 19.67798185 | AF139: 20.2683213 | AG139: 20.87637094 | AK139: Qty | AL139: Trade Waste | AM139: Fixed | AN139: - | AO139: 0.1538461538 | AP139: 0.1333333333 | AQ139: -0.05882352941 | AR139: 0.0625 | AS139: -0.05882352941 | AT139: 0.03 | AU139: 0.03 | AV139: 0.03 | AW139: 0.03 | AX139: 0.03 | AY139: 0.03 | AZ139: 0.03 | BA139: 0.03 | BB139: 0.03 | BD139: Qty | BE139: Trade Waste | BF139: Fixed | BG139: =IF(S139="","-",IFERROR((S139/R139-1)*(R140/R$13),"-")) -> - | BH139: 6.837142448e-05 | BI139: 7.131820968e-05 | BJ139: -3.490740366e-05 | BK139: 3.51323682e-05 | BL139: -3.491221515e-05 | BM139: 1.643541872e-05 | BN139: 1.641634278e-05 | BO139: 1.665622417e-05 | BP139: 1.688607437e-05 | BQ139: 1.715161746e-05 | BR139: 1.741811942e-05 | BS139: 1.768543898e-05 | BT139: 1.795502717e-05 | BU139: 1.82250518e-05 | BW139: Qty | BX139: Trade Waste | BY139: Fixed | BZ139: -0.01541289633 | CA139: -0.0005022129599 | CB139: 0.00703759452 | CC139: 0.01158875271 | CD139: 0.03 | CE139: 0.03 | CF139: 0.03
E140: Rev | F140: =+F138 -> Trade Waste | G140: =+G138 -> Access Fee | H140: =+H138 -> Minor TW Cat 2 | I140: =+I138 -> Fixed | J140: $m | K140: =K138*K139/10^6 -> 0 | L140: 0 | M140: 0 | N140: 0 | O140: 0 | P140: 0 | Q140: 0 | R140: 0 | S140: 0.01148543525 | T140: 0.0132527583 | U140: 0.01501905351 | V140: 0.01413490203 | W140: 0.01501907077 | X140: 0.01413461883 | Y140: 0.0143578704 | Z140: 0.01552803684 | AA140: 0.0163137555 | AB140: 0.01713923153 | AC140: 0.01800647665 | AD140: 0.01891760436 | AE140: 0.02006968647 | AF140: 0.02129193038 | AG140: 0.02258860894 | AK140: Rev | AL140: Trade Waste | AM140: Fixed | AN140: - | AO140: 0.1538751478 | AP140: 0.1332775539 | AQ140: -0.05886865489 | AR140: 0.06255216583 | AS140: -0.05888859272 | AT140: 0.01579466521 | AU140: 0.0815 | AV140: 0.0506 | AW140: 0.0506 | AX140: 0.0506 | AY140: 0.0506 | AZ140: 0.0609 | BA140: 0.0609 | BB140: 0.0609 | BD140: Rev | BE140: Trade Waste | BF140: Fixed | BG140: =IF(S140="","-",IFERROR((S140/R140-1)*(R140/R$13),"-")) -> - | BH140: 6.838430983e-05 | BI140: 7.128837403e-05 | BJ140: -3.493418229e-05 | BK140: 3.516169154e-05 | BL140: -3.495083072e-05 | BM140: 8.653064546e-06 | BN140: 4.459773122e-05 | BO140: 2.80934981e-05 | BP140: 2.848117877e-05 | BQ140: 2.892906145e-05 | BR140: 2.937856141e-05 | BS140: 3.590144112e-05 | BT140: 3.644870516e-05 | BU140: 3.699685515e-05 | BW140: Rev | BX140: Trade Waste | BY140: Fixed | BZ140: -0.02225977536 | CA140: 0.01117074532 | CB140: 0.02088711244 | CC140: 0.0267616906 | CD140: 0.04813259201 | CE140: 0.04895441679 | CF140: 0.04936557079
D141: =D138+1 -> 25 | E141: Price | F141: Trade Waste | G141: Access Fee | H141: Minor TW Cat 3 | I141: Fixed | J141: $ | S141: 1096.09541 | T141: 1096.074478 | U141: 1095.968961 | V141: 1096.024353 | W141: 1095.979548 | X141: 1095.907194 | Y141: 1080.79 | Z141: 1134.8295 | AA141: 1157.52609 | AB141: 1180.676612 | AC141: 1204.290144 | AD141: 1228.375947 | AE141: 1265.227225 | AF141: 1303.184042 | AG141: 1342.279563 | AK141: Price | AL141: Trade Waste | AM141: Fixed | AN141: - | AO141: -1.909685753e-05 | AP141: -9.62685532e-05 | AQ141: 5.05419202e-05 | AR141: -4.088005752e-05 | AS141: -6.601756921e-05 | AT141: -0.01379422792 | AU141: 0.05 | AV141: 0.02 | AW141: 0.02 | AX141: 0.02 | AY141: 0.02 | AZ141: 0.03 | BA141: 0.03 | BB141: 0.03 | BD141: Price | BE141: Trade Waste | BF141: Fixed | BG141: =IF(S141="","-",IFERROR((S141/R141-1)*(R143/R$13),"-")) -> - | BH141: -4.211668085e-08 | BI141: -1.87384043e-07 | BJ141: 7.660232325e-08 | BK141: -4.454575421e-08 | BL141: -5.432488842e-08 | BM141: -1.640607239e-05 | BN141: 5.939798417e-05 | BO141: 2.410637138e-05 | BP141: 2.443903107e-05 | BQ141: 2.482334868e-05 | BR141: 2.520905405e-05 | BS141: 3.839391411e-05 | BT141: 3.897917219e-05 | BU141: 3.956537772e-05 | BW141: Price | BX141: Trade Waste | BY141: Fixed | BZ141: -0.006953845396 | CA141: 0.01167897014 | CB141: 0.01375284194 | CC141: 0.01499920509 | CD141: 0.01760309585 | CE141: 0.01840143741 | CF141: 0.01880084303
E142: Qty | F142: =+F141 -> Trade Waste | G142: =+G141 -> Access Fee | H142: =+H141 -> Minor TW Cat 3 | I142: =+I141 -> Fixed | J142: cust | S142: 52 | T142: 44 | U142: 35 | V142: 25 | W142: 19 | X142: 28 | Y142: 28.84 | Z142: 29.7052 | AA142: 30.596356 | AB142: 31.51424668 | AC142: 32.45967408 | AD142: 33.4334643 | AE142: 34.43646823 | AF142: 35.46956228 | AG142: 36.53364915 | AK142: Qty | AL142: Trade Waste | AM142: Fixed | AN142: - | AO142: -0.1538461538 | AP142: -0.2045454545 | AQ142: -0.2857142857 | AR142: -0.24 | AS142: 0.4736842105 | AT142: 0.03 | AU142: 0.03 | AV142: 0.03 | AW142: 0.03 | AX142: 0.03 | AY142: 0.03 | AZ142: 0.03 | BA142: 0.03 | BB142: 0.03 | BD142: Qty | BE142: Trade Waste | BF142: Fixed | BG142: =IF(S142="","-",IFERROR((S142/R142-1)*(R143/R$13),"-")) -> - | BH142: -0.0003392961042 | BI142: -0.0003981419994 | BJ142: -0.0004330341622 | BK142: -0.0002615206939 | BL142: 0.0003897877821 | BM142: 3.568029865e-05 | BN142: 3.56387905e-05 | BO142: 3.615955708e-05 | BP142: 3.665854661e-05 | BQ142: 3.723502302e-05 | BR142: 3.781358108e-05 | BS142: 3.839391411e-05 | BT142: 3.897917219e-05 | BU142: 3.956537772e-05 | BW142: Qty | BX142: Trade Waste | BY142: Fixed | BZ142: 0.2320287078 | CA142: 0.1606277763 | CB142: 0.1264943715 | CC142: 0.106498083 | CD142: 0.03 | CE142: 0.03 | CF142: 0.03
E143: Rev | F143: =+F141 -> Trade Waste | G143: =+G141 -> Access Fee | H143: =+H141 -> Minor TW Cat 3 | I143: =+I141 -> Fixed | J143: $m | K143: =K141*K142/10^6 -> 0 | L143: 0 | M143: 0 | N143: 0 | O143: 0 | P143: 0 | Q143: 0 | R143: 0 | S143: 0.05699696133 | T143: 0.04822727704 | U143: 0.03835891362 | V143: 0.02740060883 | W143: 0.0208236114 | X143: 0.03068540142 | Y143: 0.0311699836 | Z143: 0.03371033726 | AA143: 0.03541608033 | AB143: 0.03720813399 | AC143: 0.03909086557 | AD143: 0.04106886337 | AE143: 0.04356995715 | AF143: 0.04622336754 | AG143: 0.04903837062 | AK143: Rev | AL143: Trade Waste | AM143: Fixed | AN143: - | AO143: -0.1538623127 | AP143: -0.2046220318 | AQ143: -0.2856781843 | AR143: -0.2400310688 | AS143: 0.4735869215 | AT143: 0.01579194524 | AU143: 0.0815 | AV143: 0.0506 | AW143: 0.0506 | AX143: 0.0506 | AY143: 0.0506 | AZ143: 0.0609 | BA143: 0.0609 | BB143: 0.0609 | BD143: Rev | BE143: Trade Waste | BF143: Fixed | BG143: =IF(S143="","-",IFERROR((S143/R143-1)*(R143/R$13),"-")) -> - | BH143: -0.0003393317414 | BI143: -0.0003982910549 | BJ143: -0.0004329794463 | BK143: -0.0002615545487 | BL143: 0.0003897077244 | BM143: 1.878204409e-05 | BN143: 9.681871419e-05 | BO143: 6.09891196e-05 | BP143: 6.183074861e-05 | BQ143: 6.280307217e-05 | BR143: 6.377890676e-05 | BS143: 7.793964563e-05 | BT143: 7.912771954e-05 | BU143: 8.031771677e-05 | BW143: Rev | BX143: Trade Waste | BY143: Fixed | BZ143: 0.2234613706 | CA143: 0.1741827134 | CB143: 0.1419868705 | CC143: 0.1230946747 | CD143: 0.04813118873 | CE143: 0.04895348054 | CF143: 0.04936486833
D144: =D141+1 -> 26 | E144: Price | F144: Water | G144: Access Fee | H144: Backflow 20mm | I144: Fixed | J144: $ | S144: 312.8835937 | T144: 312.7465844 | U144: 312.8134831 | V144: 312.8786506 | W144: 312.8786502 | X144: 312.8123446 | Y144: 312.86 | Z144: 328.503 | AA144: 335.07306 | AB144: 341.7745212 | AC144: 348.6100116 | AD144: 355.5822119 | AE144: 366.2496782 | AF144: 377.2371686 | AG144: 388.5542836 | AK144: Price | AL144: Water | AM144: Fixed | AN144: - | AO144: -0.0004378922785 | AP144: 0.000213907071 | AQ144: 0.0002083270204 | AR144: -1.574660735e-09 | AS144: -0.0002119210488 | AT144: 0.0001523450664 | AU144: 0.05 | AV144: 0.02 | AW144: 0.02 | AX144: 0.02 | AY144: 0.02 | AZ144: 0.03 | BA144: 0.03 | BB144: 0.03 | BD144: Price | BE144: Water | BF144: Fixed | BG144: =IF(S144="","-",IFERROR((S144/R144-1)*(R146/R$13),"-")) -> - | BH144: -8.694296634e-07 | BI144: 4.212090881e-07 | BJ144: 3.862302013e-07 | BK144: -2.88014842e-12 | BL144: -3.773077961e-07 | BM144: 2.641336497e-07 | BN144: 8.525526545e-05 | BO144: 3.359263901e-05 | BP144: 3.306427762e-05 | BQ144: 3.26060506e-05 | BR144: 3.214823656e-05 | BS144: 4.753634321e-05 | BT144: 4.685530487e-05 | BU144: 4.617471758e-05 | BW144: Price | BX144: Water | BY144: Fixed | BZ144: -2.98045779e-05 | CA144: 0.0163761612 | CB144: 0.01728091211 | CC144: 0.01782414919 | CD144: 0.02477312724 | CE144: 0.0231796082 | CF144: 0.02238377813
E145: Qty | F145: =+F144 -> Water | G145: =+G144 -> Access Fee | H145: =+H144 -> Backflow 20mm | I145: =+I144 -> Fixed | J145: cust | S145: 164 | T145: 156 | U145: 150 | V145: 147 | W145: 144 | X145: 143 | Y145: 143 | Z145: 143 | AA145: 143 | AB145: 143 | AC145: 143 | AD145: 143 | AE145: 143 | AF145: 143 | AG145: 143 | AK145: Qty | AL145: Water | AM145: Fixed | AN145: - | AO145: -0.0487804878 | AP145: -0.03846153846 | AQ145: -0.02 | AR145: -0.02040816327 | AS145: -0.006944444444 | AT145: 0 | AU145: 0 | AV145: 0 | AW145: 0 | AX145: 0 | AY145: 0 | AZ145: 0 | BA145: 0 | BB145: 0 | BD145: Qty | BE145: Water | BF145: Fixed | BG145: =IF(S145="","-",IFERROR((S145/R145-1)*(R146/R$13),"-")) -> - | BH145: -9.685305079e-05 | BI145: -7.573545589e-05 | BJ145: -3.70792229e-05 | BK145: -3.732774805e-05 | BL145: -1.236400558e-05 | BM145: 0 | BN145: 0 | BO145: 0 | BP145: 0 | BQ145: 0 | BR145: 0 | BS145: 0 | BT145: 0 | BU145: 0 | BW145: Qty | BX145: Water | BY145: Fixed | BZ145: -0.003478271408 | CA145: -0.002320193951 | CB145: -0.001740650636 | CC145: -0.001392763067 | CD145: 0 | CE145: 0 | CF145: 0
E146: Rev | F146: =+F144 -> Water | G146: =+G144 -> Access Fee | H146: =+H144 -> Backflow 20mm | I146: =+I144 -> Fixed | J146: $m | K146: =K144*K145/10^6 -> 0 | L146: 0 | M146: 0 | N146: 0 | O146: 0 | P146: 0 | Q146: 0 | R146: 0 | S146: 0.05131290937 | T146: 0.04878846717 | U146: 0.04692202247 | V146: 0.04599316165 | W146: 0.04505452562 | X146: 0.04473216528 | Y146: 0.04473898 | Z146: 0.046975929 | AA146: 0.04791544758 | AB146: 0.04887375653 | AC146: 0.04985123166 | AD146: 0.0508482563 | AE146: 0.05237370398 | AF146: 0.0539449151 | AG146: 0.05556326256 | AK146: Rev | AL146: Water | AM146: Fixed | AN146: - | AO146: -0.04919701948 | AP146: -0.03825585859 | AQ146: -0.01979583952 | AR146: -0.02040816481 | AS146: -0.007154893819 | AT146: 0.0001523450664 | AU146: 0.05 | AV146: 0.02 | AW146: 0.02 | AX146: 0.02 | AY146: 0.02 | AZ146: 0.03 | BA146: 0.03 | BB146: 0.03 | BD146: Rev | BE146: Water | BF146: Fixed | BG146: =IF(S146="","-",IFERROR((S146/R146-1)*(R146/R$13),"-")) -> - | BH146: -9.768006925e-05 | BI146: -7.533044716e-05 | BJ146: -3.67007173e-05 | BK146: -3.732775088e-05 | BL146: -1.273869318e-05 | BM146: 2.641336497e-07 | BN146: 8.525526545e-05 | BO146: 3.359263901e-05 | BP146: 3.306427762e-05 | BQ146: 3.26060506e-05 | BR146: 3.214823656e-05 | BS146: 4.753634321e-05 | BT146: 4.685530487e-05 | BU146: 4.617471758e-05 | BW146: Rev | BX146: Water | BY146: Fixed | BZ146: -0.003507972318 | CA146: 0.01401797138 | CB146: 0.01551018144 | CC146: 0.01640656131 | CD146: 0.02477312724 | CE146: 0.0231796082 | CF146: 0.02238377813
D147: =D144+1 -> 27 | E147: Price | F147: Water | G147: Access Fee | H147: Backflow 25mm | I147: Fixed | J147: $ | S147: 344.6399414 | T147: 344.7357211 | U147: 344.7037921 | V147: 344.6726895 | W147: 344.6726889 | X147: 344.5799734 | Y147: 344.62 | Z147: 361.851 | AA147: 369.08802 | AB147: 376.4697804 | AC147: 383.999176 | AD147: 391.6791595 | AE147: 403.4295343 | AF147: 415.5324203 | AG147: 427.998393 | AK147: Price | AL147: Water | AM147: Fixed | AN147: - | AO147: 0.0002779122349 | AP147: -9.261856499e-05 | AQ147: -9.023013841e-05 | AR147: -1.574660624e-09 | AS147: -0.0002689959697 | AT147: 0.000116160677 | AU147: 0.05 | AV147: 0.02 | AW147: 0.02 | AX147: 0.02 | AY147: 0.02 | AZ147: 0.03 | BA147: 0.03 | BB147: 0.03 | BD147: Price | BE147: Water | BF147: Fixed | BG147: =IF(S147="","-",IFERROR((S147/R147-1)*(R149/R$13),"-")) -> - | BH147: 7.78275029e-08 | BI147: -2.577328336e-08 | BJ147: -2.334937126e-08 | BK147: -4.10092708e-13 | BL147: -6.961286521e-08 | BM147: 2.947665413e-08 | BN147: 1.247754692e-05 | BO147: 4.916455624e-06 | BP147: 4.839127216e-06 | BQ147: 4.772063333e-06 | BR147: 4.705059891e-06 | BS147: 6.957188505e-06 | BT147: 6.857515038e-06 | BU147: 6.757907585e-06 | BW147: Price | BX147: Water | BY147: Fixed | BZ147: -7.643619099e-05 | CA147: 0.01634456318 | CB147: 0.0172571924 | CC147: 0.01780516325 | CD147: 0.0247545895 | CE147: 0.02316726888 | CF147: 0.02237453083
E148: Qty | F148: =+F147 -> Water | G148: =+G147 -> Access Fee | H148: =+H147 -> Backflow 25mm | I148: =+I147 -> Fixed | J148: cust | S148: 21 | T148: 20 | U148: 19 | V148: 19 | W148: 19 | X148: 19 | Y148: 19 | Z148: 19 | AA148: 19 | AB148: 19 | AC148: 19 | AD148: 19 | AE148: 19 | AF148: 19 | AG148: 19 | AK148: Qty | AL148: Water | AM148: Fixed | AN148: - | AO148: -0.04761904762 | AP148: -0.05 | AQ148: 0 | AR148: 0 | AS148: 0 | AT148: 0 | AU148: 0 | AV148: 0 | AW148: 0 | AX148: 0 | AY148: 0 | AZ148: 0 | BA148: 0 | BB148: 0 | BD148: =AK148 -> Qty | BE148: Water | BF148: Fixed | BG148: =IF(S148="","-",IFERROR((S148/R148-1)*(R149/R$13),"-")) -> - | BH148: -1.333540269e-05 | BI148: -1.39136702e-05 | BJ148: 0 | BK148: 0 | BL148: 0 | BM148: 0 | BN148: 0 | BO148: 0 | BP148: 0 | BQ148: 0 | BR148: 0 | BS148: 0 | BT148: 0 | BU148: 0 | BW148: Qty | BX148: Water | BY148: Fixed | BZ148: 0 | CA148: 0 | CB148: 0 | CC148: 0 | CD148: 0 | CE148: 0 | CF148: 0
E149: Rev | F149: =+F147 -> Water | G149: =+G147 -> Access Fee | H149: =+H147 -> Backflow 25mm | I149: =+I147 -> Fixed | J149: $m | K149: =K147*K148/10^6 -> 0 | L149: 0 | M149: 0 | N149: 0 | O149: 0 | P149: 0 | Q149: 0 | R149: 0 | S149: 0.00723743877 | T149: 0.006894714421 | U149: 0.006549372051 | V149: 0.0065487811 | W149: 0.00654878109 | X149: 0.006547019494 | Y149: 0.00654778 | Z149: 0.006875169 | AA149: 0.00701267238 | AB149: 0.007152925828 | AC149: 0.007295984344 | AD149: 0.007441904031 | AE149: 0.007665161152 | AF149: 0.007895115987 | AG149: 0.008131969466 | AK149: Rev | AL149: Water | AM149: Fixed | AN149: - | AO149: -0.0473543693 | AP149: -0.05008798764 | AQ149: -9.023013841e-05 | AR149: -1.574660513e-09 | AS149: -0.0002689959697 | AT149: 0.000116160677 | AU149: 0.05 | AV149: 0.02 | AW149: 0.02 | AX149: 0.02 | AY149: 0.02 | AZ149: 0.03 | BA149: 0.03 | BB149: 0.03 | BD149: Rev | BE149: Water | BF149: Fixed | BG149: =IF(S149="","-",IFERROR((S149/R149-1)*(R149/R$13),"-")) -> - | BH149: -1.326128126e-05 | BI149: -1.393815482e-05 | BJ149: -2.334937126e-08 | BK149: -4.100926791e-13 | BL149: -6.961286521e-08 | BM149: 2.947665413e-08 | BN149: 1.247754692e-05 | BO149: 4.916455624e-06 | BP149: 4.839127216e-06 | BQ149: 4.772063333e-06 | BR149: 4.705059891e-06 | BS149: 6.957188505e-06 | BT149: 6.857515038e-06 | BU149: 6.757907585e-06 | BW149: Rev | BX149: Water | BY149: Fixed | BZ149: -7.643619099e-05 | CA149: 0.01634456318 | CB149: 0.0172571924 | CC149: 0.01780516325 | CD149: 0.0247545895 | CE149: 0.02316726888 | CF149: 0.02237453083
D150: =D147+1 -> 28 | E150: Price | F150: Water | G150: Access Fee | H150: Backflow 32mm | I150: Fixed | J150: $ | S150: 412.3311035 | T150: 412.2863852 | U150: 412.3304775 | V150: 412.3734288 | W150: 412.3734282 | X150: 412.2191829 | Y150: 412.3 | Z150: 432.915 | AA150: 441.5733 | AB150: 450.404766 | AC150: 459.4128613 | AD150: 468.6011185 | AE150: 482.6591521 | AF150: 497.1389267 | AG150: 512.0530945 | AK150: Price | AL150: Water | AM150: Fixed | AN150: - | AO150: -0.0001084524451 | AP150: 0.0001069458765 | AQ150: 0.0001041671905 | AR150: -1.574660624e-09 | AS150: -0.0003740426204 | AT150: 0.000196053592 | AU150: 0.05 | AV150: 0.02 | AW150: 0.02 | AX150: 0.02 | AY150: 0.02 | AZ150: 0.03 | BA150: 0.03 | BB150: 0.03 | BD150: Price | BE150: Water | BF150: Fixed | BG150: =IF(S150="","-",IFERROR((S150/R150-1)*(R152/R$13),"-")) -> - | BH150: -6.921272727e-09 | BI150: 7.118335404e-09 | BJ150: 6.788288386e-09 | BK150: -1.032933204e-13 | BL150: -2.43811967e-08 | BM150: 1.252963472e-08 | BN150: 3.14274004e-06 | BO150: 1.238315676e-06 | BP150: 1.218838844e-06 | BQ150: 1.201947354e-06 | BR150: 1.185071089e-06 | BS150: 1.752318386e-06 | BT150: 1.727213468e-06 | BU150: 1.702125177e-06 | BW150: Price | BX150: Water | BY150: Fixed | BZ150: -8.903514401e-05 | CA150: 0.01633602592 | CB150: 0.0172507837 | CC150: 0.01780003352 | CD150: 0.02479551925 | CE150: 0.02319451293 | CF150: 0.02239494797
E151: Qty | F151: =+F150 -> Water | G151: =+G150 -> Access Fee | H151: =+H150 -> Backflow 32mm | I151: =+I150 -> Fixed | J151: cust | S151: 4 | T151: 4 | U151: 4 | V151: 4 | W151: 4 | X151: 4 | Y151: 4 | Z151: 4 | AA151: 4 | AB151: 4 | AC151: 4 | AD151: 4 | AE151: 4 | AF151: 4 | AG151: 4 | AK151: Qty | AL151: Water | AM151: Fixed | AN151: - | AO151: 0 | AP151: 0 | AQ151: 0 | AR151: 0 | AS151: 0 | AT151: 0 | AU151: 0 | AV151: 0 | AW151: 0 | AX151: 0 | AY151: 0 | AZ151: 0 | BA151: 0 | BB151: 0 | BD151: Qty | BE151: Water | BF151: Fixed | BG151: =IF(S151="","-",IFERROR((S151/R151-1)*(R152/R$13),"-")) -> - | BH151: 0 | BI151: 0 | BJ151: 0 | BK151: 0 | BL151: 0 | BM151: 0 | BN151: 0 | BO151: 0 | BP151: 0 | BQ151: 0 | BR151: 0 | BS151: 0 | BT151: 0 | BU151: 0 | BW151: Qty | BX151: Water | BY151: Fixed | BZ151: 0 | CA151: 0 | CB151: 0 | CC151: 0 | CD151: 0 | CE151: 0 | CF151: 0
E152: Rev | F152: =+F150 -> Water | G152: =+G150 -> Access Fee | H152: =+H150 -> Backflow 32mm | I152: =+I150 -> Fixed | J152: $m | K152: =K150*K151/10^6 -> 0 | L152: 0 | M152: 0 | N152: 0 | O152: 0 | P152: 0 | Q152: 0 | R152: 0 | S152: 0.001649324414 | T152: 0.001649145541 | U152: 0.00164932191 | V152: 0.001649493715 | W152: 0.001649493713 | X152: 0.001648876732 | Y152: 0.0016492 | Z152: 0.00173166 | AA152: 0.0017662932 | AB152: 0.001801619064 | AC152: 0.001837651445 | AD152: 0.001874404474 | AE152: 0.001930636608 | AF152: 0.001988555707 | AG152: 0.002048212378 | AK152: Rev | AL152: Water | AM152: Fixed | AN152: - | AO152: -0.0001084524451 | AP152: 0.0001069458765 | AQ152: 0.0001041671905 | AR152: -1.574660624e-09 | AS152: -0.0003740426204 | AT152: 0.000196053592 | AU152: 0.05 | AV152: 0.02 | AW152: 0.02 | AX152: 0.02 | AY152: 0.02 | AZ152: 0.03 | BA152: 0.03 | BB152: 0.03 | BD152: Rev | BE152: Water | BF152: Fixed | BG152: =IF(S152="","-",IFERROR((S152/R152-1)*(R152/R$13),"-")) -> - | BH152: -6.921272727e-09 | BI152: 7.118335404e-09 | BJ152: 6.788288386e-09 | BK152: -1.032933204e-13 | BL152: -2.43811967e-08 | BM152: 1.252963472e-08 | BN152: 3.14274004e-06 | BO152: 1.238315676e-06 | BP152: 1.218838844e-06 | BQ152: 1.201947354e-06 | BR152: 1.185071089e-06 | BS152: 1.752318386e-06 | BT152: 1.727213468e-06 | BU152: 1.702125177e-06 | BW152: Rev | BX152: Water | BY152: Fixed | BZ152: -8.903514401e-05 | CA152: 0.01633602592 | CB152: 0.0172507837 | CC152: 0.01780003352 | CD152: 0.02479551925 | CE152: 0.02319451293 | CF152: 0.02239494797
D153: =D150+1 -> 29 | E153: Price | F153: Water | G153: Access Fee | H153: Backflow 40mm | I153: Fixed | J153: $ | S153: 430.7163574 | T153: 430.7978653 | U153: 430.7595506 | V153: 430.7222274 | W153: 430.7222267 | X153: 430.610968 | Y153: 430.73 | Z153: 452.2665 | AA153: 461.31183 | AB153: 470.5380666 | AC153: 479.9488279 | AD153: 489.5478045 | AE153: 504.2342386 | AF153: 519.3612658 | AG153: 534.9421038 | AK153: Price | AL153: Water | AM153: Fixed | AN153: - | AO153: 0.0001892378868 | AP153: -8.893895823e-05 | AQ153: -8.664510166e-05 | AR153: -1.574660513e-09 | AS153: -0.0002583071947 | AT153: 0.0002764257774 | AU153: 0.05 | AV153: 0.02 | AW153: 0.02 | AX153: 0.02 | AY153: 0.02 | AZ153: 0.03 | BA153: 0.03 | BB153: 0.03 | BD153: Price | BE153: Water | BF153: Fixed | BG153: =IF(S153="","-",IFERROR((S153/R153-1)*(R155/R$13),"-")) -> - | BH153: 1.261536944e-08 | BI153: -6.185588006e-09 | BJ153: -5.898788528e-09 | BK153: -1.078894099e-13 | BL153: -1.758640379e-08 | BM153: 1.8454362e-08 | BN153: 3.283221968e-06 | BO153: 1.293668957e-06 | BP153: 1.273321502e-06 | BQ153: 1.255674955e-06 | BR153: 1.238044312e-06 | BS153: 1.830647825e-06 | BT153: 1.804420706e-06 | BU153: 1.778210957e-06 | BW153: Price | BX153: Water | BY153: Fixed | BZ153: 9.023549218e-06 | CA153: 0.01640247114 | CB153: 0.01730066206 | CC153: 0.01783995756 | CD153: 0.02483669288 | CE153: 0.02322191895 | CF153: 0.02241548635
E154: Qty | F154: =+F153 -> Water | G154: =+G153 -> Access Fee | H154: =+H153 -> Backflow 40mm | I154: =+I153 -> Fixed | J154: cust | S154: 4 | T154: 4 | U154: 4 | V154: 4 | W154: 4 | X154: 4 | Y154: 4 | Z154: 4 | AA154: 4 | AB154: 4 | AC154: 4 | AD154: 4 | AE154: 4 | AF154: 4 | AG154: 4 | AK154: Qty | AL154: Water | AM154: Fixed | AN154: - | AO154: 0 | AP154: 0 | AQ154: 0 | AR154: 0 | AS154: 0 | AT154: 0 | AU154: 0 | AV154: 0 | AW154: 0 | AX154: 0 | AY154: 0 | AZ154: 0 | BA154: 0 | BB154: 0 | BD154: Qty | BE154: Water | BF154: Fixed | BG154: =IF(S154="","-",IFERROR((S154/R154-1)*(R155/R$13),"-")) -> - | BH154: 0 | BI154: 0 | BJ154: 0 | BK154: 0 | BL154: 0 | BM154: 0 | BN154: 0 | BO154: 0 | BP154: 0 | BQ154: 0 | BR154: 0 | BS154: 0 | BT154: 0 | BU154: 0 | BW154: Qty | BX154: Water | BY154: Fixed | BZ154: 0 | CA154: 0 | CB154: 0 | CC154: 0 | CD154: 0 | CE154: 0 | CF154: 0
E155: Rev | F155: =+F153 -> Water | G155: =+G153 -> Access Fee | H155: =+H153 -> Backflow 40mm | I155: =+I153 -> Fixed | J155: $m | K155: =K153*K154/10^6 -> 0 | L155: 0 | M155: 0 | N155: 0 | O155: 0 | P155: 0 | Q155: 0 | R155: 0 | S155: 0.00172286543 | T155: 0.001723191461 | U155: 0.001723038202 | V155: 0.001722888909 | W155: 0.001722888907 | X155: 0.001722443872 | Y155: 0.00172292 | Z155: 0.001809066 | AA155: 0.00184524732 | AB155: 0.001882152266 | AC155: 0.001919795312 | AD155: 0.001958191218 | AE155: 0.002016936955 | AF155: 0.002077445063 | AG155: 0.002139768415 | AK155: Rev | AL155: Water | AM155: Fixed | AN155: - | AO155: 0.0001892378868 | AP155: -8.893895823e-05 | AQ155: -8.664510166e-05 | AR155: -1.574660624e-09 | AS155: -0.0002583071947 | AT155: 0.0002764257774 | AU155: 0.05 | AV155: 0.02 | AW155: 0.02 | AX155: 0.02 | AY155: 0.02 | AZ155: 0.03 | BA155: 0.03 | BB155: 0.03 | BD155: Rev | BE155: Water | BF155: Fixed | BG155: =IF(S155="","-",IFERROR((S155/R155-1)*(R155/R$13),"-")) -> - | BH155: 1.261536944e-08 | BI155: -6.185588006e-09 | BJ155: -5.898788528e-09 | BK155: -1.078894176e-13 | BL155: -1.758640379e-08 | BM155: 1.8454362e-08 | BN155: 3.283221968e-06 | BO155: 1.293668957e-06 | BP155: 1.273321502e-06 | BQ155: 1.255674955e-06 | BR155: 1.238044312e-06 | BS155: 1.830647825e-06 | BT155: 1.804420706e-06 | BU155: 1.778210957e-06 | BW155: Rev | BX155: Water | BY155: Fixed | BZ155: 9.023549218e-06 | CA155: 0.01640247114 | CB155: 0.01730066206 | CC155: 0.01783995756 | CD155: 0.02483669288 | CE155: 0.02322191895 | CF155: 0.02241548635
D156: =D153+1 -> 30 | E156: Price | F156: Water | G156: Access Fee | H156: Backflow 50mm | I156: Fixed | J156: $ | S156: 531.6681152 | T156: 531.6367173 | U156: 531.5585674 | V156: 531.6406192 | W156: 531.6406184 | X156: 531.5377886 | Y156: 531.56 | Z156: 558.138 | AA156: 569.30076 | AB156: 580.6867752 | AC156: 592.3005107 | AD156: 604.1465209 | AE156: 622.2709165 | AF156: 640.939044 | AG156: 660.1672154 | AK156: Price | AL156: Water | AM156: Fixed | AN156: - | AO156: -5.905557607e-05 | AP156: -0.0001469985975 | AQ156: 0.0001543608042 | AR156: -1.574660735e-09 | AS156: -0.0001934196723 | AT156: 4.178699642e-05 | AU156: 0.05 | AV156: 0.02 | AW156: 0.02 | AX156: 0.02 | AY156: 0.02 | AZ156: 0.03 | BA156: 0.03 | BB156: 0.03 | BD156: Price | BE156: Water | BF156: Fixed | BG156: =IF(S156="","-",IFERROR((S156/R156-1)*(R158/R$13),"-")) -> - | BH156: -3.644712766e-09 | BI156: -9.462476891e-09 | BJ156: 6.483985803e-09 | BK156: -6.658398053e-14 | BL156: -8.127033617e-09 | BM156: 1.721792112e-09 | BN156: 2.025897278e-06 | BO156: 7.982525838e-07 | BP156: 7.856972784e-07 | BQ156: 7.748085566e-07 | BR156: 7.639296481e-07 | BS156: 1.129592968e-06 | BT156: 1.113409642e-06 | BU156: 1.097237035e-06 | BW156: Price | BX156: Water | BY156: Fixed | BZ156: -7.582325372e-05 | CA156: 0.01634497851 | CB156: 0.01725750418 | CC156: 0.01780541281 | CD156: 0.02471648584 | CE156: 0.02314190563 | CF156: 0.02235552307
E157: Qty | F157: =+F156 -> Water | G157: =+G156 -> Access Fee | H157: =+H156 -> Backflow 50mm | I157: =+I156 -> Fixed | J157: cust | S157: 3 | T157: 3 | U157: 2 | V157: 2 | W157: 2 | X157: 2 | Y157: 2 | Z157: 2 | AA157: 2 | AB157: 2 | AC157: 2 | AD157: 2 | AE157: 2 | AF157: 2 | AG157: 2 | AK157: Qty | AL157: Water | AM157: Fixed | AN157: - | AO157: 0 | AP157: -0.3333333333 | AQ157: 0 | AR157: 0 | AS157: 0 | AT157: 0 | AU157: 0 | AV157: 0 | AW157: 0 | AX157: 0 | AY157: 0 | AZ157: 0 | BA157: 0 | BB157: 0 | BD157: Qty | BE157: Water | BF157: Fixed | BG157: =IF(S157="","-",IFERROR((S157/R157-1)*(R158/R$13),"-")) -> - | BH157: 0 | BI157: -2.145706841e-05 | BJ157: 0 | BK157: 0 | BL157: 0 | BM157: 0 | BN157: 0 | BO157: 0 | BP157: 0 | BQ157: 0 | BR157: 0 | BS157: 0 | BT157: 0 | BU157: 0 | BW157: Qty | BX157: Water | BY157: Fixed | BZ157: 0 | CA157: 0 | CB157: 0 | CC157: 0 | CD157: 0 | CE157: 0 | CF157: 0
E158: Rev | F158: =+F156 -> Water | G158: =+G156 -> Access Fee | H158: =+H156 -> Backflow 50mm | I158: =+I156 -> Fixed | J158: $m | K158: =K156*K157/10^6 -> 0 | L158: 0 | M158: 0 | N158: 0 | O158: 0 | P158: 0 | Q158: 0 | R158: 0 | S158: 0.001595004346 | T158: 0.001594910152 | U158: 0.001063117135 | V158: 0.001063281238 | W158: 0.001063281237 | X158: 0.001063075577 | Y158: 0.00106312 | Z158: 0.001116276 | AA158: 0.00113860152 | AB158: 0.00116137355 | AC158: 0.001184601021 | AD158: 0.001208293042 | AE158: 0.001244541833 | AF158: 0.001281878088 | AG158: 0.001320334431 | AK158: Rev | AL158: Water | AM158: Fixed | AN158: - | AO158: -5.905557607e-05 | AP158: -0.3334313324 | AQ158: 0.0001543608042 | AR158: -1.574660735e-09 | AS158: -0.0001934196723 | AT158: 4.178699642e-05 | AU158: 0.05 | AV158: 0.02 | AW158: 0.02 | AX158: 0.02 | AY158: 0.02 | AZ158: 0.03 | BA158: 0.03 | BB158: 0.03 | BD158: Rev | BE158: Water | BF158: Fixed | BG158: =IF(S158="","-",IFERROR((S158/R158-1)*(R158/R$13),"-")) -> - | BH158: -3.644712766e-09 | BI158: -2.146337673e-05 | BJ158: 6.483985803e-09 | BK158: -6.658398053e-14 | BL158: -8.127033617e-09 | BM158: 1.721792112e-09 | BN158: 2.025897278e-06 | BO158: 7.982525838e-07 | BP158: 7.856972784e-07 | BQ158: 7.748085566e-07 | BR158: 7.639296481e-07 | BS158: 1.129592968e-06 | BT158: 1.113409642e-06 | BU158: 1.097237035e-06 | BW158: Rev | BX158: Water | BY158: Fixed | BZ158: -7.582325372e-05 | CA158: 0.01634497851 | CB158: 0.01725750418 | CC158: 0.01780541281 | CD158: 0.02471648584 | CE158: 0.02314190563 | CF158: 0.02235552307
D159: =D156+1 -> 31 | E159: Price | F159: Water | G159: Access Fee | H159: Backflow 80mm | I159: Fixed | J159: $ | S159: 876.8094727 | T159: 876.8054554 | U159: 876.743118 | V159: 876.7878466 | W159: 876.7878452 | X159: 876.5737567 | Y159: 876.65 | Z159: 920.4825 | AA159: 938.89215 | AB159: 957.669993 | AC159: 976.8233929 | AD159: 996.3598607 | AE159: 1026.250657 | AF159: 1057.038176 | AG159: 1088.749322 | AK159: Price | AL159: Water | AM159: Fixed | AN159: - | AO159: -4.581666149e-06 | AP159: -7.109607959e-05 | AQ159: 5.1016771e-05 | AR159: -1.574660513e-09 | AS159: -0.0002441737077 | AT159: 8.69788066e-05 | AU159: 0.05 | AV159: 0.02 | AW159: 0.02 | AX159: 0.02 | AY159: 0.02 | AZ159: 0.03 | BA159: 0.03 | BB159: 0.03 | BD159: Price | BE159: Water | BF159: Fixed | BG159: =IF(S159="","-",IFERROR((S159/R159-1)*(R161/R$13),"-")) -> - | BH159: 0 | BI159: 0 | BJ159: 0 | BK159: 0 | BL159: 0 | BM159: 0 | BN159: 0 | BO159: 0 | BP159: 0 | BQ159: 0 | BR159: 0 | BS159: 0 | BT159: 0 | BU159: 0 | BW159: Price | BX159: Water | BY159: Fixed | BZ159: -7.861115937e-05 | CA159: 0.01634308939 | CB159: 0.01725608606 | CC159: 0.0178042777 | CD159: 0.024739639 | CE159: 0.0231573173 | CF159: 0.02236707292
E160: Qty | F160: =+F159 -> Water | G160: =+G159 -> Access Fee | H160: =+H159 -> Backflow 80mm | I160: =+I159 -> Fixed | J160: cust | S160: 0 | T160: 0 | U160: 0 | V160: 0 | W160: 0 | X160: 0 | Y160: 0 | Z160: 0 | AA160: 0 | AB160: 0 | AC160: 0 | AD160: 0 | AE160: 0 | AF160: 0 | AG160: 0 | AK160: Qty | AL160: Water | AM160: Fixed | AN160: - | AO160: - | AP160: - | AQ160: - | AR160: - | AS160: - | AT160: - | AU160: - | AV160: - | AW160: - | AX160: - | AY160: - | AZ160: - | BA160: - | BB160: - | BD160: Qty | BE160: Water | BF160: Fixed | BG160: =IF(S160="","-",IFERROR((S160/R160-1)*(R161/R$13),"-")) -> - | BH160: - | BI160: - | BJ160: - | BK160: - | BL160: - | BM160: - | BN160: - | BO160: - | BP160: - | BQ160: - | BR160: - | BS160: - | BT160: - | BU160: - | BW160: Qty | BX160: Water | BY160: Fixed | BZ160: - | CA160: - | CB160: - | CC160: - | CD160: - | CE160: - | CF160: -
E161: Rev | F161: =+F159 -> Water | G161: =+G159 -> Access Fee | H161: =+H159 -> Backflow 80mm | I161: =+I159 -> Fixed | J161: $m | K161: =K159*K160/10^6 -> 0 | L161: 0 | M161: 0 | N161: 0 | O161: 0 | P161: 0 | Q161: 0 | R161: 0 | S161: 0 | T161: 0 | U161: 0 | V161: 0 | W161: 0 | X161: 0 | Y161: 0 | Z161: 0 | AA161: 0 | AB161: 0 | AC161: 0 | AD161: 0 | AE161: 0 | AF161: 0 | AG161: 0 | AK161: Rev | AL161: Water | AM161: Fixed | AN161: - | AO161: - | AP161: - | AQ161: - | AR161: - | AS161: - | AT161: - | AU161: - | AV161: - | AW161: - | AX161: - | AY161: - | AZ161: - | BA161: - | BB161: - | BD161: Rev | BE161: Water | BF161: Fixed | BG161: =IF(S161="","-",IFERROR((S161/R161-1)*(R161/R$13),"-")) -> - | BH161: - | BI161: - | BJ161: - | BK161: - | BL161: - | BM161: - | BN161: - | BO161: - | BP161: - | BQ161: - | BR161: - | BS161: - | BT161: - | BU161: - | BW161: Rev | BX161: Water | BY161: Fixed | BZ161: - | CA161: - | CB161: - | CC161: - | CD161: - | CE161: - | CF161: -
D162: =D159+1 -> 32 | E162: Price | F162: Water | G162: Access Fee | H162: Backflow 100mm | I162: Fixed | J162: $ | S162: 1119.99624 | T162: 1120.106926 | U162: 1120.006882 | V162: 1120.067606 | W162: 1120.067605 | X162: 1119.922913 | Y162: 1119.98 | Z162: 1175.979 | AA162: 1199.49858 | AB162: 1223.488552 | AC162: 1247.958323 | AD162: 1272.917489 | AE162: 1311.105014 | AF162: 1350.438164 | AG162: 1390.951309 | AK162: Price | AL162: Water | AM162: Fixed | AN162: - | AO162: 9.882690482e-05 | AP162: -8.931644954e-05 | AQ162: 5.421775809e-05 | AR162: -1.574660513e-09 | AS162: -0.0001291810906 | AT162: 5.097407428e-05 | AU162: 0.05 | AV162: 0.02 | AW162: 0.02 | AX162: 0.02 | AY162: 0.02 | AZ162: 0.03 | BA162: 0.03 | BB162: 0.03 | BD162: Price | BE162: Water | BF162: Fixed | BG162: =IF(S162="","-",IFERROR((S162/R162-1)*(R164/R$13),"-")) -> - | BH162: 2.141422147e-08 | BI162: -2.018907197e-08 | BJ162: 9.597235304e-09 | BK162: -2.805600117e-13 | BL162: -2.287106759e-08 | BM162: 8.850603518e-09 | BN162: 8.537002157e-06 | BO162: 3.36378557e-06 | BP162: 3.310878312e-06 | BQ162: 3.264993932e-06 | BR162: 3.219150904e-06 | BS162: 4.760032855e-06 | BT162: 4.691837351e-06 | BU162: 4.623687013e-06 | BW162: Price | BX162: Water | BY162: Fixed | BZ162: -3.91075653e-05 | CA162: 0.01636985745 | CB162: 0.01727618008 | CC162: 0.01782036154 | CD162: 0.0247211927 | CE162: 0.02314503872 | CF162: 0.02235787108
E163: Qty | F163: =+F162 -> Water | G163: =+G162 -> Access Fee | H163: =+H162 -> Backflow 100mm | I163: =+I162 -> Fixed | J163: cust | S163: 5 | T163: 5 | U163: 4 | V163: 4 | W163: 4 | X163: 4 | Y163: 4 | Z163: 4 | AA163: 4 | AB163: 4 | AC163: 4 | AD163: 4 | AE163: 4 | AF163: 4 | AG163: 4 | AK163: Qty | AL163: Water | AM163: Fixed | AN163: - | AO163: 0 | AP163: -0.2 | AQ163: 0 | AR163: 0 | AS163: 0 | AT163: 0 | AU163: 0 | AV163: 0 | AW163: 0 | AX163: 0 | AY163: 0 | AZ163: 0 | BA163: 0 | BB163: 0 | BD163: Qty | BE163: Water | BF163: Fixed | BG163: =IF(S163="","-",IFERROR((S163/R163-1)*(R164/R$13),"-")) -> - | BH163: 0 | BI163: -4.520795905e-05 | BJ163: 0 | BK163: 0 | BL163: 0 | BM163: 0 | BN163: 0 | BO163: 0 | BP163: 0 | BQ163: 0 | BR163: 0 | BS163: 0 | BT163: 0 | BU163: 0 | BW163: Qty | BX163: Water | BY163: Fixed | BZ163: 0 | CA163: 0 | CB163: 0 | CC163: 0 | CD163: 0 | CE163: 0 | CF163: 0
E164: Rev | F164: =+F162 -> Water | G164: =+G162 -> Access Fee | H164: =+H162 -> Backflow 100mm | I164: =+I162 -> Fixed | J164: $m | K164: =K162*K163/10^6 -> 0 | L164: 0 | M164: 0 | N164: 0 | O164: 0 | P164: 0 | Q164: 0 | R164: 0 | S164: 0.005599981201 | T164: 0.00560053463 | U164: 0.004480027528 | V164: 0.004480270425 | W164: 0.004480270418 | X164: 0.004479691652 | Y164: 0.00447992 | Z164: 0.004703916 | AA164: 0.00479799432 | AB164: 0.004893954206 | AC164: 0.004991833291 | AD164: 0.005091669956 | AE164: 0.005244420055 | AF164: 0.005401752657 | AG164: 0.005563805236 | AK164: Rev | AL164: Water | AM164: Fixed | AN164: - | AO164: 9.882690482e-05 | AP164: -0.2000714532 | AQ164: 5.421775809e-05 | AR164: -1.574660624e-09 | AS164: -0.0001291810906 | AT164: 5.097407427e-05 | AU164: 0.05 | AV164: 0.02 | AW164: 0.02 | AX164: 0.02 | AY164: 0.02 | AZ164: 0.03 | BA164: 0.03 | BB164: 0.03 | BD164: Rev | BE164: Water | BF164: Fixed | BG164: =IF(S164="","-",IFERROR((S164/R164-1)*(R164/R$13),"-")) -> - | BH164: 2.141422147e-08 | BI164: -4.522411031e-05 | BJ164: 9.597235304e-09 | BK164: -2.805600315e-13 | BL164: -2.287106759e-08 | BM164: 8.850603518e-09 | BN164: 8.537002157e-06 | BO164: 3.36378557e-06 | BP164: 3.310878312e-06 | BQ164: 3.264993932e-06 | BR164: 3.219150904e-06 | BS164: 4.760032855e-06 | BT164: 4.691837351e-06 | BU164: 4.623687013e-06 | BW164: Rev | BX164: Water | BY164: Fixed | BZ164: -3.91075653e-05 | CA164: 0.01636985745 | CB164: 0.01727618008 | CC164: 0.01782036154 | CD164: 0.0247211927 | CE164: 0.02314503872 | CF164: 0.02235787108
D165: =D162+1 -> 33 | E165: Price | F165: Water | G165: Access Fee | H165: Backflow 150mm | I165: Fixed | J165: $ | S165: 1462.964795 | T165: 1120.106926 | U165: 1120.006882 | V165: 1120.067606 | W165: 1462.906561 | X165: 1158.834458 | Y165: 1158.9 | Z165: 1216.845 | AA165: 1241.1819 | AB165: 1266.005538 | AC165: 1291.325649 | AD165: 1317.152162 | AE165: 1356.666727 | AF165: 1397.366728 | AG165: 1439.28773 | AK165: Price | AL165: Water | AM165: Fixed | AN165: - | AO165: -0.2343582498 | AP165: -8.931644954e-05 | AQ165: 5.421775809e-05 | AR165: 0.3060877333 | AS165: -0.2078547673 | AT165: 5.655832911e-05 | AU165: 0.05 | AV165: 0.02 | AW165: 0.02 | AX165: 0.02 | AY165: 0.02 | AZ165: 0.03 | BA165: 0.03 | BB165: 0.03 | BD165: Price | BE165: Water | BF165: Fixed | BG165: =IF(S165="","-",IFERROR((S165/R165-1)*(R167/R$13),"-")) -> - | BH165: -1.326644767e-05 | BI165: -4.037814393e-09 | BJ165: 2.399308826e-09 | BK165: 1.363404641e-05 | BL165: 0 | BM165: 0 | BN165: 0 | BO165: 0 | BP165: 0 | BQ165: 0 | BR165: 0 | BS165: 0 | BT165: 0 | BU165: 0 | BW165: Price | BX165: Water | BY165: Fixed | BZ165: -0.1099494199 | CA165: -0.05954166878 | CB165: -0.04025753419 | CC165: -0.02849776614 | CD165: 0.02472405371 | CE165: 0.02314694312 | CF165: 0.02235929828
E166: Qty | F166: =+F165 -> Water | G166: =+G165 -> Access Fee | H166: =+H165 -> Backflow 150mm | I166: =+I165 -> Fixed | J166: cust | S166: 1 | T166: 1 | U166: 1 | V166: 1 | W166: 0 | X166: 0 | Y166: 0 | Z166: 0 | AA166: 0 | AB166: 0 | AC166: 0 | AD166: 0 | AE166: 0 | AF166: 0 | AG166: 0 | AK166: Qty | AL166: Water | AM166: Fixed | AN166: - | AO166: 0 | AP166: 0 | AQ166: 0 | AR166: -1 | AS166: - | AT166: - | AU166: - | AV166: - | AW166: - | AX166: - | AY166: - | AZ166: - | BA166: - | BB166: - | BD166: Qty | BE166: Water | BF166: Fixed | BG166: =IF(S166="","-",IFERROR((S166/R166-1)*(R167/R$13),"-")) -> - | BH166: 0 | BI166: 0 | BJ166: 0 | BK166: -4.45429363e-05 | BL166: - | BM166: - | BN166: - | BO166: - | BP166: - | BQ166: - | BR166: - | BS166: - | BT166: - | BU166: - | BW166: Qty | BX166: Water | BY166: Fixed | BZ166: - | CA166: - | CB166: - | CC166: - | CD166: - | CE166: - | CF166: -
E167: Rev | F167: =+F165 -> Water | G167: =+G165 -> Access Fee | H167: =+H165 -> Backflow 150mm | I167: =+I165 -> Fixed | J167: $m | K167: =K165*K166/10^6 -> 0 | L167: 0 | M167: 0 | N167: 0 | O167: 0 | P167: 0 | Q167: 0 | R167: 0 | S167: 0.001462964795 | T167: 0.001120106926 | U167: 0.001120006882 | V167: 0.001120067606 | W167: 0 | X167: 0 | Y167: 0 | Z167: 0 | AA167: 0 | AB167: 0 | AC167: 0 | AD167: 0 | AE167: 0 | AF167: 0 | AG167: 0 | AK167: Rev | AL167: Water | AM167: Fixed | AN167: - | AO167: -0.2343582498 | AP167: -8.931644954e-05 | AQ167: 5.421775809e-05 | AR167: -1 | AS167: - | AT167: - | AU167: - | AV167: - | AW167: - | AX167: - | AY167: - | AZ167: - | BA167: - | BB167: - | BD167: Rev | BE167: Water | BF167: Fixed | BG167: =IF(S167="","-",IFERROR((S167/R167-1)*(R167/R$13),"-")) -> - | BH167: -1.326644767e-05 | BI167: -4.037814393e-09 | BJ167: 2.399308826e-09 | BK167: -4.45429363e-05 | BL167: - | BM167: - | BN167: - | BO167: - | BP167: - | BQ167: - | BR167: - | BS167: - | BT167: - | BU167: - | BW167: Rev | BX167: Water | BY167: Fixed | BZ167: - | CA167: - | CB167: - | CC167: - | CD167: - | CE167: - | CF167: -
D168: =D165+1 -> 34 | E168: Price | F168: Trade Waste | G168: Volume | H168: Usage Fee (excl Majors) | I168: Variable | J168: $ | S168: 0.8830493164 | T168: 0.8833548387 | U168: 0.8835271536 | V168: 0.8831677449 | W168: 0.8833714932 | X168: 0.8833123446 | Y168: 0.8833 | Z168: 0.927465 | AA168: 0.9460143 | AB168: 0.964934586 | AC168: 0.9842332777 | AD168: 1.003917943 | AE168: 1.034035482 | AF168: 1.065056546 | AG168: 1.097008242 | AK168: Price | AL168: Trade Waste | AM168: Variable | AN168: - | AO168: 0.00034598555 | AP168: 0.0001950686642 | AQ168: -0.0004067884499 | AR168: 0.0002307016951 | AS168: -6.695782073e-05 | AT168: -1.397533123e-05 | AU168: 0.05 | AV168: 0.02 | AW168: 0.02 | AX168: 0.02 | AY168: 0.02 | AZ168: 0.03 | BA168: 0.03 | BB168: 0.03 | BD168: Price | BE168: Trade Waste | BF168: Variable | BG168: =IF(S168="","-",IFERROR((S168/R168-1)*(R170/R$13),"-")) -> - | BH168: 5.978499025e-07 | BI168: 4.038125209e-07 | BJ168: -8.956470704e-07 | BK168: 5.234514349e-07 | BL168: -1.561018385e-07 | BM168: -3.529600239e-08 | BN168: 0.000113138668 | BO168: 4.591675606e-05 | BP168: 4.655039161e-05 | BQ168: 4.728242289e-05 | BR168: 4.801709752e-05 | BS168: 7.31310391e-05 | BT168: 7.424581296e-05 | BU168: 7.536239147e-05 | BW168: Price | BX168: Trade Waste | BY168: Variable | BZ168: -4.046692688e-05 | CA168: 0.01636893634 | CB168: 0.01727548863 | CC168: 0.01781980809 | CD168: 0.02468791634 | CE168: 0.02312288848 | CF168: 0.02234127114
E169: Qty | F169: =+F168 -> Trade Waste | G169: =+G168 -> Volume | H169: =+H168 -> Usage Fee (excl Majors) | I169: =+I168 -> Variable | J169: kL | S169: 50571.83544 | T169: 58063.29268 | U169: 63070.24096 | V169: 64602.27381 | W169: 66785.17442 | X169: 73768.96552 | Y169: 67215.23148 | Z169: 69231.68843 | AA169: 71308.63908 | AB169: 73447.89825 | AC169: 75651.3352 | AD169: 77920.87526 | AE169: 80258.50151 | AF169: 82666.25656 | AG169: 85146.24426 | AK169: Qty | AL169: Trade Waste | AM169: Variable | AN169: - | AO169: 0.1481349683 | AP169: 0.08623259291 | AQ169: 0.02429089888 | AR169: 0.03378984176 | AS169: 0.1045709794 | AT169: -0.0888413439 | AU169: 0.03 | AV169: 0.03 | AW169: 0.03 | AX169: 0.03 | AY169: 0.03 | AZ169: 0.03 | BA169: 0.03 | BB169: 0.03 | BD169: Qty | BE169: Trade Waste | BF169: Variable | BG169: =IF(S169="","-",IFERROR((S169/R169-1)*(R170/R$13),"-")) -> - | BH169: 0.0002559716044 | BI169: 0.0001785104792 | BJ169: 5.348252249e-05 | BK169: 7.666758209e-05 | BL169: 0.0002437911204 | BM169: -0.0002243770996 | BN169: 6.788320082e-05 | BO169: 6.887513409e-05 | BP169: 6.982558741e-05 | BQ169: 7.092363433e-05 | BR169: 7.202564628e-05 | BS169: 7.31310391e-05 | BT169: 7.424581296e-05 | BU169: 7.536239147e-05 | BW169: Qty | BX169: Trade Waste | BY169: Variable | BZ169: 0.003214537953 | CA169: 0.01206472095 | CB169: 0.01651904758 | CC169: 0.0192010482 | CD169: -0.03124130157 | CE169: -0.0112431963 | CF169: -0.001089864211
E170: Rev | F170: =+F168 -> Trade Waste | G170: =+G168 -> Volume | H170: =+H168 -> Usage Fee (excl Majors) | I170: =+I168 -> Variable | J170: $m | K170: =K168*K169/10^6 -> 0 | L170: 0 | M170: 0 | N170: 0 | O170: 0 | P170: 0 | Q170: 0 | R170: 0 | S170: 0.04465742472 | T170: 0.05129049054 | U170: 0.05572427047 | V170: 0.05705464448 | W170: 0.05899611925 | X170: 0.06516103789 | Y170: 0.05937121397 | Z170: 0.06420996791 | AA170: 0.06745899228 | AB170: 0.07087241729 | AC170: 0.07445856161 | AD170: 0.07822616482 | AE170: 0.08299013826 | AF170: 0.08804423768 | AG170: 0.09340613176 | AK170: Rev | AL170: Trade Waste | AM170: Variable | AN170: - | AO170: 0.1485322064 | AP170: 0.08644448285 | AQ170: 0.02387422917 | AR170: 0.03402833882 | AS170: 0.1044970197 | AT170: -0.08885407764 | AU170: 0.0815 | AV170: 0.0506 | AW170: 0.0506 | AX170: 0.0506 | AY170: 0.0506 | AZ170: 0.0609 | BA170: 0.0609 | BB170: 0.0609 | BD170: Rev | BE170: Trade Waste | BF170: Variable | BG170: =IF(S170="","-",IFERROR((S170/R170-1)*(R170/R$13),"-")) -> - | BH170: 0.0002566580168 | BI170: 0.0001789491136 | BJ170: 5.256511935e-05 | BK170: 7.720872087e-05 | BL170: 0.0002436186949 | BM170: -0.0002244092598 | BN170: 0.0001844160289 | BO170: 0.0001161693928 | BP170: 0.0001177724908 | BQ170: 0.0001196245299 | BR170: 0.0001214832567 | BS170: 0.0001484560094 | BT170: 0.0001507190003 | BU170: 0.0001529856547 | BW170: Rev | BX170: Trade Waste | BY170: Variable | BZ170: 0.003173940944 | CA170: 0.02863114394 | CB170: 0.03407991083 | CC170: 0.03736301529 | CD170: -0.007324667866 | CE170: 0.01161971701 | CF170: 0.02122705797
D171: =D168+1 -> 35 | E171: Price | F171: Water | G171: Standpipe | H171: Registered | I171: Variable | J171: $ | S171: 5.693857422 | T171: 5.683349146 | U171: 5.833202247 | V171: 5.905360444 | W171: 5.978633484 | X171: 5.978596803 | Y171: 5.97 | Z171: 6.2685 | AA171: 6.39387 | AB171: 6.5217474 | AC171: 6.652182348 | AD171: 6.785225995 | AE171: 6.988782775 | AF171: 7.198446258 | AG171: 7.414399646 | AK171: Price | AL171: Water | AM171: Variable | AN171: - | AO171: -0.001845545996 | AP171: 0.0263670412 | AQ171: 0.01237025451 | AR171: 0.01240788623 | AS171: -6.135402191e-06 | AT171: -0.001437929856 | AU171: 0.05 | AV171: 0.02 | AW171: 0.02 | AX171: 0.02 | AY171: 0.02 | AZ171: 0.03 | BA171: 0.03 | BB171: 0.03 | BD171: Price | BE171: Water | BF171: Variable | BG171: =IF(S171="","-",IFERROR((S171/R171-1)*(R173/R$13),"-")) -> - | BH171: -8.286189432e-06 | BI171: 0.000104281866 | BJ171: 9.30009547e-05 | BK171: 4.879663854e-05 | BL171: -5.070467873e-08 | BM171: -1.33322253e-05 | BN171: 0.0003185425813 | BO171: 0.0001255134904 | BP171: 0.0001235393531 | BQ171: 0.0001218272616 | BR171: 0.0001201167131 | BS171: 0.0001776118975 | BT171: 0.0001750673074 | BU171: 0.0001725244025 | BW171: Price | BX171: Water | BY171: Variable | BZ171: -0.0007222890689 | CA171: 0.01590687656 | CB171: 0.01692861498 | CC171: 0.01754215122 | CD171: 0.02395809175 | CE171: 0.02263702418 | CF171: 0.02197712968
E172: Qty | F172: =+F171 -> Water | G172: =+G171 -> Standpipe | H172: =+H171 -> Registered | I172: =+I171 -> Variable | J172: kL | S172: 20379 | T172: 17242 | U172: 32619.54 | V172: 16746 | W172: 34980 | X172: 40012 | Y172: 28000 | Z172: 28000 | AA172: 28000 | AB172: 28000 | AC172: 28000 | AD172: 28000 | AE172: 28000 | AF172: 28000 | AG172: 28000 | AK172: Qty | AL172: Water | AM172: Variable | AN172: - | AO172: -0.1539329702 | AP172: 0.8918652129 | AQ172: -0.4866267274 | AR172: 1.08885704 | AS172: 0.1438536306 | AT172: -0.300209937 | AU172: 0 | AV172: 0 | AW172: 0 | AX172: 0 | AY172: 0 | AZ172: 0 | BA172: 0 | BB172: 0 | BD172: Qty | BE172: Water | BF172: Variable | BG172: =IF(S172="","-",IFERROR((S172/R172-1)*(R173/R$13),"-")) -> - | BH172: -0.0006911330057 | BI172: 0.003527334293 | BJ172: -0.003658514073 | BK172: 0.004282160752 | BL172: 0.001188846615 | BM172: -0.002783492184 | BN172: 0 | BO172: 0 | BP172: 0 | BQ172: 0 | BR172: 0 | BS172: 0 | BT172: 0 | BU172: 0 | BW172: Qty | BX172: Water | BY172: Variable | BZ172: -0.1053171488 | CA172: -0.07150534345 | CB172: -0.05412323678 | CC172: -0.04353816529 | CD172: -0.1634654442 | CE172: -0.1121847709 | CF172: -0.08537736975
E173: Rev | F173: =+F171 -> Water | G173: =+G171 -> Standpipe | H173: =+H171 -> Registered | I173: =+I171 -> Variable | J173: $m | K173: =K171*K172/10^6 -> 0 | L173: 0 | M173: 0 | N173: 0 | O173: 0 | P173: 0 | Q173: 0 | R173: 0 | S173: 0.1160351204 | T173: 0.09799230598 | U173: 0.190276374 | V173: 0.09889116599 | W173: 0.2091325993 | X173: 0.2392156153 | Y173: 0.16716 | Z173: 0.175518 | AA173: 0.17902836 | AB173: 0.1826089272 | AC173: 0.1862611057 | AD173: 0.1899863279 | AE173: 0.1956859177 | AF173: 0.2015564952 | AG173: 0.2076031901 | AK173: Rev | AL173: Water | AM173: Variable | AN173: - | AO173: -0.1554944258 | AP173: 0.9417481009 | AQ173: -0.4802761694 | AR173: 1.114775341 | AS173: 0.1438466126 | AT173: -0.301216186 | AU173: 0.05 | AV173: 0.02 | AW173: 0.02 | AX173: 0.02 | AY173: 0.02 | AZ173: 0.03 | BA173: 0.03 | BB173: 0.03 | BD173: Rev | BE173: Water | BF173: Variable | BG173: =IF(S173="","-",IFERROR((S173/R173-1)*(R173/R$13),"-")) -> - | BH173: -0.0006981436773 | BI173: 0.003724621527 | BJ173: -0.003610769869 | BK173: 0.004384089954 | BL173: 0.001188788616 | BM173: -0.002792821943 | BN173: 0.0003185425813 | BO173: 0.0001255134904 | BP173: 0.0001235393531 | BQ173: 0.0001218272616 | BR173: 0.0001201167131 | BS173: 0.0001776118975 | BT173: 0.0001750673074 | BU173: 0.0001725244025 | BW173: Rev | BX173: Water | BY173: Variable | BZ173: -0.1059633684 | CA173: -0.05673589357 | CB173: -0.03811085324 | CC173: -0.02675976715 | CD173: -0.1434236726 | CE173: -0.0920872761 | CF173: -0.0652765896
D174: =D171+1 -> 36 | E174: Price | F174: Water | G174: Standpipe | H174: Non-Registered | I174: Variable | J174: $ | S174: 7.588095703 | T174: 7.577798861 | U174: 7.777602996 | V174: 7.87732902 | W174: 7.971511312 | X174: 7.964706927 | Y174: 7.96 | Z174: 8.358 | AA174: 8.52516 | AB174: 8.6956632 | AC174: 8.869576464 | AD174: 9.046967993 | AE174: 9.318377033 | AF174: 9.597928344 | AG174: 9.885866194 | AK174: Price | AL174: Water | AM174: Variable | AN174: - | AO174: -0.001356973086 | AP174: 0.0263670412 | AQ174: 0.01282220552 | AR174: 0.01195612011 | AS174: -0.0008535878298 | AT174: -0.0005909730539 | AU174: 0.05 | AV174: 0.02 | AW174: 0.02 | AX174: 0.02 | AY174: 0.02 | AZ174: 0.03 | BA174: 0.03 | BB174: 0.03 | BD174: Price | BE174: Water | BF174: Variable | BG174: =IF(S174="","-",IFERROR((S174/R174-1)*(R176/R$13),"-")) -> - | BH174: 0 | BI174: 0 | BJ174: 0 | BK174: 0 | BL174: 0 | BM174: 0 | BN174: 0 | BO174: 0 | BP174: 0 | BQ174: 0 | BR174: 0 | BS174: 0 | BT174: 0 | BU174: 0 | BW174: Price | BX174: Water | BY174: Variable | BZ174: -0.0007222890689 | CA174: 0.01590687656 | CB174: 0.01692861498 | CC174: 0.01754215122 | CD174: 0.02439224826 | CE174: 0.02292606801 | CF174: 0.02219376501
E175: Qty | F175: =+F174 -> Water | G175: =+G174 -> Standpipe | H175: =+H174 -> Non-Registered | I175: =+I174 -> Variable | J175: kL | S175: 0 | T175: 0 | U175: 0 | V175: 0 | W175: 0 | X175: 0 | Y175: 0 | Z175: 0 | AA175: 0 | AB175: 0 | AC175: 0 | AD175: 0 | AE175: 0 | AF175: 0 | AG175: 0 | AK175: Qty | AL175: Water | AM175: Variable | AN175: - | AO175: - | AP175: - | AQ175: - | AR175: - | AS175: - | AT175: - | AU175: - | AV175: - | AW175: - | AX175: - | AY175: - | AZ175: - | BA175: - | BB175: - | BD175: Qty | BE175: Water | BF175: Variable | BG175: =IF(S175="","-",IFERROR((S175/R175-1)*(R176/R$13),"-")) -> - | BH175: - | BI175: - | BJ175: - | BK175: - | BL175: - | BM175: - | BN175: - | BO175: - | BP175: - | BQ175: - | BR175: - | BS175: - | BT175: - | BU175: - | BW175: Qty | BX175: Water | BY175: Variable | BZ175: - | CA175: - | CB175: - | CC175: - | CD175: - | CE175: - | CF175: -
E176: Rev | F176: =+F174 -> Water | G176: =+G174 -> Standpipe | H176: =+H174 -> Non-Registered | I176: =+I174 -> Variable | J176: $m | K176: =K174*K175/10^6 -> 0 | L176: 0 | M176: 0 | N176: 0 | O176: 0 | P176: 0 | Q176: 0 | R176: 0 | S176: 0 | T176: 0 | U176: 0 | V176: 0 | W176: 0 | X176: 0 | Y176: 0 | Z176: 0 | AA176: 0 | AB176: 0 | AC176: 0 | AD176: 0 | AE176: 0 | AF176: 0 | AG176: 0 | AK176: Rev | AL176: Water | AM176: Variable | AN176: - | AO176: - | AP176: - | AQ176: - | AR176: - | AS176: - | AT176: - | AU176: - | AV176: - | AW176: - | AX176: - | AY176: - | AZ176: - | BA176: - | BB176: - | BD176: Rev | BE176: Water | BF176: Variable | BG176: =IF(S176="","-",IFERROR((S176/R176-1)*(R176/R$13),"-")) -> - | BH176: - | BI176: - | BJ176: - | BK176: - | BL176: - | BM176: - | BN176: - | BO176: - | BP176: - | BQ176: - | BR176: - | BS176: - | BT176: - | BU176: - | BW176: Rev | BX176: Water | BY176: Variable | BZ176: - | CA176: - | CB176: - | CC176: - | CD176: - | CE176: - | CF176: -
D177: =D174+1 -> 37 | E177: Price | F177: Water | G177: Info Statements | I177: Fixed | J177: $ | S177: 52.37011719 | T177: 52.50332068 | U177: 52.50950375 | V177: 52.5155268 | W177: 52.50665158 | X177: 57.75932504 | Y177: 57.75 | Z177: 57.75 | AA177: 57.75 | AB177: 57.75 | AC177: 57.75 | AD177: 57.75 | AE177: 57.75 | AF177: 57.75 | AG177: 57.75 | AK177: Price | AL177: Water | AM177: Fixed | AN177: - | AO177: 0.002543501958 | AP177: 0.0001177651647 | AQ177: 0.0001147041292 | AR177: -0.0001690017991 | AS177: 0.1000382485 | AT177: -0.0001614465612 | AU177: 0 | AV177: 0 | AW177: 0 | AX177: 0 | AY177: 0 | AZ177: 0 | BA177: 0 | BB177: 0 | BD177: Price | BE177: Water | BF177: Fixed | BG177: =IF(S177="","-",IFERROR((S177/R177-1)*(R179/R$13),"-")) -> - | BH177: 3.347279707e-06 | BI177: 1.766232888e-07 | BJ177: 1.827946511e-07 | BK177: -3.027284529e-07 | BL177: 0.0002081922693 | BM177: -2.947476092e-07 | BN177: 0 | BO177: 0 | BP177: 0 | BQ177: 0 | BR177: 0 | BS177: 0 | BT177: 0 | BU177: 0 | BW177: Price | BX177: Water | BY177: Fixed | BZ177: 0.0487424141 | CA177: 0.0322365236 | CB177: 0.02408125366 | CC177: 0.01921905144 | CD177: -8.072653898e-05 | CE177: -5.381841677e-05 | CF177: -4.036408412e-05
E178: Qty | F178: =+F177 -> Water | G178: =+G177 -> Info Statements | H178: =+H177 -> 0 | I178: =+I177 -> Fixed | J178: cust | S178: 649.4352472 | T178: 707.7647569 | U178: 768.1085732 | V178: 857.7082387 | W178: 1003 | X178: 815.5 | Y178: 850 | Z178: 850 | AA178: 850 | AB178: 850 | AC178: 850 | AD178: 850 | AE178: 850 | AF178: 850 | AG178: 850 | AK178: Qty | AL178: Water | AM178: Fixed | AN178: - | AO178: 0.08981574374 | AP178: 0.08525970767 | AQ178: 0.1166497403 | AR178: 0.1693953196 | AS178: -0.1869391825 | AT178: 0.04230533415 | AU178: 0 | AV178: 0 | AW178: 0 | AX178: 0 | AY178: 0 | AZ178: 0 | BA178: 0 | BB178: 0 | BD178: Qty | BE178: Water | BF178: Fixed | BG178: =IF(S178="","-",IFERROR((S178/R178-1)*(R179/R$13),"-")) -> - | BH178: 0.000118198618 | BI178: 0.0001278718542 | BJ178: 0.0001858952134 | BK178: 0.0003034333559 | BL178: -0.0003890441226 | BM178: 7.723543942e-05 | BN178: 0 | BO178: 0 | BP178: 0 | BQ178: 0 | BR178: 0 | BS178: 0 | BT178: 0 | BU178: 0 | BW178: Qty | BX178: Water | BY178: Fixed | BZ178: -0.0794253821 | CA178: -0.05367714092 | CB178: -0.04053420181 | CC178: -0.0325609831 | CD178: 0.02093356011 | CE178: 0.01390746385 | CF178: 0.01041256925
E179: Rev | F179: =+F177 -> Water | G179: =+G177 -> Info Statements | H179: =+H177 -> 0 | I179: =+I177 -> Fixed | J179: $m | K179: =K177*K178/10^6 -> 0 | L179: 0 | M179: 0 | N179: 0 | O179: 0 | P179: 0 | Q179: 0 | R179: 0 | S179: 0.034011 | T179: 0.03716 | U179: 0.040333 | V179: 0.045043 | W179: 0.05266417154 | X179: 0.04710272957 | Y179: 0.0490875 | Z179: 0.0490875 | AA179: 0.0490875 | AB179: 0.0490875 | AC179: 0.0490875 | AD179: 0.0490875 | AE179: 0.0490875 | AF179: 0.0490875 | AG179: 0.0490875 | AK179: Rev | AL179: Water | AM179: Fixed | AN179: - | AO179: 0.09258769222 | AP179: 0.08538751346 | AQ179: 0.1167778246 | AR179: 0.1691976897 | AS179: -0.1056020023 | AT179: 0.04213705754 | AU179: 0 | AV179: 0 | AW179: 0 | AX179: 0 | AY179: 0 | AZ179: 0 | BA179: 0 | BB179: 0 | BD179: Rev | BE179: Water | BF179: Fixed | BG179: =IF(S179="","-",IFERROR((S179/R179-1)*(R179/R$13),"-")) -> - | BH179: 0.0001218465362 | BI179: 0.0001280635364 | BJ179: 0.000186099331 | BK179: 0.0003030793467 | BL179: -0.0002197711459 | BM179: 7.692822242e-05 | BN179: 0 | BO179: 0 | BP179: 0 | BQ179: 0 | BR179: 0 | BS179: 0 | BT179: 0 | BU179: 0 | BW179: Rev | BX179: Water | BY179: Fixed | BZ179: -0.03455435286 | CA179: -0.02317098175 | CB179: -0.01742906254 | CC179: -0.01396772288 | CD179: 0.02085114367 | CE179: 0.01385289696 | CF179: 0.01037178488
D180: =D177+1 -> 38 | E180: Price | F180: Sewerage | G180: Info Statements | I180: Fixed | J180: $ | S180: 52.37011719 | T180: 52.50332068 | U180: 52.50950375 | V180: 52.5155268 | W180: 52.50665158 | X180: 57.75932504 | Y180: 57.75 | Z180: 57.75 | AA180: 57.75 | AB180: 57.75 | AC180: 57.75 | AD180: 57.75 | AE180: 57.75 | AF180: 57.75 | AG180: 57.75 | AK180: Price | AL180: Sewerage | AM180: Fixed | AN180: - | AO180: 0.002543501958 | AP180: 0.0001177651647 | AQ180: 0.0001147041292 | AR180: -0.0001690017991 | AS180: 0.1000382485 | AT180: -0.0001614465612 | AU180: 0 | AV180: 0 | AW180: 0 | AX180: 0 | AY180: 0 | AZ180: 0 | BA180: 0 | BB180: 0 | BD180: Price | BE180: Sewerage | BF180: Fixed | BG180: =IF(S180="","-",IFERROR((S180/R180-1)*(R182/R$13),"-")) -> - | BH180: 2.94022467e-06 | BI180: 1.528960698e-07 | BJ180: 1.715096318e-07 | BK180: -2.876736889e-07 | BL180: 0.0002081714512 | BM180: -2.949568591e-07 | BN180: 0 | BO180: 0 | BP180: 0 | BQ180: 0 | BR180: 0 | BS180: 0 | BT180: 0 | BU180: 0 | BW180: Price | BX180: Sewerage | BY180: Fixed | BZ180: 0.0487424141 | CA180: 0.0322365236 | CB180: 0.02408125366 | CC180: 0.01921905144 | CD180: -8.072653898e-05 | CE180: -5.381841677e-05 | CF180: -4.036408412e-05
E181: Qty | F181: =+F180 -> Sewerage | G181: =+G180 -> Info Statements | H181: =+H180 -> 0 | I181: =+I180 -> Fixed | J181: cust | S181: 570.4589106 | T181: 612.6850565 | U181: 720.6885859 | V181: 815.0541869 | W181: 1002.899705 | X181: 816.0789474 | Y181: 850 | Z181: 850 | AA181: 850 | AB181: 850 | AC181: 850 | AD181: 850 | AE181: 850 | AF181: 850 | AG181: 850 | AK181: Qty | AL181: Sewerage | AM181: Fixed | AN181: - | AO181: 0.07402136264 | AP181: 0.1762790331 | AQ181: 0.1309381096 | AR181: 0.230469975 | AS181: -0.1862805989 | AT181: 0.04156589597 | AU181: 0 | AV181: 0 | AW181: 0 | AX181: 0 | AY181: 0 | AZ181: 0 | BA181: 0 | BB181: 0 | BD181: Qty | BE181: Sewerage | BF181: Fixed | BG181: =IF(S181="","-",IFERROR((S181/R181-1)*(R182/R$13),"-")) -> - | BH181: 8.55668445e-05 | BI181: 0.0002288653986 | BJ181: 0.0001957832481 | BK181: 0.0003923043911 | BL181: -0.0003876347613 | BM181: 7.593934509e-05 | BN181: 0 | BO181: 0 | BP181: 0 | BQ181: 0 | BR181: 0 | BS181: 0 | BT181: 0 | BU181: 0 | BW181: Qty | BX181: Sewerage | BY181: Fixed | BZ181: -0.07937935222 | CA181: -0.0536455963 | CB181: -0.04051021486 | CC181: -0.03254163413 | CD181: 0.02057135761 | CE181: 0.01366764313 | CF181: 0.0102333184
E182: Rev | F182: =+F180 -> Sewerage | G182: =+G180 -> Info Statements | H182: =+H180 -> 0 | I182: =+I180 -> Fixed | J182: $m | K182: =K180*K181/10^6 -> 0 | L182: 0 | M182: 0 | N182: 0 | O182: 0 | P182: 0 | Q182: 0 | R182: 0 | S182: 0.029875 | T182: 0.032168 | U182: 0.037843 | V182: 0.042803 | W182: 0.05265890538 | X182: 0.04713616918 | Y182: 0.0490875 | Z182: 0.0490875 | AA182: 0.0490875 | AB182: 0.0490875 | AC182: 0.0490875 | AD182: 0.0490875 | AE182: 0.0490875 | AF182: 0.0490875 | AG182: 0.0490875 | AK182: Rev | AL182: Sewerage | AM182: Fixed | AN182: - | AO182: 0.07675313808 | AP182: 0.1764175578 | AQ182: 0.1310678329 | AR182: 0.2302620233 | AS182: -0.1048775352 | AT182: 0.04139773874 | AU182: 0 | AV182: 0 | AW182: 0 | AX182: 0 | AY182: 0 | AZ182: 0 | BA182: 0 | BB182: 0 | BD182: Rev | BE182: Sewerage | BF182: Fixed | BG182: =IF(S182="","-",IFERROR((S182/R182-1)*(R182/R$13),"-")) -> - | BH182: 8.872470861e-05 | BI182: 0.0002290452471 | BJ182: 0.0001959772148 | BK182: 0.0003919504173 | BL182: -0.0002182416127 | BM182: 7.563212809e-05 | BN182: 0 | BO182: 0 | BP182: 0 | BQ182: 0 | BR182: 0 | BS182: 0 | BT182: 0 | BU182: 0 | BW182: Rev | BX182: Sewerage | BY182: Fixed | BZ182: -0.03450607937 | CA182: -0.02313842024 | CB182: -0.01740449796 | CC182: -0.01394800203 | CD182: 0.02048897042 | CE182: 0.01361308914 | CF182: 0.01019254126
D183: =D180+1 -> 39 | E183: Price | F183: Water | G183: Water Tapping Fees | I183: Fixed | J183: $ | S183: 398.9042969 | T183: 398.9169829 | U183: 399.0294944 | V183: 399.1390943 | W183: 399.0918552 | X183: 399.0460036 | Y183: 399.08 | Z183: 399.08 | AA183: 399.08 | AB183: 399.08 | AC183: 399.08 | AD183: 399.08 | AE183: 399.08 | AF183: 399.08 | AG183: 399.08 | AK183: Price | AL183: Water | AM183: Fixed | AN183: - | AO183: 3.180223252e-05 | AP183: 0.0002820422911 | AQ183: 0.0002746661322 | AR183: -0.0001183523913 | AS183: -0.0001148899699 | AT183: 8.519430667e-05 | AU183: 0 | AV183: 0 | AW183: 0 | AX183: 0 | AY183: 0 | AZ183: 0 | BA183: 0 | BB183: 0 | BD183: Price | BE183: Water | BF183: Fixed | BG183: =IF(S183="","-",IFERROR((S183/R183-1)*(R185/R$13),"-")) -> - | BH183: 1.297808488e-07 | BI183: 9.360974619e-07 | BJ183: 1.086420124e-06 | BK183: -4.339387487e-07 | BL183: -4.969362917e-07 | BM183: 3.647201366e-07 | BN183: 0 | BO183: 0 | BP183: 0 | BQ183: 0 | BR183: 0 | BS183: 0 | BT183: 0 | BU183: 0 | BW183: Price | BX183: Water | BY183: Fixed | BZ183: -1.485283589e-05 | CA183: -9.901915107e-06 | CB183: -7.426445522e-06 | CC183: -5.94116083e-06 | CD183: 4.259624612e-05 | CE183: 2.839729581e-05 | CF183: 2.129789626e-05
E184: Qty | F184: =+F183 -> Water | G184: =+G183 -> Water Tapping Fees | H184: =+H183 -> 0 | I184: =+I183 -> Fixed | J184: cust | S184: 264.3892303 | T184: 206.1431414 | U184: 250.878698 | V184: 230.9896508 | W184: 274.26 | X184: 276.7902489 | Y184: 257 | Z184: 257 | AA184: 257 | AB184: 257 | AC184: 257 | AD184: 257 | AE184: 257 | AF184: 257 | AG184: 257 | AK184: Qty | AL184: Water | AM184: Fixed | AN184: - | AO184: -0.2203043174 | AP184: 0.2170121029 | AQ184: -0.07927754465 | AR184: 0.1873259216 | AS184: 0.009225730538 | AT184: -0.07149908257 | AU184: 0 | AV184: 0 | AW184: 0 | AX184: 0 | AY184: 0 | AZ184: 0 | BA184: 0 | BB184: 0 | BD184: Qty | BE184: Water | BF184: Fixed | BG184: =IF(S184="","-",IFERROR((S184/R184-1)*(R185/R$13),"-")) -> - | BH184: -0.0008990337802 | BI184: 0.0007202624754 | BJ184: -0.0003135760468 | BK184: 0.0006868300265 | BL184: 3.990426951e-05 | BM184: -0.0003060903502 | BN184: 0 | BO184: 0 | BP184: 0 | BQ184: 0 | BR184: 0 | BS184: 0 | BT184: 0 | BU184: 0 | BW184: Qty | BX184: Water | BY184: Fixed | BZ184: -0.03197778089 | CA184: -0.021433786 | CB184: -0.01611879827 | CC184: -0.01291595908 | CD184: -0.03641247547 | CE184: -0.02442473836 | CF184: -0.01837505913
E185: Rev | F185: =+F183 -> Water | G185: =+G183 -> Water Tapping Fees | H185: =+H183 -> 0 | I185: =+I183 -> Fixed | J185: $m | K185: =K183*K184/10^6 -> 0 | L185: 0 | M185: 0 | N185: 0 | O185: 0 | P185: 0 | Q185: 0 | R185: 0 | S185: 0.105466 | T185: 0.082234 | U185: 0.100108 | V185: 0.092197 | W185: 0.1094549322 | X185: 0.1104520426 | Y185: 0.10256356 | Z185: 0.10256356 | AA185: 0.10256356 | AB185: 0.10256356 | AC185: 0.10256356 | AD185: 0.10256356 | AE185: 0.10256356 | AF185: 0.10256356 | AG185: 0.10256356 | AK185: Rev | AL185: Water | AM185: Fixed | AN185: - | AO185: -0.2202795214 | AP185: 0.2173553518 | AQ185: -0.07902465337 | AR185: 0.1871853987 | AS185: 0.009109780624 | AT185: -0.07141997958 | AU185: 0 | AV185: 0 | AW185: 0 | AX185: 0 | AY185: 0 | AZ185: 0 | BA185: 0 | BB185: 0 | BD185: Rev | BE185: Water | BF185: Fixed | BG185: =IF(S185="","-",IFERROR((S185/R185-1)*(R185/R$13),"-")) -> - | BH185: -0.0008989325907 | BI185: 0.0007214017173 | BJ185: -0.0003125757554 | BK185: 0.0006863147998 | BL185: 3.940274862e-05 | BM185: -0.0003057517072 | BN185: 0 | BO185: 0 | BP185: 0 | BQ185: 0 | BR185: 0 | BS185: 0 | BT185: 0 | BU185: 0 | BW185: Rev | BX185: Water | BY185: Fixed | BZ185: -0.03199215876 | CA185: -0.02144347568 | CB185: -0.01612610501 | CC185: -0.01292182351 | CD185: -0.03637143026 | CE185: -0.02439703466 | CF185: -0.01835415259
D186: =D183+1 -> 40 | E186: Price | F186: Water | G186: PIC Fee | I186: Fixed | J186: $ | S186: 223.9658203 | T186: 224.0863378 | U186: 224.3539326 | V186: 224.4036969 | W186: 224.0696833 | X186: 224.0453819 | Y186: 224.06 | Z186: 224.06 | AA186: 224.06 | AB186: 224.06 | AC186: 224.06 | AD186: 224.06 | AE186: 224.06 | AF186: 224.06 | AG186: 224.06 | AK186: Price | AL186: Water | AM186: Fixed | AN186: - | AO186: 0.0005381064318 | AP186: 0.001194159475 | AQ186: 0.0002218114603 | AR186: -0.001488449631 | AS186: -0.0001084545432 | AT186: 6.524623318e-05 | AU186: 0 | AV186: 0 | AW186: 0 | AX186: 0 | AY186: 0 | AZ186: 0 | BA186: 0 | BB186: 0 | BD186: Price | BE186: Water | BF186: Fixed | BG186: =IF(S186="","-",IFERROR((S186/R186-1)*(R188/R$13),"-")) -> - | BH186: 1.374749903e-06 | BI186: 3.430933791e-06 | BJ186: 6.296751068e-07 | BK186: -4.281887428e-06 | BL186: -3.938639571e-07 | BM186: 2.024441382e-07 | BN186: 0 | BO186: 0 | BP186: 0 | BQ186: 0 | BR186: 0 | BS186: 0 | BT186: 0 | BU186: 0 | BW186: Price | BX186: Water | BY186: Fixed | BZ186: -2.16079266e-05 | CA186: -1.440533628e-05 | CB186: -1.080402166e-05 | CC186: -8.643226668e-06 | CD186: 3.262258447e-05 | CE186: 2.17482714e-05 | CF186: 1.631115921e-05
E187: Qty | F187: =+F186 -> Water | G187: =+G186 -> PIC Fee | H187: =+H186 -> 0 | I187: =+I186 -> Fixed | J187: cust | S187: 294.8039121 | T187: 317.6722004 | U187: 320.2395393 | V187: 322.3565432 | W187: 410.14 | X187: 357.3043872 | Y187: 359 | Z187: 359 | AA187: 359 | AB187: 359 | AC187: 359 | AD187: 359 | AE187: 359 | AF187: 359 | AG187: 359 | AK187: Qty | AL187: Water | AM187: Fixed | AN187: - | AO187: 0.07757118343 | AP187: 0.008081723331 | AQ187: 0.006610688837 | AR187: 0.2723178997 | AS187: -0.1288233599 | AT187: 0.00474556962 | AU187: 0 | AV187: 0 | AW187: 0 | AX187: 0 | AY187: 0 | AZ187: 0 | BA187: 0 | BB187: 0 | BD187: Qty | BE187: Water | BF187: Fixed | BG187: =IF(S187="","-",IFERROR((S187/R187-1)*(R188/R$13),"-")) -> - | BH187: 0.0001981782238 | BI187: 2.321956008e-05 | BJ187: 1.876632612e-05 | BK187: 0.0007833886798 | BL187: -0.0004678354341 | BM187: 1.472441711e-05 | BN187: 0 | BO187: 0 | BP187: 0 | BQ187: 0 | BR187: 0 | BS187: 0 | BT187: 0 | BU187: 0 | BW187: Qty | BX187: Water | BY187: Fixed | BZ187: -0.06441950135 | CA187: -0.04342115119 | CB187: -0.03274589758 | CC187: -0.02628364586 | CD187: 0.002369976416 | CE187: 0.001579360846 | CF187: 0.00118428694
E188: Rev | F188: =+F186 -> Water | G188: =+G186 -> PIC Fee | H188: =+H186 -> 0 | I188: =+I186 -> Fixed | J188: $m | K188: =K186*K187/10^6 -> 0 | L188: 0 | M188: 0 | N188: 0 | O188: 0 | P188: 0 | Q188: 0 | R188: 0 | S188: 0.066026 | T188: 0.071186 | U188: 0.071847 | V188: 0.072338 | W188: 0.09189993989 | X188: 0.08005239787 | Y188: 0.08043754 | Z188: 0.08043754 | AA188: 0.08043754 | AB188: 0.08043754 | AC188: 0.08043754 | AD188: 0.08043754 | AE188: 0.08043754 | AF188: 0.08043754 | AG188: 0.08043754 | AK188: Rev | AL188: Water | AM188: Fixed | AN188: - | AO188: 0.07815103141 | AP188: 0.009285533672 | AQ188: 0.006833966624 | AR188: 0.2704241186 | AS188: -0.128917843 | AT188: 0.004811125484 | AU188: 0 | AV188: 0 | AW188: 0 | AX188: 0 | AY188: 0 | AZ188: 0 | BA188: 0 | BB188: 0 | BD188: Rev | BE188: Water | BF188: Fixed | BG188: =IF(S188="","-",IFERROR((S188/R188-1)*(R188/R$13),"-")) -> - | BH188: 0.0001996596147 | BI188: 2.667822173e-05 | BJ188: 1.940016381e-05 | BK188: 0.0007779407578 | BL188: -0.0004681785592 | BM188: 1.492782196e-05 | BN188: 0 | BO188: 0 | BP188: 0 | BQ188: 0 | BR188: 0 | BS188: 0 | BT188: 0 | BU188: 0 | BW188: Rev | BX188: Water | BY188: Fixed | BZ188: -0.0644397173 | CA188: -0.04343493103 | CB188: -0.03275634781 | CC188: -0.02629206191 | CD188: 0.002402676315 | CE188: 0.001601143466 | CF188: 0.001200617417
D189: =D186+1 -> 41 | E189: Price | F189: Water | G189: Special Meter Reads | I189: Fixed | J189: $ | S189: 26.7421875 | T189: 26.79293169 | U189: 26.8156367 | V189: 26.78502773 | W189: 26.79542986 | X189: 44.38348135 | Y189: 44.39 | Z189: 44.39 | AA189: 44.39 | AB189: 44.39 | AC189: 44.39 | AD189: 44.39 | AE189: 44.39 | AF189: 44.39 | AG189: 44.39 | AK189: Price | AL189: Water | AM189: Fixed | AN189: - | AO189: 0.001897533207 | AP189: 0.0008474255665 | AQ189: -0.001141460038 | AR189: 0.0003883564328 | AS189: 0.6563825091 | AT189: 0.0001468710856 | AU189: 0 | AV189: 0 | AW189: 0 | AX189: 0 | AY189: 0 | AZ189: 0 | BA189: 0 | BB189: 0 | BD189: Price | BE189: Water | BF189: Fixed | BG189: =IF(S189="","-",IFERROR((S189/R189-1)*(R191/R$13),"-")) -> - | BH189: 8.298225163e-07 | BI189: 4.680260714e-07 | BJ189: -6.086809167e-07 | BK189: 1.977782848e-07 | BL189: 0.0004017249724 | BM189: 1.211374063e-07 | BN189: 0 | BO189: 0 | BP189: 0 | BQ189: 0 | BR189: 0 | BS189: 0 | BT189: 0 | BU189: 0 | BW189: Price | BX189: Water | BY189: Fixed | BZ189: 0.2870997567 | CA189: 0.1832453474 | CB189: 0.1345041898 | CC189: 0.1062286024 | CD189: 7.343284661e-05 | CE189: 4.895463194e-05 | CF189: 3.671574928e-05
E190: Qty | F190: =+F189 -> Water | G190: =+G189 -> Special Meter Reads | H190: =+H189 -> 0 | I190: =+I189 -> Fixed | J190: cust | S190: 422.628104 | T190: 510.7317168 | U190: 503.2884413 | V190: 478.1029212 | W190: 578 | X190: 479.4520548 | Y190: 530 | Z190: 530 | AA190: 530 | AB190: 530 | AC190: 530 | AD190: 530 | AE190: 530 | AF190: 530 | AG190: 530 | AK190: Qty | AL190: Water | AM190: Fixed | AN190: - | AO190: 0.2084660532 | AP190: -0.0145737483 | AQ190: -0.05004192045 | AR190: 0.2089447154 | AS190: -0.1704981751 | AT190: 0.1054285714 | AU190: 0 | AV190: 0 | AW190: 0 | AX190: 0 | AY190: 0 | AZ190: 0 | BA190: 0 | BB190: 0 | BD190: Qty | BE190: Water | BF190: Fixed | BG190: =IF(S190="","-",IFERROR((S190/R190-1)*(R191/R$13),"-")) -> - | BH190: 9.116563768e-05 | BI190: -8.048959617e-06 | BJ190: -2.668473797e-05 | BK190: 0.0001064092775 | BL190: -0.0001043497865 | BM190: 8.69561469e-05 | BN190: 0 | BO190: 0 | BP190: 0 | BQ190: 0 | BR190: 0 | BS190: 0 | BT190: 0 | BU190: 0 | BW190: Qty | BX190: Water | BY190: Fixed | BZ190: -0.04242231788 | CA190: -0.02848537287 | CB190: -0.02144101756 | CC190: -0.01718991061 | CD190: 0.05139363296 | CE190: 0.03397545277 | CF190: 0.02537487436
E191: Rev | F191: =+F189 -> Water | G191: =+G189 -> Special Meter Reads | H191: =+H189 -> 0 | I191: =+I189 -> Fixed | J191: $m | K191: =K189*K190/10^6 -> 0 | L191: 0 | M191: 0 | N191: 0 | O191: 0 | P191: 0 | Q191: 0 | R191: 0 | S191: 0.011302 | T191: 0.013684 | U191: 0.013496 | V191: 0.012806 | W191: 0.01548775846 | X191: 0.02127975133 | Y191: 0.0235267 | Z191: 0.0235267 | AA191: 0.0235267 | AB191: 0.0235267 | AC191: 0.0235267 | AD191: 0.0235267 | AE191: 0.0235267 | AF191: 0.0235267 | AG191: 0.0235267 | AK191: Rev | AL191: Water | AM191: Fixed | AN191: - | AO191: 0.2107591577 | AP191: -0.0137386729 | AQ191: -0.05112625963 | AR191: 0.2094142169 | AS191: 0.373972314 | AT191: 0.1055909269 | AU191: 0 | AV191: 0 | AW191: 0 | AX191: 0 | AY191: 0 | AZ191: 0 | BA191: 0 | BB191: 0 | BD191: Rev | BE191: Water | BF191: Fixed | BG191: =IF(S191="","-",IFERROR((S191/R191-1)*(R191/R$13),"-")) -> - | BH191: 9.216845002e-05 | BI191: -7.58775444e-06 | BJ191: -2.726295932e-05 | BK191: 0.0001066483805 | BL191: 0.0002288818112 | BM191: 8.709005565e-05 | BN191: 0 | BO191: 0 | BP191: 0 | BQ191: 0 | BR191: 0 | BS191: 0 | BT191: 0 | BU191: 0 | BW191: Rev | BX191: Water | BY191: Fixed | BZ191: 0.2324980017 | CA191: 0.1495401625 | CB191: 0.1101792656 | CC191: 0.08721263158 | CD191: 0.05147083979 | CE191: 0.03402607066 | CF191: 0.02541252176
D192: =D189+1 -> 42 | E192: Price | F192: Water | G192: Access Fee | H192: Southern (Non-Res) | I192: Fixed | J192: $ | S192: 381.5107324 | T192: 338.4028463 | U192: 324.1914326 | V192: 0 | W192: 0 | X192: 0 | Y192: 0 | Z192: 0 | AA192: 0 | AB192: 0 | AC192: 0 | AD192: 0 | AE192: 0 | AF192: 0 | AG192: 0 | AK192: Price | AL192: Water | AM192: Fixed | AN192: - | AO192: -0.1129925909 | AP192: -0.04199555019 | AQ192: -1 | AR192: - | AS192: - | AT192: - | AU192: - | AV192: - | AW192: - | AX192: - | AY192: - | AZ192: - | BA192: - | BB192: - | BD192: Price | BE192: Water | BF192: Fixed | BG192: =IF(S192="","-",IFERROR((S192/R192-1)*(R194/R$13),"-")) -> - | BH192: -0.001764748907 | BI192: -0.0006128683972 | BJ192: -0.0136803337 | BK192: - | BL192: - | BM192: - | BN192: - | BO192: - | BP192: - | BQ192: - | BR192: - | BS192: - | BT192: - | BU192: - | BW192: Price | BX192: Water | BY192: Fixed | BZ192: - | CA192: - | CB192: - | CC192: - | CD192: - | CE192: - | CF192: -
E193: Qty | F193: =+F192 -> Water | G193: =+G192 -> Access Fee | H193: =+H192 -> Southern (Non-Res) | I193: =+I192 -> Fixed | J193: cust | S193: 1058 | T193: 1068.5 | U193: 1068 | AK193: Qty | AL193: Water | AM193: Fixed | AN193: - | AO193: 0.009924385633 | AP193: -0.0004679457183 | AQ193: - | AR193: - | AS193: - | AT193: - | AU193: - | AV193: - | AW193: - | AX193: - | AY193: - | AZ193: - | BA193: - | BB193: - | BD193: Qty | BE193: Water | BF193: Fixed | BG193: =IF(S193="","-",IFERROR((S193/R193-1)*(R194/R$13),"-")) -> - | BH193: 0.0001550017444 | BI193: -6.829036435e-06 | BJ193: - | BK193: - | BL193: - | BM193: - | BN193: - | BO193: - | BP193: - | BQ193: - | BR193: - | BS193: - | BT193: - | BU193: - | BW193: Qty | BX193: Water | BY193: Fixed | BZ193: - | CA193: - | CB193: - | CC193: - | CD193: - | CE193: - | CF193: -
E194: Rev | F194: =+F192 -> Water | G194: =+G192 -> Access Fee | H194: =+H192 -> Southern (Non-Res) | I194: =+I192 -> Fixed | J194: $m | K194: =K192*K193/10^6 -> 0 | L194: 0 | M194: 0 | N194: 0 | O194: 0 | P194: 0 | Q194: 0 | R194: 0 | S194: 0.4036383549 | T194: 0.3615834413 | U194: 0.34623645 | V194: 0 | W194: 0 | X194: 0 | Y194: 0 | Z194: 0 | AA194: 0 | AB194: 0 | AC194: 0 | AD194: 0 | AE194: 0 | AF194: 0 | AG194: 0 | AK194: Rev | AL194: Water | AM194: Fixed | AN194: - | AO194: -0.1041895873 | AP194: -0.04244384427 | AQ194: -1 | AR194: - | AS194: - | AT194: - | AU194: - | AV194: - | AW194: - | AX194: - | AY194: - | AZ194: - | BA194: - | BB194: - | BD194: Rev | BE194: Water | BF194: Fixed | BG194: =IF(S194="","-",IFERROR((S194/R194-1)*(R194/R$13),"-")) -> - | BH194: -0.001627261211 | BI194: -0.0006194106445 | BJ194: -0.0136803337 | BK194: - | BL194: - | BM194: - | BN194: - | BO194: - | BP194: - | BQ194: - | BR194: - | BS194: - | BT194: - | BU194: - | BW194: Rev | BX194: Water | BY194: Fixed | BZ194: - | CA194: - | CB194: - | CC194: - | CD194: - | CE194: - | CF194: -
D195: =D192+1 -> 43 | E195: Price | F195: Water | G195: Access Fee | H195: East / West (Non-Res) | I195: Fixed | J195: $ | S195: 340.2943359 | T195: 310.960389 | U195: 309.9289326 | V195: 310.0314233 | W195: 310.0835294 | X195: 310.0763766 | Y195: 305.78 | Z195: 321.069 | AA195: 327.49038 | AB195: 334.0401876 | AC195: 340.7209914 | AD195: 347.5354112 | AE195: 357.9614735 | AF195: 368.7003177 | AG195: 379.7613273 | AK195: Price | AL195: Water | AM195: Fixed | AN195: - | AO195: -0.08620169026 | AP195: -0.003317002572 | AQ195: 0.0003306909913 | AR195: 0.0001680672269 | AS195: -2.306751863e-05 | AT195: -0.01385586545 | AU195: 0.05 | AV195: 0.02 | AW195: 0.02 | AX195: 0.02 | AY195: 0.02 | AZ195: 0.03 | BA195: 0.03 | BB195: 0.03 | BD195: Price | BE195: Water | BF195: Fixed | BG195: =IF(S195="","-",IFERROR((S195/R195-1)*(R197/R$13),"-")) -> - | BH195: -0.001200871939 | BI195: -4.448164338e-05 | BJ195: 4.32493557e-06 | BK195: 4.453072535e-06 | BL195: -6.122394269e-07 | BM195: -0.0003615243704 | BN195: 0.001274527138 | BO195: 0.0005059610136 | BP195: 0.0005017380349 | BQ195: 0.0004984954961 | BR195: 0.0004951824574 | BS195: 0.0007376985338 | BT195: 0.0007325832306 | BU195: 0.0007273568073 | BW195: Price | BX195: Water | BY195: Fixed | BZ195: -0.006963552206 | CA195: 0.0116723775 | CB195: 0.01374788732 | CC195: 0.01499523652 | CD195: 0.01757129542 | CE195: 0.01838022039 | CF195: 0.01878492398
E196: Qty | F196: =+F195 -> Water | G196: =+G195 -> Access Fee | H196: =+H195 -> East / West (Non-Res) | I196: =+I195 -> Fixed | J196: cust | S196: 1058 | T196: 1068.5 | U196: 1068 | V196: 2149 | W196: 2166 | X196: 2171 | Y196: 2187.2825 | Z196: 2203.687119 | AA196: 2220.214772 | AB196: 2236.866383 | AC196: 2253.642881 | AD196: 2270.545202 | AE196: 2287.574291 | AF196: 2304.731099 | AG196: 2322.016582 | AK196: Qty | AL196: Water | AM196: Fixed | AN196: - | AO196: 0.009924385633 | AP196: -0.0004679457183 | AQ196: 1.012172285 | AR196: 0.007910656119 | AS196: 0.002308402585 | AT196: 0.0075 | AU196: 0.0075 | AV196: 0.0075 | AW196: 0.0075 | AX196: 0.0075 | AY196: 0.0075 | AZ196: 0.0075 | BA196: 0.0075 | BB196: 0.0075 | BD196: Qty | BE196: Water | BF196: Fixed | BG196: =IF(S196="","-",IFERROR((S196/R196-1)*(R197/R$13),"-")) -> - | BH196: 0.0001382561779 | BI196: -6.275242213e-06 | BJ196: 0.01323767515 | BK196: 0.0002095990167 | BL196: 6.126775484e-05 | BM196: 0.000195688446 | BN196: 0.0001911790707 | BO196: 0.0001897353801 | BP196: 0.0001881517631 | BQ196: 0.000186935811 | BR196: 0.0001856934215 | BS196: 0.0001844246335 | BT196: 0.0001831458076 | BU196: 0.0001818392018 | BW196: =AK196 -> Qty | BX196: Water | BY196: Fixed | BZ196: 0.004900848644 | CA196: 0.00576648654 | CB196: 0.006199585077 | CC196: 0.006459533713 | CD196: 0.0075 | CE196: 0.0075 | CF196: 0.0075
E197: Rev | F197: =+F195 -> Water | G197: =+G195 -> Access Fee | H197: =+H195 -> East / West (Non-Res) | I197: =+I195 -> Fixed | J197: $m | K197: =K195*K196/10^6 -> 0 | L197: 0 | M197: 0 | N197: 0 | O197: 0 | P197: 0 | Q197: 0 | R197: 0 | S197: 0.3600314074 | T197: 0.3322611756 | U197: 0.3310041 | V197: 0.6662575287 | W197: 0.6716409247 | X197: 0.6731758135 | Y197: 0.6688272429 | Z197: 0.7075356195 | AA197: 0.7270989794 | AB197: 0.7472032662 | AC197: 0.7678634365 | AD197: 0.7890948605 | AE197: 0.8188634641 | AF197: 0.8497550883 | AG197: 0.881812099 | AK197: =E197 -> Rev | AL197: =F197 -> Water | AM197: =I197 -> Fixed | AN197: =IF(S197="","-",IFERROR(S197/R197-1,"-")) -> - | AO197: =IF(T197="","-",IFERROR(T197/S197-1,"-")) -> -0.07713280344 | AP197: =IF(U197="","-",IFERROR(U197/T197-1,"-")) -> -0.003783396113 | AQ197: =IF(V197="","-",IFERROR(V197/U197-1,"-")) -> 1.012837692 | AR197: =IF(W197="","-",IFERROR(W197/V197-1,"-")) -> 0.008080052868 | AS197: =IF(X197="","-",IFERROR(X197/W197-1,"-")) -> 0.002285281818 | AT197: =IF(Y197="","-",IFERROR(Y197/X197-1,"-")) -> -0.006459784445 | AU197: =IF(Z197="","-",IFERROR(Z197/Y197-1,"-")) -> 0.057875 | AV197: =IF(AA197="","-",IFERROR(AA197/Z197-1,"-")) -> 0.02765 | AW197: =IF(AB197="","-",IFERROR(AB197/AA197-1,"-")) -> 0.02765 | AX197: =IF(AC197="","-",IFERROR(AC197/AB197-1,"-")) -> 0.02765 | AY197: =IF(AD197="","-",IFERROR(AD197/AC197-1,"-")) -> 0.02765 | AZ197: =IF(AE197="","-",IFERROR(AE197/AD197-1,"-")) -> 0.037725 | BA197: =IF(AF197="","-",IFERROR(AF197/AE197-1,"-")) -> 0.037725 | BB197: =IF(AG197="","-",IFERROR(AG197/AF197-1,"-")) -> 0.037725 | BD197: Rev | BE197: Water | BF197: Fixed | BG197: =IF(S197="","-",IFERROR((S197/R197-1)*(R197/R$13),"-")) -> - | BH197: -0.001074533678 | BI197: -5.07360706e-05 | BJ197: 0.01324637766 | BK197: 0.000214087316 | BL197: 6.065410212e-05 | BM197: -0.0001685473572 | BN197: 0.001475265162 | BO197: 0.0006994911013 | BP197: 0.0006936528333 | BQ197: 0.0006891700233 | BR197: 0.0006845897474 | BS197: 0.0009276559063 | BT197: 0.0009212234125 | BU197: 0.0009146511851 | BW197: Rev | BX197: Water | BY197: Fixed | BZ197: -0.002096830878 | CA197: =IF(Z197="","-",IFERROR((Z197/$W197)^(1/CA$65)-1,"-")) -> 0.01750617265 | CB197: =IF(AA197="","-",IFERROR((AA197/$W197)^(1/CB$65)-1,"-")) -> 0.0200327036 | CC197: =IF(AB197="","-",IFERROR((AB197/$W197)^(1/CC$65)-1,"-")) -> 0.02155163247 | CD197: 0.02520308014 | CE197: 0.02601807204 | CF197: 0.02642581091
D198: =D195+1 -> 44 | E198: Price | I198: [Price] | J198: $ | AK198: Price | AL198: 0 | AM198: [Price] | AN198: - | AO198: - | AP198: - | AQ198: - | AR198: - | AS198: - | AT198: - | AU198: - | AV198: - | AW198: - | AX198: - | AY198: - | AZ198: - | BA198: - | BB198: - | BD198: Price | BE198: 0 | BF198: [Price] | BG198: =IF(S198="","-",IFERROR((S198/R198-1)*(R200/R$13),"-")) -> - | BH198: - | BI198: - | BJ198: - | BK198: - | BL198: - | BM198: - | BN198: - | BO198: - | BP198: - | BQ198: - | BR198: - | BS198: - | BT198: - | BU198: - | BW198: Price | BX198: 0 | BY198: [Price] | BZ198: =IF(Y198="","-",IFERROR((Y198/$W198)^(1/BZ$65)-1,"-")) -> - | CA198: - | CB198: - | CC198: - | CD198: =IF(Z198="","-",IFERROR((Z198/$X198)^(1/CD$65)-1,"-")) -> - | CE198: =IF(AA198="","-",IFERROR((AA198/$X198)^(1/CE$65)-1,"-")) -> - | CF198: =IF(AB198="","-",IFERROR((AB198/$X198)^(1/CF$65)-1,"-")) -> -
E199: Qty | F199: =+F198 -> 0 | G199: =+G198 -> 0 | H199: =+H198 -> 0 | I199: =+I198 -> [Price] | J199: cust | AK199: Qty | AL199: 0 | AM199: [Price] | AN199: - | AO199: - | AP199: - | AQ199: - | AR199: - | AS199: - | AT199: - | AU199: - | AV199: - | AW199: - | AX199: - | AY199: - | AZ199: - | BA199: - | BB199: - | BD199: Qty | BE199: 0 | BF199: [Price] | BG199: =IF(S199="","-",IFERROR((S199/R199-1)*(R200/R$13),"-")) -> - | BH199: - | BI199: - | BJ199: - | BK199: - | BL199: - | BM199: - | BN199: - | BO199: - | BP199: - | BQ199: - | BR199: - | BS199: - | BT199: - | BU199: - | BW199: Qty | BX199: 0 | BY199: [Price] | BZ199: - | CA199: - | CB199: - | CC199: - | CD199: - | CE199: - | CF199: -
E200: Rev | F200: =+F198 -> 0 | G200: =+G198 -> 0 | H200: =+H198 -> 0 | I200: =+I198 -> [Price] | J200: $m | K200: =K198*K199/10^6 -> 0 | L200: 0 | M200: 0 | N200: 0 | O200: 0 | P200: 0 | Q200: 0 | R200: 0 | S200: 0 | T200: 0 | U200: 0 | V200: 0 | W200: 0 | X200: 0 | Y200: 0 | Z200: 0 | AA200: 0 | AB200: 0 | AC200: 0 | AD200: 0 | AE200: 0 | AF200: 0 | AG200: 0 | AK200: Rev | AL200: 0 | AM200: [Price] | AN200: - | AO200: - | AP200: - | AQ200: - | AR200: - | AS200: - | AT200: - | AU200: - | AV200: - | AW200: - | AX200: - | AY200: - | AZ200: - | BA200: - | BB200: - | BD200: Rev | BE200: 0 | BF200: [Price] | BG200: =IF(S200="","-",IFERROR((S200/R200-1)*(R200/R$13),"-")) -> - | BH200: - | BI200: - | BJ200: - | BK200: - | BL200: - | BM200: - | BN200: - | BO200: - | BP200: - | BQ200: - | BR200: - | BS200: - | BT200: - | BU200: - | BW200: Rev | BX200: 0 | BY200: [Price] | BZ200: - | CA200: - | CB200: - | CC200: - | CD200: - | CE200: - | CF200: -
D201: =D198+1 -> 45 | E201: Price | I201: [Price] | J201: $ | AK201: Price | AL201: 0 | AM201: [Price] | AN201: - | AO201: - | AP201: - | AQ201: - | AR201: - | AS201: - | AT201: - | AU201: - | AV201: - | AW201: - | AX201: - | AY201: - | AZ201: - | BA201: - | BB201: - | BD201: Price | BE201: 0 | BF201: [Price] | BG201: =IF(S201="","-",IFERROR((S201/R201-1)*(R203/R$13),"-")) -> - | BH201: - | BI201: - | BJ201: - | BK201: - | BL201: - | BM201: - | BN201: - | BO201: - | BP201: - | BQ201: - | BR201: - | BS201: - | BT201: - | BU201: - | BW201: Price | BX201: 0 | BY201: [Price] | BZ201: - | CA201: - | CB201: - | CC201: - | CD201: - | CE201: - | CF201: -
E202: Qty | F202: =+F201 -> 0 | G202: =+G201 -> 0 | H202: =+H201 -> 0 | I202: =+I201 -> [Price] | J202: cust | AK202: Qty | AL202: 0 | AM202: [Price] | AN202: - | AO202: - | AP202: - | AQ202: - | AR202: - | AS202: - | AT202: - | AU202: - | AV202: - | AW202: - | AX202: - | AY202: - | AZ202: - | BA202: - | BB202: - | BD202: Qty | BE202: 0 | BF202: [Price] | BG202: =IF(S202="","-",IFERROR((S202/R202-1)*(R203/R$13),"-")) -> - | BH202: - | BI202: - | BJ202: - | BK202: - | BL202: - | BM202: - | BN202: - | BO202: - | BP202: - | BQ202: - | BR202: - | BS202: - | BT202: - | BU202: - | BW202: Qty | BX202: 0 | BY202: [Price] | BZ202: - | CA202: - | CB202: - | CC202: - | CD202: - | CE202: - | CF202: -
E203: Rev | F203: =+F201 -> 0 | G203: =+G201 -> 0 | H203: =+H201 -> 0 | I203: =+I201 -> [Price] | J203: $m | K203: =K201*K202/10^6 -> 0 | L203: 0 | M203: 0 | N203: 0 | O203: 0 | P203: 0 | Q203: 0 | R203: 0 | S203: 0 | T203: 0 | U203: 0 | V203: 0 | W203: 0 | X203: 0 | Y203: 0 | Z203: 0 | AA203: 0 | AB203: 0 | AC203: 0 | AD203: 0 | AE203: 0 | AF203: 0 | AG203: 0 | AK203: Rev | AL203: 0 | AM203: [Price] | AN203: - | AO203: - | AP203: - | AQ203: - | AR203: - | AS203: - | AT203: - | AU203: - | AV203: - | AW203: - | AX203: - | AY203: - | AZ203: - | BA203: - | BB203: - | BD203: Rev | BE203: 0 | BF203: [Price] | BG203: =IF(S203="","-",IFERROR((S203/R203-1)*(R203/R$13),"-")) -> - | BH203: - | BI203: - | BJ203: - | BK203: - | BL203: - | BM203: - | BN203: - | BO203: - | BP203: - | BQ203: - | BR203: - | BS203: - | BT203: - | BU203: - | BW203: Rev | BX203: 0 | BY203: [Price] | BZ203: - | CA203: - | CB203: - | CC203: - | CD203: - | CE203: - | CF203: -
D204: =D201+1 -> 46 | E204: Price | I204: [Price] | J204: $ | AK204: Price | AL204: 0 | AM204: [Price] | AN204: - | AO204: - | AP204: - | AQ204: - | AR204: - | AS204: - | AT204: - | AU204: - | AV204: - | AW204: - | AX204: - | AY204: - | AZ204: - | BA204: - | BB204: - | BD204: Price | BE204: 0 | BF204: [Price] | BG204: =IF(S204="","-",IFERROR((S204/R204-1)*(R206/R$13),"-")) -> - | BH204: - | BI204: - | BJ204: - | BK204: - | BL204: - | BM204: - | BN204: - | BO204: - | BP204: - | BQ204: - | BR204: - | BS204: - | BT204: - | BU204: - | BW204: Price | BX204: 0 | BY204: [Price] | BZ204: - | CA204: - | CB204: - | CC204: - | CD204: - | CE204: - | CF204: -
E205: Qty | F205: =+F204 -> 0 | G205: =+G204 -> 0 | H205: =+H204 -> 0 | I205: =+I204 -> [Price] | J205: cust | AK205: Qty | AL205: 0 | AM205: [Price] | AN205: - | AO205: - | AP205: - | AQ205: - | AR205: - | AS205: - | AT205: - | AU205: - | AV205: - | AW205: - | AX205: - | AY205: - | AZ205: - | BA205: - | BB205: - | BD205: Qty | BE205: 0 | BF205: [Price] | BG205: =IF(S205="","-",IFERROR((S205/R205-1)*(R206/R$13),"-")) -> - | BH205: - | BI205: - | BJ205: - | BK205: - | BL205: - | BM205: - | BN205: - | BO205: - | BP205: - | BQ205: - | BR205: - | BS205: - | BT205: - | BU205: - | BW205: Qty | BX205: 0 | BY205: [Price] | BZ205: - | CA205: - | CB205: - | CC205: - | CD205: - | CE205: - | CF205: -
E206: Rev | F206: =+F204 -> 0 | G206: =+G204 -> 0 | H206: =+H204 -> 0 | I206: =+I204 -> [Price] | J206: $m | K206: =K204*K205/10^6 -> 0 | L206: 0 | M206: 0 | N206: 0 | O206: 0 | P206: 0 | Q206: 0 | R206: 0 | S206: 0 | T206: 0 | U206: 0 | V206: 0 | W206: 0 | X206: 0 | Y206: 0 | Z206: 0 | AA206: 0 | AB206: 0 | AC206: 0 | AD206: 0 | AE206: 0 | AF206: 0 | AG206: 0 | AK206: Rev | AL206: 0 | AM206: [Price] | AN206: - | AO206: - | AP206: - | AQ206: - | AR206: - | AS206: - | AT206: - | AU206: - | AV206: - | AW206: - | AX206: - | AY206: - | AZ206: - | BA206: - | BB206: - | BD206: Rev | BE206: 0 | BF206: [Price] | BG206: =IF(S206="","-",IFERROR((S206/R206-1)*(R206/R$13),"-")) -> - | BH206: - | BI206: - | BJ206: - | BK206: - | BL206: - | BM206: - | BN206: - | BO206: - | BP206: - | BQ206: - | BR206: - | BS206: - | BT206: - | BU206: - | BW206: Rev | BX206: 0 | BY206: [Price] | BZ206: - | CA206: - | CB206: - | CC206: - | CD206: - | CE206: - | CF206: -
D207: =D204+1 -> 47 | E207: Price | I207: [Price] | J207: $ | AK207: Price | AL207: 0 | AM207: [Price] | AN207: - | AO207: - | AP207: - | AQ207: - | AR207: - | AS207: - | AT207: - | AU207: - | AV207: - | AW207: - | AX207: - | AY207: - | AZ207: - | BA207: - | BB207: - | BD207: Price | BE207: 0 | BF207: [Price] | BG207: =IF(S207="","-",IFERROR((S207/R207-1)*(R209/R$13),"-")) -> - | BH207: - | BI207: - | BJ207: - | BK207: - | BL207: - | BM207: - | BN207: - | BO207: - | BP207: - | BQ207: - | BR207: - | BS207: - | BT207: - | BU207: - | BW207: Price | BX207: 0 | BY207: [Price] | BZ207: - | CA207: - | CB207: - | CC207: - | CD207: - | CE207: - | CF207: -
E208: Qty | F208: =+F207 -> 0 | G208: =+G207 -> 0 | H208: =+H207 -> 0 | I208: =+I207 -> [Price] | J208: cust | AK208: Qty | AL208: 0 | AM208: [Price] | AN208: - | AO208: - | AP208: - | AQ208: - | AR208: - | AS208: - | AT208: - | AU208: - | AV208: - | AW208: - | AX208: - | AY208: - | AZ208: - | BA208: - | BB208: - | BD208: Qty | BE208: 0 | BF208: [Price] | BG208: =IF(S208="","-",IFERROR((S208/R208-1)*(R209/R$13),"-")) -> - | BH208: - | BI208: - | BJ208: - | BK208: - | BL208: - | BM208: - | BN208: - | BO208: - | BP208: - | BQ208: - | BR208: - | BS208: - | BT208: - | BU208: - | BW208: Qty | BX208: 0 | BY208: [Price] | BZ208: - | CA208: - | CB208: - | CC208: - | CD208: - | CE208: - | CF208: -
E209: Rev | F209: =+F207 -> 0 | G209: =+G207 -> 0 | H209: =+H207 -> 0 | I209: =+I207 -> [Price] | J209: $m | K209: =K207*K208/10^6 -> 0 | L209: 0 | M209: 0 | N209: 0 | O209: 0 | P209: 0 | Q209: 0 | R209: 0 | S209: 0 | T209: 0 | U209: 0 | V209: 0 | W209: 0 | X209: 0 | Y209: 0 | Z209: 0 | AA209: 0 | AB209: 0 | AC209: 0 | AD209: 0 | AE209: 0 | AF209: 0 | AG209: 0 | AK209: Rev | AL209: 0 | AM209: [Price] | AN209: - | AO209: - | AP209: - | AQ209: - | AR209: - | AS209: - | AT209: - | AU209: - | AV209: - | AW209: - | AX209: - | AY209: - | AZ209: - | BA209: - | BB209: - | BD209: Rev | BE209: 0 | BF209: [Price] | BG209: =IF(S209="","-",IFERROR((S209/R209-1)*(R209/R$13),"-")) -> - | BH209: - | BI209: - | BJ209: - | BK209: - | BL209: - | BM209: - | BN209: - | BO209: - | BP209: - | BQ209: - | BR209: - | BS209: - | BT209: - | BU209: - | BW209: Rev | BX209: 0 | BY209: [Price] | BZ209: - | CA209: - | CB209: - | CC209: - | CD209: - | CE209: - | CF209: -
D210: =D207+1 -> 48 | E210: Price | I210: [Price] | J210: $ | AK210: Price | AL210: 0 | AM210: [Price] | AN210: - | AO210: - | AP210: - | AQ210: - | AR210: - | AS210: - | AT210: - | AU210: - | AV210: - | AW210: - | AX210: - | AY210: - | AZ210: - | BA210: - | BB210: - | BD210: Price | BE210: 0 | BF210: [Price] | BG210: =IF(S210="","-",IFERROR((S210/R210-1)*(R212/R$13),"-")) -> - | BH210: - | BI210: - | BJ210: - | BK210: - | BL210: - | BM210: - | BN210: - | BO210: - | BP210: - | BQ210: - | BR210: - | BS210: - | BT210: - | BU210: - | BW210: Price | BX210: 0 | BY210: [Price] | BZ210: - | CA210: - | CB210: - | CC210: - | CD210: - | CE210: - | CF210: -
E211: Qty | F211: =+F210 -> 0 | G211: =+G210 -> 0 | H211: =+H210 -> 0 | I211: =+I210 -> [Price] | J211: cust | AK211: Qty | AL211: 0 | AM211: [Price] | AN211: - | AO211: - | AP211: - | AQ211: - | AR211: - | AS211: - | AT211: - | AU211: - | AV211: - | AW211: - | AX211: - | AY211: - | AZ211: - | BA211: - | BB211: - | BD211: Qty | BE211: 0 | BF211: [Price] | BG211: =IF(S211="","-",IFERROR((S211/R211-1)*(R212/R$13),"-")) -> - | BH211: - | BI211: - | BJ211: - | BK211: - | BL211: - | BM211: - | BN211: - | BO211: - | BP211: - | BQ211: - | BR211: - | BS211: - | BT211: - | BU211: - | BW211: Qty | BX211: 0 | BY211: [Price] | BZ211: - | CA211: - | CB211: - | CC211: - | CD211: - | CE211: - | CF211: -
E212: Rev | F212: =+F210 -> 0 | G212: =+G210 -> 0 | H212: =+H210 -> 0 | I212: =+I210 -> [Price] | J212: $m | K212: =K210*K211/10^6 -> 0 | L212: 0 | M212: 0 | N212: 0 | O212: 0 | P212: 0 | Q212: 0 | R212: 0 | S212: 0 | T212: 0 | U212: 0 | V212: 0 | W212: 0 | X212: 0 | Y212: 0 | Z212: 0 | AA212: 0 | AB212: 0 | AC212: 0 | AD212: 0 | AE212: 0 | AF212: 0 | AG212: 0 | AK212: Rev | AL212: 0 | AM212: [Price] | AN212: - | AO212: - | AP212: - | AQ212: - | AR212: - | AS212: - | AT212: - | AU212: - | AV212: - | AW212: - | AX212: - | AY212: - | AZ212: - | BA212: - | BB212: - | BD212: =AK212 -> Rev | BE212: 0 | BF212: [Price] | BG212: =IF(S212="","-",IFERROR((S212/R212-1)*(R212/R$13),"-")) -> - | BH212: - | BI212: - | BJ212: - | BK212: - | BL212: - | BM212: - | BN212: - | BO212: - | BP212: - | BQ212: - | BR212: - | BS212: - | BT212: - | BU212: - | BW212: Rev | BX212: 0 | BY212: [Price] | BZ212: - | CA212: - | CB212: - | CC212: - | CD212: - | CE212: - | CF212: -
D213: =D210+1 -> 49 | E213: Price | J213: $ | AK213: Price | AL213: 0 | AM213: 0 | AN213: - | AO213: - | AP213: - | AQ213: - | AR213: - | AS213: - | AT213: - | AU213: - | AV213: - | AW213: - | AX213: - | AY213: - | AZ213: - | BA213: - | BB213: - | BD213: Price | BE213: 0 | BF213: 0 | BG213: =IF(S213="","-",IFERROR((S213/R213-1)*(R215/R$13),"-")) -> - | BH213: - | BI213: - | BJ213: - | BK213: - | BL213: - | BM213: - | BN213: - | BO213: - | BP213: - | BQ213: - | BR213: - | BS213: - | BT213: - | BU213: - | BW213: Price | BX213: 0 | BY213: 0 | BZ213: - | CA213: - | CB213: - | CC213: - | CD213: - | CE213: - | CF213: -
E214: Qty | F214: =+F213 -> 0 | G214: =+G213 -> 0 | H214: =+H213 -> 0 | I214: =+I213 -> 0 | J214: cust | AK214: Qty | AL214: 0 | AM214: 0 | AN214: - | AO214: - | AP214: - | AQ214: - | AR214: - | AS214: - | AT214: - | AU214: - | AV214: - | AW214: - | AX214: - | AY214: - | AZ214: - | BA214: - | BB214: - | BD214: Qty | BE214: 0 | BF214: 0 | BG214: =IF(S214="","-",IFERROR((S214/R214-1)*(R215/R$13),"-")) -> - | BH214: - | BI214: - | BJ214: - | BK214: - | BL214: - | BM214: - | BN214: - | BO214: - | BP214: - | BQ214: - | BR214: - | BS214: - | BT214: - | BU214: - | BW214: Qty | BX214: 0 | BY214: 0 | BZ214: - | CA214: - | CB214: - | CC214: - | CD214: - | CE214: - | CF214: -
E215: Rev | F215: =+F213 -> 0 | G215: =+G213 -> 0 | H215: =+H213 -> 0 | I215: =+I213 -> 0 | J215: $m | K215: =K213*K214/10^6 -> 0 | L215: 0 | M215: 0 | N215: 0 | O215: 0 | P215: 0 | Q215: 0 | R215: 0 | S215: 0 | T215: 0 | U215: 0 | V215: 0 | W215: 0 | X215: 0 | Y215: 0 | Z215: 0 | AA215: 0 | AB215: 0 | AC215: 0 | AD215: 0 | AE215: 0 | AF215: 0 | AG215: 0 | AK215: Rev | AL215: 0 | AM215: 0 | AN215: - | AO215: - | AP215: - | AQ215: - | AR215: - | AS215: - | AT215: - | AU215: - | AV215: - | AW215: - | AX215: - | AY215: - | AZ215: - | BA215: - | BB215: - | BD215: Rev | BE215: 0 | BF215: 0 | BG215: =IF(S215="","-",IFERROR((S215/R215-1)*(R215/R$13),"-")) -> - | BH215: - | BI215: - | BJ215: - | BK215: - | BL215: - | BM215: - | BN215: - | BO215: - | BP215: - | BQ215: - | BR215: - | BS215: - | BT215: - | BU215: - | BW215: Rev | BX215: 0 | BY215: 0 | BZ215: - | CA215: - | CB215: - | CC215: - | CD215: - | CE215: - | CF215: -
D216: =D213+1 -> 50 | E216: Price | I216: [Price] | J216: $ | AK216: Price | AL216: 0 | AM216: [Price] | AN216: - | AO216: - | AP216: - | AQ216: - | AR216: - | AS216: - | AT216: - | AU216: - | AV216: - | AW216: - | AX216: - | AY216: - | AZ216: - | BA216: - | BB216: - | BD216: Price | BE216: 0 | BF216: [Price] | BG216: =IF(S216="","-",IFERROR((S216/R216-1)*(R218/R$13),"-")) -> - | BH216: - | BI216: - | BJ216: - | BK216: - | BL216: - | BM216: - | BN216: - | BO216: - | BP216: - | BQ216: - | BR216: - | BS216: - | BT216: - | BU216: - | BW216: Price | BX216: 0 | BY216: [Price] | BZ216: - | CA216: - | CB216: - | CC216: - | CD216: - | CE216: - | CF216: -
E217: Qty | F217: =+F216 -> 0 | G217: =+G216 -> 0 | H217: =+H216 -> 0 | I217: =+I216 -> [Price] | J217: cust | AK217: Qty | AL217: 0 | AM217: [Price] | AN217: - | AO217: - | AP217: - | AQ217: - | AR217: - | AS217: - | AT217: - | AU217: - | AV217: - | AW217: - | AX217: - | AY217: - | AZ217: - | BA217: - | BB217: - | BD217: Qty | BE217: 0 | BF217: [Price] | BG217: =IF(S217="","-",IFERROR((S217/R217-1)*(R218/R$13),"-")) -> - | BH217: - | BI217: - | BJ217: - | BK217: - | BL217: - | BM217: - | BN217: - | BO217: - | BP217: - | BQ217: - | BR217: - | BS217: - | BT217: - | BU217: - | BW217: Qty | BX217: 0 | BY217: [Price] | BZ217: - | CA217: - | CB217: - | CC217: - | CD217: - | CE217: - | CF217: -
E218: Rev | F218: =+F216 -> 0 | G218: =+G216 -> 0 | H218: =+H216 -> 0 | I218: =+I216 -> [Price] | J218: $m | K218: =K216*K217/10^6 -> 0 | L218: 0 | M218: 0 | N218: 0 | O218: 0 | P218: 0 | Q218: 0 | R218: 0 | S218: 0 | T218: 0 | U218: 0 | V218: 0 | W218: 0 | X218: 0 | Y218: 0 | Z218: 0 | AA218: 0 | AB218: 0 | AC218: 0 | AD218: 0 | AE218: 0 | AF218: 0 | AG218: 0 | AK218: Rev | AL218: 0 | AM218: [Price] | AN218: - | AO218: - | AP218: - | AQ218: - | AR218: - | AS218: - | AT218: - | AU218: - | AV218: - | AW218: - | AX218: - | AY218: - | AZ218: - | BA218: - | BB218: - | BD218: Rev | BE218: 0 | BF218: [Price] | BG218: =IF(S218="","-",IFERROR((S218/R218-1)*(R218/R$13),"-")) -> - | BH218: - | BI218: - | BJ218: - | BK218: - | BL218: - | BM218: - | BN218: - | BO218: - | BP218: - | BQ218: - | BR218: - | BS218: - | BT218: - | BU218: - | BW218: Rev | BX218: 0 | BY218: [Price] | BZ218: - | CA218: - | CB218: - | CC218: - | CD218: - | CE218: - | CF218: -
D219: =D216+1 -> 51 | E219: Price | I219: [Price] | J219: $ | AK219: Price | AL219: 0 | AM219: [Price] | AN219: - | AO219: - | AP219: - | AQ219: - | AR219: - | AS219: - | AT219: - | AU219: - | AV219: - | AW219: - | AX219: - | AY219: - | AZ219: - | BA219: - | BB219: - | BD219: Price | BE219: 0 | BF219: [Price] | BG219: =IF(S219="","-",IFERROR((S219/R219-1)*(R221/R$13),"-")) -> - | BH219: - | BI219: - | BJ219: - | BK219: - | BL219: - | BM219: - | BN219: - | BO219: - | BP219: - | BQ219: - | BR219: - | BS219: - | BT219: - | BU219: - | BW219: Price | BX219: 0 | BY219: [Price] | BZ219: - | CA219: - | CB219: - | CC219: - | CD219: - | CE219: - | CF219: -
E220: Qty | F220: =+F219 -> 0 | G220: =+G219 -> 0 | H220: =+H219 -> 0 | I220: =+I219 -> [Price] | J220: cust | AK220: Qty | AL220: 0 | AM220: [Price] | AN220: - | AO220: - | AP220: - | AQ220: - | AR220: - | AS220: - | AT220: - | AU220: - | AV220: - | AW220: - | AX220: - | AY220: - | AZ220: - | BA220: - | BB220: - | BD220: Qty | BE220: 0 | BF220: [Price] | BG220: =IF(S220="","-",IFERROR((S220/R220-1)*(R221/R$13),"-")) -> - | BH220: - | BI220: - | BJ220: - | BK220: - | BL220: - | BM220: - | BN220: - | BO220: - | BP220: - | BQ220: - | BR220: - | BS220: - | BT220: - | BU220: - | BW220: Qty | BX220: 0 | BY220: [Price] | BZ220: - | CA220: - | CB220: - | CC220: - | CD220: - | CE220: - | CF220: -
E221: Rev | F221: =+F219 -> 0 | G221: =+G219 -> 0 | H221: =+H219 -> 0 | I221: =+I219 -> [Price] | J221: $m | K221: =K219*K220/10^6 -> 0 | L221: 0 | M221: 0 | N221: 0 | O221: 0 | P221: 0 | Q221: 0 | R221: 0 | S221: 0 | T221: 0 | U221: 0 | V221: 0 | W221: 0 | X221: 0 | Y221: 0 | Z221: 0 | AA221: 0 | AB221: 0 | AC221: 0 | AD221: 0 | AE221: 0 | AF221: 0 | AG221: 0 | AK221: Rev | AL221: 0 | AM221: [Price] | AN221: - | AO221: - | AP221: - | AQ221: - | AR221: - | AS221: - | AT221: - | AU221: - | AV221: - | AW221: - | AX221: - | AY221: - | AZ221: - | BA221: - | BB221: - | BD221: Rev | BE221: 0 | BF221: [Price] | BG221: =IF(S221="","-",IFERROR((S221/R221-1)*(R221/R$13),"-")) -> - | BH221: - | BI221: - | BJ221: - | BK221: - | BL221: - | BM221: - | BN221: - | BO221: - | BP221: - | BQ221: - | BR221: - | BS221: - | BT221: - | BU221: - | BW221: Rev | BX221: 0 | BY221: [Price] | BZ221: - | CA221: - | CB221: - | CC221: - | CD221: - | CE221: - | CF221: -
